Workbook

Sheet Standings
A1: Player | B1: Sort | C1: =Schedule!E26 -> Kansas | D1: =Schedule!E27 -> New Hamp | E1: =Schedule!E28 -> Michigan (Sat) | F1: =Schedule!E29 -> Michigan (Sun) | G1: =Schedule!E30 -> Daytona (Road) | H1: =Schedule!E31 -> Dover (Sat) | I1: =Schedule!E32 -> Dover (Sun) | J1: =Schedule!E33 -> Daytona | K1: Purchased Points | L1: Segment Total | M1: Points Behind | N1: Segment 1 Score | O1: Segment 2 Score | P1: Segment 3 Score | Q1: Segment 4 Score | R1: YTD Score | S1: YTD Behind
A2: Doug Gebauer | B2: =MID(A2,FIND(" ", A2)+1,LEN(A2))&", "&LEFT(A2,FIND(" ",A2)-1) -> Gebauer, Doug | C2: ='Doug Gebauer'!M21 -> 243.5 | D2: ='Doug Gebauer'!O21 -> 235 | E2: ='Doug Gebauer'!Q21 -> 301 | F2: ='Doug Gebauer'!S21 -> 233 | G2: ='Doug Gebauer'!U21 -> 343.5 | H2: ='Doug Gebauer'!W21 -> 260.5 | I2: ='Doug Gebauer'!Y21 -> 192 | J2: ='Doug Gebauer'!AA21 -> 257 | K2: 100 | L2: =SUM(C2:K2) -> 2165.5 | M2: =L2-$L$2 -> 0 | N2: ='[1]Doug Gebauer'!$AC$21 -> 2179.5 | O2: ='[2]Doug Gebauer'!$AI$21 -> 2541 | R2: =SUM(N2:Q2)+L2 -> 6886 | S2: =R2-$R$2 -> 0
A3: Brad McLean | B3: =MID(A3,FIND(" ", A3)+1,LEN(A3))&", "&LEFT(A3,FIND(" ",A3)-1) -> McLean, Brad | C3: ='Brad McLean'!M21 -> 355.5 | D3: ='Brad McLean'!O21 -> 137 | E3: ='Brad McLean'!Q21 -> 269 | F3: ='Brad McLean'!S21 -> 303 | G3: ='Brad McLean'!U21 -> 178 | H3: ='Brad McLean'!W21 -> 191 | I3: ='Brad McLean'!Y21 -> 246 | J3: ='Brad McLean'!AA21 -> 147 | K3: 100 | L3: =SUM(C3:K3) -> 1926.5 | M3: =L3-$L$2 -> -239 | N3: ='[1]Brad McLean'!$AC$21 -> 1937.5 | O3: ='[2]Brad McLean'!$AI$21 -> 2455 | R3: =SUM(N3:Q3)+L3 -> 6319 | S3: =R3-$R$2 -> -567
A4: Ron Mason | B4: Mason, Ron | C4: ='Ron Mason'!M21 -> 322.5 | D4: ='Ron Mason'!O21 -> 310 | E4: ='Ron Mason'!Q21 -> 222 | F4: ='Ron Mason'!S21 -> 218 | G4: ='Ron Mason'!U21 -> 244 | H4: ='Ron Mason'!W21 -> 264 | I4: ='Ron Mason'!Y21 -> 207 | J4: ='Ron Mason'!AA21 -> 135 | L4: =SUM(C4:K4) -> 1922.5 | M4: =L4-$L$2 -> -243 | N4: ='[1]Ron Mason'!$AC$21 -> 2318 | O4: ='[2]Ron Mason'!$AI$21 -> 2364.5 | R4: =SUM(N4:Q4)+L4 -> 6605 | S4: =R4-$R$2 -> -281
A5: Donna McLean | B5: =MID(A5,FIND(" ", A5)+1,LEN(A5))&", "&LEFT(A5,FIND(" ",A5)-1) -> McLean, Donna | C5: ='Donna McLean'!M21 -> 146 | D5: ='Donna McLean'!O21 -> 262 | E5: ='Donna McLean'!Q21 -> 202 | F5: ='Donna McLean'!S21 -> 280 | G5: ='Donna McLean'!U21 -> 278 | H5: ='Donna McLean'!W21 -> 225.5 | I5: ='Donna McLean'!Y21 -> 249 | J5: ='Donna McLean'!AA21 -> 207 | L5: =SUM(C5:K5) -> 1849.5 | M5: =L5-$L$2 -> -316 | N5: ='[1]Donna McLean'!$AC$21 -> 2054.5 | O5: ='[2]Donna McLean'!$AI$21 -> 2217.5 | R5: =SUM(N5:Q5)+L5 -> 6121.5 | S5: =R5-$R$2 -> -764.5
A6: R&R Kitchen | B6: =MID(A6,FIND(" ", A6)+1,LEN(A6))&", "&LEFT(A6,FIND(" ",A6)-1) -> Kitchen, R&R | C6: ='R&R Kitchen'!M21 -> 202.5 | D6: ='R&R Kitchen'!O21 -> 198 | E6: ='R&R Kitchen'!Q21 -> 272 | F6: ='R&R Kitchen'!S21 -> 265 | G6: ='R&R Kitchen'!U21 -> 256.5 | H6: ='R&R Kitchen'!W21 -> 199 | I6: ='R&R Kitchen'!Y21 -> 234 | J6: ='R&R Kitchen'!AA21 -> 146 | L6: =SUM(C6:K6) -> 1773 | M6: =L6-$L$2 -> -392.5 | N6: ='[1]R&R Kitchen'!$AC$21 -> 1959 | O6: ='[2]R&R Kitchen'!$AI$21 -> 2141.5 | R6: =SUM(N6:Q6)+L6 -> 5873.5 | S6: =R6-$R$2 -> -1012.5
A7: Jeff Buehrle | B7: =MID(A7,FIND(" ", A7)+1,LEN(A7))&", "&LEFT(A7,FIND(" ",A7)-1) -> Buehrle, Jeff | C7: ='Jeff Buehrle'!M21 -> 318.5 | D7: ='Jeff Buehrle'!O21 -> 226 | E7: ='Jeff Buehrle'!Q21 -> 220 | F7: ='Jeff Buehrle'!S21 -> 233 | G7: ='Jeff Buehrle'!U21 -> 207 | H7: ='Jeff Buehrle'!W21 -> 262 | I7: ='Jeff Buehrle'!Y21 -> 137 | J7: ='Jeff Buehrle'!AA21 -> 165 | L7: =SUM(C7:K7) -> 1768.5 | M7: =L7-$L$2 -> -397 | N7: ='[1]Jeff Buehrle'!$AC$21 -> 2284.75 | O7: ='[2]Jeff Buehrle'!$AI$21 -> 2090.5 | R7: =SUM(N7:Q7)+L7 -> 6143.75 | S7: =R7-$R$2 -> -742.25
A8: Steve Sheppard | B8: =MID(A8,FIND(" ", A8)+1,LEN(A8))&", "&LEFT(A8,FIND(" ",A8)-1) -> Sheppard, Steve | C8: ='Steve Sheppard'!M21 -> 175 | D8: ='Steve Sheppard'!O21 -> 113 | E8: ='Steve Sheppard'!Q21 -> 91 | F8: ='Steve Sheppard'!S21 -> 153 | G8: ='Steve Sheppard'!U21 -> 129 | H8: ='Steve Sheppard'!W21 -> 216.5 | I8: ='Steve Sheppard'!Y21 -> 204 | J8: ='Steve Sheppard'!AA21 -> 150 | L8: =SUM(C8:K8) -> 1231.5 | M8: =L8-$L$2 -> -934 | N8: ='[1]Steve Sheppard'!$AC$21 -> 1762.5 | O8: ='[2]Steve Sheppard'!$AI$21 -> 2047.5 | R8: =SUM(N8:Q8)+L8 -> 5041.5 | S8: =R8-$R$2 -> -1844.5
A9: Trey George | B9: =MID(A9,FIND(" ", A9)+1,LEN(A9))&", "&LEFT(A9,FIND(" ",A9)-1) -> George, Trey | C9: ='Trey George'!M21 -> 282.5 | D9: ='Trey George'!O21 -> 107 | E9: ='Trey George'!Q21 -> 150 | F9: ='Trey George'!S21 -> 118 | G9: ='Trey George'!U21 -> 116 | H9: ='Trey George'!W21 -> 151.5 | I9: ='Trey George'!Y21 -> 134 | J9: ='Trey George'!AA21 -> 144 | L9: =SUM(C9:K9) -> 1203 | M9: =L9-$L$2 -> -962.5 | N9: ='[1]Trey George'!$AC$21 -> 1474 | O9: ='[2]Trey George'!$AI$21 -> 1930 | R9: =SUM(N9:Q9)+L9 -> 4607 | S9: =R9-$R$2 -> -2279
A11: Average Score | C11: =AVERAGE(C2:C9) -> 255.75 | D11: 198.5 | E11: 215.875 | F11: 225.375 | G11: 219 | H11: 221.25 | I11: 200.375 | J11: 168.875 | L11: =AVERAGE(L2:L9) -> 1730
A12: * Rookie
L13: 1st
L14: 2nd
C15: Last Updated: 8/31/2020 8:42:52 AM | L15: 3rd
C18: Ready for Picks
C19: Unofficial Race Results Posted
C20: Official Race Results Posted

Sheet Entry List
H1: https://en.wikipedia.org/wiki/2020_NASCAR_Cup_Series#Schedule
A4: Entry # | B4: Entry # | C4: No. | D4: Driver | E4: Team | F4: Manufacturer
A5: =IF(C5="","",C5) -> 00 | B5: 1 | C5: 00 | D5: Quin Houff (R) | E5: StarCom Racing | F5: Chevrolet
A6: =IF(C6="","",VALUE(C6)) -> 1 | B6: 2 | C6: 1 | D6: Kurt Busch | E6: Chip Ganassi Racing | F6: Chevrolet
A7: =IF(C7="","",VALUE(C7)) -> 2 | B7: 3 | C7: 2 | D7: Brad Keselowski | E7: Team Penske | F7: Ford
A8: 3 | B8: 4 | C8: 3 | D8: Austin Dillon | E8: Richard Childress Racing | F8: Chevrolet
A9: 4 | B9: 5 | C9: 4 | D9: Kevin Harvick | E9: Stewart-Haas Racing | F9: Ford
A10: 6 | B10: 6 | C10: 6 | D10: Ryan Newman | E10: Roush Fenway Racing | F10: Ford
A11: 107 | B11: 7 | C11: 107 | D11: Josh Bilicki (i) | E11: Tommy Baldwin Racing | F11: Chevrolet
A12: 8 | B12: 8 | C12: 8 | D12: Tyler Reddick (R) | E12: Richard Childress Racing | F12: Chevrolet
A13: 9 | B13: 9 | C13: 9 | D13: Chase Elliott | E13: Hendrick Motorsports | F13: Chevrolet
A14: 10 | B14: 10 | C14: 10 | D14: Aric Almirola | E14: Stewart-Haas Racing | F14: Ford
A15: 11 | B15: 11 | C15: 11 | D15: Denny Hamlin | E15: Joe Gibbs Racing | F15: Toyota
A16: 12 | B16: 12 | C16: 12 | D16: Ryan Blaney | E16: Team Penske | F16: Ford
A17: 13 | B17: 13 | C17: 13 | D17: Ty Dillon | E17: Germain Racing | F17: Chevrolet
A18: 14 | B18: 14 | C18: 14 | D18: Clint Bowyer | E18: Stewart-Haas Racing | F18: Ford
A19: 15 | B19: 15 | C19: 15 | D19: Brennan Poole (R) | E19: Premium Motorsports | F19: Chevrolet
A20: 17 | B20: 16 | C20: 17 | D20: Chris Buescher | E20: Roush Fenway Racing | F20: Ford
A21: 18 | B21: 17 | C21: 18 | D21: Kyle Busch | E21: Joe Gibbs Racing | F21: Toyota
A22: 19 | B22: 18 | C22: 19 | D22: Martin Truex Jr. | E22: Joe Gibbs Racing | F22: Toyota
A23: 20 | B23: 19 | C23: 20 | D23: Erik Jones | E23: Joe Gibbs Racing | F23: Toyota
A24: 21 | B24: 20 | C24: 21 | D24: Matt DiBenedetto | E24: Wood Brothers Racing | F24: Ford
A25: 22 | B25: 21 | C25: 22 | D25: Joey Logano | E25: Team Penske | F25: Ford
A26: 24 | B26: 22 | C26: 24 | D26: William Byron | E26: Hendrick Motorsports | F26: Chevrolet
A27: 127 | B27: 23 | C27: 127 | D27: J. J. Yeley (i) | E27: Rick Ware Racing | F27: Ford
A28: 32 | B28: 24 | C28: 32 | D28: Corey LaJoie | E28: Go Fas Racing | F28: Ford
A29: 34 | B29: 25 | C29: 34 | D29: Michael McDowell | E29: Front Row Motorsports | F29: Ford
A30: 37 | B30: 26 | C30: 37 | D30: Ryan Preece | E30: JTG Daugherty Racing | F30: Chevrolet
A31: 38 | B31: 27 | C31: 38 | D31: John Hunter Nemechek (R) | E31: Front Row Motorsports | F31: Ford
A32: 41 | B32: 28 | C32: 41 | D32: Cole Custer (R) | E32: Stewart-Haas Racing | F32: Ford
A33: 42 | B33: 29 | C33: 42 | D33: Matt Kenseth | E33: Chip Ganassi Racing | F33: Chevrolet
A34: 43 | B34: 30 | C34: 43 | D34: Bubba Wallace | E34: Richard Petty Motorsports | F34: Chevrolet
A35: 47 | B35: 31 | C35: 47 | D35: Ricky Stenhouse Jr. | E35: JTG Daugherty Racing | F35: Chevrolet
A36: 48 | B36: 32 | C36: 48 | D36: Jimmie Johnson | E36: Hendrick Motorsports | F36: Chevrolet
A37: 51 | B37: 33 | C37: 51 | D37: James Davison | E37: Petty Ware Racing | F37: Ford
A38: 53 | B38: 34 | C38: 53 | D38: Joey Gase (i) | E38: Rick Ware Racing | F38: Ford
A39: 62 | B39: 35 | C39: 62 | D39: Brendan Gaughan | E39: Beard Motorsports | F39: Chevrolet
A40: 66 | B40: 36 | C40: 66 | D40: Timmy Hill (i) | E40: MBM Motorsports | F40: Toyota
A41: 77 | B41: 37 | C41: 77 | D41: Ross Chastain (i) | E41: Spire Motorsports | F41: Chevrolet
A42: 88 | B42: 38 | C42: 88 | D42: Alex Bowman | E42: Hendrick Motorsports | F42: Chevrolet
A43: 95 | B43: 39 | C43: 95 | D43: Christopher Bell (R) | E43: Leavine Family Racing | F43: Toyota
A44: 96 | B44: 40 | C44: 96 | D44: Daniel Suárez | E44: Gaunt Brothers Racing | F44: Toyota

Sheet Current Owner Standings (2) (hidden)
A2: RANK | B2: +/- | C2: CAR | D2: OWNER | E2: POINTS | F2: BEHIND | G2: STARTS | H2: WINS | I2: TOP 5 | J2: TOP 10 | K2: Driver
A3: 1 | B3: -- | C3: #16 | D3: Jack Roush | E3: 312 | F3: Leader | G3: 8 | H3: 1 | I3: 5 | J3: 6 | K3: =IF(ISNA(VLOOKUP(VALUE(RIGHT(C3,LEN(C3)-1)),'Entry List'!$B$2:$B$103,2,FALSE)),"Not Entered", VLOOKUP(VALUE(RIGHT(C3,LEN(C3)-1)),'Entry List'!$B$2:$B$103,2,FALSE)) -> 
A4: 2 | B4: 2 | C4: #56 | D4: Michael Waltrip | E4: 297 | F4: -15 | G4: 8 | H4: 0 | I4: 3 | J4: 6 | K4: =IF(ISNA(VLOOKUP(VALUE(RIGHT(C4,LEN(C4)-1)),'Entry List'!$B$2:$B$103,2,FALSE)),"Not Entered", VLOOKUP(VALUE(RIGHT(C4,LEN(C4)-1)),'Entry List'!$B$2:$B$103,2,FALSE)) -> Not Entered
A5: 3 | B5: -1 | C5: #17 | D5: John Henry | E5: 295 | F5: -17 | G5: 8 | H5: 1 | I5: 5 | J5: 5 | K5: =IF(ISNA(VLOOKUP(VALUE(RIGHT(C5,LEN(C5)-1)),'Entry List'!$B$2:$B$103,2,FALSE)),"Not Entered", VLOOKUP(VALUE(RIGHT(C5,LEN(C5)-1)),'Entry List'!$B$2:$B$103,2,FALSE)) -> 
A6: 4 | B6: -1 | C6: #88 | D6: Rick Hendrick | E6: 291 | F6: -21 | G6: 8 | H6: 0 | I6: 3 | J6: 6 | K6: =IF(ISNA(VLOOKUP(VALUE(RIGHT(C6,LEN(C6)-1)),'Entry List'!$B$2:$B$103,2,FALSE)),"Not Entered", VLOOKUP(VALUE(RIGHT(C6,LEN(C6)-1)),'Entry List'!$B$2:$B$103,2,FALSE)) -> Not Entered
A7: 5 | B7: 1 | C7: #11 | D7: J D Gibbs | E7: 289 | F7: -23 | G7: 8 | H7: 2 | I7: 3 | J7: 4 | K7: =IF(ISNA(VLOOKUP(VALUE(RIGHT(C7,LEN(C7)-1)),'Entry List'!$B$2:$B$103,2,FALSE)),"Not Entered", VLOOKUP(VALUE(RIGHT(C7,LEN(C7)-1)),'Entry List'!$B$2:$B$103,2,FALSE)) -> 
A8: 6 | B8: -1 | C8: #29 | D8: Richard Childress | E8: 287 | F8: -25 | G8: 8 | H8: 0 | I8: 2 | J8: 5 | K8: =IF(ISNA(VLOOKUP(VALUE(RIGHT(C8,LEN(C8)-1)),'Entry List'!$B$2:$B$103,2,FALSE)),"Not Entered", VLOOKUP(VALUE(RIGHT(C8,LEN(C8)-1)),'Entry List'!$B$2:$B$103,2,FALSE)) -> 
A9: 7 | B9: 2 | C9: #48 | D9: Jeff Gordon | E9: 275 | F9: -37 | G9: 8 | H9: 0 | I9: 4 | J9: 6 | K9: =IF(ISNA(VLOOKUP(VALUE(RIGHT(C9,LEN(C9)-1)),'Entry List'!$B$2:$B$103,2,FALSE)),"Not Entered", VLOOKUP(VALUE(RIGHT(C9,LEN(C9)-1)),'Entry List'!$B$2:$B$103,2,FALSE)) -> Not Entered
A10: 8 | B10: -- | C10: #14 | D10: Margaret Haas | E10: 265 | F10: -47 | G10: 8 | H10: 2 | I10: 2 | J10: 3 | K10: =IF(ISNA(VLOOKUP(VALUE(RIGHT(C10,LEN(C10)-1)),'Entry List'!$B$2:$B$103,2,FALSE)),"Not Entered", VLOOKUP(VALUE(RIGHT(C10,LEN(C10)-1)),'Entry List'!$B$2:$B$103,2,FALSE)) -> 
A11: 9 | B11: 3 | C11: #99 | D11: Jack Roush | E11: 251 | F11: -61 | G11: 8 | H11: 0 | I11: 2 | J11: 5 | K11: =IF(ISNA(VLOOKUP(VALUE(RIGHT(C11,LEN(C11)-1)),'Entry List'!$B$2:$B$103,2,FALSE)),"Not Entered", VLOOKUP(VALUE(RIGHT(C11,LEN(C11)-1)),'Entry List'!$B$2:$B$103,2,FALSE)) -> Not Entered
A12: 10 | B12: -- | C12: #39 | D12: Tony Stewart | E12: 249 | F12: -63 | G12: 8 | H12: 1 | I12: 2 | J12: 3 | K12: =IF(ISNA(VLOOKUP(VALUE(RIGHT(C12,LEN(C12)-1)),'Entry List'!$B$2:$B$103,2,FALSE)),"Not Entered", VLOOKUP(VALUE(RIGHT(C12,LEN(C12)-1)),'Entry List'!$B$2:$B$103,2,FALSE)) -> 
A13: 11 | B13: -4 | C13: #55 | D13: Bill Jenkins | E13: 247 | F13: -65 | G13: 8 | H13: 0 | I13: 2 | J13: 4 | K13: =IF(ISNA(VLOOKUP(VALUE(RIGHT(C13,LEN(C13)-1)),'Entry List'!$B$2:$B$103,2,FALSE)),"Not Entered", VLOOKUP(VALUE(RIGHT(C13,LEN(C13)-1)),'Entry List'!$B$2:$B$103,2,FALSE)) -> Not Entered
A14: 12 | B14: -1 | C14: #15 | D14: Rob Kauffman | E14: 227 | F14: -85 | G14: 8 | H14: 0 | I14: 1 | J14: 3 | K14: =IF(ISNA(VLOOKUP(VALUE(RIGHT(C14,LEN(C14)-1)),'Entry List'!$B$2:$B$103,2,FALSE)),"Not Entered", VLOOKUP(VALUE(RIGHT(C14,LEN(C14)-1)),'Entry List'!$B$2:$B$103,2,FALSE)) -> 
A15: 13 | B15: 1 | C15: #20 | D15: Joe Gibbs | E15: 221 | F15: -91 | G15: 8 | H15: 0 | I15: 0 | J15: 2 | K15: =IF(ISNA(VLOOKUP(VALUE(RIGHT(C15,LEN(C15)-1)),'Entry List'!$B$2:$B$103,2,FALSE)),"Not Entered", VLOOKUP(VALUE(RIGHT(C15,LEN(C15)-1)),'Entry List'!$B$2:$B$103,2,FALSE)) -> 
A16: 14 | B16: 1 | C16: #18 | D16: Joe Gibbs | E16: 218 | F16: -94 | G16: 8 | H16: 0 | I16: 1 | J16: 3 | K16: =IF(ISNA(VLOOKUP(VALUE(RIGHT(C16,LEN(C16)-1)),'Entry List'!$B$2:$B$103,2,FALSE)),"Not Entered", VLOOKUP(VALUE(RIGHT(C16,LEN(C16)-1)),'Entry List'!$B$2:$B$103,2,FALSE)) -> 
A17: 15 | B17: -2 | C17: #27 | D17: Richard Childress | E17: 218 | F17: -94 | G17: 8 | H17: 0 | I17: 0 | J17: 3 | K17: =IF(ISNA(VLOOKUP(VALUE(RIGHT(C17,LEN(C17)-1)),'Entry List'!$B$2:$B$103,2,FALSE)),"Not Entered", VLOOKUP(VALUE(RIGHT(C17,LEN(C17)-1)),'Entry List'!$B$2:$B$103,2,FALSE)) ->  | U17: =IF(INDIRECT(ADDRESS(320,5+(T2*2),1,1,"Cars & Results"),TRUE)="Y",IF(ISERROR(MATCH(INDIRECT(ADDRESS(317,5+(T2*2),1,1,"Cars & Results"),TRUE),C4:C16,0))=TRUE,0,20),"") ->  | W17: =IF(INDIRECT(ADDRESS(320,5+(V2*2),1,1,"Cars & Results"),TRUE)="Y",IF(ISERROR(MATCH(INDIRECT(ADDRESS(317,5+(V2*2),1,1,"Cars & Results"),TRUE),D4:D16,0))=TRUE,0,20),"") ->  | Y17: =IF(INDIRECT(ADDRESS(320,5+(X2*2),1,1,"Cars & Results"),TRUE)="Y",IF(ISERROR(MATCH(INDIRECT(ADDRESS(317,5+(X2*2),1,1,"Cars & Results"),TRUE),E4:E16,0))=TRUE,0,20),"") ->  | AA17: =IF(INDIRECT(ADDRESS(320,5+(Z2*2),1,1,"Cars & Results"),TRUE)="Y",IF(ISERROR(MATCH(INDIRECT(ADDRESS(317,5+(Z2*2),1,1,"Cars & Results"),TRUE),F4:F16,0))=TRUE,0,20),"") ->  | AC17: =IF(INDIRECT(ADDRESS(320,5+(AB2*2),1,1,"Cars & Results"),TRUE)="Y",IF(ISERROR(MATCH(INDIRECT(ADDRESS(317,5+(AB2*2),1,1,"Cars & Results"),TRUE),K4:K16,0))=TRUE,0,20),"") ->  | AE17: =IF(INDIRECT(ADDRESS(320,5+(AD2*2),1,1,"Cars & Results"),TRUE)="Y",IF(ISERROR(MATCH(INDIRECT(ADDRESS(317,5+(AD2*2),1,1,"Cars & Results"),TRUE),L4:L16,0))=TRUE,0,20),"") ->  | AG17: =IF(INDIRECT(ADDRESS(320,5+(AF2*2),1,1,"Cars & Results"),TRUE)="Y",IF(ISERROR(MATCH(INDIRECT(ADDRESS(317,5+(AF2*2),1,1,"Cars & Results"),TRUE),M4:M16,0))=TRUE,0,20),"") ->  | AI17: =IF(INDIRECT(ADDRESS(320,5+(AH2*2),1,1,"Cars & Results"),TRUE)="Y",IF(ISERROR(MATCH(INDIRECT(ADDRESS(317,5+(AH2*2),1,1,"Cars & Results"),TRUE),N4:N16,0))=TRUE,0,20),"") -> 
A18: 16 | B18: -- | C18: #2 | D18: Roger Penske | E18: 217 | F18: -95 | G18: 8 | H18: 1 | I18: 2 | J18: 3 | K18: =IF(ISNA(VLOOKUP(VALUE(RIGHT(C18,LEN(C18)-1)),'Entry List'!$B$2:$B$103,2,FALSE)),"Not Entered", VLOOKUP(VALUE(RIGHT(C18,LEN(C18)-1)),'Entry List'!$B$2:$B$103,2,FALSE)) ->  | U18: =IF(INDIRECT(ADDRESS(320,5+(T2*2),1,1,"Cars & Results"),TRUE)="Y",IF(ISERROR(MATCH(INDIRECT(ADDRESS(318,5+(T2*2),1,1,"Cars & Results"),TRUE),C4:C16,0))=TRUE,0,10),"") ->  | W18: =IF(INDIRECT(ADDRESS(320,5+(V2*2),1,1,"Cars & Results"),TRUE)="Y",IF(ISERROR(MATCH(INDIRECT(ADDRESS(318,5+(V2*2),1,1,"Cars & Results"),TRUE),D4:D16,0))=TRUE,0,10),"") ->  | Y18: =IF(INDIRECT(ADDRESS(320,5+(X2*2),1,1,"Cars & Results"),TRUE)="Y",IF(ISERROR(MATCH(INDIRECT(ADDRESS(318,5+(X2*2),1,1,"Cars & Results"),TRUE),E4:E16,0))=TRUE,0,10),"") ->  | AA18: =IF(INDIRECT(ADDRESS(320,5+(Z2*2),1,1,"Cars & Results"),TRUE)="Y",IF(ISERROR(MATCH(INDIRECT(ADDRESS(318,5+(Z2*2),1,1,"Cars & Results"),TRUE),F4:F16,0))=TRUE,0,10),"") ->  | AC18: =IF(INDIRECT(ADDRESS(320,5+(AB2*2),1,1,"Cars & Results"),TRUE)="Y",IF(ISERROR(MATCH(INDIRECT(ADDRESS(318,5+(AB2*2),1,1,"Cars & Results"),TRUE),K4:K16,0))=TRUE,0,10),"") ->  | AE18: =IF(INDIRECT(ADDRESS(320,5+(AD2*2),1,1,"Cars & Results"),TRUE)="Y",IF(ISERROR(MATCH(INDIRECT(ADDRESS(318,5+(AD2*2),1,1,"Cars & Results"),TRUE),L4:L16,0))=TRUE,0,10),"") ->  | AG18: =IF(INDIRECT(ADDRESS(320,5+(AF2*2),1,1,"Cars & Results"),TRUE)="Y",IF(ISERROR(MATCH(INDIRECT(ADDRESS(318,5+(AF2*2),1,1,"Cars & Results"),TRUE),M4:M16,0))=TRUE,0,10),"") ->  | AI18: =IF(INDIRECT(ADDRESS(320,5+(AH2*2),1,1,"Cars & Results"),TRUE)="Y",IF(ISERROR(MATCH(INDIRECT(ADDRESS(318,5+(AH2*2),1,1,"Cars & Results"),TRUE),N4:N16,0))=TRUE,0,10),"") -> 
A19: 17 | B19: 2 | C19: #42 | D19: Chip Ganassi | E19: 207 | F19: -105 | G19: 8 | H19: 0 | I19: 0 | J19: 1 | K19: =IF(ISNA(VLOOKUP(VALUE(RIGHT(C19,LEN(C19)-1)),'Entry List'!$B$2:$B$103,2,FALSE)),"Not Entered", VLOOKUP(VALUE(RIGHT(C19,LEN(C19)-1)),'Entry List'!$B$2:$B$103,2,FALSE)) -> Not Entered | U19: =IF(INDIRECT(ADDRESS(320,5+(T2*2),1,1,"Cars & Results"),TRUE)="Y",IF(ISERROR(MATCH(INDIRECT(ADDRESS(319,5+(T2*2),1,1,"Cars & Results"),TRUE),C4:C16,0))=TRUE,0,10),"") ->  | W19: =IF(INDIRECT(ADDRESS(320,5+(V2*2),1,1,"Cars & Results"),TRUE)="Y",IF(ISERROR(MATCH(INDIRECT(ADDRESS(319,5+(V2*2),1,1,"Cars & Results"),TRUE),D4:D16,0))=TRUE,0,10),"") ->  | Y19: =IF(INDIRECT(ADDRESS(320,5+(X2*2),1,1,"Cars & Results"),TRUE)="Y",IF(ISERROR(MATCH(INDIRECT(ADDRESS(319,5+(X2*2),1,1,"Cars & Results"),TRUE),E4:E16,0))=TRUE,0,10),"") ->  | AA19: =IF(INDIRECT(ADDRESS(320,5+(Z2*2),1,1,"Cars & Results"),TRUE)="Y",IF(ISERROR(MATCH(INDIRECT(ADDRESS(319,5+(Z2*2),1,1,"Cars & Results"),TRUE),F4:F16,0))=TRUE,0,10),"") ->  | AC19: =IF(INDIRECT(ADDRESS(320,5+(AB2*2),1,1,"Cars & Results"),TRUE)="Y",IF(ISERROR(MATCH(INDIRECT(ADDRESS(319,5+(AB2*2),1,1,"Cars & Results"),TRUE),K4:K16,0))=TRUE,0,10),"") ->  | AE19: =IF(INDIRECT(ADDRESS(320,5+(AD2*2),1,1,"Cars & Results"),TRUE)="Y",IF(ISERROR(MATCH(INDIRECT(ADDRESS(319,5+(AD2*2),1,1,"Cars & Results"),TRUE),L4:L16,0))=TRUE,0,10),"") ->  | AG19: =IF(INDIRECT(ADDRESS(320,5+(AF2*2),1,1,"Cars & Results"),TRUE)="Y",IF(ISERROR(MATCH(INDIRECT(ADDRESS(319,5+(AF2*2),1,1,"Cars & Results"),TRUE),M4:M16,0))=TRUE,0,10),"") ->  | AI19: =IF(INDIRECT(ADDRESS(320,5+(AH2*2),1,1,"Cars & Results"),TRUE)="Y",IF(ISERROR(MATCH(INDIRECT(ADDRESS(319,5+(AH2*2),1,1,"Cars & Results"),TRUE),N4:N16,0))=TRUE,0,10),"") -> 
A20: 18 | B20: -1 | C20: #31 | D20: Richard Childress | E20: 201 | F20: -111 | G20: 8 | H20: 0 | I20: 1 | J20: 2 | K20: =IF(ISNA(VLOOKUP(VALUE(RIGHT(C20,LEN(C20)-1)),'Entry List'!$B$2:$B$103,2,FALSE)),"Not Entered", VLOOKUP(VALUE(RIGHT(C20,LEN(C20)-1)),'Entry List'!$B$2:$B$103,2,FALSE)) -> 
A21: 19 | B21: -1 | C21: #24 | D21: Rick Hendrick | E21: 200 | F21: -112 | G21: 8 | H21: 0 | I21: 1 | J21: 2 | K21: =IF(ISNA(VLOOKUP(VALUE(RIGHT(C21,LEN(C21)-1)),'Entry List'!$B$2:$B$103,2,FALSE)),"Not Entered", VLOOKUP(VALUE(RIGHT(C21,LEN(C21)-1)),'Entry List'!$B$2:$B$103,2,FALSE)) -> 
A22: 20 | B22: 3 | C22: #1 | D22: Felix Sabates | E22: 190 | F22: -122 | G22: 8 | H22: 0 | I22: 0 | J22: 2 | K22: =IF(ISNA(VLOOKUP(VALUE(RIGHT(C22,LEN(C22)-1)),'Entry List'!$B$2:$B$103,2,FALSE)),"Not Entered", VLOOKUP(VALUE(RIGHT(C22,LEN(C22)-1)),'Entry List'!$B$2:$B$103,2,FALSE)) -> 
A23: 21 | B23: 1 | C23: #43 | D23: Richard Petty | E23: 187 | F23: -125 | G23: 8 | H23: 0 | I23: 0 | J23: 1 | K23: =IF(ISNA(VLOOKUP(VALUE(RIGHT(C23,LEN(C23)-1)),'Entry List'!$B$2:$B$103,2,FALSE)),"Not Entered", VLOOKUP(VALUE(RIGHT(C23,LEN(C23)-1)),'Entry List'!$B$2:$B$103,2,FALSE)) -> Not Entered
A24: 22 | B24: 2 | C24: #9 | D24: Richard Petty | E24: 187 | F24: -125 | G24: 8 | H24: 0 | I24: 0 | J24: 0 | K24: =IF(ISNA(VLOOKUP(VALUE(RIGHT(C24,LEN(C24)-1)),'Entry List'!$B$2:$B$103,2,FALSE)),"Not Entered", VLOOKUP(VALUE(RIGHT(C24,LEN(C24)-1)),'Entry List'!$B$2:$B$103,2,FALSE)) -> 
A25: 23 | B25: -2 | C25: #78 | D25: Barney Visser | E25: 187 | F25: -125 | G25: 8 | H25: 0 | I25: 0 | J25: 0 | K25: =IF(ISNA(VLOOKUP(VALUE(RIGHT(C25,LEN(C25)-1)),'Entry List'!$B$2:$B$103,2,FALSE)),"Not Entered", VLOOKUP(VALUE(RIGHT(C25,LEN(C25)-1)),'Entry List'!$B$2:$B$103,2,FALSE)) -> Not Entered
A26: 24 | B26: -4 | C26: #22 | D26: Walter Czarnecki | E26: 185 | F26: -127 | G26: 8 | H26: 0 | I26: 1 | J26: 1 | K26: =IF(ISNA(VLOOKUP(VALUE(RIGHT(C26,LEN(C26)-1)),'Entry List'!$B$2:$B$103,2,FALSE)),"Not Entered", VLOOKUP(VALUE(RIGHT(C26,LEN(C26)-1)),'Entry List'!$B$2:$B$103,2,FALSE)) -> 
A27: 25 | B27: 1 | C27: #51 | D27: James Finch | E27: 174 | F27: -138 | G27: 8 | H27: 0 | I27: 0 | J27: 1 | K27: =IF(ISNA(VLOOKUP(VALUE(RIGHT(C27,LEN(C27)-1)),'Entry List'!$B$2:$B$103,2,FALSE)),"Not Entered", VLOOKUP(VALUE(RIGHT(C27,LEN(C27)-1)),'Entry List'!$B$2:$B$103,2,FALSE)) -> Not Entered
A28: 26 | B28: 1 | C28: #5 | D28: Linda Hendrick | E28: 166 | F28: -146 | G28: 8 | H28: 0 | I28: 0 | J28: 2 | K28: =IF(ISNA(VLOOKUP(VALUE(RIGHT(C28,LEN(C28)-1)),'Entry List'!$B$2:$B$103,2,FALSE)),"Not Entered", VLOOKUP(VALUE(RIGHT(C28,LEN(C28)-1)),'Entry List'!$B$2:$B$103,2,FALSE)) -> 
A29: 27 | B29: -2 | C29: #47 | D29: Tad Geschickter | E29: 161 | F29: -151 | G29: 8 | H29: 0 | I29: 0 | J29: 0 | K29: =IF(ISNA(VLOOKUP(VALUE(RIGHT(C29,LEN(C29)-1)),'Entry List'!$B$2:$B$103,2,FALSE)),"Not Entered", VLOOKUP(VALUE(RIGHT(C29,LEN(C29)-1)),'Entry List'!$B$2:$B$103,2,FALSE)) -> Not Entered
A30: 28 | B30: -- | C30: #13 | D30: Bob Germain | E30: 137 | F30: -175 | G30: 8 | H30: 0 | I30: 0 | J30: 0 | K30: =IF(ISNA(VLOOKUP(VALUE(RIGHT(C30,LEN(C30)-1)),'Entry List'!$B$2:$B$103,2,FALSE)),"Not Entered", VLOOKUP(VALUE(RIGHT(C30,LEN(C30)-1)),'Entry List'!$B$2:$B$103,2,FALSE)) -> 
A31: 29 | B31: 1 | C31: #38 | D31: Brad Jenkins | E31: 126 | F31: -186 | G31: 8 | H31: 0 | I31: 0 | J31: 0 | K31: =IF(ISNA(VLOOKUP(VALUE(RIGHT(C31,LEN(C31)-1)),'Entry List'!$B$2:$B$103,2,FALSE)),"Not Entered", VLOOKUP(VALUE(RIGHT(C31,LEN(C31)-1)),'Entry List'!$B$2:$B$103,2,FALSE)) -> 
A32: 30 | B32: -1 | C32: #34 | D32: Bob Jenkins | E32: 123 | F32: -189 | G32: 8 | H32: 0 | I32: 0 | J32: 0 | K32: =IF(ISNA(VLOOKUP(VALUE(RIGHT(C32,LEN(C32)-1)),'Entry List'!$B$2:$B$103,2,FALSE)),"Not Entered", VLOOKUP(VALUE(RIGHT(C32,LEN(C32)-1)),'Entry List'!$B$2:$B$103,2,FALSE)) -> 
A33: 31 | B33: 2 | C33: #93 | D33: Thomas Ueberall | E33: 122 | F33: -190 | G33: 8 | H33: 0 | I33: 0 | J33: 0 | K33: =IF(ISNA(VLOOKUP(VALUE(RIGHT(C33,LEN(C33)-1)),'Entry List'!$B$2:$B$103,2,FALSE)),"Not Entered", VLOOKUP(VALUE(RIGHT(C33,LEN(C33)-1)),'Entry List'!$B$2:$B$103,2,FALSE)) -> Not Entered
A34: 32 | B34: -- | C34: #32 | D34: Jack Roush | E34: 120 | F34: -192 | G34: 8 | H34: 0 | I34: 0 | J34: 0 | K34: =IF(ISNA(VLOOKUP(VALUE(RIGHT(C34,LEN(C34)-1)),'Entry List'!$B$2:$B$103,2,FALSE)),"Not Entered", VLOOKUP(VALUE(RIGHT(C34,LEN(C34)-1)),'Entry List'!$B$2:$B$103,2,FALSE)) -> 
A35: 33 | B35: -2 | C35: #36 | D35: Allan Heinke | E35: 111 | F35: -201 | G35: 8 | H35: 0 | I35: 0 | J35: 0 | K35: =IF(ISNA(VLOOKUP(VALUE(RIGHT(C35,LEN(C35)-1)),'Entry List'!$B$2:$B$103,2,FALSE)),"Not Entered", VLOOKUP(VALUE(RIGHT(C35,LEN(C35)-1)),'Entry List'!$B$2:$B$103,2,FALSE)) -> 
A36: 34 | B36: -- | C36: #10 | D36: Tommy Baldwin | E36: 109 | F36: -203 | G36: 8 | H36: 0 | I36: 0 | J36: 0 | K36: =IF(ISNA(VLOOKUP(VALUE(RIGHT(C36,LEN(C36)-1)),'Entry List'!$B$2:$B$103,2,FALSE)),"Not Entered", VLOOKUP(VALUE(RIGHT(C36,LEN(C36)-1)),'Entry List'!$B$2:$B$103,2,FALSE)) -> 
A37: 35 | B37: -- | C37: #83 | D37: Thomas Ueberall | E37: 101 | F37: -211 | G37: 8 | H37: 0 | I37: 0 | J37: 0 | K37: =IF(ISNA(VLOOKUP(VALUE(RIGHT(C37,LEN(C37)-1)),'Entry List'!$B$2:$B$103,2,FALSE)),"Not Entered", VLOOKUP(VALUE(RIGHT(C37,LEN(C37)-1)),'Entry List'!$B$2:$B$103,2,FALSE)) -> Not Entered
A38: 36 | B38: -- | C38: #33 | D38: Richard Childress | E38: 90 | F38: -222 | G38: 7 | H38: 0 | I38: 0 | J38: 0 | K38: =IF(ISNA(VLOOKUP(VALUE(RIGHT(C38,LEN(C38)-1)),'Entry List'!$B$2:$B$103,2,FALSE)),"Not Entered", VLOOKUP(VALUE(RIGHT(C38,LEN(C38)-1)),'Entry List'!$B$2:$B$103,2,FALSE)) -> 
A39: 37 | B39: 2 | C39: #249 | D39: Jay Robinson | E39: 73 | F39: -239 | G39: 7 | H39: 0 | I39: 0 | J39: 0 | K39: =IF(ISNA(VLOOKUP(VALUE(RIGHT(C39,LEN(C39)-1)),'Entry List'!$B$2:$B$103,2,FALSE)),"Not Entered", VLOOKUP(VALUE(RIGHT(C39,LEN(C39)-1)),'Entry List'!$B$2:$B$103,2,FALSE)) -> Not Entered
A40: 38 | B40: -1 | C40: #30 | D40: Kevin Buckler | E40: 69 | F40: -243 | G40: 7 | H40: 0 | I40: 0 | J40: 0 | K40: =IF(ISNA(VLOOKUP(VALUE(RIGHT(C40,LEN(C40)-1)),'Entry List'!$B$2:$B$103,2,FALSE)),"Not Entered", VLOOKUP(VALUE(RIGHT(C40,LEN(C40)-1)),'Entry List'!$B$2:$B$103,2,FALSE)) -> 
A41: 39 | B41: -1 | C41: #21 | D41: Glen Wood | E41: 60 | F41: -252 | G41: 3 | H41: 0 | I41: 0 | J41: 1 | K41: =IF(ISNA(VLOOKUP(VALUE(RIGHT(C41,LEN(C41)-1)),'Entry List'!$B$2:$B$103,2,FALSE)),"Not Entered", VLOOKUP(VALUE(RIGHT(C41,LEN(C41)-1)),'Entry List'!$B$2:$B$103,2,FALSE)) -> 
A42: 40 | B42: -- | C42: #26 | D42: Jerry Freeze | E42: 56 | F42: -256 | G42: 8 | H42: 0 | I42: 0 | J42: 0 | K42: =IF(ISNA(VLOOKUP(VALUE(RIGHT(C42,LEN(C42)-1)),'Entry List'!$B$2:$B$103,2,FALSE)),"Not Entered", VLOOKUP(VALUE(RIGHT(C42,LEN(C42)-1)),'Entry List'!$B$2:$B$103,2,FALSE)) -> 
A43: 41 | B43: -- | C43: #98 | D43: Mike Curb | E43: 51 | F43: -261 | G43: 8 | H43: 0 | I43: 0 | J43: 0 | K43: =IF(ISNA(VLOOKUP(VALUE(RIGHT(C43,LEN(C43)-1)),'Entry List'!$B$2:$B$103,2,FALSE)),"Not Entered", VLOOKUP(VALUE(RIGHT(C43,LEN(C43)-1)),'Entry List'!$B$2:$B$103,2,FALSE)) -> Not Entered
A44: 42 | B44: -- | C44: #87 | D44: Andrea Nemechek | E44: 35 | F44: -277 | G44: 6 | H44: 0 | I44: 0 | J44: 0 | K44: =IF(ISNA(VLOOKUP(VALUE(RIGHT(C44,LEN(C44)-1)),'Entry List'!$B$2:$B$103,2,FALSE)),"Not Entered", VLOOKUP(VALUE(RIGHT(C44,LEN(C44)-1)),'Entry List'!$B$2:$B$103,2,FALSE)) -> Not Entered
A45: 43 | B45: -- | C45: #132 | D45: Frank Stoddard, Jr | E45: 27 | F45: -285 | G45: 1 | H45: 0 | I45: 0 | J45: 0 | K45: =IF(ISNA(VLOOKUP(VALUE(RIGHT(C45,LEN(C45)-1)),'Entry List'!$B$2:$B$103,2,FALSE)),"Not Entered", VLOOKUP(VALUE(RIGHT(C45,LEN(C45)-1)),'Entry List'!$B$2:$B$103,2,FALSE)) -> Not Entered
A46: 44 | B46: -- | C46: #12 | D46: Roger Penske | E46: 26 | F46: -286 | G46: 1 | H46: 0 | I46: 0 | J46: 0 | K46: =IF(ISNA(VLOOKUP(VALUE(RIGHT(C46,LEN(C46)-1)),'Entry List'!$B$2:$B$103,2,FALSE)),"Not Entered", VLOOKUP(VALUE(RIGHT(C46,LEN(C46)-1)),'Entry List'!$B$2:$B$103,2,FALSE)) -> 
A47: 45 | B47: -1 | C47: #23 | D47: Robert Richardson | E47: 13 | F47: -299 | G47: 6 | H47: 0 | I47: 0 | J47: 0 | K47: =IF(ISNA(VLOOKUP(VALUE(RIGHT(C47,LEN(C47)-1)),'Entry List'!$B$2:$B$103,2,FALSE)),"Not Entered", VLOOKUP(VALUE(RIGHT(C47,LEN(C47)-1)),'Entry List'!$B$2:$B$103,2,FALSE)) -> 
A48: 46 | B48: -1 | C48: #119 | D48: Randy Humphrey | E48: 10 | F48: -302 | G48: 3 | H48: 0 | I48: 0 | J48: 0 | K48: =IF(ISNA(VLOOKUP(VALUE(RIGHT(C48,LEN(C48)-1)),'Entry List'!$B$2:$B$103,2,FALSE)),"Not Entered", VLOOKUP(VALUE(RIGHT(C48,LEN(C48)-1)),'Entry List'!$B$2:$B$103,2,FALSE)) -> Not Entered
A49: 47 | B49: -1 | C49: #7 | D49: Robby Gordon | E49: 6 | F49: -306 | G49: 2 | H49: 0 | I49: 0 | J49: 0 | K49: =IF(ISNA(VLOOKUP(VALUE(RIGHT(C49,LEN(C49)-1)),'Entry List'!$B$2:$B$103,2,FALSE)),"Not Entered", VLOOKUP(VALUE(RIGHT(C49,LEN(C49)-1)),'Entry List'!$B$2:$B$103,2,FALSE)) -> 
A50: 48 | B50: -1 | C50: #74 | D50: Vickie Compton | E50: 5 | F50: -307 | G50: 3 | H50: 0 | I50: 0 | J50: 0 | K50: =IF(ISNA(VLOOKUP(VALUE(RIGHT(C50,LEN(C50)-1)),'Entry List'!$B$2:$B$103,2,FALSE)),"Not Entered", VLOOKUP(VALUE(RIGHT(C50,LEN(C50)-1)),'Entry List'!$B$2:$B$103,2,FALSE)) -> Not Entered
A51: 49 | B51: -1 | C51: #37 | D51: Larry Gunselman | E51: 2 | F51: -310 | G51: 1 | H51: 0 | I51: 0 | J51: 0 | K51: =IF(ISNA(VLOOKUP(VALUE(RIGHT(C51,LEN(C51)-1)),'Entry List'!$B$2:$B$103,2,FALSE)),"Not Entered", VLOOKUP(VALUE(RIGHT(C51,LEN(C51)-1)),'Entry List'!$B$2:$B$103,2,FALSE)) -> 
A52: 50 | B52: -1 | C52: #195 | D52: Bob Leavine | E52: 1 | F52: -311 | G52: 1 | H52: 0 | I52: 0 | J52: 0 | K52: =IF(ISNA(VLOOKUP(VALUE(RIGHT(C52,LEN(C52)-1)),'Entry List'!$B$2:$B$103,2,FALSE)),"Not Entered", VLOOKUP(VALUE(RIGHT(C52,LEN(C52)-1)),'Entry List'!$B$2:$B$103,2,FALSE)) -> Not Entered
A53: 51 | B53: -1 | C53: #140 | D53: Michael Hillman | E53: 0 | F53: -312 | G53: 0 | H53: 0 | I53: 0 | J53: 0 | K53: =IF(ISNA(VLOOKUP(VALUE(RIGHT(C57,LEN(C57)-1)),'Entry List'!$B$2:$B$103,2,FALSE)),"Not Entered", VLOOKUP(VALUE(RIGHT(C57,LEN(C57)-1)),'Entry List'!$B$2:$B$103,2,FALSE)) -> Not Entered
A54: 52 | B54: -1 | C54: #52 | D54: Kelly Owen | E54: 0 | F54: -312 | G54: 0 | H54: 0 | I54: 0 | J54: 0
A55: 53 | B55: -- | C55: #179 | D55: Archie St Hilaire | E55: 0 | F55: -312 | G55: 0 | H55: 0 | I55: 0 | J55: 0
A56: 54 | B56: -2 | C56: #97 | D56: Andrea Nemechek | E56: 0 | F56: -312 | G56: 0 | H56: 0 | I56: 0 | J56: 0
A57: 55 | B57: -2 | C57: #109 | D57: Brack Maggard | E57: 0 | F57: -312 | G57: 0 | H57: 0 | I57: 0 | J57: 0
A88: 00 | B88: =IF(ISNA(MATCH("#"&A88,'Current Owner Standings (2)'!$C$3:$C$87,0)),99,MATCH("#"&A88,'Current Owner Standings (2)'!$C$3:$C$87,0)) -> 99 | D88: =IF(ISNA(MATCH("#"&C88,'Current Owner Standings (2)'!$C$2:$C$187,0)),99,MATCH("#"&C88,'Current Owner Standings (2)'!$C$2:$C$187,0)) -> 99
A89: 01 | B89: =IF(ISNA(MATCH("#"&A89,'Current Owner Standings (2)'!$C$3:$C$87,0)),99,MATCH("#"&A89,'Current Owner Standings (2)'!$C$3:$C$87,0)) -> 99
A90: 02 | B90: =IF(ISNA(MATCH("#"&A90,'Current Owner Standings (2)'!$C$3:$C$87,0)),99,MATCH("#"&A90,'Current Owner Standings (2)'!$C$3:$C$87,0)) -> 99
A91: 03 | B91: =IF(ISNA(MATCH("#"&A91,'Current Owner Standings (2)'!$C$3:$C$87,0)),99,MATCH("#"&A91,'Current Owner Standings (2)'!$C$3:$C$87,0)) -> 99
A92: 04 | B92: =IF(ISNA(MATCH("#"&A92,'Current Owner Standings (2)'!$C$3:$C$87,0)),99,MATCH("#"&A92,'Current Owner Standings (2)'!$C$3:$C$87,0)) -> 99
A93: 05 | B93: =IF(ISNA(MATCH("#"&A93,'Current Owner Standings (2)'!$C$3:$C$87,0)),99,MATCH("#"&A93,'Current Owner Standings (2)'!$C$3:$C$87,0)) -> 99
A94: 06 | B94: =IF(ISNA(MATCH("#"&A94,'Current Owner Standings (2)'!$C$3:$C$87,0)),99,MATCH("#"&A94,'Current Owner Standings (2)'!$C$3:$C$87,0)) -> 99
A95: 07 | B95: =IF(ISNA(MATCH("#"&A95,'Current Owner Standings (2)'!$C$3:$C$87,0)),99,MATCH("#"&A95,'Current Owner Standings (2)'!$C$3:$C$87,0)) -> 99
A96: 08 | B96: =IF(ISNA(MATCH("#"&A96,'Current Owner Standings (2)'!$C$3:$C$87,0)),99,MATCH("#"&A96,'Current Owner Standings (2)'!$C$3:$C$87,0)) -> 99
A97: 09 | B97: =IF(ISNA(MATCH("#"&A97,'Current Owner Standings (2)'!$C$3:$C$87,0)),99,MATCH("#"&A97,'Current Owner Standings (2)'!$C$3:$C$87,0)) -> 99
A98: 1 | B98: =IF(ISNA(MATCH("#"&A98,'Current Owner Standings (2)'!$C$3:$C$87,0)),99,MATCH("#"&A98,'Current Owner Standings (2)'!$C$3:$C$87,0)) -> 20
A99: 2 | B99: =IF(ISNA(MATCH("#"&A99,'Current Owner Standings (2)'!$C$3:$C$87,0)),99,MATCH("#"&A99,'Current Owner Standings (2)'!$C$3:$C$87,0)) -> 16
A100: 3 | B100: =IF(ISNA(MATCH("#"&A100,'Current Owner Standings (2)'!$C$3:$C$87,0)),99,MATCH("#"&A100,'Current Owner Standings (2)'!$C$3:$C$87,0)) -> 99
A101: 4 | B101: =IF(ISNA(MATCH("#"&A101,'Current Owner Standings (2)'!$C$3:$C$87,0)),99,MATCH("#"&A101,'Current Owner Standings (2)'!$C$3:$C$87,0)) -> 99
A102: 5 | B102: =IF(ISNA(MATCH("#"&A102,'Current Owner Standings (2)'!$C$3:$C$87,0)),99,MATCH("#"&A102,'Current Owner Standings (2)'!$C$3:$C$87,0)) -> 26
A103: 6 | B103: =IF(ISNA(MATCH("#"&A103,'Current Owner Standings (2)'!$C$3:$C$87,0)),99,MATCH("#"&A103,'Current Owner Standings (2)'!$C$3:$C$87,0)) -> 99
A104: 7 | B104: =IF(ISNA(MATCH("#"&A104,'Current Owner Standings (2)'!$C$3:$C$87,0)),99,MATCH("#"&A104,'Current Owner Standings (2)'!$C$3:$C$87,0)) -> 47
A105: 8 | B105: =IF(ISNA(MATCH("#"&A105,'Current Owner Standings (2)'!$C$3:$C$87,0)),99,MATCH("#"&A105,'Current Owner Standings (2)'!$C$3:$C$87,0)) -> 99
A106: 9 | B106: =IF(ISNA(MATCH("#"&A106,'Current Owner Standings (2)'!$C$3:$C$87,0)),99,MATCH("#"&A106,'Current Owner Standings (2)'!$C$3:$C$87,0)) -> 22
A107: 10 | B107: =IF(ISNA(MATCH("#"&A107,'Current Owner Standings (2)'!$C$3:$C$87,0)),99,MATCH("#"&A107,'Current Owner Standings (2)'!$C$3:$C$87,0)) -> 34
A108: 11 | B108: =IF(ISNA(MATCH("#"&A108,'Current Owner Standings (2)'!$C$3:$C$87,0)),99,MATCH("#"&A108,'Current Owner Standings (2)'!$C$3:$C$87,0)) -> 5
A109: 12 | B109: =IF(ISNA(MATCH("#"&A109,'Current Owner Standings (2)'!$C$3:$C$87,0)),99,MATCH("#"&A109,'Current Owner Standings (2)'!$C$3:$C$87,0)) -> 44
A110: 13 | B110: =IF(ISNA(MATCH("#"&A110,'Current Owner Standings (2)'!$C$3:$C$87,0)),99,MATCH("#"&A110,'Current Owner Standings (2)'!$C$3:$C$87,0)) -> 28
A111: 14 | B111: =IF(ISNA(MATCH("#"&A111,'Current Owner Standings (2)'!$C$3:$C$87,0)),99,MATCH("#"&A111,'Current Owner Standings (2)'!$C$3:$C$87,0)) -> 8
A112: 15 | B112: =IF(ISNA(MATCH("#"&A112,'Current Owner Standings (2)'!$C$3:$C$87,0)),99,MATCH("#"&A112,'Current Owner Standings (2)'!$C$3:$C$87,0)) -> 12
A113: 16 | B113: =IF(ISNA(MATCH("#"&A113,'Current Owner Standings (2)'!$C$3:$C$87,0)),99,MATCH("#"&A113,'Current Owner Standings (2)'!$C$3:$C$87,0)) -> 1
A114: 17 | B114: =IF(ISNA(MATCH("#"&A114,'Current Owner Standings (2)'!$C$3:$C$87,0)),99,MATCH("#"&A114,'Current Owner Standings (2)'!$C$3:$C$87,0)) -> 3
A115: 18 | B115: =IF(ISNA(MATCH("#"&A115,'Current Owner Standings (2)'!$C$3:$C$87,0)),99,MATCH("#"&A115,'Current Owner Standings (2)'!$C$3:$C$87,0)) -> 14
A116: 19 | B116: =IF(ISNA(MATCH("#"&A116,'Current Owner Standings (2)'!$C$3:$C$87,0)),99,MATCH("#"&A116,'Current Owner Standings (2)'!$C$3:$C$87,0)) -> 99
A117: 20 | B117: =IF(ISNA(MATCH("#"&A117,'Current Owner Standings (2)'!$C$3:$C$87,0)),99,MATCH("#"&A117,'Current Owner Standings (2)'!$C$3:$C$87,0)) -> 13
A118: 21 | B118: =IF(ISNA(MATCH("#"&A118,'Current Owner Standings (2)'!$C$3:$C$87,0)),99,MATCH("#"&A118,'Current Owner Standings (2)'!$C$3:$C$87,0)) -> 39
A119: 22 | B119: =IF(ISNA(MATCH("#"&A119,'Current Owner Standings (2)'!$C$3:$C$87,0)),99,MATCH("#"&A119,'Current Owner Standings (2)'!$C$3:$C$87,0)) -> 24
A120: 23 | B120: =IF(ISNA(MATCH("#"&A120,'Current Owner Standings (2)'!$C$3:$C$87,0)),99,MATCH("#"&A120,'Current Owner Standings (2)'!$C$3:$C$87,0)) -> 45
A121: 24 | B121: =IF(ISNA(MATCH("#"&A121,'Current Owner Standings (2)'!$C$3:$C$87,0)),99,MATCH("#"&A121,'Current Owner Standings (2)'!$C$3:$C$87,0)) -> 19
A122: 25 | B122: =IF(ISNA(MATCH("#"&A122,'Current Owner Standings (2)'!$C$3:$C$87,0)),99,MATCH("#"&A122,'Current Owner Standings (2)'!$C$3:$C$87,0)) -> 99
A123: 26 | B123: =IF(ISNA(MATCH("#"&A123,'Current Owner Standings (2)'!$C$3:$C$87,0)),99,MATCH("#"&A123,'Current Owner Standings (2)'!$C$3:$C$87,0)) -> 40
A124: 27 | B124: =IF(ISNA(MATCH("#"&A124,'Current Owner Standings (2)'!$C$3:$C$87,0)),99,MATCH("#"&A124,'Current Owner Standings (2)'!$C$3:$C$87,0)) -> 15
A125: 28 | B125: =IF(ISNA(MATCH("#"&A125,'Current Owner Standings (2)'!$C$3:$C$87,0)),99,MATCH("#"&A125,'Current Owner Standings (2)'!$C$3:$C$87,0)) -> 99
A126: 29 | B126: =IF(ISNA(MATCH("#"&A126,'Current Owner Standings (2)'!$C$3:$C$87,0)),99,MATCH("#"&A126,'Current Owner Standings (2)'!$C$3:$C$87,0)) -> 6
A127: 30 | B127: =IF(ISNA(MATCH("#"&A127,'Current Owner Standings (2)'!$C$3:$C$87,0)),99,MATCH("#"&A127,'Current Owner Standings (2)'!$C$3:$C$87,0)) -> 38
A128: 31 | B128: =IF(ISNA(MATCH("#"&A128,'Current Owner Standings (2)'!$C$3:$C$87,0)),99,MATCH("#"&A128,'Current Owner Standings (2)'!$C$3:$C$87,0)) -> 18
A129: 32 | B129: =IF(ISNA(MATCH("#"&A129,'Current Owner Standings (2)'!$C$3:$C$87,0)),99,MATCH("#"&A129,'Current Owner Standings (2)'!$C$3:$C$87,0)) -> 32
A130: 33 | B130: =IF(ISNA(MATCH("#"&A130,'Current Owner Standings (2)'!$C$3:$C$87,0)),99,MATCH("#"&A130,'Current Owner Standings (2)'!$C$3:$C$87,0)) -> 36
A131: 34 | B131: =IF(ISNA(MATCH("#"&A131,'Current Owner Standings (2)'!$C$3:$C$87,0)),99,MATCH("#"&A131,'Current Owner Standings (2)'!$C$3:$C$87,0)) -> 30
A132: 35 | B132: =IF(ISNA(MATCH("#"&A132,'Current Owner Standings (2)'!$C$3:$C$87,0)),99,MATCH("#"&A132,'Current Owner Standings (2)'!$C$3:$C$87,0)) -> 99
A133: 36 | B133: =IF(ISNA(MATCH("#"&A133,'Current Owner Standings (2)'!$C$3:$C$87,0)),99,MATCH("#"&A133,'Current Owner Standings (2)'!$C$3:$C$87,0)) -> 33
A134: 37 | B134: =IF(ISNA(MATCH("#"&A134,'Current Owner Standings (2)'!$C$3:$C$87,0)),99,MATCH("#"&A134,'Current Owner Standings (2)'!$C$3:$C$87,0)) -> 49
A135: 38 | B135: =IF(ISNA(MATCH("#"&A135,'Current Owner Standings (2)'!$C$3:$C$87,0)),99,MATCH("#"&A135,'Current Owner Standings (2)'!$C$3:$C$87,0)) -> 29
A136: 39 | B136: =IF(ISNA(MATCH("#"&A136,'Current Owner Standings (2)'!$C$3:$C$87,0)),99,MATCH("#"&A136,'Current Owner Standings (2)'!$C$3:$C$87,0)) -> 10
A137: 40 | B137: =IF(ISNA(MATCH("#"&A137,'Current Owner Standings (2)'!$C$3:$C$87,0)),99,MATCH("#"&A137,'Current Owner Standings (2)'!$C$3:$C$87,0)) -> 99
A138: 41 | B138: =IF(ISNA(MATCH("#"&A138,'Current Owner Standings (2)'!$C$3:$C$87,0)),99,MATCH("#"&A138,'Current Owner Standings (2)'!$C$3:$C$87,0)) -> 99
A139: 42 | B139: =IF(ISNA(MATCH("#"&A139,'Current Owner Standings (2)'!$C$3:$C$87,0)),99,MATCH("#"&A139,'Current Owner Standings (2)'!$C$3:$C$87,0)) -> 17
A140: 43 | B140: =IF(ISNA(MATCH("#"&A140,'Current Owner Standings (2)'!$C$3:$C$87,0)),99,MATCH("#"&A140,'Current Owner Standings (2)'!$C$3:$C$87,0)) -> 21
A141: 44 | B141: =IF(ISNA(MATCH("#"&A141,'Current Owner Standings (2)'!$C$3:$C$87,0)),99,MATCH("#"&A141,'Current Owner Standings (2)'!$C$3:$C$87,0)) -> 99
A142: 45 | B142: =IF(ISNA(MATCH("#"&A142,'Current Owner Standings (2)'!$C$3:$C$87,0)),99,MATCH("#"&A142,'Current Owner Standings (2)'!$C$3:$C$87,0)) -> 99
A143: 46 | B143: =IF(ISNA(MATCH("#"&A143,'Current Owner Standings (2)'!$C$3:$C$87,0)),99,MATCH("#"&A143,'Current Owner Standings (2)'!$C$3:$C$87,0)) -> 99
A144: 47 | B144: =IF(ISNA(MATCH("#"&A144,'Current Owner Standings (2)'!$C$3:$C$87,0)),99,MATCH("#"&A144,'Current Owner Standings (2)'!$C$3:$C$87,0)) -> 27
A145: 48 | B145: =IF(ISNA(MATCH("#"&A145,'Current Owner Standings (2)'!$C$3:$C$87,0)),99,MATCH("#"&A145,'Current Owner Standings (2)'!$C$3:$C$87,0)) -> 7
A146: 49 | B146: =IF(ISNA(MATCH("#"&A146,'Current Owner Standings (2)'!$C$3:$C$87,0)),99,MATCH("#"&A146,'Current Owner Standings (2)'!$C$3:$C$87,0)) -> 99
A147: 50 | B147: =IF(ISNA(MATCH("#"&A147,'Current Owner Standings (2)'!$C$3:$C$87,0)),99,MATCH("#"&A147,'Current Owner Standings (2)'!$C$3:$C$87,0)) -> 99
A148: 51 | B148: =IF(ISNA(MATCH("#"&A148,'Current Owner Standings (2)'!$C$3:$C$87,0)),99,MATCH("#"&A148,'Current Owner Standings (2)'!$C$3:$C$87,0)) -> 25
A149: 52 | B149: =IF(ISNA(MATCH("#"&A149,'Current Owner Standings (2)'!$C$3:$C$87,0)),99,MATCH("#"&A149,'Current Owner Standings (2)'!$C$3:$C$87,0)) -> 52
A150: 53 | B150: =IF(ISNA(MATCH("#"&A150,'Current Owner Standings (2)'!$C$3:$C$87,0)),99,MATCH("#"&A150,'Current Owner Standings (2)'!$C$3:$C$87,0)) -> 99
A151: 54 | B151: =IF(ISNA(MATCH("#"&A151,'Current Owner Standings (2)'!$C$3:$C$87,0)),99,MATCH("#"&A151,'Current Owner Standings (2)'!$C$3:$C$87,0)) -> 99
A152: 55 | B152: =IF(ISNA(MATCH("#"&A152,'Current Owner Standings (2)'!$C$3:$C$87,0)),99,MATCH("#"&A152,'Current Owner Standings (2)'!$C$3:$C$87,0)) -> 11
A153: 56 | B153: =IF(ISNA(MATCH("#"&A153,'Current Owner Standings (2)'!$C$3:$C$87,0)),99,MATCH("#"&A153,'Current Owner Standings (2)'!$C$3:$C$87,0)) -> 2
A154: 57 | B154: =IF(ISNA(MATCH("#"&A154,'Current Owner Standings (2)'!$C$3:$C$87,0)),99,MATCH("#"&A154,'Current Owner Standings (2)'!$C$3:$C$87,0)) -> 99
A155: 58 | B155: =IF(ISNA(MATCH("#"&A155,'Current Owner Standings (2)'!$C$3:$C$87,0)),99,MATCH("#"&A155,'Current Owner Standings (2)'!$C$3:$C$87,0)) -> 99
A156: 59 | B156: =IF(ISNA(MATCH("#"&A156,'Current Owner Standings (2)'!$C$3:$C$87,0)),99,MATCH("#"&A156,'Current Owner Standings (2)'!$C$3:$C$87,0)) -> 99
A157: 60 | B157: =IF(ISNA(MATCH("#"&A157,'Current Owner Standings (2)'!$C$3:$C$87,0)),99,MATCH("#"&A157,'Current Owner Standings (2)'!$C$3:$C$87,0)) -> 99
A158: 61 | B158: =IF(ISNA(MATCH("#"&A158,'Current Owner Standings (2)'!$C$3:$C$87,0)),99,MATCH("#"&A158,'Current Owner Standings (2)'!$C$3:$C$87,0)) -> 99
A159: 62 | B159: =IF(ISNA(MATCH("#"&A159,'Current Owner Standings (2)'!$C$3:$C$87,0)),99,MATCH("#"&A159,'Current Owner Standings (2)'!$C$3:$C$87,0)) -> 99
A160: 63 | B160: =IF(ISNA(MATCH("#"&A160,'Current Owner Standings (2)'!$C$3:$C$87,0)),99,MATCH("#"&A160,'Current Owner Standings (2)'!$C$3:$C$87,0)) -> 99
A161: 64 | B161: =IF(ISNA(MATCH("#"&A161,'Current Owner Standings (2)'!$C$3:$C$87,0)),99,MATCH("#"&A161,'Current Owner Standings (2)'!$C$3:$C$87,0)) -> 99
A162: 65 | B162: =IF(ISNA(MATCH("#"&A162,'Current Owner Standings (2)'!$C$3:$C$87,0)),99,MATCH("#"&A162,'Current Owner Standings (2)'!$C$3:$C$87,0)) -> 99
A163: 66 | B163: =IF(ISNA(MATCH("#"&A163,'Current Owner Standings (2)'!$C$3:$C$87,0)),99,MATCH("#"&A163,'Current Owner Standings (2)'!$C$3:$C$87,0)) -> 99
A164: 67 | B164: =IF(ISNA(MATCH("#"&A164,'Current Owner Standings (2)'!$C$3:$C$87,0)),99,MATCH("#"&A164,'Current Owner Standings (2)'!$C$3:$C$87,0)) -> 99
A165: 68 | B165: =IF(ISNA(MATCH("#"&A165,'Current Owner Standings (2)'!$C$3:$C$87,0)),99,MATCH("#"&A165,'Current Owner Standings (2)'!$C$3:$C$87,0)) -> 99
A166: 69 | B166: =IF(ISNA(MATCH("#"&A166,'Current Owner Standings (2)'!$C$3:$C$87,0)),99,MATCH("#"&A166,'Current Owner Standings (2)'!$C$3:$C$87,0)) -> 99
A167: 70 | B167: =IF(ISNA(MATCH("#"&A167,'Current Owner Standings (2)'!$C$3:$C$87,0)),99,MATCH("#"&A167,'Current Owner Standings (2)'!$C$3:$C$87,0)) -> 99
A168: 71 | B168: =IF(ISNA(MATCH("#"&A168,'Current Owner Standings (2)'!$C$3:$C$87,0)),99,MATCH("#"&A168,'Current Owner Standings (2)'!$C$3:$C$87,0)) -> 99
A169: 72 | B169: =IF(ISNA(MATCH("#"&A169,'Current Owner Standings (2)'!$C$3:$C$87,0)),99,MATCH("#"&A169,'Current Owner Standings (2)'!$C$3:$C$87,0)) -> 99
A170: 73 | B170: =IF(ISNA(MATCH("#"&A170,'Current Owner Standings (2)'!$C$3:$C$87,0)),99,MATCH("#"&A170,'Current Owner Standings (2)'!$C$3:$C$87,0)) -> 99
A171: 74 | B171: =IF(ISNA(MATCH("#"&A171,'Current Owner Standings (2)'!$C$3:$C$87,0)),99,MATCH("#"&A171,'Current Owner Standings (2)'!$C$3:$C$87,0)) -> 48
A172: 75 | B172: =IF(ISNA(MATCH("#"&A172,'Current Owner Standings (2)'!$C$3:$C$87,0)),99,MATCH("#"&A172,'Current Owner Standings (2)'!$C$3:$C$87,0)) -> 99
A173: 76 | B173: =IF(ISNA(MATCH("#"&A173,'Current Owner Standings (2)'!$C$3:$C$87,0)),99,MATCH("#"&A173,'Current Owner Standings (2)'!$C$3:$C$87,0)) -> 99
A174: 77 | B174: =IF(ISNA(MATCH("#"&A174,'Current Owner Standings (2)'!$C$3:$C$87,0)),99,MATCH("#"&A174,'Current Owner Standings (2)'!$C$3:$C$87,0)) -> 99
A175: 78 | B175: =IF(ISNA(MATCH("#"&A175,'Current Owner Standings (2)'!$C$3:$C$87,0)),99,MATCH("#"&A175,'Current Owner Standings (2)'!$C$3:$C$87,0)) -> 23
A176: 79 | B176: =IF(ISNA(MATCH("#"&A176,'Current Owner Standings (2)'!$C$3:$C$87,0)),99,MATCH("#"&A176,'Current Owner Standings (2)'!$C$3:$C$87,0)) -> 99
A177: 80 | B177: =IF(ISNA(MATCH("#"&A177,'Current Owner Standings (2)'!$C$3:$C$87,0)),99,MATCH("#"&A177,'Current Owner Standings (2)'!$C$3:$C$87,0)) -> 99
A178: 81 | B178: =IF(ISNA(MATCH("#"&A178,'Current Owner Standings (2)'!$C$3:$C$87,0)),99,MATCH("#"&A178,'Current Owner Standings (2)'!$C$3:$C$87,0)) -> 99
A179: 82 | B179: =IF(ISNA(MATCH("#"&A179,'Current Owner Standings (2)'!$C$3:$C$87,0)),99,MATCH("#"&A179,'Current Owner Standings (2)'!$C$3:$C$87,0)) -> 99
A180: 83 | B180: =IF(ISNA(MATCH("#"&A180,'Current Owner Standings (2)'!$C$3:$C$87,0)),99,MATCH("#"&A180,'Current Owner Standings (2)'!$C$3:$C$87,0)) -> 35
A181: 84 | B181: =IF(ISNA(MATCH("#"&A181,'Current Owner Standings (2)'!$C$3:$C$87,0)),99,MATCH("#"&A181,'Current Owner Standings (2)'!$C$3:$C$87,0)) -> 99
A182: 85 | B182: =IF(ISNA(MATCH("#"&A182,'Current Owner Standings (2)'!$C$3:$C$87,0)),99,MATCH("#"&A182,'Current Owner Standings (2)'!$C$3:$C$87,0)) -> 99
A183: 86 | B183: =IF(ISNA(MATCH("#"&A183,'Current Owner Standings (2)'!$C$3:$C$87,0)),99,MATCH("#"&A183,'Current Owner Standings (2)'!$C$3:$C$87,0)) -> 99
A184: 87 | B184: =IF(ISNA(MATCH("#"&A184,'Current Owner Standings (2)'!$C$3:$C$87,0)),99,MATCH("#"&A184,'Current Owner Standings (2)'!$C$3:$C$87,0)) -> 42
A185: 88 | B185: =IF(ISNA(MATCH("#"&A185,'Current Owner Standings (2)'!$C$3:$C$87,0)),99,MATCH("#"&A185,'Current Owner Standings (2)'!$C$3:$C$87,0)) -> 4
A186: 89 | B186: =IF(ISNA(MATCH("#"&A186,'Current Owner Standings (2)'!$C$3:$C$87,0)),99,MATCH("#"&A186,'Current Owner Standings (2)'!$C$3:$C$87,0)) -> 99
A187: 90 | B187: =IF(ISNA(MATCH("#"&A187,'Current Owner Standings (2)'!$C$3:$C$87,0)),99,MATCH("#"&A187,'Current Owner Standings (2)'!$C$3:$C$87,0)) -> 99
A188: 91 | B188: =IF(ISNA(MATCH("#"&A188,'Current Owner Standings (2)'!$C$3:$C$87,0)),99,MATCH("#"&A188,'Current Owner Standings (2)'!$C$3:$C$87,0)) -> 99
A189: 92 | B189: =IF(ISNA(MATCH("#"&A189,'Current Owner Standings (2)'!$C$3:$C$87,0)),99,MATCH("#"&A189,'Current Owner Standings (2)'!$C$3:$C$87,0)) -> 99
A190: 93 | B190: =IF(ISNA(MATCH("#"&A190,'Current Owner Standings (2)'!$C$3:$C$87,0)),99,MATCH("#"&A190,'Current Owner Standings (2)'!$C$3:$C$87,0)) -> 31
A191: 94 | B191: =IF(ISNA(MATCH("#"&A191,'Current Owner Standings (2)'!$C$3:$C$87,0)),99,MATCH("#"&A191,'Current Owner Standings (2)'!$C$3:$C$87,0)) -> 99
A192: 95 | B192: =IF(ISNA(MATCH("#"&A192,'Current Owner Standings (2)'!$C$3:$C$87,0)),99,MATCH("#"&A192,'Current Owner Standings (2)'!$C$3:$C$87,0)) -> 99
A193: 96 | B193: =IF(ISNA(MATCH("#"&A193,'Current Owner Standings (2)'!$C$3:$C$87,0)),99,MATCH("#"&A193,'Current Owner Standings (2)'!$C$3:$C$87,0)) -> 99
A194: 97 | B194: =IF(ISNA(MATCH("#"&A194,'Current Owner Standings (2)'!$C$3:$C$87,0)),99,MATCH("#"&A194,'Current Owner Standings (2)'!$C$3:$C$87,0)) -> 54
A195: 98 | B195: =IF(ISNA(MATCH("#"&A195,'Current Owner Standings (2)'!$C$3:$C$87,0)),99,MATCH("#"&A195,'Current Owner Standings (2)'!$C$3:$C$87,0)) -> 41
A196: 99 | B196: =IF(ISNA(MATCH("#"&A196,'Current Owner Standings (2)'!$C$3:$C$87,0)),99,MATCH("#"&A196,'Current Owner Standings (2)'!$C$3:$C$87,0)) -> 9
A197: 100 | B197: =IF(ISNA(MATCH("#"&A197,'Current Owner Standings (2)'!$C$3:$C$87,0)),99,MATCH("#"&A197,'Current Owner Standings (2)'!$C$3:$C$87,0)) -> 99
A198: 101 | B198: =IF(ISNA(MATCH("#"&A198,'Current Owner Standings (2)'!$C$3:$C$87,0)),99,MATCH("#"&A198,'Current Owner Standings (2)'!$C$3:$C$87,0)) -> 99
A199: 102 | B199: =IF(ISNA(MATCH("#"&A199,'Current Owner Standings (2)'!$C$3:$C$87,0)),99,MATCH("#"&A199,'Current Owner Standings (2)'!$C$3:$C$87,0)) -> 99
A200: 103 | B200: =IF(ISNA(MATCH("#"&A200,'Current Owner Standings (2)'!$C$3:$C$87,0)),99,MATCH("#"&A200,'Current Owner Standings (2)'!$C$3:$C$87,0)) -> 99
A201: 104 | B201: =IF(ISNA(MATCH("#"&A201,'Current Owner Standings (2)'!$C$3:$C$87,0)),99,MATCH("#"&A201,'Current Owner Standings (2)'!$C$3:$C$87,0)) -> 99
A202: 105 | B202: =IF(ISNA(MATCH("#"&A202,'Current Owner Standings (2)'!$C$3:$C$87,0)),99,MATCH("#"&A202,'Current Owner Standings (2)'!$C$3:$C$87,0)) -> 99
A203: 106 | B203: =IF(ISNA(MATCH("#"&A203,'Current Owner Standings (2)'!$C$3:$C$87,0)),99,MATCH("#"&A203,'Current Owner Standings (2)'!$C$3:$C$87,0)) -> 99
A204: 107 | B204: =IF(ISNA(MATCH("#"&A204,'Current Owner Standings (2)'!$C$3:$C$87,0)),99,MATCH("#"&A204,'Current Owner Standings (2)'!$C$3:$C$87,0)) -> 99
A205: 108 | B205: =IF(ISNA(MATCH("#"&A205,'Current Owner Standings (2)'!$C$3:$C$87,0)),99,MATCH("#"&A205,'Current Owner Standings (2)'!$C$3:$C$87,0)) -> 99
A206: 109 | B206: =IF(ISNA(MATCH("#"&A206,'Current Owner Standings (2)'!$C$3:$C$87,0)),99,MATCH("#"&A206,'Current Owner Standings (2)'!$C$3:$C$87,0)) -> 55
A207: 110 | B207: =IF(ISNA(MATCH("#"&A207,'Current Owner Standings (2)'!$C$3:$C$87,0)),99,MATCH("#"&A207,'Current Owner Standings (2)'!$C$3:$C$87,0)) -> 99
A208: 111 | B208: =IF(ISNA(MATCH("#"&A208,'Current Owner Standings (2)'!$C$3:$C$87,0)),99,MATCH("#"&A208,'Current Owner Standings (2)'!$C$3:$C$87,0)) -> 99
A209: 112 | B209: =IF(ISNA(MATCH("#"&A209,'Current Owner Standings (2)'!$C$3:$C$87,0)),99,MATCH("#"&A209,'Current Owner Standings (2)'!$C$3:$C$87,0)) -> 99
A210: 113 | B210: =IF(ISNA(MATCH("#"&A210,'Current Owner Standings (2)'!$C$3:$C$87,0)),99,MATCH("#"&A210,'Current Owner Standings (2)'!$C$3:$C$87,0)) -> 99
A211: 114 | B211: =IF(ISNA(MATCH("#"&A211,'Current Owner Standings (2)'!$C$3:$C$87,0)),99,MATCH("#"&A211,'Current Owner Standings (2)'!$C$3:$C$87,0)) -> 99
A212: 115 | B212: =IF(ISNA(MATCH("#"&A212,'Current Owner Standings (2)'!$C$3:$C$87,0)),99,MATCH("#"&A212,'Current Owner Standings (2)'!$C$3:$C$87,0)) -> 99
A213: 116 | B213: =IF(ISNA(MATCH("#"&A213,'Current Owner Standings (2)'!$C$3:$C$87,0)),99,MATCH("#"&A213,'Current Owner Standings (2)'!$C$3:$C$87,0)) -> 99
A214: 117 | B214: =IF(ISNA(MATCH("#"&A214,'Current Owner Standings (2)'!$C$3:$C$87,0)),99,MATCH("#"&A214,'Current Owner Standings (2)'!$C$3:$C$87,0)) -> 99
A215: 118 | B215: =IF(ISNA(MATCH("#"&A215,'Current Owner Standings (2)'!$C$3:$C$87,0)),99,MATCH("#"&A215,'Current Owner Standings (2)'!$C$3:$C$87,0)) -> 99
A216: 119 | B216: =IF(ISNA(MATCH("#"&A216,'Current Owner Standings (2)'!$C$3:$C$87,0)),99,MATCH("#"&A216,'Current Owner Standings (2)'!$C$3:$C$87,0)) -> 46
A217: 120 | B217: =IF(ISNA(MATCH("#"&A217,'Current Owner Standings (2)'!$C$3:$C$87,0)),99,MATCH("#"&A217,'Current Owner Standings (2)'!$C$3:$C$87,0)) -> 99
A218: 121 | B218: =IF(ISNA(MATCH("#"&A218,'Current Owner Standings (2)'!$C$3:$C$87,0)),99,MATCH("#"&A218,'Current Owner Standings (2)'!$C$3:$C$87,0)) -> 99
A219: 122 | B219: =IF(ISNA(MATCH("#"&A219,'Current Owner Standings (2)'!$C$3:$C$87,0)),99,MATCH("#"&A219,'Current Owner Standings (2)'!$C$3:$C$87,0)) -> 99
A220: 123 | B220: =IF(ISNA(MATCH("#"&A220,'Current Owner Standings (2)'!$C$3:$C$87,0)),99,MATCH("#"&A220,'Current Owner Standings (2)'!$C$3:$C$87,0)) -> 99
A221: 124 | B221: =IF(ISNA(MATCH("#"&A221,'Current Owner Standings (2)'!$C$3:$C$87,0)),99,MATCH("#"&A221,'Current Owner Standings (2)'!$C$3:$C$87,0)) -> 99
A222: 125 | B222: =IF(ISNA(MATCH("#"&A222,'Current Owner Standings (2)'!$C$3:$C$87,0)),99,MATCH("#"&A222,'Current Owner Standings (2)'!$C$3:$C$87,0)) -> 99
A223: 126 | B223: =IF(ISNA(MATCH("#"&A223,'Current Owner Standings (2)'!$C$3:$C$87,0)),99,MATCH("#"&A223,'Current Owner Standings (2)'!$C$3:$C$87,0)) -> 99
A224: 127 | B224: =IF(ISNA(MATCH("#"&A224,'Current Owner Standings (2)'!$C$3:$C$87,0)),99,MATCH("#"&A224,'Current Owner Standings (2)'!$C$3:$C$87,0)) -> 99
A225: 128 | B225: =IF(ISNA(MATCH("#"&A225,'Current Owner Standings (2)'!$C$3:$C$87,0)),99,MATCH("#"&A225,'Current Owner Standings (2)'!$C$3:$C$87,0)) -> 99
A226: 129 | B226: =IF(ISNA(MATCH("#"&A226,'Current Owner Standings (2)'!$C$3:$C$87,0)),99,MATCH("#"&A226,'Current Owner Standings (2)'!$C$3:$C$87,0)) -> 99
A227: 130 | B227: =IF(ISNA(MATCH("#"&A227,'Current Owner Standings (2)'!$C$3:$C$87,0)),99,MATCH("#"&A227,'Current Owner Standings (2)'!$C$3:$C$87,0)) -> 99
A228: 131 | B228: =IF(ISNA(MATCH("#"&A228,'Current Owner Standings (2)'!$C$3:$C$87,0)),99,MATCH("#"&A228,'Current Owner Standings (2)'!$C$3:$C$87,0)) -> 99
A229: 132 | B229: =IF(ISNA(MATCH("#"&A229,'Current Owner Standings (2)'!$C$3:$C$87,0)),99,MATCH("#"&A229,'Current Owner Standings (2)'!$C$3:$C$87,0)) -> 43
A230: 133 | B230: =IF(ISNA(MATCH("#"&A230,'Current Owner Standings (2)'!$C$3:$C$87,0)),99,MATCH("#"&A230,'Current Owner Standings (2)'!$C$3:$C$87,0)) -> 99
A231: 134 | B231: =IF(ISNA(MATCH("#"&A231,'Current Owner Standings (2)'!$C$3:$C$87,0)),99,MATCH("#"&A231,'Current Owner Standings (2)'!$C$3:$C$87,0)) -> 99
... 266 more rows

Sheet Last Race Results (2) (hidden)
O1: http://msn.foxsports.com/nascar/results?circuit=2
A3: Car | B3: Leader | C3: Finish | D3: ST | E3: CAR | F3: DRIVER | G3: MAKE | H3: Most laps | I3: PTS/BNS | J3: LAPS | K3: STATUS | L3: Laps Lead | M3: Winnings
O4: Position | P4: Driver | Q4: Manufacturer | R4: Start | S4: Laps | T4: Led | U4: Status | V4: Points | W4: Bonus | X4: Earnings
A5: =VALUE(MID(P5,2,FIND(" ",P5)-1)) -> 48 | B5: =VALUE(RIGHT(I5,LEN(I5)-FIND("/",I5,1))) -> 0 | C5: =O5 -> 1 | D5: =R5 -> 14 | E5: =VALUE(MID(P5,2,FIND(" ",P5)-1)) -> 48 | F5: =RIGHT(P5,LEN(P5)-FIND(" ",P5)) -> Jimmie Johnson | G5: =Q5 -> Chevrolet | H5: =IF(W5=5,"Y","") ->  | I5: =V5&"/"&W5 -> 40/0 | J5: =S5 -> 268 | K5: =U5 -> Running | L5: =T5 -> 3 | M5: =X5 -> 0 | O5: 1 | P5: #48 Jimmie Johnson | Q5: Chevrolet | R5: 14 | S5: 268 | T5: 3 | U5: Running | V5: 40 | W5: 0 | X5: 0
A6: 42 | B6: 2 | C6: 2 | D6: 24 | E6: 42 | F6: Kyle Larson | G6: Chevrolet | H6: =IF(W6>=2,"Y","") -> Y | I6: =V6&"/"&W6 -> 41/2 | J6: =S6 -> 268 | K6: =U6 -> Running | L6: =T6 -> 132 | M6: =X6 -> 0 | O6: 2 | P6: #42 Kyle Larson | Q6: Chevrolet | R6: 24 | S6: 268 | T6: 132 | U6: Running | V6: 41 | W6: 2 | X6: 0
A7: 4 | B7: 1 | C7: 3 | D7: 1 | E7: 4 | F7: Kevin Harvick | G7: Chevrolet | I7: 39/1 | J7: 268 | K7: Running | L7: 79 | M7: 0 | O7: 3 | P7: #4 Kevin Harvick | Q7: Chevrolet | R7: 1 | S7: 268 | T7: 79 | U7: Running | V7: 39 | W7: 1 | X7: 0
A8: 22 | B8: 0 | C8: 4 | D8: 13 | E8: 22 | F8: Joey Logano | G8: Ford | I8: 37/0 | J8: 268 | K8: Running | L8: 6 | M8: 0 | O8: 4 | P8: #22 Joey Logano | Q8: Ford | R8: 13 | S8: 268 | T8: 6 | U8: Running | V8: 37 | W8: 0 | X8: 0
A9: 1 | B9: 0 | C9: 5 | D9: 15 | E9: 1 | F9: Jamie McMurray | G9: Chevrolet | I9: 36/0 | J9: 268 | K9: Running | L9: 0 | M9: 0 | O9: 5 | P9: #1 Jamie McMurray | Q9: Chevrolet | R9: 15 | S9: 268 | T9: 0 | U9: Running | V9: 36 | W9: 0 | X9: 0
A10: 18 | B10: 0 | C10: 6 | D10: 9 | E10: 18 | F10: Kyle Busch | G10: Toyota | I10: 35/0 | J10: 268 | K10: Running | L10: 1 | M10: 0 | O10: 6 | P10: #18 Kyle Busch | Q10: Toyota | R10: 9 | S10: 268 | T10: 1 | U10: Running | V10: 35 | W10: 0 | X10: 0
A11: 20 | B11: 0 | C11: 7 | D11: 7 | E11: 20 | F11: Matt Kenseth | G11: Toyota | I11: 34/0 | J11: 268 | K11: Running | L11: 0 | M11: 0 | O11: 7 | P11: #20 Matt Kenseth | Q11: Toyota | R11: 7 | S11: 268 | T11: 0 | U11: Running | V11: 34 | W11: 0 | X11: 0
A12: 47 | B12: 0 | C12: 8 | D12: 12 | E12: 47 | F12: AJ Allmendinger | G12: Chevrolet | I12: 33/0 | J12: 268 | K12: Running | L12: 0 | M12: 0 | O12: 8 | P12: #47 AJ Allmendinger | Q12: Chevrolet | R12: 12 | S12: 268 | T12: 0 | U12: Running | V12: 33 | W12: 0 | X12: 0
A13: 11 | B13: 0 | C13: 9 | D13: 4 | E13: 11 | F13: Denny Hamlin | G13: Toyota | I13: 32/0 | J13: 268 | K13: Running | L13: 0 | M13: 0 | O13: 9 | P13: #11 Denny Hamlin | Q13: Toyota | R13: 4 | S13: 268 | T13: 0 | U13: Running | V13: 32 | W13: 0 | X13: 0
A14: 59 | B14: 0 | C14: 10 | D14: 26 | E14: 59 | F14: Michael McDowell | G14: Chevrolet | I14: 31/0 | J14: 268 | K14: Running | L14: 0 | M14: 0 | O14: 10 | P14: #59 Michael McDowell | Q14: Chevrolet | R14: 26 | S14: 268 | T14: 0 | U14: Running | V14: 31 | W14: 0 | X14: 0
A15: 24 | B15: 0 | C15: 11 | D15: 5 | E15: 24 | F15: Chase Elliott | G15: Chevrolet | I15: 30/0 | J15: 268 | K15: Running | L15: 0 | M15: 0 | O15: 11 | P15: #24 Chase Elliott | Q15: Chevrolet | R15: 5 | S15: 268 | T15: 0 | U15: Running | V15: 30 | W15: 0 | X15: 0
A16: 3 | B16: 0 | C16: 12 | D16: 17 | E16: 3 | F16: Austin Dillon | G16: Chevrolet | I16: 29/0 | J16: 268 | K16: Running | L16: 0 | M16: 0 | O16: 12 | P16: #3 Austin Dillon | Q16: Chevrolet | R16: 17 | S16: 268 | T16: 0 | U16: Running | V16: 29 | W16: 0 | X16: 0
A17: 41 | B17: 0 | C17: 13 | D17: 16 | E17: 41 | F17: Kurt Busch | G17: Chevrolet | I17: 28/0 | J17: 268 | K17: Running | L17: 0 | M17: 0 | O17: 13 | P17: #41 Kurt Busch | Q17: Chevrolet | R17: 16 | S17: 268 | T17: 0 | U17: Running | V17: 28 | W17: 0 | X17: 0
A18: 27 | B18: 0 | C18: 14 | D18: 28 | E18: 27 | F18: Paul Menard | G18: Chevrolet | I18: 27/0 | J18: 268 | K18: Running | L18: 0 | M18: 0 | O18: 14 | P18: #27 Paul Menard | Q18: Chevrolet | R18: 28 | S18: 268 | T18: 0 | U18: Running | V18: 27 | W18: 0 | X18: 0
A19: 44 | B19: 0 | C19: 15 | D19: 22 | E19: 44 | F19: Brian Scott | G19: Ford | I19: 26/0 | J19: 268 | K19: Running | L19: 0 | M19: 0 | O19: 15 | P19: #44 Brian Scott | Q19: Ford | R19: 22 | S19: 268 | T19: 0 | U19: Running | V19: 26 | W19: 0 | X19: 0
A20: 88 | B20: 0 | C20: 16 | D20: 19 | E20: 88 | F20: Alex Bowman | G20: Chevrolet | I20: 0/0 | J20: 268 | K20: Running | L20: 0 | M20: 0 | O20: 16 | P20: #88 Alex Bowman | Q20: Chevrolet | R20: 19 | S20: 268 | T20: 0 | U20: Running | V20: 0 | W20: 0 | X20: 0
A21: 16 | B21: 0 | C21: 17 | D21: 21 | E21: 16 | F21: Greg Biffle | G21: Ford | I21: 24/0 | J21: 267 | K21: Running | L21: 0 | M21: 0 | O21: 17 | P21: #16 Greg Biffle | Q21: Ford | R21: 21 | S21: 267 | T21: 0 | U21: Running | V21: 24 | W21: 0 | X21: 0
A22: 13 | B22: 0 | C22: 18 | D22: 23 | E22: 13 | F22: Casey Mears | G22: Chevrolet | I22: 23/0 | J22: 267 | K22: Running | L22: 0 | M22: 0 | O22: 18 | P22: #13 Casey Mears | Q22: Chevrolet | R22: 23 | S22: 267 | T22: 0 | U22: Running | V22: 23 | W22: 0 | X22: 0
A23: 10 | B23: 0 | C23: 19 | D23: 30 | E23: 10 | F23: Danica Patrick | G23: Chevrolet | I23: 22/0 | J23: 266 | K23: Running | L23: 0 | M23: 0 | O23: 19 | P23: #10 Danica Patrick | Q23: Chevrolet | R23: 30 | S23: 266 | T23: 0 | U23: Running | V23: 22 | W23: 0 | X23: 0
A24: 6 | B24: 0 | C24: 20 | D24: 20 | E24: 6 | F24: Trevor Bayne | G24: Ford | I24: 21/0 | J24: 266 | K24: Running | L24: 0 | M24: 0 | O24: 20 | P24: #6 Trevor Bayne | Q24: Ford | R24: 20 | S24: 266 | T24: 0 | U24: Running | V24: 21 | W24: 0 | X24: 0
A25: 38 | B25: 0 | C25: 21 | D25: 32 | E25: 38 | F25: Landon Cassill | G25: Ford | I25: 20/0 | J25: 266 | K25: Running | L25: 0 | M25: 0 | O25: 21 | P25: #38 Landon Cassill | Q25: Ford | R25: 32 | S25: 266 | T25: 0 | U25: Running | V25: 20 | W25: 0 | X25: 0
A26: 14 | B26: 0 | C26: 22 | D26: 11 | E26: 14 | F26: Tony Stewart | G26: Chevrolet | I26: 19/0 | J26: 266 | K26: Running | L26: 0 | M26: 0 | O26: 22 | P26: #14 Tony Stewart | Q26: Chevrolet | R26: 11 | S26: 266 | T26: 0 | U26: Running | V26: 19 | W26: 0 | X26: 0
A27: 15 | B27: 0 | C27: 23 | D27: 33 | E27: 15 | F27: Clint Bowyer | G27: Chevrolet | I27: 18/0 | J27: 266 | K27: Running | L27: 0 | M27: 0 | O27: 23 | P27: #15 Clint Bowyer | Q27: Chevrolet | R27: 33 | S27: 266 | T27: 0 | U27: Running | V27: 18 | W27: 0 | X27: 0
A28: 34 | B28: 0 | C28: 24 | D28: 27 | E28: 34 | F28: Chris Buescher | G28: Ford | I28: 17/0 | J28: 266 | K28: Running | L28: 0 | M28: 0 | O28: 24 | P28: #34 Chris Buescher | Q28: Ford | R28: 27 | S28: 266 | T28: 0 | U28: Running | V28: 17 | W28: 0 | X28: 0
A29: 31 | B29: 0 | C29: 25 | D29: 3 | E29: 31 | F29: Ryan Newman | G29: Chevrolet | I29: 16/0 | J29: 264 | K29: Accident | L29: 0 | M29: 0 | O29: 25 | P29: #31 Ryan Newman | Q29: Chevrolet | R29: 3 | S29: 264 | T29: 0 | U29: Accident | V29: 16 | W29: 0 | X29: 0
A30: 21 | B30: 0 | C30: 26 | D30: 8 | E30: 21 | F30: Ryan Blaney | G30: Ford | I30: 15/0 | J30: 264 | K30: Running | L30: 0 | M30: 0 | O30: 26 | P30: #21 Ryan Blaney | Q30: Ford | R30: 8 | S30: 264 | T30: 0 | U30: Running | V30: 15 | W30: 0 | X30: 0
A31: 93 | B31: 0 | C31: 27 | D31: 31 | E31: 93 | F31: Matt DiBenedetto | G31: Toyota | I31: 14/0 | J31: 264 | K31: Running | L31: 0 | M31: 0 | O31: 27 | P31: #93 Matt DiBenedetto | Q31: Toyota | R31: 31 | S31: 264 | T31: 0 | U31: Running | V31: 14 | W31: 0 | X31: 0
A32: 46 | B32: 0 | C32: 28 | D32: 40 | E32: 46 | F32: Michael Annett | G32: Chevrolet | I32: 13/0 | J32: 264 | K32: Running | L32: 0 | M32: 0 | O32: 28 | P32: #46 Michael Annett | Q32: Chevrolet | R32: 40 | S32: 264 | T32: 0 | U32: Running | V32: 13 | W32: 0 | X32: 0
A33: 23 | B33: 0 | C33: 29 | D33: 36 | E33: 23 | F33: David Ragan | G33: Toyota | I33: 12/0 | J33: 264 | K33: Running | L33: 0 | M33: 0 | O33: 29 | P33: #23 David Ragan | Q33: Toyota | R33: 36 | S33: 264 | T33: 0 | U33: Running | V33: 12 | W33: 0 | X33: 0
A34: 17 | B34: 0 | C34: 30 | D34: 18 | E34: 17 | F34: Ricky Stenhouse Jr. | G34: Ford | I34: 11/0 | J34: 262 | K34: Accident | L34: 0 | M34: 0 | O34: 30 | P34: #17 Ricky Stenhouse Jr. | Q34: Ford | R34: 18 | S34: 262 | T34: 0 | U34: Accident | V34: 11 | W34: 0 | X34: 0
A35: 83 | B35: 0 | C35: 31 | D35: 38 | E35: 83 | F35: Jeffrey Earnhardt | G35: Toyota | I35: 10/0 | J35: 261 | K35: Running | L35: 0 | M35: 0 | O35: 31 | P35: #83 Jeffrey Earnhardt | Q35: Toyota | R35: 38 | S35: 261 | T35: 0 | U35: Running | V35: 10 | W35: 0 | X35: 0
A36: 55 | B36: 0 | C36: 32 | D36: 37 | E36: 55 | F36: Reed Sorenson | G36: Toyota | I36: 9/0 | J36: 259 | K36: Running | L36: 0 | M36: 0 | O36: 32 | P36: #55 Reed Sorenson | Q36: Toyota | R36: 37 | S36: 259 | T36: 0 | U36: Running | V36: 9 | W36: 0 | X36: 0
A37: 95 | B37: 0 | C37: 33 | D37: 34 | E37: 95 | F37: Ty Dillon | G37: Chevrolet | I37: 0/0 | J37: 258 | K37: Accident | L37: 0 | M37: 0 | O37: 33 | P37: #95 Ty Dillon | Q37: Chevrolet | R37: 34 | S37: 258 | T37: 0 | U37: Accident | V37: 0 | W37: 0 | X37: 0
A38: 19 | B38: 0 | C38: 34 | D38: 10 | E38: 19 | F38: Carl Edwards | G38: Toyota | I38: 7/0 | J38: 257 | K38: Accident | L38: 47 | M38: 0 | O38: 34 | P38: #19 Carl Edwards | Q38: Toyota | R38: 10 | S38: 257 | T38: 47 | U38: Accident | V38: 7 | W38: 0 | X38: 0
A39: 2 | B39: 0 | C39: 35 | D39: 2 | E39: 2 | F39: Brad Keselowski | G39: Ford | I39: 6/0 | J39: 257 | K39: Accident | L39: 0 | M39: 0 | O39: 35 | P39: #2 Brad Keselowski | Q39: Ford | R39: 2 | S39: 257 | T39: 0 | U39: Accident | V39: 6 | W39: 0 | X39: 0
A40: 78 | B40: 0 | C40: 36 | D40: 6 | E40: 78 | F40: Martin Truex Jr. | G40: Toyota | I40: 5/0 | J40: 257 | K40: Accident | L40: 0 | M40: 0 | O40: 36 | P40: #78 Martin Truex Jr. | Q40: Toyota | R40: 6 | S40: 257 | T40: 0 | U40: Accident | V40: 5 | W40: 0 | X40: 0
A41: 5 | B41: 0 | C41: 37 | D41: 29 | E41: 5 | F41: Kasey Kahne | G41: Chevrolet | I41: 4/0 | J41: 257 | K41: Accident | L41: 0 | M41: 0 | O41: 37 | P41: #5 Kasey Kahne | Q41: Chevrolet | R41: 29 | S41: 257 | T41: 0 | U41: Accident | V41: 4 | W41: 0 | X41: 0
A42: 7 | B42: 0 | C42: 38 | D42: 35 | E42: 7 | F42: Regan Smith | G42: Chevrolet | I42: 3/0 | J42: 255 | K42: Accident | L42: 0 | M42: 0 | O42: 38 | P42: #7 Regan Smith | Q42: Chevrolet | R42: 35 | S42: 255 | T42: 0 | U42: Accident | V42: 3 | W42: 0 | X42: 0
A43: 32 | B43: 0 | C43: 39 | D43: 39 | E43: 32 | F43: Dylan Lupton | G43: Ford | I43: 0/0 | J43: 250 | K43: Running | L43: 0 | M43: 0 | O43: 39 | P43: #32 Dylan Lupton | Q43: Ford | R43: 39 | S43: 250 | T43: 0 | U43: Running | V43: 0 | W43: 0 | X43: 0
A44: 43 | B44: 0 | C44: 40 | D44: 25 | E44: 43 | F44: Aric Almirola | G44: Ford | I44: 1/0 | J44: 213 | K44: Running | L44: 0 | M44: 0 | O44: 40 | P44: #43 Aric Almirola | Q44: Ford | R44: 25 | S44: 213 | T44: 0 | U44: Running | V44: 1 | W44: 0 | X44: 0
O205: Pos | P205: Driver | Q205: MFG | R205: Start | S205: Laps | T205: Led | U205: Status | V205: Pts | W205: Bonus | X205: Earnings
O206: 1 | P206: #4 Kevin Harvick | Q206: Chevrolet | R206: 13 | S206: 312 | T206: 224 | U206: Running | V206: 48 | W206: 5 | X206: 260048
O207: 2 | P207: #88 Dale Earnhardt Jr. | Q207: Chevrolet | R207: 5 | S207: 312 | T207: 0 | U207: Running | V207: 42 | W207: 0 | X207: 172240
O208: 3 | P208: #2 Brad Keselowski | Q208: Ford | R208: 1 | S208: 312 | T208: 3 | U208: Running | V208: 42 | W208: 1 | X208: 180673
O209: 4 | P209: #22 Joey Logano | Q209: Ford | R209: 2 | S209: 312 | T209: 71 | U209: Running | V209: 41 | W209: 1 | X209: 159641
O210: 5 | P210: #24 Jeff Gordon | Q210: Chevrolet | R210: 17 | S210: 312 | T210: 4 | U210: Running | V210: 40 | W210: 1 | X210: 159326
O211: 6 | P211: #48 Jimmie Johnson | Q211: Chevrolet | R211: 4 | S211: 312 | T211: 0 | U211: Running | V211: 38 | W211: 0 | X211: 152266
O212: 7 | P212: #31 Ryan Newman | Q212: Chevrolet | R212: 15 | S212: 312 | T212: 6 | U212: Running | V212: 38 | W212: 1 | X212: 104380
O213: 8 | P213: #99 Carl Edwards | Q213: Ford | R213: 23 | S213: 312 | T213: 1 | U213: Running | V213: 37 | W213: 1 | X213: 117330
O214: 9 | P214: #18 Kyle Busch | Q214: Toyota | R214: 7 | S214: 312 | T214: 0 | U214: Running | V214: 35 | W214: 0 | X214: 132871
O215: 10 | P215: #1 Jamie McMurray | Q215: Chevrolet | R215: 3 | S215: 312 | T215: 0 | U215: Running | V215: 34 | W215: 0 | X215: 122444
O216: 11 | P216: #5 Kasey Kahne | Q216: Chevrolet | R216: 11 | S216: 312 | T216: 0 | U216: Running | V216: 33 | W216: 0 | X216: 101430
O217: 12 | P217: #20 Matt Kenseth | Q217: Toyota | R217: 19 | S217: 312 | T217: 0 | U217: Running | V217: 32 | W217: 0 | X217: 130266
O218: 13 | P218: #15 Clint Bowyer | Q218: Toyota | R218: 14 | S218: 312 | T218: 1 | U218: Running | V218: 32 | W218: 1 | X218: 118671
O219: 14 | P219: #13 Casey Mears | Q219: Chevrolet | R219: 18 | S219: 312 | T219: 0 | U219: Running | V219: 30 | W219: 0 | X219: 108513
O220: 15 | P220: #43 Aric Almirola | Q220: Ford | R220: 9 | S220: 312 | T220: 0 | U220: Running | V220: 29 | W220: 0 | X220: 119066
O221: 16 | P221: #14 Tony Stewart | Q221: Chevrolet | R221: 20 | S221: 312 | T221: 0 | U221: Running | V221: 28 | W221: 0 | X221: 114963
O222: 17 | P222: #16 Greg Biffle | Q222: Ford | R222: 6 | S222: 312 | T222: 0 | U222: Running | V222: 27 | W222: 0 | X222: 120480
O223: 18 | P223: #17 Ricky Stenhouse Jr. | Q223: Ford | R223: 21 | S223: 312 | T223: 0 | U223: Running | V223: 26 | W223: 0 | X223: 115605
O224: 19 | P224: #11 Denny Hamlin | Q224: Toyota | R224: 12 | S224: 312 | T224: 0 | U224: Running | V224: 25 | W224: 0 | X224: 87480
O225: 20 | P225: #42 Kyle Larson | Q225: Chevrolet | R225: 8 | S225: 312 | T225: 0 | U225: Running | V225: 24 | W225: 0 | X225: 108200
O226: 21 | P226: #9 Marcos Ambrose | Q226: Ford | R226: 29 | S226: 311 | T226: 0 | U226: Running | V226: 23 | W226: 0 | X226: 105250
O227: 22 | P227: #78 Martin Truex Jr. | Q227: Chevrolet | R227: 27 | S227: 311 | T227: 0 | U227: Running | V227: 22 | W227: 0 | X227: 106538
O228: 23 | P228: #27 Paul Menard | Q228: Chevrolet | R228: 22 | S228: 311 | T228: 0 | U228: Running | V228: 21 | W228: 0 | X228: 105594
O229: 24 | P229: #3 Austin Dillon | Q229: Chevrolet | R229: 24 | S229: 311 | T229: 0 | U229: Running | V229: 20 | W229: 0 | X229: 123466
O230: 25 | P230: #55 Brian Vickers | Q230: Toyota | R230: 16 | S230: 311 | T230: 0 | U230: Running | V230: 19 | W230: 0 | X230: 110680
O231: 26 | P231: #47 A J Allmendinger | Q231: Chevrolet | R231: 25 | S231: 310 | T231: 0 | U231: Running | V231: 18 | W231: 0 | X231: 93938
O232: 27 | P232: #26 Cole Whitt | Q232: Toyota | R232: 31 | S232: 310 | T232: 0 | U232: Running | V232: 17 | W232: 0 | X232: 74355
O233: 28 | P233: #34 David Ragan | Q233: Ford | R233: 30 | S233: 310 | T233: 0 | U233: Running | V233: 16 | W233: 0 | X233: 99588
O234: 29 | P234: #38 David Gilliland | Q234: Ford | R234: 28 | S234: 309 | T234: 2 | U234: Running | V234: 16 | W234: 1 | X234: 96863
O235: 30 | P235: #51 Justin Allgaier | Q235: Chevrolet | R235: 43 | S235: 309 | T235: 0 | U235: Running | V235: 14 | W235: 0 | X235: 96002
O236: 31 | P236: #36 Reed Sorenson | Q236: Chevrolet | R236: 39 | S236: 308 | T236: 0 | U236: Running | V236: 13 | W236: 0 | X236: 76790
O237: 32 | P237: #33 Brian Scott | Q237: Chevrolet | R237: 32 | S237: 308 | T237: 0 | U237: Running | V237: 0 | W237: 0 | X237: 76105
O238: 33 | P238: #95 Michael McDowell | Q238: Ford | R238: 26 | S238: 307 | T238: 0 | U238: Running | V238: 11 | W238: 0 | X238: 73480
O239: 34 | P239: #7 Michael Annett | Q239: Chevrolet | R239: 41 | S239: 307 | T239: 0 | U239: Running | V239: 10 | W239: 0 | X239: 73355
O240: 35 | P240: #83 Ryan Truex | Q240: Toyota | R240: 34 | S240: 307 | T240: 0 | U240: Running | V240: 9 | W240: 0 | X240: 73230
O241: 36 | P241: #10 Danica Patrick | Q241: Chevrolet | R241: 33 | S241: 306 | T241: 0 | U241: Running | V241: 8 | W241: 0 | X241: 81075
O242: 37 | P242: #35 Blake Koch | Q242: Ford | R242: 37 | S242: 306 | T242: 0 | U242: Running | V242: 0 | W242: 0 | X242: 72946
O243: 38 | P243: #32 Travis Kvapil | Q243: Ford | R243: 40 | S243: 302 | T243: 0 | U243: Running | V243: 6 | W243: 0 | X243: 68380
O244: 39 | P244: #41 Kurt Busch | Q244: Chevrolet | R244: 10 | S244: 292 | T244: 0 | U244: Engine | V244: 5 | W244: 0 | X244: 64380
O245: 40 | P245: #66 Joe Nemechek | Q245: Toyota | R245: 38 | S245: 292 | T245: 0 | U245: Running | V245: 0 | W245: 0 | X245: 68380
O246: 41 | P246: #23 Alex Bowman | Q246: Toyota | R246: 35 | S246: 230 | T246: 0 | U246: Brakes | V246: 3 | W246: 0 | X246: 56380
O247: 42 | P247: #30 Parker Kligerman | Q247: Toyota | R247: 36 | S247: 226 | T247: 0 | U247: Engine | V247: 2 | W247: 0 | X247: 52380
O248: 43 | P248: #87 Morgan Shepherd | Q248: Toyota | R248: 42 | S248: 28 | T248: 0 | U248: Brakes | V248: 0 | W248: 0 | X248: 48880
O249: MSN Ad Configuration
O251: DEFAULT
O252: PG=SPTFBB
O253: AP=1089
O254: SIZE=300x250
O256: 2 COLUMN
O257: PG=SPTFBB
O258: AP=1089
O259: SIZE=300x250
O261: 1 COLUMN
O262: PG=SPTFBB
O263: AP=1089
O264: SIZE=300x250

Sheet Stage Results
A2: Pos | B2: No | C2: Driver | D2: Team | E2: Manufacturer | F2: Points | I2: Pos | J2: Grid | K2: No | L2: Driver | M2: Team | N2: Manufacturer | O2: Laps | P2: Points
A3: 1 | B3: 22 | C3: Joey Logano | D3: Team Penske | E3: Ford | F3: 10 | I3: 1 | J3: 6 | K3: 24 | L3: William Byron | M3: Hendrick Motorsports | N3: Chevrolet | O3: 164 | P3: 44
A4: 2 | B4: 20 | C4: Erik Jones | D4: Joe Gibbs Racing | E4: Toyota | F4: 9 | I4: 2 | J4: 27 | K4: 9 | L4: Chase Elliott | M4: Hendrick Motorsports | N4: Chevrolet | O4: 164 | P4: 35
A5: 3 | B5: 8 | C5: Tyler Reddick (R) | D5: Richard Childress Racing | E5: Chevrolet | F5: 8 | I5: 3 | J5: 10 | K5: 11 | L5: Denny Hamlin | M5: Joe Gibbs Racing | N5: Toyota | O5: 164 | P5: 36
A6: 4 | B6: 12 | C6: Ryan Blaney | D6: Team Penske | E6: Ford | F6: 7 | I6: 4 | J6: 2 | K6: 19 | L6: Martin Truex Jr. | M6: Joe Gibbs Racing | N6: Toyota | O6: 164 | P6: 42
A7: 5 | B7: 48 | C7: Jimmie Johnson | D7: Hendrick Motorsports | E7: Chevrolet | F7: 6 | I7: 5 | J7: 21 | K7: 43 | L7: Bubba Wallace | M7: Richard Petty Motorsports | N7: Chevrolet | O7: 164 | P7: 32
A8: 6 | B8: 95 | C8: Christopher Bell (R) | D8: Leavine Family Racing | E8: Toyota | F8: 5 | I8: 6 | J8: 9 | K8: 12 | L8: Ryan Blaney | M8: Team Penske | N8: Ford | O8: 164 | P8: 40
A9: 7 | B9: 24 | C9: William Byron | D9: Hendrick Motorsports | E9: Chevrolet | F9: 4 | I9: 7 | J9: 8 | K9: 88 | L9: Alex Bowman | M9: Hendrick Motorsports | N9: Chevrolet | O9: 164 | P9: 30
A10: 8 | B10: 34 | C10: Michael McDowell | D10: Front Row Motorsports | E10: Ford | F10: 3 | I10: 8 | J10: 40 | K10: 62 | L10: Brendan Gaughan | M10: Beard Motorsports | N10: Chevrolet | O10: 164 | P10: 29
A11: 9 | B11: 11 | C11: Denny Hamlin | D11: Joe Gibbs Racing | E11: Toyota | F11: 2 | I11: 9 | J11: 17 | K11: 17 | L11: Chris Buescher | M11: Roush Fenway Racing | N11: Ford | O11: 164 | P11: 28
A12: 10 | B12: 18 | C12: Kyle Busch | D12: Joe Gibbs Racing | E12: Toyota | F12: 1 | I12: 10 | J12: 4 | K12: 2 | L12: Brad Keselowski | M12: Team Penske | N12: Ford | O12: 164 | P12: 32
I13: 11 | J13: 24 | K13: 38 | L13: John Hunter Nemechek (R) | M13: Front Row Motorsports | N13: Ford | O13: 164 | P13: 26
I14: 12 | J14: 15 | K14: 21 | L14: Matt DiBenedetto | M14: Wood Brothers Racing | N14: Ford | O14: 164 | P14: 29
I15: 13 | J15: 23 | K15: 95 | L15: Christopher Bell (R) | M15: Leavine Family Racing | N15: Toyota | O15: 164 | P15: 30
I16: 14 | J16: 26 | K16: 34 | L16: Michael McDowell | M16: Front Row Motorsports | N16: Ford | O16: 164 | P16: 26
I17: 15 | J17: 32 | K17: 15 | L17: Brennan Poole (R) | M17: Premium Motorsports | N17: Chevrolet | O17: 164 | P17: 22
I18: 16 | J18: 36 | K18: 77 | L18: Ross Chastain (i) | M18: Spire Motorsports | N18: Chevrolet | O18: 164 | P18: 21
I19: 17 | J19: 7 | K19: 48 | L19: Jimmie Johnson | M19: Hendrick Motorsports | N19: Chevrolet | O19: 164 | P19: 32
A20: Pos | B20: No | C20: Driver | D20: Team | E20: Manufacturer | F20: Points | I20: 18 | J20: 5 | K20: 10 | L20: Aric Almirola | M20: Stewart-Haas Racing | N20: Ford | O20: 164 | P20: 19
A21: 1 | B21: 22 | C21: Joey Logano | D21: Team Penske | E21: Ford | F21: 10 | I21: 19 | J21: 14 | K21: 14 | L21: Clint Bowyer | M21: Stewart-Haas Racing | N21: Ford | O21: 164 | P21: 26
A22: 2 | B22: 19 | C22: Martin Truex Jr. | D22: Joe Gibbs Racing | E22: Toyota | F22: 9 | I22: 20 | J22: 1 | K22: 4 | L22: Kevin Harvick | M22: Stewart-Haas Racing | N22: Ford | O22: 164 | P22: 17
A23: 3 | B23: 14 | C23: Clint Bowyer | D23: Stewart-Haas Racing | E23: Ford | F23: 8 | I23: 21 | J23: 25 | K23: 32 | L23: Corey LaJoie | M23: Go Fas Racing | N23: Ford | O23: 163 | P23: 16
A24: 4 | B24: 1 | C24: Kurt Busch | D24: Chip Ganassi Racing | E24: Chevrolet | F24: 7 | I24: 22 | J24: 29 | K24: 13 | L24: Ty Dillon | M24: Germain Racing | N24: Chevrolet | O24: 163 | P24: 15
A25: 5 | B25: 48 | C25: Jimmie Johnson | D25: Hendrick Motorsports | E25: Chevrolet | F25: 6 | I25: 23 | J25: 34 | K25: 00 | L25: Quin Houff (R) | M25: StarCom Racing | N25: Chevrolet | O25: 162 | P25: 14
A26: 6 | B26: 2 | C26: Brad Keselowski | D26: Team Penske | E26: Ford | F26: 5 | I26: 24 | J26: 35 | K26: 66 | L26: Timmy Hill (i) | M26: MBM Motorsports | N26: Toyota | O26: 161 | P26: 13
A27: 7 | B27: 21 | C27: Matt DiBenedetto | D27: Wood Brothers Racing | E27: Ford | F27: 4 | I27: 25 | J27: 12 | K27: 3 | L27: Austin Dillon | M27: Richard Childress Racing | N27: Chevrolet | O27: 161 | P27: 12
A28: 8 | B28: 47 | C28: Ricky Stenhouse Jr. | D28: JTG Daugherty Racing | E28: Chevrolet | F28: 3 | I28: 26 | J28: 30 | K28: 96 | L28: Daniel Suárez | M28: Gaunt Brothers Racing | N28: Toyota | O28: 159 | P28: 11
A29: 9 | B29: 12 | C29: Ryan Blaney | D29: Team Penske | E29: Ford | F29: 2 | I29: 27 | J29: 3 | K29: 22 | L29: Joey Logano | M29: Team Penske | N29: Ford | O29: 158 | P29: 30
A30: 10 | B30: 95 | C30: Christopher Bell (R) | D30: Leavine Family Racing | E30: Toyota | F30: 1 | I30: 28 | J30: 19 | K30: 42 | L30: Matt Kenseth | M30: Chip Ganassi Racing | N30: Chevrolet | O30: 158 | P30: 9
I31: 29 | J31: 18 | K31: 8 | L31: Tyler Reddick (R) | M31: Richard Childress Racing | N31: Chevrolet | O31: 158 | P31: 16
I32: 30 | J32: 16 | K32: 41 | L32: Cole Custer (R) | M32: Stewart-Haas Racing | N32: Ford | O32: 158 | P32: 7
I33: 31 | J33: 37 | K33: 53 | L33: Joey Gase (i) | M33: Rick Ware Racing | N33: Ford | O33: 158 | P33: 6
I34: 32 | J34: 31 | K34: 47 | L34: Ricky Stenhouse Jr. | M34: JTG Daugherty Racing | N34: Chevrolet | O34: 155 | P34: 8
I35: 33 | J35: 11 | K35: 18 | L35: Kyle Busch | M35: Joe Gibbs Racing | N35: Toyota | O35: 152 | P35: 5
I36: 34 | J36: 13 | K36: 1 | L36: Kurt Busch | M36: Chip Ganassi Racing | N36: Chevrolet | O36: 151 | P36: 10
I37: 35 | J37: 20 | K37: 20 | L37: Erik Jones | M37: Joe Gibbs Racing | N37: Toyota | O37: 151 | P37: 11
I38: 36 | J38: 22 | K38: 6 | L38: Ryan Newman | M38: Roush Fenway Racing | N38: Ford | O38: 151 | P38: 1
I39: 37 | J39: 28 | K39: 37 | L39: Ryan Preece | M39: JTG Daugherty Racing | N39: Chevrolet | O39: 151 | P39: 1
I40: 38 | J40: 39 | K40: 7 | L40: Josh Bilicki (i) | M40: Tommy Baldwin Racing | N40: Chevrolet | O40: 151 | P40: 1
I41: 39 | J41: 38 | K41: 51 | L41: James Davison | M41: Petty Ware Racing | N41: Ford | O41: 139 | P41: 1
I42: 40 | J42: 33 | K42: 27 | L42: J. J. Yeley (i) | M42: Rick Ware Racing | N42: Chevrolet | O42: 3 | P42: 1

Sheet Last Race Results
B1: https://en.wikipedia.org/wiki/2020_NASCAR_Cup_Series#Schedule
A4: Car Number | B4: Position | C4: Car # | D4: Driver | E4: Team | F4: Manuafurer | G4: Laps | H4: Points | I4: S1 Points | J4: S2 Point | K4: Total
A5: =IF(C5="00",C5,VALUE(C5)) -> 24 | B5: =VALUE('Stage Results'!I3) -> 1 | C5: ='Stage Results'!K3 -> 24 | D5: ='Stage Results'!L3 -> William Byron | E5: ='Stage Results'!M3 -> Hendrick Motorsports | F5: ='Stage Results'!N3 -> Chevrolet | G5: ='Stage Results'!O3 -> 164 | H5: ='Stage Results'!P3 -> 44 | I5: =_xlfn.IFNA(VLOOKUP(C5,'Stage Results'!$B$3:$F$12,5,FALSE),0) -> 4 | J5: =_xlfn.IFNA(VLOOKUP(C5,'Stage Results'!$B$21:$F$30,5,FALSE),0) -> 0 | K5: =H5 -> 44
A6: =IF(C6="00",C6,VALUE(C6)) -> 9 | B6: =VALUE('Stage Results'!I4) -> 2 | C6: ='Stage Results'!K4 -> 9 | D6: ='Stage Results'!L4 -> Chase Elliott | E6: ='Stage Results'!M4 -> Hendrick Motorsports | F6: ='Stage Results'!N4 -> Chevrolet | G6: ='Stage Results'!O4 -> 164 | H6: ='Stage Results'!P4 -> 35 | I6: =_xlfn.IFNA(VLOOKUP(C6,'Stage Results'!$B$3:$F$12,5,FALSE),0) -> 0 | J6: =_xlfn.IFNA(VLOOKUP(C6,'Stage Results'!$B$21:$F$30,5,FALSE),0) -> 0 | K6: =H6 -> 35
A7: 11 | B7: =VALUE('Stage Results'!I5) -> 3 | C7: ='Stage Results'!K5 -> 11 | D7: ='Stage Results'!L5 -> Denny Hamlin | E7: ='Stage Results'!M5 -> Joe Gibbs Racing | F7: ='Stage Results'!N5 -> Toyota | G7: ='Stage Results'!O5 -> 164 | H7: ='Stage Results'!P5 -> 36 | I7: =_xlfn.IFNA(VLOOKUP(C7,'Stage Results'!$B$3:$F$12,5,FALSE),0) -> 2 | J7: =_xlfn.IFNA(VLOOKUP(C7,'Stage Results'!$B$21:$F$30,5,FALSE),0) -> 0 | K7: 36
A8: 19 | B8: =VALUE('Stage Results'!I6) -> 4 | C8: ='Stage Results'!K6 -> 19 | D8: ='Stage Results'!L6 -> Martin Truex Jr. | E8: ='Stage Results'!M6 -> Joe Gibbs Racing | F8: ='Stage Results'!N6 -> Toyota | G8: ='Stage Results'!O6 -> 164 | H8: ='Stage Results'!P6 -> 42 | I8: =_xlfn.IFNA(VLOOKUP(C8,'Stage Results'!$B$3:$F$12,5,FALSE),0) -> 0 | J8: =_xlfn.IFNA(VLOOKUP(C8,'Stage Results'!$B$21:$F$30,5,FALSE),0) -> 9 | K8: 42
A9: 43 | B9: =VALUE('Stage Results'!I7) -> 5 | C9: ='Stage Results'!K7 -> 43 | D9: ='Stage Results'!L7 -> Bubba Wallace | E9: ='Stage Results'!M7 -> Richard Petty Motorsports | F9: ='Stage Results'!N7 -> Chevrolet | G9: ='Stage Results'!O7 -> 164 | H9: ='Stage Results'!P7 -> 32 | I9: =_xlfn.IFNA(VLOOKUP(C9,'Stage Results'!$B$3:$F$12,5,FALSE),0) -> 0 | J9: =_xlfn.IFNA(VLOOKUP(C9,'Stage Results'!$B$21:$F$30,5,FALSE),0) -> 0 | K9: 32
A10: 12 | B10: =VALUE('Stage Results'!I8) -> 6 | C10: ='Stage Results'!K8 -> 12 | D10: ='Stage Results'!L8 -> Ryan Blaney | E10: ='Stage Results'!M8 -> Team Penske | F10: ='Stage Results'!N8 -> Ford | G10: ='Stage Results'!O8 -> 164 | H10: ='Stage Results'!P8 -> 40 | I10: =_xlfn.IFNA(VLOOKUP(C10,'Stage Results'!$B$3:$F$12,5,FALSE),0) -> 7 | J10: =_xlfn.IFNA(VLOOKUP(C10,'Stage Results'!$B$21:$F$30,5,FALSE),0) -> 2 | K10: 40
A11: 88 | B11: =VALUE('Stage Results'!I9) -> 7 | C11: ='Stage Results'!K9 -> 88 | D11: ='Stage Results'!L9 -> Alex Bowman | E11: ='Stage Results'!M9 -> Hendrick Motorsports | F11: ='Stage Results'!N9 -> Chevrolet | G11: ='Stage Results'!O9 -> 164 | H11: ='Stage Results'!P9 -> 30 | I11: =_xlfn.IFNA(VLOOKUP(C11,'Stage Results'!$B$3:$F$12,5,FALSE),0) -> 0 | J11: =_xlfn.IFNA(VLOOKUP(C11,'Stage Results'!$B$21:$F$30,5,FALSE),0) -> 0 | K11: 30
A12: 62 | B12: =VALUE('Stage Results'!I10) -> 8 | C12: ='Stage Results'!K10 -> 62 | D12: ='Stage Results'!L10 -> Brendan Gaughan | E12: ='Stage Results'!M10 -> Beard Motorsports | F12: ='Stage Results'!N10 -> Chevrolet | G12: ='Stage Results'!O10 -> 164 | H12: ='Stage Results'!P10 -> 29 | I12: =_xlfn.IFNA(VLOOKUP(C12,'Stage Results'!$B$3:$F$12,5,FALSE),0) -> 0 | J12: =_xlfn.IFNA(VLOOKUP(C12,'Stage Results'!$B$21:$F$30,5,FALSE),0) -> 0 | K12: 29
A13: 17 | B13: =VALUE('Stage Results'!I11) -> 9 | C13: ='Stage Results'!K11 -> 17 | D13: ='Stage Results'!L11 -> Chris Buescher | E13: ='Stage Results'!M11 -> Roush Fenway Racing | F13: ='Stage Results'!N11 -> Ford | G13: ='Stage Results'!O11 -> 164 | H13: ='Stage Results'!P11 -> 28 | I13: =_xlfn.IFNA(VLOOKUP(C13,'Stage Results'!$B$3:$F$12,5,FALSE),0) -> 0 | J13: =_xlfn.IFNA(VLOOKUP(C13,'Stage Results'!$B$21:$F$30,5,FALSE),0) -> 0 | K13: 28
A14: 2 | B14: =VALUE('Stage Results'!I12) -> 10 | C14: ='Stage Results'!K12 -> 2 | D14: ='Stage Results'!L12 -> Brad Keselowski | E14: ='Stage Results'!M12 -> Team Penske | F14: ='Stage Results'!N12 -> Ford | G14: ='Stage Results'!O12 -> 164 | H14: ='Stage Results'!P12 -> 32 | I14: =_xlfn.IFNA(VLOOKUP(C14,'Stage Results'!$B$3:$F$12,5,FALSE),0) -> 0 | J14: =_xlfn.IFNA(VLOOKUP(C14,'Stage Results'!$B$21:$F$30,5,FALSE),0) -> 5 | K14: 32
A15: 38 | B15: =VALUE('Stage Results'!I13) -> 11 | C15: ='Stage Results'!K13 -> 38 | D15: ='Stage Results'!L13 -> John Hunter Nemechek (R) | E15: ='Stage Results'!M13 -> Front Row Motorsports | F15: ='Stage Results'!N13 -> Ford | G15: ='Stage Results'!O13 -> 164 | H15: ='Stage Results'!P13 -> 26 | I15: =_xlfn.IFNA(VLOOKUP(C15,'Stage Results'!$B$3:$F$12,5,FALSE),0) -> 0 | J15: =_xlfn.IFNA(VLOOKUP(C15,'Stage Results'!$B$21:$F$30,5,FALSE),0) -> 0 | K15: 26
A16: 21 | B16: =VALUE('Stage Results'!I14) -> 12 | C16: ='Stage Results'!K14 -> 21 | D16: ='Stage Results'!L14 -> Matt DiBenedetto | E16: ='Stage Results'!M14 -> Wood Brothers Racing | F16: ='Stage Results'!N14 -> Ford | G16: ='Stage Results'!O14 -> 164 | H16: ='Stage Results'!P14 -> 29 | I16: =_xlfn.IFNA(VLOOKUP(C16,'Stage Results'!$B$3:$F$12,5,FALSE),0) -> 0 | J16: =_xlfn.IFNA(VLOOKUP(C16,'Stage Results'!$B$21:$F$30,5,FALSE),0) -> 4 | K16: 29
A17: 95 | B17: =VALUE('Stage Results'!I15) -> 13 | C17: ='Stage Results'!K15 -> 95 | D17: ='Stage Results'!L15 -> Christopher Bell (R) | E17: ='Stage Results'!M15 -> Leavine Family Racing | F17: ='Stage Results'!N15 -> Toyota | G17: ='Stage Results'!O15 -> 164 | H17: ='Stage Results'!P15 -> 30 | I17: =_xlfn.IFNA(VLOOKUP(C17,'Stage Results'!$B$3:$F$12,5,FALSE),0) -> 5 | J17: =_xlfn.IFNA(VLOOKUP(C17,'Stage Results'!$B$21:$F$30,5,FALSE),0) -> 1 | K17: 30
A18: 34 | B18: =VALUE('Stage Results'!I16) -> 14 | C18: ='Stage Results'!K16 -> 34 | D18: ='Stage Results'!L16 -> Michael McDowell | E18: ='Stage Results'!M16 -> Front Row Motorsports | F18: ='Stage Results'!N16 -> Ford | G18: ='Stage Results'!O16 -> 164 | H18: ='Stage Results'!P16 -> 26 | I18: =_xlfn.IFNA(VLOOKUP(C18,'Stage Results'!$B$3:$F$12,5,FALSE),0) -> 3 | J18: =_xlfn.IFNA(VLOOKUP(C18,'Stage Results'!$B$21:$F$30,5,FALSE),0) -> 0 | K18: 26
A19: 15 | B19: =VALUE('Stage Results'!I17) -> 15 | C19: ='Stage Results'!K17 -> 15 | D19: ='Stage Results'!L17 -> Brennan Poole (R) | E19: ='Stage Results'!M17 -> Premium Motorsports | F19: ='Stage Results'!N17 -> Chevrolet | G19: ='Stage Results'!O17 -> 164 | H19: ='Stage Results'!P17 -> 22 | I19: =_xlfn.IFNA(VLOOKUP(C19,'Stage Results'!$B$3:$F$12,5,FALSE),0) -> 0 | J19: =_xlfn.IFNA(VLOOKUP(C19,'Stage Results'!$B$21:$F$30,5,FALSE),0) -> 0 | K19: 22
A20: 77 | B20: =VALUE('Stage Results'!I18) -> 16 | C20: ='Stage Results'!K18 -> 77 | D20: ='Stage Results'!L18 -> Ross Chastain (i) | E20: ='Stage Results'!M18 -> Spire Motorsports | F20: ='Stage Results'!N18 -> Chevrolet | G20: ='Stage Results'!O18 -> 164 | H20: ='Stage Results'!P18 -> 21 | I20: =_xlfn.IFNA(VLOOKUP(C20,'Stage Results'!$B$3:$F$12,5,FALSE),0) -> 0 | J20: =_xlfn.IFNA(VLOOKUP(C20,'Stage Results'!$B$21:$F$30,5,FALSE),0) -> 0 | K20: 21
A21: 48 | B21: =VALUE('Stage Results'!I19) -> 17 | C21: ='Stage Results'!K19 -> 48 | D21: ='Stage Results'!L19 -> Jimmie Johnson | E21: ='Stage Results'!M19 -> Hendrick Motorsports | F21: ='Stage Results'!N19 -> Chevrolet | G21: ='Stage Results'!O19 -> 164 | H21: ='Stage Results'!P19 -> 32 | I21: =_xlfn.IFNA(VLOOKUP(C21,'Stage Results'!$B$3:$F$12,5,FALSE),0) -> 6 | J21: =_xlfn.IFNA(VLOOKUP(C21,'Stage Results'!$B$21:$F$30,5,FALSE),0) -> 6 | K21: 32
A22: 10 | B22: =VALUE('Stage Results'!I20) -> 18 | C22: ='Stage Results'!K20 -> 10 | D22: ='Stage Results'!L20 -> Aric Almirola | E22: ='Stage Results'!M20 -> Stewart-Haas Racing | F22: ='Stage Results'!N20 -> Ford | G22: ='Stage Results'!O20 -> 164 | H22: ='Stage Results'!P20 -> 19 | I22: =_xlfn.IFNA(VLOOKUP(C22,'Stage Results'!$B$3:$F$12,5,FALSE),0) -> 0 | J22: =_xlfn.IFNA(VLOOKUP(C22,'Stage Results'!$B$21:$F$30,5,FALSE),0) -> 0 | K22: 19
A23: 14 | B23: =VALUE('Stage Results'!I21) -> 19 | C23: ='Stage Results'!K21 -> 14 | D23: ='Stage Results'!L21 -> Clint Bowyer | E23: ='Stage Results'!M21 -> Stewart-Haas Racing | F23: ='Stage Results'!N21 -> Ford | G23: ='Stage Results'!O21 -> 164 | H23: ='Stage Results'!P21 -> 26 | I23: =_xlfn.IFNA(VLOOKUP(C23,'Stage Results'!$B$3:$F$12,5,FALSE),0) -> 0 | J23: =_xlfn.IFNA(VLOOKUP(C23,'Stage Results'!$B$21:$F$30,5,FALSE),0) -> 8 | K23: 26
A24: 4 | B24: =VALUE('Stage Results'!I22) -> 20 | C24: ='Stage Results'!K22 -> 4 | D24: ='Stage Results'!L22 -> Kevin Harvick | E24: ='Stage Results'!M22 -> Stewart-Haas Racing | F24: ='Stage Results'!N22 -> Ford | G24: ='Stage Results'!O22 -> 164 | H24: ='Stage Results'!P22 -> 17 | I24: =_xlfn.IFNA(VLOOKUP(C24,'Stage Results'!$B$3:$F$12,5,FALSE),0) -> 0 | J24: =_xlfn.IFNA(VLOOKUP(C24,'Stage Results'!$B$21:$F$30,5,FALSE),0) -> 0 | K24: 17
A25: 32 | B25: =VALUE('Stage Results'!I23) -> 21 | C25: ='Stage Results'!K23 -> 32 | D25: ='Stage Results'!L23 -> Corey LaJoie | E25: ='Stage Results'!M23 -> Go Fas Racing | F25: ='Stage Results'!N23 -> Ford | G25: ='Stage Results'!O23 -> 163 | H25: ='Stage Results'!P23 -> 16 | I25: =_xlfn.IFNA(VLOOKUP(C25,'Stage Results'!$B$3:$F$12,5,FALSE),0) -> 0 | J25: =_xlfn.IFNA(VLOOKUP(C25,'Stage Results'!$B$21:$F$30,5,FALSE),0) -> 0 | K25: 16
A26: 13 | B26: =VALUE('Stage Results'!I24) -> 22 | C26: ='Stage Results'!K24 -> 13 | D26: ='Stage Results'!L24 -> Ty Dillon | E26: ='Stage Results'!M24 -> Germain Racing | F26: ='Stage Results'!N24 -> Chevrolet | G26: ='Stage Results'!O24 -> 163 | H26: ='Stage Results'!P24 -> 15 | I26: =_xlfn.IFNA(VLOOKUP(C26,'Stage Results'!$B$3:$F$12,5,FALSE),0) -> 0 | J26: =_xlfn.IFNA(VLOOKUP(C26,'Stage Results'!$B$21:$F$30,5,FALSE),0) -> 0 | K26: 15
A27: 00 | B27: =VALUE('Stage Results'!I25) -> 23 | C27: ='Stage Results'!K25 -> 00 | D27: ='Stage Results'!L25 -> Quin Houff (R) | E27: ='Stage Results'!M25 -> StarCom Racing | F27: ='Stage Results'!N25 -> Chevrolet | G27: ='Stage Results'!O25 -> 162 | H27: ='Stage Results'!P25 -> 14 | I27: =_xlfn.IFNA(VLOOKUP(C27,'Stage Results'!$B$3:$F$12,5,FALSE),0) -> 0 | J27: =_xlfn.IFNA(VLOOKUP(C27,'Stage Results'!$B$21:$F$30,5,FALSE),0) -> 0 | K27: 14
A28: 66 | B28: =VALUE('Stage Results'!I26) -> 24 | C28: ='Stage Results'!K26 -> 66 | D28: ='Stage Results'!L26 -> Timmy Hill (i) | E28: ='Stage Results'!M26 -> MBM Motorsports | F28: ='Stage Results'!N26 -> Toyota | G28: ='Stage Results'!O26 -> 161 | H28: ='Stage Results'!P26 -> 13 | I28: =_xlfn.IFNA(VLOOKUP(C28,'Stage Results'!$B$3:$F$12,5,FALSE),0) -> 0 | J28: =_xlfn.IFNA(VLOOKUP(C28,'Stage Results'!$B$21:$F$30,5,FALSE),0) -> 0 | K28: 13
A29: 3 | B29: =VALUE('Stage Results'!I27) -> 25 | C29: ='Stage Results'!K27 -> 3 | D29: ='Stage Results'!L27 -> Austin Dillon | E29: ='Stage Results'!M27 -> Richard Childress Racing | F29: ='Stage Results'!N27 -> Chevrolet | G29: ='Stage Results'!O27 -> 161 | H29: ='Stage Results'!P27 -> 12 | I29: =_xlfn.IFNA(VLOOKUP(C29,'Stage Results'!$B$3:$F$12,5,FALSE),0) -> 0 | J29: =_xlfn.IFNA(VLOOKUP(C29,'Stage Results'!$B$21:$F$30,5,FALSE),0) -> 0 | K29: 12
A30: 96 | B30: =VALUE('Stage Results'!I28) -> 26 | C30: ='Stage Results'!K28 -> 96 | D30: ='Stage Results'!L28 -> Daniel Suárez | E30: ='Stage Results'!M28 -> Gaunt Brothers Racing | F30: ='Stage Results'!N28 -> Toyota | G30: ='Stage Results'!O28 -> 159 | H30: ='Stage Results'!P28 -> 11 | I30: =_xlfn.IFNA(VLOOKUP(C30,'Stage Results'!$B$3:$F$12,5,FALSE),0) -> 0 | J30: =_xlfn.IFNA(VLOOKUP(C30,'Stage Results'!$B$21:$F$30,5,FALSE),0) -> 0 | K30: 11
A31: 22 | B31: =VALUE('Stage Results'!I29) -> 27 | C31: ='Stage Results'!K29 -> 22 | D31: ='Stage Results'!L29 -> Joey Logano | E31: ='Stage Results'!M29 -> Team Penske | F31: ='Stage Results'!N29 -> Ford | G31: ='Stage Results'!O29 -> 158 | H31: ='Stage Results'!P29 -> 30 | I31: =_xlfn.IFNA(VLOOKUP(C31,'Stage Results'!$B$3:$F$12,5,FALSE),0) -> 10 | J31: =_xlfn.IFNA(VLOOKUP(C31,'Stage Results'!$B$21:$F$30,5,FALSE),0) -> 10 | K31: 30
A32: 42 | B32: =VALUE('Stage Results'!I30) -> 28 | C32: ='Stage Results'!K30 -> 42 | D32: ='Stage Results'!L30 -> Matt Kenseth | E32: ='Stage Results'!M30 -> Chip Ganassi Racing | F32: ='Stage Results'!N30 -> Chevrolet | G32: ='Stage Results'!O30 -> 158 | H32: ='Stage Results'!P30 -> 9 | I32: =_xlfn.IFNA(VLOOKUP(C32,'Stage Results'!$B$3:$F$12,5,FALSE),0) -> 0 | J32: =_xlfn.IFNA(VLOOKUP(C32,'Stage Results'!$B$21:$F$30,5,FALSE),0) -> 0 | K32: 9
A33: 8 | B33: =VALUE('Stage Results'!I31) -> 29 | C33: ='Stage Results'!K31 -> 8 | D33: ='Stage Results'!L31 -> Tyler Reddick (R) | E33: ='Stage Results'!M31 -> Richard Childress Racing | F33: ='Stage Results'!N31 -> Chevrolet | G33: ='Stage Results'!O31 -> 158 | H33: ='Stage Results'!P31 -> 16 | I33: =_xlfn.IFNA(VLOOKUP(C33,'Stage Results'!$B$3:$F$12,5,FALSE),0) -> 8 | J33: =_xlfn.IFNA(VLOOKUP(C33,'Stage Results'!$B$21:$F$30,5,FALSE),0) -> 0 | K33: 16
A34: 41 | B34: =VALUE('Stage Results'!I32) -> 30 | C34: ='Stage Results'!K32 -> 41 | D34: ='Stage Results'!L32 -> Cole Custer (R) | E34: ='Stage Results'!M32 -> Stewart-Haas Racing | F34: ='Stage Results'!N32 -> Ford | G34: ='Stage Results'!O32 -> 158 | H34: ='Stage Results'!P32 -> 7 | I34: =_xlfn.IFNA(VLOOKUP(C34,'Stage Results'!$B$3:$F$12,5,FALSE),0) -> 0 | J34: =_xlfn.IFNA(VLOOKUP(C34,'Stage Results'!$B$21:$F$30,5,FALSE),0) -> 0 | K34: 7
A35: 53 | B35: =VALUE('Stage Results'!I33) -> 31 | C35: ='Stage Results'!K33 -> 53 | D35: ='Stage Results'!L33 -> Joey Gase (i) | E35: ='Stage Results'!M33 -> Rick Ware Racing | F35: ='Stage Results'!N33 -> Ford | G35: ='Stage Results'!O33 -> 158 | H35: ='Stage Results'!P33 -> 6 | I35: =_xlfn.IFNA(VLOOKUP(C35,'Stage Results'!$B$3:$F$12,5,FALSE),0) -> 0 | J35: =_xlfn.IFNA(VLOOKUP(C35,'Stage Results'!$B$21:$F$30,5,FALSE),0) -> 0 | K35: 6
A36: 47 | B36: =VALUE('Stage Results'!I34) -> 32 | C36: ='Stage Results'!K34 -> 47 | D36: ='Stage Results'!L34 -> Ricky Stenhouse Jr. | E36: ='Stage Results'!M34 -> JTG Daugherty Racing | F36: ='Stage Results'!N34 -> Chevrolet | G36: ='Stage Results'!O34 -> 155 | H36: ='Stage Results'!P34 -> 8 | I36: =_xlfn.IFNA(VLOOKUP(C36,'Stage Results'!$B$3:$F$12,5,FALSE),0) -> 0 | J36: =_xlfn.IFNA(VLOOKUP(C36,'Stage Results'!$B$21:$F$30,5,FALSE),0) -> 3 | K36: 8
A37: 18 | B37: =VALUE('Stage Results'!I35) -> 33 | C37: ='Stage Results'!K35 -> 18 | D37: ='Stage Results'!L35 -> Kyle Busch | E37: ='Stage Results'!M35 -> Joe Gibbs Racing | F37: ='Stage Results'!N35 -> Toyota | G37: ='Stage Results'!O35 -> 152 | H37: ='Stage Results'!P35 -> 5 | I37: =_xlfn.IFNA(VLOOKUP(C37,'Stage Results'!$B$3:$F$12,5,FALSE),0) -> 1 | J37: =_xlfn.IFNA(VLOOKUP(C37,'Stage Results'!$B$21:$F$30,5,FALSE),0) -> 0 | K37: 5
A38: 1 | B38: =VALUE('Stage Results'!I36) -> 34 | C38: ='Stage Results'!K36 -> 1 | D38: ='Stage Results'!L36 -> Kurt Busch | E38: ='Stage Results'!M36 -> Chip Ganassi Racing | F38: ='Stage Results'!N36 -> Chevrolet | G38: ='Stage Results'!O36 -> 151 | H38: ='Stage Results'!P36 -> 10 | I38: =_xlfn.IFNA(VLOOKUP(C38,'Stage Results'!$B$3:$F$12,5,FALSE),0) -> 0 | J38: =_xlfn.IFNA(VLOOKUP(C38,'Stage Results'!$B$21:$F$30,5,FALSE),0) -> 7 | K38: 10
A39: 20 | B39: =VALUE('Stage Results'!I37) -> 35 | C39: ='Stage Results'!K37 -> 20 | D39: ='Stage Results'!L37 -> Erik Jones | E39: ='Stage Results'!M37 -> Joe Gibbs Racing | F39: ='Stage Results'!N37 -> Toyota | G39: ='Stage Results'!O37 -> 151 | H39: ='Stage Results'!P37 -> 11 | I39: =_xlfn.IFNA(VLOOKUP(C39,'Stage Results'!$B$3:$F$12,5,FALSE),0) -> 9 | J39: =_xlfn.IFNA(VLOOKUP(C39,'Stage Results'!$B$21:$F$30,5,FALSE),0) -> 0 | K39: 11
A40: 6 | B40: =VALUE('Stage Results'!I38) -> 36 | C40: ='Stage Results'!K38 -> 6 | D40: ='Stage Results'!L38 -> Ryan Newman | E40: ='Stage Results'!M38 -> Roush Fenway Racing | F40: ='Stage Results'!N38 -> Ford | G40: ='Stage Results'!O38 -> 151 | H40: ='Stage Results'!P38 -> 1 | I40: =_xlfn.IFNA(VLOOKUP(C40,'Stage Results'!$B$3:$F$12,5,FALSE),0) -> 0 | J40: =_xlfn.IFNA(VLOOKUP(C40,'Stage Results'!$B$21:$F$30,5,FALSE),0) -> 0 | K40: 1
A41: 37 | B41: =VALUE('Stage Results'!I39) -> 37 | C41: ='Stage Results'!K39 -> 37 | D41: ='Stage Results'!L39 -> Ryan Preece | E41: ='Stage Results'!M39 -> JTG Daugherty Racing | F41: ='Stage Results'!N39 -> Chevrolet | G41: ='Stage Results'!O39 -> 151 | H41: ='Stage Results'!P39 -> 1 | I41: =_xlfn.IFNA(VLOOKUP(C41,'Stage Results'!$B$3:$F$12,5,FALSE),0) -> 0 | J41: =_xlfn.IFNA(VLOOKUP(C41,'Stage Results'!$B$21:$F$30,5,FALSE),0) -> 0 | K41: 1
A42: 7 | B42: =VALUE('Stage Results'!I40) -> 38 | C42: ='Stage Results'!K40 -> 7 | D42: ='Stage Results'!L40 -> Josh Bilicki (i) | E42: ='Stage Results'!M40 -> Tommy Baldwin Racing | F42: ='Stage Results'!N40 -> Chevrolet | G42: ='Stage Results'!O40 -> 151 | H42: ='Stage Results'!P40 -> 1 | I42: =_xlfn.IFNA(VLOOKUP(C42,'Stage Results'!$B$3:$F$12,5,FALSE),0) -> 0 | J42: =_xlfn.IFNA(VLOOKUP(C42,'Stage Results'!$B$21:$F$30,5,FALSE),0) -> 0 | K42: 1
A43: 51 | B43: =VALUE('Stage Results'!I41) -> 39 | C43: ='Stage Results'!K41 -> 51 | D43: ='Stage Results'!L41 -> James Davison | E43: ='Stage Results'!M41 -> Petty Ware Racing | F43: ='Stage Results'!N41 -> Ford | G43: ='Stage Results'!O41 -> 139 | H43: ='Stage Results'!P41 -> 1 | I43: =_xlfn.IFNA(VLOOKUP(C43,'Stage Results'!$B$3:$F$12,5,FALSE),0) -> 0 | J43: =_xlfn.IFNA(VLOOKUP(C43,'Stage Results'!$B$21:$F$30,5,FALSE),0) -> 0 | K43: 1
A44: 27 | B44: =VALUE('Stage Results'!I42) -> 40 | C44: ='Stage Results'!K42 -> 27 | D44: ='Stage Results'!L42 -> J. J. Yeley (i) | E44: ='Stage Results'!M42 -> Rick Ware Racing | F44: ='Stage Results'!N42 -> Chevrolet | G44: ='Stage Results'!O42 -> 3 | H44: ='Stage Results'!P42 -> 1 | I44: =_xlfn.IFNA(VLOOKUP(C44,'Stage Results'!$B$3:$F$12,5,FALSE),0) -> 0 | J44: =_xlfn.IFNA(VLOOKUP(C44,'Stage Results'!$B$21:$F$30,5,FALSE),0) -> 0 | K44: 1
B205: Pos | D205: Driver | E205: MFG | F205: Start | G205: Laps | H205: Led
B206: 1 | D206: #4 Kevin Harvick | E206: Chevrolet | F206: 13 | G206: 312 | H206: 224
B207: 2 | D207: #88 Dale Earnhardt Jr. | E207: Chevrolet | F207: 5 | G207: 312 | H207: 0
B208: 3 | D208: #2 Brad Keselowski | E208: Ford | F208: 1 | G208: 312 | H208: 3
B209: 4 | D209: #22 Joey Logano | E209: Ford | F209: 2 | G209: 312 | H209: 71
B210: 5 | D210: #24 Jeff Gordon | E210: Chevrolet | F210: 17 | G210: 312 | H210: 4
B211: 6 | D211: #48 Jimmie Johnson | E211: Chevrolet | F211: 4 | G211: 312 | H211: 0
B212: 7 | D212: #31 Ryan Newman | E212: Chevrolet | F212: 15 | G212: 312 | H212: 6
B213: 8 | D213: #99 Carl Edwards | E213: Ford | F213: 23 | G213: 312 | H213: 1
B214: 9 | D214: #18 Kyle Busch | E214: Toyota | F214: 7 | G214: 312 | H214: 0
B215: 10 | D215: #1 Jamie McMurray | E215: Chevrolet | F215: 3 | G215: 312 | H215: 0
B216: 11 | D216: #5 Kasey Kahne | E216: Chevrolet | F216: 11 | G216: 312 | H216: 0
B217: 12 | D217: #20 Matt Kenseth | E217: Toyota | F217: 19 | G217: 312 | H217: 0
B218: 13 | D218: #15 Clint Bowyer | E218: Toyota | F218: 14 | G218: 312 | H218: 1
B219: 14 | D219: #13 Casey Mears | E219: Chevrolet | F219: 18 | G219: 312 | H219: 0
B220: 15 | D220: #43 Aric Almirola | E220: Ford | F220: 9 | G220: 312 | H220: 0
B221: 16 | D221: #14 Tony Stewart | E221: Chevrolet | F221: 20 | G221: 312 | H221: 0
B222: 17 | D222: #16 Greg Biffle | E222: Ford | F222: 6 | G222: 312 | H222: 0
B223: 18 | D223: #17 Ricky Stenhouse Jr. | E223: Ford | F223: 21 | G223: 312 | H223: 0
B224: 19 | D224: #11 Denny Hamlin | E224: Toyota | F224: 12 | G224: 312 | H224: 0
B225: 20 | D225: #42 Kyle Larson | E225: Chevrolet | F225: 8 | G225: 312 | H225: 0
B226: 21 | D226: #9 Marcos Ambrose | E226: Ford | F226: 29 | G226: 311 | H226: 0
B227: 22 | D227: #78 Martin Truex Jr. | E227: Chevrolet | F227: 27 | G227: 311 | H227: 0
B228: 23 | D228: #27 Paul Menard | E228: Chevrolet | F228: 22 | G228: 311 | H228: 0
B229: 24 | D229: #3 Austin Dillon | E229: Chevrolet | F229: 24 | G229: 311 | H229: 0
B230: 25 | D230: #55 Brian Vickers | E230: Toyota | F230: 16 | G230: 311 | H230: 0
B231: 26 | D231: #47 A J Allmendinger | E231: Chevrolet | F231: 25 | G231: 310 | H231: 0
B232: 27 | D232: #26 Cole Whitt | E232: Toyota | F232: 31 | G232: 310 | H232: 0
B233: 28 | D233: #34 David Ragan | E233: Ford | F233: 30 | G233: 310 | H233: 0
B234: 29 | D234: #38 David Gilliland | E234: Ford | F234: 28 | G234: 309 | H234: 2
B235: 30 | D235: #51 Justin Allgaier | E235: Chevrolet | F235: 43 | G235: 309 | H235: 0
B236: 31 | D236: #36 Reed Sorenson | E236: Chevrolet | F236: 39 | G236: 308 | H236: 0
B237: 32 | D237: #33 Brian Scott | E237: Chevrolet | F237: 32 | G237: 308 | H237: 0
B238: 33 | D238: #95 Michael McDowell | E238: Ford | F238: 26 | G238: 307 | H238: 0
B239: 34 | D239: #7 Michael Annett | E239: Chevrolet | F239: 41 | G239: 307 | H239: 0
B240: 35 | D240: #83 Ryan Truex | E240: Toyota | F240: 34 | G240: 307 | H240: 0
B241: 36 | D241: #10 Danica Patrick | E241: Chevrolet | F241: 33 | G241: 306 | H241: 0
B242: 37 | D242: #35 Blake Koch | E242: Ford | F242: 37 | G242: 306 | H242: 0
B243: 38 | D243: #32 Travis Kvapil | E243: Ford | F243: 40 | G243: 302 | H243: 0
B244: 39 | D244: #41 Kurt Busch | E244: Chevrolet | F244: 10 | G244: 292 | H244: 0
B245: 40 | D245: #66 Joe Nemechek | E245: Toyota | F245: 38 | G245: 292 | H245: 0
B246: 41 | D246: #23 Alex Bowman | E246: Toyota | F246: 35 | G246: 230 | H246: 0
B247: 42 | D247: #30 Parker Kligerman | E247: Toyota | F247: 36 | G247: 226 | H247: 0
B248: 43 | D248: #87 Morgan Shepherd | E248: Toyota | F248: 42 | G248: 28 | H248: 0
B249: MSN Ad Configuration
B251: DEFAULT
B252: PG=SPTFBB
B253: AP=1089
B254: SIZE=300x250
B256: 2 COLUMN
B257: PG=SPTFBB
B258: AP=1089
B259: SIZE=300x250
B261: 1 COLUMN
B262: PG=SPTFBB
B263: AP=1089
B264: SIZE=300x250

Sheet Current Owner Standings
Q2: Column1 | R2: Column2 | S2: Column3 | T2: Column4 | U2: Column5 | V2: Column6 | W2: Column7 | X2: Column8 | Y2: Column9 | Z2: Column10 | AA2: Column11
A3: RK | C3: OWNER | D3: Car # | E3: Points | F3: Behind | G3: Wins | H3: Starts | I3: Top 5 | J3: Top 10 | K3: DNF | L3: DRIVER | Q3: Rank | R3: Car # | S3: Owner | T3: Points | U3: Behind | V3: Wins | W3: Starts | X3: Top 5 | Y3: Top 10 | Z3: DNF
A4: 1 | C4: =Owner_Points[[#This Row],[Column3]] -> Stewart-Haas Racing | D4: =IF(R4="00",R4,VALUE(R4)) -> 4 | E4: =T4 -> 1041 | F4: - | G4: 7 | H4: 25 | I4: 17 | J4: 21 | K4: 0 | L4: =IF(D4="00",_xlfn.IFNA(VLOOKUP(D4,'Entry List'!$A$2:$E$88,4,FALSE),"Not Entered"),_xlfn.IFNA(VLOOKUP(VALUE(D4),'Entry List'!$A$2:$E$88,4,FALSE),"Not Entered")) -> Kevin Harvick | M4: =(35-A4)*0.35 -> 11.9 | Q4: 1 | R4: 4 | S4: Stewart-Haas Racing | T4: 1041 | U4: - | V4: 7 | W4: 25 | X4: 17 | Y4: 21 | Z4: 0
A5: 2 | C5: =Owner_Points[[#This Row],[Column3]] -> Joe Gibbs Racing | D5: =IF(R5="00",R5,VALUE(R5)) -> 11 | E5: =T5 -> 907 | F5: =U5 -> 134 | G5: =V5 -> 6 | H5: =W5 -> 25 | I5: =X5 -> 14 | J5: =Y5 -> 16 | K5: =Z5 -> 1 | L5: =IF(D5="00",_xlfn.IFNA(VLOOKUP(D5,'Entry List'!$A$2:$E$88,4,FALSE),"Not Entered"),_xlfn.IFNA(VLOOKUP(VALUE(D5),'Entry List'!$A$2:$E$88,4,FALSE),"Not Entered")) -> Denny Hamlin | Q5: 2 | R5: 11 | S5: Joe Gibbs Racing | T5: 907 | U5: 134 | V5: 6 | W5: 25 | X5: 14 | Y5: 16 | Z5: 1
A6: 3 | C6: =Owner_Points[[#This Row],[Column3]] -> Team Penske | D6: 2 | E6: 881 | F6: 160 | G6: 3 | H6: 25 | I6: 9 | J6: 18 | K6: 2 | L6: =IF(D6="00",_xlfn.IFNA(VLOOKUP(D6,'Entry List'!$A$2:$E$88,4,FALSE),"Not Entered"),_xlfn.IFNA(VLOOKUP(VALUE(D6),'Entry List'!$A$2:$E$88,4,FALSE),"Not Entered")) -> Brad Keselowski | Q6: 3 | R6: 2 | S6: Team Penske | T6: 881 | U6: 160 | V6: 3 | W6: 25 | X6: 9 | Y6: 18 | Z6: 2
A7: 4 | C7: =Owner_Points[[#This Row],[Column3]] -> Joe Gibbs Racing | D7: 19 | E7: 845 | F7: 196 | G7: 1 | H7: 25 | I7: 10 | J7: 16 | K7: 3 | L7: =IF(D7="00",_xlfn.IFNA(VLOOKUP(D7,'Entry List'!$A$2:$E$88,4,FALSE),"Not Entered"),_xlfn.IFNA(VLOOKUP(VALUE(D7),'Entry List'!$A$2:$E$88,4,FALSE),"Not Entered")) -> Martin Truex Jr. | Q7: 4 | R7: 19 | S7: Joe Gibbs Racing | T7: 845 | U7: 196 | V7: 1 | W7: 25 | X7: 10 | Y7: 16 | Z7: 3
A8: 5 | C8: =Owner_Points[[#This Row],[Column3]] -> Team Penske | D8: 22 | E8: 836 | F8: 205 | G8: 2 | H8: 25 | I8: 6 | J8: 14 | K8: 2 | L8: =IF(D8="00",_xlfn.IFNA(VLOOKUP(D8,'Entry List'!$A$2:$E$88,4,FALSE),"Not Entered"),_xlfn.IFNA(VLOOKUP(VALUE(D8),'Entry List'!$A$2:$E$88,4,FALSE),"Not Entered")) -> Joey Logano | Q8: 5 | R8: 22 | S8: Team Penske | T8: 836 | U8: 205 | V8: 2 | W8: 25 | X8: 6 | Y8: 14 | Z8: 2
A9: 6 | C9: =Owner_Points[[#This Row],[Column3]] -> Team Penske | D9: 12 | E9: 818 | F9: 223 | G9: 1 | H9: 25 | I9: 8 | J9: 10 | K9: 4 | L9: =IF(D9="00",_xlfn.IFNA(VLOOKUP(D9,'Entry List'!$A$2:$E$88,4,FALSE),"Not Entered"),_xlfn.IFNA(VLOOKUP(VALUE(D9),'Entry List'!$A$2:$E$88,4,FALSE),"Not Entered")) -> Ryan Blaney | Q9: 6 | R9: 12 | S9: Team Penske | T9: 818 | U9: 223 | V9: 1 | W9: 25 | X9: 8 | Y9: 10 | Z9: 4
A10: 7 | C10: =Owner_Points[[#This Row],[Column3]] -> Hendrick Motorsports | D10: 9 | E10: 809 | F10: 232 | G10: 2 | H10: 25 | I10: 9 | J10: 14 | K10: 3 | L10: =IF(D10="00",_xlfn.IFNA(VLOOKUP(D10,'Entry List'!$A$2:$E$88,4,FALSE),"Not Entered"),_xlfn.IFNA(VLOOKUP(VALUE(D10),'Entry List'!$A$2:$E$88,4,FALSE),"Not Entered")) -> Chase Elliott | Q10: 7 | R10: 9 | S10: Hendrick Motorsports | T10: 809 | U10: 232 | V10: 2 | W10: 25 | X10: 9 | Y10: 14 | Z10: 3
A11: 8 | C11: =Owner_Points[[#This Row],[Column3]] -> Stewart-Haas Racing | D11: 10 | E11: 740 | F11: 301 | G11: 0 | H11: 25 | I11: 5 | J11: 14 | K11: 2 | L11: =IF(D11="00",_xlfn.IFNA(VLOOKUP(D11,'Entry List'!$A$2:$E$88,4,FALSE),"Not Entered"),_xlfn.IFNA(VLOOKUP(VALUE(D11),'Entry List'!$A$2:$E$88,4,FALSE),"Not Entered")) -> Aric Almirola | Q11: 8 | R11: 10 | S11: Stewart-Haas Racing | T11: 740 | U11: 301 | V11: 0 | W11: 25 | X11: 5 | Y11: 14 | Z11: 2
A12: 9 | C12: =Owner_Points[[#This Row],[Column3]] -> Joe Gibbs Racing | D12: 18 | E12: 719 | F12: 322 | G12: 0 | H12: 25 | I12: 11 | J12: 13 | K12: 4 | L12: =IF(D12="00",_xlfn.IFNA(VLOOKUP(D12,'Entry List'!$A$2:$E$88,4,FALSE),"Not Entered"),_xlfn.IFNA(VLOOKUP(VALUE(D12),'Entry List'!$A$2:$E$88,4,FALSE),"Not Entered")) -> Kyle Busch | Q12: 9 | R12: 18 | S12: Joe Gibbs Racing | T12: 719 | U12: 322 | V12: 0 | W12: 25 | X12: 11 | Y12: 13 | Z12: 4
A13: 10 | C13: =Owner_Points[[#This Row],[Column3]] -> Chip Ganassi Racing | D13: 1 | E13: 700 | F13: 341 | G13: 0 | H13: 25 | I13: 4 | J13: 14 | K13: 2 | L13: =IF(D13="00",_xlfn.IFNA(VLOOKUP(D13,'Entry List'!$A$2:$E$88,4,FALSE),"Not Entered"),_xlfn.IFNA(VLOOKUP(VALUE(D13),'Entry List'!$A$2:$E$88,4,FALSE),"Not Entered")) -> Kurt Busch | Q13: 10 | R13: 1 | S13: Chip Ganassi Racing | T13: 700 | U13: 341 | V13: 0 | W13: 25 | X13: 4 | Y13: 14 | Z13: 2
A14: 11 | C14: =Owner_Points[[#This Row],[Column3]] -> Stewart-Haas Racing | D14: 14 | E14: 685 | F14: 356 | G14: 0 | H14: 25 | I14: 2 | J14: 7 | K14: 1 | L14: =IF(D14="00",_xlfn.IFNA(VLOOKUP(D14,'Entry List'!$A$2:$E$88,4,FALSE),"Not Entered"),_xlfn.IFNA(VLOOKUP(VALUE(D14),'Entry List'!$A$2:$E$88,4,FALSE),"Not Entered")) -> Clint Bowyer | Q14: 11 | R14: 14 | S14: Stewart-Haas Racing | T14: 685 | U14: 356 | V14: 0 | W14: 25 | X14: 2 | Y14: 7 | Z14: 1
A15: 12 | C15: =Owner_Points[[#This Row],[Column3]] -> Hendrick Motorsports | D15: 88 | E15: 662 | F15: 379 | G15: 1 | H15: 25 | I15: 3 | J15: 7 | K15: 4 | L15: =IF(D15="00",_xlfn.IFNA(VLOOKUP(D15,'Entry List'!$A$2:$E$88,4,FALSE),"Not Entered"),_xlfn.IFNA(VLOOKUP(VALUE(D15),'Entry List'!$A$2:$E$88,4,FALSE),"Not Entered")) -> Alex Bowman | Q15: 12 | R15: 88 | S15: Hendrick Motorsports | T15: 662 | U15: 379 | V15: 1 | W15: 25 | X15: 3 | Y15: 7 | Z15: 4
A16: 13 | C16: =Owner_Points[[#This Row],[Column3]] -> Wood Brothers Racing | D16: 21 | E16: 637 | F16: 404 | G16: 0 | H16: 25 | I16: 2 | J16: 7 | K16: 1 | L16: =IF(D16="00",_xlfn.IFNA(VLOOKUP(D16,'Entry List'!$A$2:$E$88,4,FALSE),"Not Entered"),_xlfn.IFNA(VLOOKUP(VALUE(D16),'Entry List'!$A$2:$E$88,4,FALSE),"Not Entered")) -> Matt DiBenedetto | Q16: 13 | R16: 21 | S16: Wood Brothers Racing | T16: 637 | U16: 404 | V16: 0 | W16: 25 | X16: 2 | Y16: 7 | Z16: 1
A17: 14 | C17: =Owner_Points[[#This Row],[Column3]] -> Hendrick Motorsports | D17: 24 | E17: 632 | F17: 409 | G17: 0 | H17: 25 | I17: 1 | J17: 8 | K17: 2 | L17: =IF(D17="00",_xlfn.IFNA(VLOOKUP(D17,'Entry List'!$A$2:$E$88,4,FALSE),"Not Entered"),_xlfn.IFNA(VLOOKUP(VALUE(D17),'Entry List'!$A$2:$E$88,4,FALSE),"Not Entered")) -> William Byron | Q17: 14 | R17: 24 | S17: Hendrick Motorsports | T17: 632 | U17: 409 | V17: 0 | W17: 25 | X17: 1 | Y17: 8 | Z17: 2
A18: 15 | C18: =Owner_Points[[#This Row],[Column3]] -> Hendrick Motorsports | D18: 48 | E18: 629 | F18: 412 | G18: 0 | H18: 25 | I18: 4 | J18: 9 | K18: 5 | L18: =IF(D18="00",_xlfn.IFNA(VLOOKUP(D18,'Entry List'!$A$2:$E$88,4,FALSE),"Not Entered"),_xlfn.IFNA(VLOOKUP(VALUE(D18),'Entry List'!$A$2:$E$88,4,FALSE),"Not Entered")) -> Jimmie Johnson | Q18: 15 | R18: 48 | S18: Hendrick Motorsports | T18: 629 | U18: 412 | V18: 0 | W18: 25 | X18: 4 | Y18: 9 | Z18: 5
A19: 16 | C19: =Owner_Points[[#This Row],[Column3]] -> Richard Childress Racing | D19: 3 | E19: 591 | F19: 450 | G19: 1 | H19: 25 | I19: 2 | J19: 8 | K19: 3 | L19: =IF(D19="00",_xlfn.IFNA(VLOOKUP(D19,'Entry List'!$A$2:$E$88,4,FALSE),"Not Entered"),_xlfn.IFNA(VLOOKUP(VALUE(D19),'Entry List'!$A$2:$E$88,4,FALSE),"Not Entered")) -> Austin Dillon | Q19: 16 | R19: 3 | S19: Richard Childress Racing | T19: 591 | U19: 450 | V19: 1 | W19: 25 | X19: 2 | Y19: 8 | Z19: 3
A20: 17 | C20: =Owner_Points[[#This Row],[Column3]] -> Joe Gibbs Racing | D20: 20 | E20: 582 | F20: 459 | G20: 0 | H20: 25 | I20: 5 | J20: 8 | K20: 2 | L20: =IF(D20="00",_xlfn.IFNA(VLOOKUP(D20,'Entry List'!$A$2:$E$88,4,FALSE),"Not Entered"),_xlfn.IFNA(VLOOKUP(VALUE(D20),'Entry List'!$A$2:$E$88,4,FALSE),"Not Entered")) -> Erik Jones | Q20: 17 | R20: 20 | S20: Joe Gibbs Racing | T20: 582 | U20: 459 | V20: 0 | W20: 25 | X20: 5 | Y20: 8 | Z20: 2
A21: 18 | C21: =Owner_Points[[#This Row],[Column3]] -> Richard Childress Racing | D21: 8 | E21: 563 | F21: 478 | G21: 0 | H21: 25 | I21: 2 | J21: 7 | K21: 3 | L21: =IF(D21="00",_xlfn.IFNA(VLOOKUP(D21,'Entry List'!$A$2:$E$88,4,FALSE),"Not Entered"),_xlfn.IFNA(VLOOKUP(VALUE(D21),'Entry List'!$A$2:$E$88,4,FALSE),"Not Entered")) -> Tyler Reddick (R) | Q21: 18 | R21: 8 | S21: Richard Childress Racing | T21: 563 | U21: 478 | V21: 0 | W21: 25 | X21: 2 | Y21: 7 | Z21: 3
A22: 19 | C22: =Owner_Points[[#This Row],[Column3]] -> Chip Ganassi Racing | D22: 42 | E22: 484 | F22: 557 | G22: 0 | H22: 25 | I22: 2 | J22: 5 | K22: 2 | L22: =IF(D22="00",_xlfn.IFNA(VLOOKUP(D22,'Entry List'!$A$2:$E$88,4,FALSE),"Not Entered"),_xlfn.IFNA(VLOOKUP(VALUE(D22),'Entry List'!$A$2:$E$88,4,FALSE),"Not Entered")) -> Matt Kenseth | Q22: 19 | R22: 42 | S22: Chip Ganassi Racing | T22: 484 | U22: 557 | V22: 0 | W22: 25 | X22: 2 | Y22: 5 | Z22: 2
A23: 20 | C23: =Owner_Points[[#This Row],[Column3]] -> Stewart-Haas Racing | D23: 41 | E23: 469 | F23: 572 | G23: 1 | H23: 25 | I23: 2 | J23: 6 | K23: 4 | L23: =IF(D23="00",_xlfn.IFNA(VLOOKUP(D23,'Entry List'!$A$2:$E$88,4,FALSE),"Not Entered"),_xlfn.IFNA(VLOOKUP(VALUE(D23),'Entry List'!$A$2:$E$88,4,FALSE),"Not Entered")) -> Cole Custer (R) | Q23: 20 | R23: 41 | S23: Stewart-Haas Racing | T23: 469 | U23: 572 | V23: 1 | W23: 25 | X23: 2 | Y23: 6 | Z23: 4
A24: 21 | C24: =Owner_Points[[#This Row],[Column3]] -> Leavine Family Racing | D24: 95 | E24: 456 | F24: 585 | G24: 0 | H24: 25 | I24: 1 | J24: 5 | K24: 3 | L24: =IF(D24="00",_xlfn.IFNA(VLOOKUP(D24,'Entry List'!$A$2:$E$88,4,FALSE),"Not Entered"),_xlfn.IFNA(VLOOKUP(VALUE(D24),'Entry List'!$A$2:$E$88,4,FALSE),"Not Entered")) -> Christopher Bell (R) | Q24: 21 | R24: 95 | S24: Leavine Family Racing | T24: 456 | U24: 585 | V24: 0 | W24: 25 | X24: 1 | Y24: 5 | Z24: 3
A25: 22 | C25: =Owner_Points[[#This Row],[Column3]] -> Roush Fenway Racing | D25: 17 | E25: 449 | F25: 592 | G25: 0 | H25: 25 | I25: 2 | J25: 5 | K25: 2 | L25: =IF(D25="00",_xlfn.IFNA(VLOOKUP(D25,'Entry List'!$A$2:$E$88,4,FALSE),"Not Entered"),_xlfn.IFNA(VLOOKUP(VALUE(D25),'Entry List'!$A$2:$E$88,4,FALSE),"Not Entered")) -> Chris Buescher | Q25: 22 | R25: 17 | S25: Roush Fenway Racing | T25: 449 | U25: 592 | V25: 0 | W25: 25 | X25: 2 | Y25: 5 | Z25: 2
A26: 23 | C26: =Owner_Points[[#This Row],[Column3]] -> Richard Petty Motorsports | D26: 43 | E26: 438 | F26: 603 | G26: 0 | H26: 25 | I26: 0 | J26: 4 | K26: 3 | L26: =IF(D26="00",_xlfn.IFNA(VLOOKUP(D26,'Entry List'!$A$2:$E$88,4,FALSE),"Not Entered"),_xlfn.IFNA(VLOOKUP(VALUE(D26),'Entry List'!$A$2:$E$88,4,FALSE),"Not Entered")) -> Bubba Wallace | Q26: 23 | R26: 43 | S26: Richard Petty Motorsports | T26: 438 | U26: 603 | V26: 0 | W26: 25 | X26: 0 | Y26: 4 | Z26: 3
A27: 24 | C27: =Owner_Points[[#This Row],[Column3]] -> Roush Fenway Racing | D27: 6 | E27: 432 | F27: 609 | G27: 0 | H27: 25 | I27: 0 | J27: 1 | K27: 1 | L27: =IF(D27="00",_xlfn.IFNA(VLOOKUP(D27,'Entry List'!$A$2:$E$88,4,FALSE),"Not Entered"),_xlfn.IFNA(VLOOKUP(VALUE(D27),'Entry List'!$A$2:$E$88,4,FALSE),"Not Entered")) -> Ryan Newman | Q27: 24 | R27: 6 | S27: Roush Fenway Racing | T27: 432 | U27: 609 | V27: 0 | W27: 25 | X27: 0 | Y27: 1 | Z27: 1
A28: 25 | C28: =Owner_Points[[#This Row],[Column3]] -> JTG Daugherty Racing | D28: 47 | E28: 426 | F28: 615 | G28: 0 | H28: 25 | I28: 3 | J28: 4 | K28: 5 | L28: =IF(D28="00",_xlfn.IFNA(VLOOKUP(D28,'Entry List'!$A$2:$E$88,4,FALSE),"Not Entered"),_xlfn.IFNA(VLOOKUP(VALUE(D28),'Entry List'!$A$2:$E$88,4,FALSE),"Not Entered")) -> Ricky Stenhouse Jr. | Q28: 25 | R28: 47 | S28: JTG Daugherty Racing | T28: 426 | U28: 615 | V28: 0 | W28: 25 | X28: 3 | Y28: 4 | Z28: 5
A29: 26 | C29: =Owner_Points[[#This Row],[Column3]] -> Front Row Motorsports | D29: 34 | E29: 426 | F29: 615 | G29: 0 | H29: 25 | I29: 0 | J29: 3 | K29: 1 | L29: =IF(D29="00",_xlfn.IFNA(VLOOKUP(D29,'Entry List'!$A$2:$E$88,4,FALSE),"Not Entered"),_xlfn.IFNA(VLOOKUP(VALUE(D29),'Entry List'!$A$2:$E$88,4,FALSE),"Not Entered")) -> Michael McDowell | Q29: 26 | R29: 34 | S29: Front Row Motorsports | T29: 426 | U29: 615 | V29: 0 | W29: 25 | X29: 0 | Y29: 3 | Z29: 1
A30: 27 | C30: =Owner_Points[[#This Row],[Column3]] -> Front Row Motorsports | D30: 38 | E30: 373 | F30: 668 | G30: 0 | H30: 25 | I30: 0 | J30: 2 | K30: 4 | L30: =IF(D30="00",_xlfn.IFNA(VLOOKUP(D30,'Entry List'!$A$2:$E$88,4,FALSE),"Not Entered"),_xlfn.IFNA(VLOOKUP(VALUE(D30),'Entry List'!$A$2:$E$88,4,FALSE),"Not Entered")) -> John Hunter Nemechek (R) | Q30: 27 | R30: 38 | S30: Front Row Motorsports | T30: 373 | U30: 668 | V30: 0 | W30: 25 | X30: 0 | Y30: 2 | Z30: 4
A31: 28 | C31: =Owner_Points[[#This Row],[Column3]] -> Germain Racing | D31: 13 | E31: 369 | F31: 672 | G31: 0 | H31: 25 | I31: 0 | J31: 1 | K31: 3 | L31: =IF(D31="00",_xlfn.IFNA(VLOOKUP(D31,'Entry List'!$A$2:$E$88,4,FALSE),"Not Entered"),_xlfn.IFNA(VLOOKUP(VALUE(D31),'Entry List'!$A$2:$E$88,4,FALSE),"Not Entered")) -> Ty Dillon | Q31: 28 | R31: 13 | S31: Germain Racing | T31: 369 | U31: 672 | V31: 0 | W31: 25 | X31: 0 | Y31: 1 | Z31: 3
A32: 29 | C32: =Owner_Points[[#This Row],[Column3]] -> Go FAS Racing | D32: 32 | E32: 309 | F32: 732 | G32: 0 | H32: 25 | I32: 0 | J32: 1 | K32: 2 | L32: =IF(D32="00",_xlfn.IFNA(VLOOKUP(D32,'Entry List'!$A$2:$E$88,4,FALSE),"Not Entered"),_xlfn.IFNA(VLOOKUP(VALUE(D32),'Entry List'!$A$2:$E$88,4,FALSE),"Not Entered")) -> Corey LaJoie | Q32: 29 | R32: 32 | S32: Go FAS Racing | T32: 309 | U32: 732 | V32: 0 | W32: 25 | X32: 0 | Y32: 1 | Z32: 2
A33: 30 | C33: =Owner_Points[[#This Row],[Column3]] -> JTG Daugherty Racing | D33: 37 | E33: 292 | F33: 749 | G33: 0 | H33: 25 | I33: 0 | J33: 0 | K33: 7 | L33: =IF(D33="00",_xlfn.IFNA(VLOOKUP(D33,'Entry List'!$A$2:$E$88,4,FALSE),"Not Entered"),_xlfn.IFNA(VLOOKUP(VALUE(D33),'Entry List'!$A$2:$E$88,4,FALSE),"Not Entered")) -> Ryan Preece | Q33: 30 | R33: 37 | S33: JTG Daugherty Racing | T33: 292 | U33: 749 | V33: 0 | W33: 25 | X33: 0 | Y33: 0 | Z33: 7
A34: 31 | C34: =Owner_Points[[#This Row],[Column3]] -> Gaunt Brothers Racing | D34: 96 | E34: 264 | F34: 777 | G34: 0 | H34: 24 | I34: 0 | J34: 0 | K34: 0 | L34: =IF(D34="00",_xlfn.IFNA(VLOOKUP(D34,'Entry List'!$A$2:$E$88,4,FALSE),"Not Entered"),_xlfn.IFNA(VLOOKUP(VALUE(D34),'Entry List'!$A$2:$E$88,4,FALSE),"Not Entered")) -> Daniel Suárez | Q34: 31 | R34: 96 | S34: Gaunt Brothers Racing | T34: 264 | U34: 777 | V34: 0 | W34: 24 | X34: 0 | Y34: 0 | Z34: 0
A35: 32 | C35: =Owner_Points[[#This Row],[Column3]] -> Rick Ware Racing | D35: 127 | E35: 180 | F35: 861 | G35: 0 | H35: 25 | I35: 0 | J35: 0 | K35: 4 | L35: =IF(D35="00",_xlfn.IFNA(VLOOKUP(D35,'Entry List'!$A$2:$E$88,4,FALSE),"Not Entered"),_xlfn.IFNA(VLOOKUP(VALUE(D35),'Entry List'!$A$2:$E$88,4,FALSE),"Not Entered")) -> J. J. Yeley (i) | Q35: 32 | R35: 127 | S35: Rick Ware Racing | T35: 180 | U35: 861 | V35: 0 | W35: 25 | X35: 0 | Y35: 0 | Z35: 4
A36: 33 | C36: =Owner_Points[[#This Row],[Column3]] -> Spire Motorsports | D36: 77 | E36: 172 | F36: 869 | G36: 0 | H36: 25 | I36: 0 | J36: 0 | K36: 2 | L36: =IF(D36="00",_xlfn.IFNA(VLOOKUP(D36,'Entry List'!$A$2:$E$88,4,FALSE),"Not Entered"),_xlfn.IFNA(VLOOKUP(VALUE(D36),'Entry List'!$A$2:$E$88,4,FALSE),"Not Entered")) -> Ross Chastain (i) | Q36: 33 | R36: 77 | S36: Spire Motorsports | T36: 172 | U36: 869 | V36: 0 | W36: 25 | X36: 0 | Y36: 0 | Z36: 2
A37: 34 | C37: =Owner_Points[[#This Row],[Column3]] -> Premium Motorsports | D37: 15 | E37: 171 | F37: 870 | G37: 0 | H37: 25 | I37: 0 | J37: 0 | K37: 7 | L37: =IF(D37="00",_xlfn.IFNA(VLOOKUP(D37,'Entry List'!$A$2:$E$88,4,FALSE),"Not Entered"),_xlfn.IFNA(VLOOKUP(VALUE(D37),'Entry List'!$A$2:$E$88,4,FALSE),"Not Entered")) -> Brennan Poole (R) | Q37: 34 | R37: 15 | S37: Premium Motorsports | T37: 171 | U37: 870 | V37: 0 | W37: 25 | X37: 0 | Y37: 0 | Z37: 7
A38: 35 | C38: =Owner_Points[[#This Row],[Column3]] -> Rick Ware Racing | D38: 53 | E38: 137 | F38: 904 | G38: 0 | H38: 25 | I38: 1 | J38: 1 | K38: 5 | L38: =IF(D38="00",_xlfn.IFNA(VLOOKUP(D38,'Entry List'!$A$2:$E$88,4,FALSE),"Not Entered"),_xlfn.IFNA(VLOOKUP(VALUE(D38),'Entry List'!$A$2:$E$88,4,FALSE),"Not Entered")) -> Joey Gase (i) | Q38: 35 | R38: 53 | S38: Rick Ware Racing | T38: 137 | U38: 904 | V38: 0 | W38: 25 | X38: 1 | Y38: 1 | Z38: 5
A39: 36 | C39: =Owner_Points[[#This Row],[Column3]] -> StarCom Racing | D39: 00 | E39: 132 | F39: 909 | G39: 0 | H39: 25 | I39: 0 | J39: 0 | K39: 5 | L39: =IF(D39="00",_xlfn.IFNA(VLOOKUP(D39,'Entry List'!$A$2:$E$88,4,FALSE),"Not Entered"),_xlfn.IFNA(VLOOKUP(VALUE(D39),'Entry List'!$A$2:$E$88,4,FALSE),"Not Entered")) -> Quin Houff (R) | Q39: 36 | R39: 00 | S39: StarCom Racing | T39: 132 | U39: 909 | V39: 0 | W39: 25 | X39: 0 | Y39: 0 | Z39: 5
A40: 37 | C40: =Owner_Points[[#This Row],[Column3]] -> Motorsports Business Management | D40: 66 | E40: 98 | F40: 943 | G40: 0 | H40: 25 | I40: 0 | J40: 0 | K40: 9 | L40: =IF(D40="00",_xlfn.IFNA(VLOOKUP(D40,'Entry List'!$A$2:$E$88,4,FALSE),"Not Entered"),_xlfn.IFNA(VLOOKUP(VALUE(D40),'Entry List'!$A$2:$E$88,4,FALSE),"Not Entered")) -> Timmy Hill (i) | Q40: 37 | R40: 66 | S40: Motorsports Business Management | T40: 98 | U40: 943 | V40: 0 | W40: 25 | X40: 0 | Y40: 0 | Z40: 9
A41: 38 | C41: =Owner_Points[[#This Row],[Column3]] -> Petty Ware Racing | D41: 51 | E41: 84 | F41: 957 | G41: 0 | H41: 25 | I41: 0 | J41: 0 | K41: 5 | L41: =IF(D41="00",_xlfn.IFNA(VLOOKUP(D41,'Entry List'!$A$2:$E$88,4,FALSE),"Not Entered"),_xlfn.IFNA(VLOOKUP(VALUE(D41),'Entry List'!$A$2:$E$88,4,FALSE),"Not Entered")) -> James Davison | Q41: 38 | R41: 51 | S41: Petty Ware Racing | T41: 84 | U41: 957 | V41: 0 | W41: 25 | X41: 0 | Y41: 0 | Z41: 5
A42: 39 | C42: =Owner_Points[[#This Row],[Column3]] -> Tommy Baldwin Racing | D42: 107 | E42: 62 | F42: 979 | G42: 0 | H42: 15 | I42: 0 | J42: 0 | K42: 5 | L42: =IF(D42="00",_xlfn.IFNA(VLOOKUP(D42,'Entry List'!$A$2:$E$88,4,FALSE),"Not Entered"),_xlfn.IFNA(VLOOKUP(VALUE(D42),'Entry List'!$A$2:$E$88,4,FALSE),"Not Entered")) -> Josh Bilicki (i) | Q42: 39 | R42: 107 | S42: Tommy Baldwin Racing | T42: 62 | U42: 979 | V42: 0 | W42: 15 | X42: 0 | Y42: 0 | Z42: 5
A43: 40 | C43: =Owner_Points[[#This Row],[Column3]] -> Petty Ware Racing | D43: 78 | E43: 51 | F43: 990 | G43: 0 | H43: 14 | I43: 0 | J43: 0 | K43: 6 | L43: =IF(D43="00",_xlfn.IFNA(VLOOKUP(D43,'Entry List'!$A$2:$E$88,4,FALSE),"Not Entered"),_xlfn.IFNA(VLOOKUP(VALUE(D43),'Entry List'!$A$2:$E$88,4,FALSE),"Not Entered")) -> Not Entered | Q43: 40 | R43: 78 | S43: Petty Ware Racing | T43: 51 | U43: 990 | V43: 0 | W43: 14 | X43: 0 | Y43: 0 | Z43: 6
A44: 41 | C44: =Owner_Points[[#This Row],[Column3]] -> Beard Motorsports | D44: 62 | E44: 47 | F44: 994 | G44: 0 | H44: 3 | I44: 0 | J44: 1 | K44: 1 | L44: =IF(D44="00",_xlfn.IFNA(VLOOKUP(D44,'Entry List'!$A$2:$E$88,4,FALSE),"Not Entered"),_xlfn.IFNA(VLOOKUP(VALUE(D44),'Entry List'!$A$2:$E$88,4,FALSE),"Not Entered")) -> Brendan Gaughan | Q44: 41 | R44: 62 | S44: Beard Motorsports | T44: 47 | U44: 994 | V44: 0 | W44: 3 | X44: 0 | Y44: 1 | Z44: 1
A45: 42 | C45: =Owner_Points[[#This Row],[Column3]] -> Kaulig Racing | D45: 116 | E45: 24 | F45: 1017 | G45: 0 | H45: 1 | I45: 0 | J45: 0 | K45: 0 | L45: =IF(D45="00",_xlfn.IFNA(VLOOKUP(D45,'Entry List'!$A$2:$E$88,4,FALSE),"Not Entered"),_xlfn.IFNA(VLOOKUP(VALUE(D45),'Entry List'!$A$2:$E$88,4,FALSE),"Not Entered")) -> Not Entered | Q45: 42 | R45: 116 | S45: Kaulig Racing | T45: 24 | U45: 1017 | V45: 0 | W45: 1 | X45: 0 | Y45: 0 | Z45: 0
A46: 43 | C46: =Owner_Points[[#This Row],[Column3]] -> Premium Motorsports | D46: 27 | E46: 6 | F46: 1035 | G46: 0 | H46: 1 | I46: 0 | J46: 0 | K46: 1 | L46: =IF(D46="00",_xlfn.IFNA(VLOOKUP(D46,'Entry List'!$A$2:$E$88,4,FALSE),"Not Entered"),_xlfn.IFNA(VLOOKUP(VALUE(D46),'Entry List'!$A$2:$E$88,4,FALSE),"Not Entered")) -> Not Entered | Q46: 43 | R46: 27 | S46: Premium Motorsports | T46: 6 | U46: 1035 | V46: 0 | W46: 1 | X46: 0 | Y46: 0 | Z46: 1
A47: 44 | C47: =Owner_Points[[#This Row],[Column3]] -> Rick Ware Racing | D47: 54 | E47: 0 | F47: 1041 | G47: 0 | H47: 0 | I47: 0 | J47: 0 | K47: 0 | L47: =IF(D47="00",_xlfn.IFNA(VLOOKUP(D47,'Entry List'!$A$2:$E$88,4,FALSE),"Not Entered"),_xlfn.IFNA(VLOOKUP(VALUE(D47),'Entry List'!$A$2:$E$88,4,FALSE),"Not Entered")) -> Not Entered | Q47: 44 | R47: 54 | S47: Rick Ware Racing | T47: 0 | U47: 1041 | V47: 0 | W47: 0 | X47: 0 | Y47: 0 | Z47: 0
A48: 45 | C48: =Owner_Points[[#This Row],[Column3]] -> Motorsports Business Management | D48: =IF(R48="00",R48,VALUE(R48)) -> 49 | E48: =T48 -> 0 | F48: 1041 | G48: 0 | H48: 0 | I48: 0 | J48: 0 | K48: 0 | L48: =IF(D48="00",_xlfn.IFNA(VLOOKUP(D48,'Entry List'!$A$2:$E$88,4,FALSE),"Not Entered"),_xlfn.IFNA(VLOOKUP(VALUE(D48),'Entry List'!$A$2:$E$88,4,FALSE),"Not Entered")) -> Not Entered | Q48: 45 | R48: 49 | S48: Motorsports Business Management | T48: 0 | U48: 1041 | V48: 0 | W48: 0 | X48: 0 | Y48: 0 | Z48: 0
A71: 00 | B71: =IF(ISNA(MATCH(A71,'Current Owner Standings'!$D$4:$D$70,0)),99,MATCH(A71,'Current Owner Standings'!$D$4:$D$70,0)) -> 36 | D71: =IF(ISNA(MATCH("#"&C71,'Current Owner Standings'!$C$2:$C$170,0)),99,MATCH("#"&C71,'Current Owner Standings'!$C$2:$C$170,0)) -> 99
A72: 01 | B72: =IF(ISNA(MATCH(A72,'Current Owner Standings'!$D$4:$D$70,0)),99,MATCH(A72,'Current Owner Standings'!$D$4:$D$70,0)) -> 99
A73: 02 | B73: =IF(ISNA(MATCH(A73,'Current Owner Standings'!$D$4:$D$70,0)),99,MATCH(A73,'Current Owner Standings'!$D$4:$D$70,0)) -> 99
A74: 03 | B74: =IF(ISNA(MATCH(A74,'Current Owner Standings'!$D$4:$D$70,0)),99,MATCH(A74,'Current Owner Standings'!$D$4:$D$70,0)) -> 99
A75: 04 | B75: =IF(ISNA(MATCH(A75,'Current Owner Standings'!$D$4:$D$70,0)),99,MATCH(A75,'Current Owner Standings'!$D$4:$D$70,0)) -> 99
A76: 05 | B76: =IF(ISNA(MATCH(A76,'Current Owner Standings'!$D$4:$D$70,0)),99,MATCH(A76,'Current Owner Standings'!$D$4:$D$70,0)) -> 99
A77: 06 | B77: =IF(ISNA(MATCH(A77,'Current Owner Standings'!$D$4:$D$70,0)),99,MATCH(A77,'Current Owner Standings'!$D$4:$D$70,0)) -> 99
A78: 07 | B78: =IF(ISNA(MATCH(A78,'Current Owner Standings'!$D$4:$D$70,0)),99,MATCH(A78,'Current Owner Standings'!$D$4:$D$70,0)) -> 99
A79: 08 | B79: =IF(ISNA(MATCH(A79,'Current Owner Standings'!$D$4:$D$70,0)),99,MATCH(A79,'Current Owner Standings'!$D$4:$D$70,0)) -> 99
A80: 09 | B80: =IF(ISNA(MATCH(A80,'Current Owner Standings'!$D$4:$D$70,0)),99,MATCH(A80,'Current Owner Standings'!$D$4:$D$70,0)) -> 99
A81: 1 | B81: =IF(ISNA(MATCH(A81,'Current Owner Standings'!$D$4:$D$70,0)),99,MATCH(A81,'Current Owner Standings'!$D$4:$D$70,0)) -> 10
A82: 2 | B82: =IF(ISNA(MATCH(A82,'Current Owner Standings'!$D$4:$D$70,0)),99,MATCH(A82,'Current Owner Standings'!$D$4:$D$70,0)) -> 3
A83: 3 | B83: =IF(ISNA(MATCH(A83,'Current Owner Standings'!$D$4:$D$70,0)),99,MATCH(A83,'Current Owner Standings'!$D$4:$D$70,0)) -> 16
A84: 4 | B84: =IF(ISNA(MATCH(A84,'Current Owner Standings'!$D$4:$D$70,0)),99,MATCH(A84,'Current Owner Standings'!$D$4:$D$70,0)) -> 1
A85: 5 | B85: =IF(ISNA(MATCH(A85,'Current Owner Standings'!$D$4:$D$70,0)),99,MATCH(A85,'Current Owner Standings'!$D$4:$D$70,0)) -> 99
A86: 6 | B86: =IF(ISNA(MATCH(A86,'Current Owner Standings'!$D$4:$D$70,0)),99,MATCH(A86,'Current Owner Standings'!$D$4:$D$70,0)) -> 24
A87: 7 | B87: =IF(ISNA(MATCH(A87,'Current Owner Standings'!$D$4:$D$70,0)),99,MATCH(A87,'Current Owner Standings'!$D$4:$D$70,0)) -> 99
A88: 8 | B88: =IF(ISNA(MATCH(A88,'Current Owner Standings'!$D$4:$D$70,0)),99,MATCH(A88,'Current Owner Standings'!$D$4:$D$70,0)) -> 18
A89: 9 | B89: =IF(ISNA(MATCH(A89,'Current Owner Standings'!$D$4:$D$70,0)),99,MATCH(A89,'Current Owner Standings'!$D$4:$D$70,0)) -> 7
A90: 10 | B90: =IF(ISNA(MATCH(A90,'Current Owner Standings'!$D$4:$D$70,0)),99,MATCH(A90,'Current Owner Standings'!$D$4:$D$70,0)) -> 8
A91: 11 | B91: =IF(ISNA(MATCH(A91,'Current Owner Standings'!$D$4:$D$70,0)),99,MATCH(A91,'Current Owner Standings'!$D$4:$D$70,0)) -> 2
A92: 12 | B92: =IF(ISNA(MATCH(A92,'Current Owner Standings'!$D$4:$D$70,0)),99,MATCH(A92,'Current Owner Standings'!$D$4:$D$70,0)) -> 6
A93: 13 | B93: =IF(ISNA(MATCH(A93,'Current Owner Standings'!$D$4:$D$70,0)),99,MATCH(A93,'Current Owner Standings'!$D$4:$D$70,0)) -> 28
A94: 14 | B94: =IF(ISNA(MATCH(A94,'Current Owner Standings'!$D$4:$D$70,0)),99,MATCH(A94,'Current Owner Standings'!$D$4:$D$70,0)) -> 11
A95: 15 | B95: =IF(ISNA(MATCH(A95,'Current Owner Standings'!$D$4:$D$70,0)),99,MATCH(A95,'Current Owner Standings'!$D$4:$D$70,0)) -> 34
A96: 16 | B96: =IF(ISNA(MATCH(A96,'Current Owner Standings'!$D$4:$D$70,0)),99,MATCH(A96,'Current Owner Standings'!$D$4:$D$70,0)) -> 99
A97: 17 | B97: =IF(ISNA(MATCH(A97,'Current Owner Standings'!$D$4:$D$70,0)),99,MATCH(A97,'Current Owner Standings'!$D$4:$D$70,0)) -> 22
A98: 18 | B98: =IF(ISNA(MATCH(A98,'Current Owner Standings'!$D$4:$D$70,0)),99,MATCH(A98,'Current Owner Standings'!$D$4:$D$70,0)) -> 9
A99: 19 | B99: =IF(ISNA(MATCH(A99,'Current Owner Standings'!$D$4:$D$70,0)),99,MATCH(A99,'Current Owner Standings'!$D$4:$D$70,0)) -> 4
A100: 20 | B100: =IF(ISNA(MATCH(A100,'Current Owner Standings'!$D$4:$D$70,0)),99,MATCH(A100,'Current Owner Standings'!$D$4:$D$70,0)) -> 17
A101: 21 | B101: =IF(ISNA(MATCH(A101,'Current Owner Standings'!$D$4:$D$70,0)),99,MATCH(A101,'Current Owner Standings'!$D$4:$D$70,0)) -> 13
A102: 22 | B102: =IF(ISNA(MATCH(A102,'Current Owner Standings'!$D$4:$D$70,0)),99,MATCH(A102,'Current Owner Standings'!$D$4:$D$70,0)) -> 5
A103: 23 | B103: =IF(ISNA(MATCH(A103,'Current Owner Standings'!$D$4:$D$70,0)),99,MATCH(A103,'Current Owner Standings'!$D$4:$D$70,0)) -> 99
A104: 24 | B104: =IF(ISNA(MATCH(A104,'Current Owner Standings'!$D$4:$D$70,0)),99,MATCH(A104,'Current Owner Standings'!$D$4:$D$70,0)) -> 14
A105: 25 | B105: =IF(ISNA(MATCH(A105,'Current Owner Standings'!$D$4:$D$70,0)),99,MATCH(A105,'Current Owner Standings'!$D$4:$D$70,0)) -> 99
A106: 26 | B106: =IF(ISNA(MATCH(A106,'Current Owner Standings'!$D$4:$D$70,0)),99,MATCH(A106,'Current Owner Standings'!$D$4:$D$70,0)) -> 99
A107: 27 | B107: =IF(ISNA(MATCH(A107,'Current Owner Standings'!$D$4:$D$70,0)),99,MATCH(A107,'Current Owner Standings'!$D$4:$D$70,0)) -> 43
A108: 28 | B108: =IF(ISNA(MATCH(A108,'Current Owner Standings'!$D$4:$D$70,0)),99,MATCH(A108,'Current Owner Standings'!$D$4:$D$70,0)) -> 99
A109: 29 | B109: =IF(ISNA(MATCH(A109,'Current Owner Standings'!$D$4:$D$70,0)),99,MATCH(A109,'Current Owner Standings'!$D$4:$D$70,0)) -> 99
A110: 30 | B110: =IF(ISNA(MATCH(A110,'Current Owner Standings'!$D$4:$D$70,0)),99,MATCH(A110,'Current Owner Standings'!$D$4:$D$70,0)) -> 99
A111: 31 | B111: =IF(ISNA(MATCH(A111,'Current Owner Standings'!$D$4:$D$70,0)),99,MATCH(A111,'Current Owner Standings'!$D$4:$D$70,0)) -> 99
A112: 32 | B112: =IF(ISNA(MATCH(A112,'Current Owner Standings'!$D$4:$D$70,0)),99,MATCH(A112,'Current Owner Standings'!$D$4:$D$70,0)) -> 29
A113: 33 | B113: =IF(ISNA(MATCH(A113,'Current Owner Standings'!$D$4:$D$70,0)),99,MATCH(A113,'Current Owner Standings'!$D$4:$D$70,0)) -> 99
A114: 34 | B114: =IF(ISNA(MATCH(A114,'Current Owner Standings'!$D$4:$D$70,0)),99,MATCH(A114,'Current Owner Standings'!$D$4:$D$70,0)) -> 26
A115: 35 | B115: =IF(ISNA(MATCH(A115,'Current Owner Standings'!$D$4:$D$70,0)),99,MATCH(A115,'Current Owner Standings'!$D$4:$D$70,0)) -> 99
A116: 36 | B116: =IF(ISNA(MATCH(A116,'Current Owner Standings'!$D$4:$D$70,0)),99,MATCH(A116,'Current Owner Standings'!$D$4:$D$70,0)) -> 99
A117: 37 | B117: =IF(ISNA(MATCH(A117,'Current Owner Standings'!$D$4:$D$70,0)),99,MATCH(A117,'Current Owner Standings'!$D$4:$D$70,0)) -> 30
A118: 38 | B118: =IF(ISNA(MATCH(A118,'Current Owner Standings'!$D$4:$D$70,0)),99,MATCH(A118,'Current Owner Standings'!$D$4:$D$70,0)) -> 27
A119: 39 | B119: =IF(ISNA(MATCH(A119,'Current Owner Standings'!$D$4:$D$70,0)),99,MATCH(A119,'Current Owner Standings'!$D$4:$D$70,0)) -> 99
A120: 40 | B120: =IF(ISNA(MATCH(A120,'Current Owner Standings'!$D$4:$D$70,0)),99,MATCH(A120,'Current Owner Standings'!$D$4:$D$70,0)) -> 99
A121: 41 | B121: =IF(ISNA(MATCH(A121,'Current Owner Standings'!$D$4:$D$70,0)),99,MATCH(A121,'Current Owner Standings'!$D$4:$D$70,0)) -> 20
A122: 42 | B122: =IF(ISNA(MATCH(A122,'Current Owner Standings'!$D$4:$D$70,0)),99,MATCH(A122,'Current Owner Standings'!$D$4:$D$70,0)) -> 19
A123: 43 | B123: =IF(ISNA(MATCH(A123,'Current Owner Standings'!$D$4:$D$70,0)),99,MATCH(A123,'Current Owner Standings'!$D$4:$D$70,0)) -> 23
A124: 44 | B124: =IF(ISNA(MATCH(A124,'Current Owner Standings'!$D$4:$D$70,0)),99,MATCH(A124,'Current Owner Standings'!$D$4:$D$70,0)) -> 99
A125: 45 | B125: =IF(ISNA(MATCH(A125,'Current Owner Standings'!$D$4:$D$70,0)),99,MATCH(A125,'Current Owner Standings'!$D$4:$D$70,0)) -> 99
A126: 46 | B126: =IF(ISNA(MATCH(A126,'Current Owner Standings'!$D$4:$D$70,0)),99,MATCH(A126,'Current Owner Standings'!$D$4:$D$70,0)) -> 99
A127: 47 | B127: =IF(ISNA(MATCH(A127,'Current Owner Standings'!$D$4:$D$70,0)),99,MATCH(A127,'Current Owner Standings'!$D$4:$D$70,0)) -> 25
A128: 48 | B128: =IF(ISNA(MATCH(A128,'Current Owner Standings'!$D$4:$D$70,0)),99,MATCH(A128,'Current Owner Standings'!$D$4:$D$70,0)) -> 15
A129: 49 | B129: =IF(ISNA(MATCH(A129,'Current Owner Standings'!$D$4:$D$70,0)),99,MATCH(A129,'Current Owner Standings'!$D$4:$D$70,0)) -> 45
A130: 50 | B130: =IF(ISNA(MATCH(A130,'Current Owner Standings'!$D$4:$D$70,0)),99,MATCH(A130,'Current Owner Standings'!$D$4:$D$70,0)) -> 99
A131: 51 | B131: =IF(ISNA(MATCH(A131,'Current Owner Standings'!$D$4:$D$70,0)),99,MATCH(A131,'Current Owner Standings'!$D$4:$D$70,0)) -> 38
A132: 52 | B132: =IF(ISNA(MATCH(A132,'Current Owner Standings'!$D$4:$D$70,0)),99,MATCH(A132,'Current Owner Standings'!$D$4:$D$70,0)) -> 99
A133: 53 | B133: =IF(ISNA(MATCH(A133,'Current Owner Standings'!$D$4:$D$70,0)),99,MATCH(A133,'Current Owner Standings'!$D$4:$D$70,0)) -> 35
A134: 54 | B134: =IF(ISNA(MATCH(A134,'Current Owner Standings'!$D$4:$D$70,0)),99,MATCH(A134,'Current Owner Standings'!$D$4:$D$70,0)) -> 44
A135: 55 | B135: =IF(ISNA(MATCH(A135,'Current Owner Standings'!$D$4:$D$70,0)),99,MATCH(A135,'Current Owner Standings'!$D$4:$D$70,0)) -> 99
A136: 56 | B136: =IF(ISNA(MATCH(A136,'Current Owner Standings'!$D$4:$D$70,0)),99,MATCH(A136,'Current Owner Standings'!$D$4:$D$70,0)) -> 99
A137: 57 | B137: =IF(ISNA(MATCH(A137,'Current Owner Standings'!$D$4:$D$70,0)),99,MATCH(A137,'Current Owner Standings'!$D$4:$D$70,0)) -> 99
A138: 58 | B138: =IF(ISNA(MATCH(A138,'Current Owner Standings'!$D$4:$D$70,0)),99,MATCH(A138,'Current Owner Standings'!$D$4:$D$70,0)) -> 99
A139: 59 | B139: =IF(ISNA(MATCH(A139,'Current Owner Standings'!$D$4:$D$70,0)),99,MATCH(A139,'Current Owner Standings'!$D$4:$D$70,0)) -> 99
A140: 60 | B140: =IF(ISNA(MATCH(A140,'Current Owner Standings'!$D$4:$D$70,0)),99,MATCH(A140,'Current Owner Standings'!$D$4:$D$70,0)) -> 99
A141: 61 | B141: =IF(ISNA(MATCH(A141,'Current Owner Standings'!$D$4:$D$70,0)),99,MATCH(A141,'Current Owner Standings'!$D$4:$D$70,0)) -> 99
A142: 62 | B142: =IF(ISNA(MATCH(A142,'Current Owner Standings'!$D$4:$D$70,0)),99,MATCH(A142,'Current Owner Standings'!$D$4:$D$70,0)) -> 41
A143: 63 | B143: =IF(ISNA(MATCH(A143,'Current Owner Standings'!$D$4:$D$70,0)),99,MATCH(A143,'Current Owner Standings'!$D$4:$D$70,0)) -> 99
A144: 64 | B144: =IF(ISNA(MATCH(A144,'Current Owner Standings'!$D$4:$D$70,0)),99,MATCH(A144,'Current Owner Standings'!$D$4:$D$70,0)) -> 99
A145: 65 | B145: =IF(ISNA(MATCH(A145,'Current Owner Standings'!$D$4:$D$70,0)),99,MATCH(A145,'Current Owner Standings'!$D$4:$D$70,0)) -> 99
A146: 66 | B146: =IF(ISNA(MATCH(A146,'Current Owner Standings'!$D$4:$D$70,0)),99,MATCH(A146,'Current Owner Standings'!$D$4:$D$70,0)) -> 37
A147: 67 | B147: =IF(ISNA(MATCH(A147,'Current Owner Standings'!$D$4:$D$70,0)),99,MATCH(A147,'Current Owner Standings'!$D$4:$D$70,0)) -> 99
A148: 68 | B148: =IF(ISNA(MATCH(A148,'Current Owner Standings'!$D$4:$D$70,0)),99,MATCH(A148,'Current Owner Standings'!$D$4:$D$70,0)) -> 99
A149: 69 | B149: =IF(ISNA(MATCH(A149,'Current Owner Standings'!$D$4:$D$70,0)),99,MATCH(A149,'Current Owner Standings'!$D$4:$D$70,0)) -> 99
A150: 70 | B150: =IF(ISNA(MATCH(A150,'Current Owner Standings'!$D$4:$D$70,0)),99,MATCH(A150,'Current Owner Standings'!$D$4:$D$70,0)) -> 99
A151: 71 | B151: =IF(ISNA(MATCH(A151,'Current Owner Standings'!$D$4:$D$70,0)),99,MATCH(A151,'Current Owner Standings'!$D$4:$D$70,0)) -> 99
A152: 72 | B152: =IF(ISNA(MATCH(A152,'Current Owner Standings'!$D$4:$D$70,0)),99,MATCH(A152,'Current Owner Standings'!$D$4:$D$70,0)) -> 99
A153: 73 | B153: =IF(ISNA(MATCH(A153,'Current Owner Standings'!$D$4:$D$70,0)),99,MATCH(A153,'Current Owner Standings'!$D$4:$D$70,0)) -> 99
A154: 74 | B154: =IF(ISNA(MATCH(A154,'Current Owner Standings'!$D$4:$D$70,0)),99,MATCH(A154,'Current Owner Standings'!$D$4:$D$70,0)) -> 99
A155: 75 | B155: =IF(ISNA(MATCH(A155,'Current Owner Standings'!$D$4:$D$70,0)),99,MATCH(A155,'Current Owner Standings'!$D$4:$D$70,0)) -> 99
A156: 76 | B156: =IF(ISNA(MATCH(A156,'Current Owner Standings'!$D$4:$D$70,0)),99,MATCH(A156,'Current Owner Standings'!$D$4:$D$70,0)) -> 99
A157: 77 | B157: =IF(ISNA(MATCH(A157,'Current Owner Standings'!$D$4:$D$70,0)),99,MATCH(A157,'Current Owner Standings'!$D$4:$D$70,0)) -> 33
A158: 78 | B158: =IF(ISNA(MATCH(A158,'Current Owner Standings'!$D$4:$D$70,0)),99,MATCH(A158,'Current Owner Standings'!$D$4:$D$70,0)) -> 40
A159: 79 | B159: =IF(ISNA(MATCH(A159,'Current Owner Standings'!$D$4:$D$70,0)),99,MATCH(A159,'Current Owner Standings'!$D$4:$D$70,0)) -> 99
A160: 80 | B160: =IF(ISNA(MATCH(A160,'Current Owner Standings'!$D$4:$D$70,0)),99,MATCH(A160,'Current Owner Standings'!$D$4:$D$70,0)) -> 99
A161: 81 | B161: =IF(ISNA(MATCH(A161,'Current Owner Standings'!$D$4:$D$70,0)),99,MATCH(A161,'Current Owner Standings'!$D$4:$D$70,0)) -> 99
A162: 82 | B162: =IF(ISNA(MATCH(A162,'Current Owner Standings'!$D$4:$D$70,0)),99,MATCH(A162,'Current Owner Standings'!$D$4:$D$70,0)) -> 99
A163: 83 | B163: =IF(ISNA(MATCH(A163,'Current Owner Standings'!$D$4:$D$70,0)),99,MATCH(A163,'Current Owner Standings'!$D$4:$D$70,0)) -> 99
A164: 84 | B164: =IF(ISNA(MATCH(A164,'Current Owner Standings'!$D$4:$D$70,0)),99,MATCH(A164,'Current Owner Standings'!$D$4:$D$70,0)) -> 99
A165: 85 | B165: =IF(ISNA(MATCH(A165,'Current Owner Standings'!$D$4:$D$70,0)),99,MATCH(A165,'Current Owner Standings'!$D$4:$D$70,0)) -> 99
A166: 86 | B166: =IF(ISNA(MATCH(A166,'Current Owner Standings'!$D$4:$D$70,0)),99,MATCH(A166,'Current Owner Standings'!$D$4:$D$70,0)) -> 99
A167: 87 | B167: =IF(ISNA(MATCH(A167,'Current Owner Standings'!$D$4:$D$70,0)),99,MATCH(A167,'Current Owner Standings'!$D$4:$D$70,0)) -> 99
A168: 88 | B168: =IF(ISNA(MATCH(A168,'Current Owner Standings'!$D$4:$D$70,0)),99,MATCH(A168,'Current Owner Standings'!$D$4:$D$70,0)) -> 12
A169: 89 | B169: =IF(ISNA(MATCH(A169,'Current Owner Standings'!$D$4:$D$70,0)),99,MATCH(A169,'Current Owner Standings'!$D$4:$D$70,0)) -> 99
A170: 90 | B170: =IF(ISNA(MATCH(A170,'Current Owner Standings'!$D$4:$D$70,0)),99,MATCH(A170,'Current Owner Standings'!$D$4:$D$70,0)) -> 99
A171: 91 | B171: =IF(ISNA(MATCH(A171,'Current Owner Standings'!$D$4:$D$70,0)),99,MATCH(A171,'Current Owner Standings'!$D$4:$D$70,0)) -> 99
A172: 92 | B172: =IF(ISNA(MATCH(A172,'Current Owner Standings'!$D$4:$D$70,0)),99,MATCH(A172,'Current Owner Standings'!$D$4:$D$70,0)) -> 99
A173: 93 | B173: =IF(ISNA(MATCH(A173,'Current Owner Standings'!$D$4:$D$70,0)),99,MATCH(A173,'Current Owner Standings'!$D$4:$D$70,0)) -> 99
A174: 94 | B174: =IF(ISNA(MATCH(A174,'Current Owner Standings'!$D$4:$D$70,0)),99,MATCH(A174,'Current Owner Standings'!$D$4:$D$70,0)) -> 99
A175: 95 | B175: =IF(ISNA(MATCH(A175,'Current Owner Standings'!$D$4:$D$70,0)),99,MATCH(A175,'Current Owner Standings'!$D$4:$D$70,0)) -> 21
A176: 96 | B176: =IF(ISNA(MATCH(A176,'Current Owner Standings'!$D$4:$D$70,0)),99,MATCH(A176,'Current Owner Standings'!$D$4:$D$70,0)) -> 31
A177: 97 | B177: =IF(ISNA(MATCH(A177,'Current Owner Standings'!$D$4:$D$70,0)),99,MATCH(A177,'Current Owner Standings'!$D$4:$D$70,0)) -> 99
A178: 98 | B178: =IF(ISNA(MATCH(A178,'Current Owner Standings'!$D$4:$D$70,0)),99,MATCH(A178,'Current Owner Standings'!$D$4:$D$70,0)) -> 99
A179: 99 | B179: =IF(ISNA(MATCH(A179,'Current Owner Standings'!$D$4:$D$70,0)),99,MATCH(A179,'Current Owner Standings'!$D$4:$D$70,0)) -> 99
A180: 100 | B180: =IF(ISNA(MATCH(A180,'Current Owner Standings'!$D$4:$D$70,0)),99,MATCH(A180,'Current Owner Standings'!$D$4:$D$70,0)) -> 99
A181: 101 | B181: =IF(ISNA(MATCH(A181,'Current Owner Standings'!$D$4:$D$70,0)),99,MATCH(A181,'Current Owner Standings'!$D$4:$D$70,0)) -> 99
A182: 102 | B182: =IF(ISNA(MATCH(A182,'Current Owner Standings'!$D$4:$D$70,0)),99,MATCH(A182,'Current Owner Standings'!$D$4:$D$70,0)) -> 99
A183: 103 | B183: =IF(ISNA(MATCH(A183,'Current Owner Standings'!$D$4:$D$70,0)),99,MATCH(A183,'Current Owner Standings'!$D$4:$D$70,0)) -> 99
A184: 104 | B184: =IF(ISNA(MATCH(A184,'Current Owner Standings'!$D$4:$D$70,0)),99,MATCH(A184,'Current Owner Standings'!$D$4:$D$70,0)) -> 99
A185: 105 | B185: =IF(ISNA(MATCH(A185,'Current Owner Standings'!$D$4:$D$70,0)),99,MATCH(A185,'Current Owner Standings'!$D$4:$D$70,0)) -> 99
A186: 106 | B186: =IF(ISNA(MATCH(A186,'Current Owner Standings'!$D$4:$D$70,0)),99,MATCH(A186,'Current Owner Standings'!$D$4:$D$70,0)) -> 99
A187: 107 | B187: =IF(ISNA(MATCH(A187,'Current Owner Standings'!$D$4:$D$70,0)),99,MATCH(A187,'Current Owner Standings'!$D$4:$D$70,0)) -> 39
A188: 108 | B188: =IF(ISNA(MATCH(A188,'Current Owner Standings'!$D$4:$D$70,0)),99,MATCH(A188,'Current Owner Standings'!$D$4:$D$70,0)) -> 99
A189: 109 | B189: =IF(ISNA(MATCH(A189,'Current Owner Standings'!$D$4:$D$70,0)),99,MATCH(A189,'Current Owner Standings'!$D$4:$D$70,0)) -> 99
A190: 110 | B190: =IF(ISNA(MATCH(A190,'Current Owner Standings'!$D$4:$D$70,0)),99,MATCH(A190,'Current Owner Standings'!$D$4:$D$70,0)) -> 99
A191: 111 | B191: =IF(ISNA(MATCH(A191,'Current Owner Standings'!$D$4:$D$70,0)),99,MATCH(A191,'Current Owner Standings'!$D$4:$D$70,0)) -> 99
A192: 112 | B192: =IF(ISNA(MATCH(A192,'Current Owner Standings'!$D$4:$D$70,0)),99,MATCH(A192,'Current Owner Standings'!$D$4:$D$70,0)) -> 99
A193: 113 | B193: =IF(ISNA(MATCH(A193,'Current Owner Standings'!$D$4:$D$70,0)),99,MATCH(A193,'Current Owner Standings'!$D$4:$D$70,0)) -> 99
A194: 114 | B194: =IF(ISNA(MATCH(A194,'Current Owner Standings'!$D$4:$D$70,0)),99,MATCH(A194,'Current Owner Standings'!$D$4:$D$70,0)) -> 99
A195: 115 | B195: =IF(ISNA(MATCH(A195,'Current Owner Standings'!$D$4:$D$70,0)),99,MATCH(A195,'Current Owner Standings'!$D$4:$D$70,0)) -> 99
A196: 116 | B196: =IF(ISNA(MATCH(A196,'Current Owner Standings'!$D$4:$D$70,0)),99,MATCH(A196,'Current Owner Standings'!$D$4:$D$70,0)) -> 42
A197: 117 | B197: =IF(ISNA(MATCH(A197,'Current Owner Standings'!$D$4:$D$70,0)),99,MATCH(A197,'Current Owner Standings'!$D$4:$D$70,0)) -> 99
A198: 118 | B198: =IF(ISNA(MATCH(A198,'Current Owner Standings'!$D$4:$D$70,0)),99,MATCH(A198,'Current Owner Standings'!$D$4:$D$70,0)) -> 99
A199: 119 | B199: =IF(ISNA(MATCH(A199,'Current Owner Standings'!$D$4:$D$70,0)),99,MATCH(A199,'Current Owner Standings'!$D$4:$D$70,0)) -> 99
A200: 120 | B200: =IF(ISNA(MATCH(A200,'Current Owner Standings'!$D$4:$D$70,0)),99,MATCH(A200,'Current Owner Standings'!$D$4:$D$70,0)) -> 99
A201: 121 | B201: =IF(ISNA(MATCH(A201,'Current Owner Standings'!$D$4:$D$70,0)),99,MATCH(A201,'Current Owner Standings'!$D$4:$D$70,0)) -> 99
A202: 122 | B202: =IF(ISNA(MATCH(A202,'Current Owner Standings'!$D$4:$D$70,0)),99,MATCH(A202,'Current Owner Standings'!$D$4:$D$70,0)) -> 99
A203: 123 | B203: =IF(ISNA(MATCH(A203,'Current Owner Standings'!$D$4:$D$70,0)),99,MATCH(A203,'Current Owner Standings'!$D$4:$D$70,0)) -> 99
A204: 124 | B204: =IF(ISNA(MATCH(A204,'Current Owner Standings'!$D$4:$D$70,0)),99,MATCH(A204,'Current Owner Standings'!$D$4:$D$70,0)) -> 99
A205: 125 | B205: =IF(ISNA(MATCH(A205,'Current Owner Standings'!$D$4:$D$70,0)),99,MATCH(A205,'Current Owner Standings'!$D$4:$D$70,0)) -> 99
A206: 126 | B206: =IF(ISNA(MATCH(A206,'Current Owner Standings'!$D$4:$D$70,0)),99,MATCH(A206,'Current Owner Standings'!$D$4:$D$70,0)) -> 99
A207: 127 | B207: =IF(ISNA(MATCH(A207,'Current Owner Standings'!$D$4:$D$70,0)),99,MATCH(A207,'Current Owner Standings'!$D$4:$D$70,0)) -> 32
A208: 128 | B208: =IF(ISNA(MATCH(A208,'Current Owner Standings'!$D$4:$D$70,0)),99,MATCH(A208,'Current Owner Standings'!$D$4:$D$70,0)) -> 99
A209: 129 | B209: =IF(ISNA(MATCH(A209,'Current Owner Standings'!$D$4:$D$70,0)),99,MATCH(A209,'Current Owner Standings'!$D$4:$D$70,0)) -> 99
A210: 130 | B210: =IF(ISNA(MATCH(A210,'Current Owner Standings'!$D$4:$D$70,0)),99,MATCH(A210,'Current Owner Standings'!$D$4:$D$70,0)) -> 99
A211: 131 | B211: =IF(ISNA(MATCH(A211,'Current Owner Standings'!$D$4:$D$70,0)),99,MATCH(A211,'Current Owner Standings'!$D$4:$D$70,0)) -> 99
A212: 132 | B212: =IF(ISNA(MATCH(A212,'Current Owner Standings'!$D$4:$D$70,0)),99,MATCH(A212,'Current Owner Standings'!$D$4:$D$70,0)) -> 99
A213: 133 | B213: =IF(ISNA(MATCH(A213,'Current Owner Standings'!$D$4:$D$70,0)),99,MATCH(A213,'Current Owner Standings'!$D$4:$D$70,0)) -> 99
A214: 134 | B214: =IF(ISNA(MATCH(A214,'Current Owner Standings'!$D$4:$D$70,0)),99,MATCH(A214,'Current Owner Standings'!$D$4:$D$70,0)) -> 99
A215: 135 | B215: =IF(ISNA(MATCH(A215,'Current Owner Standings'!$D$4:$D$70,0)),99,MATCH(A215,'Current Owner Standings'!$D$4:$D$70,0)) -> 99
A216: 136 | B216: =IF(ISNA(MATCH(A216,'Current Owner Standings'!$D$4:$D$70,0)),99,MATCH(A216,'Current Owner Standings'!$D$4:$D$70,0)) -> 99
A217: 137 | B217: =IF(ISNA(MATCH(A217,'Current Owner Standings'!$D$4:$D$70,0)),99,MATCH(A217,'Current Owner Standings'!$D$4:$D$70,0)) -> 99
A218: 138 | B218: =IF(ISNA(MATCH(A218,'Current Owner Standings'!$D$4:$D$70,0)),99,MATCH(A218,'Current Owner Standings'!$D$4:$D$70,0)) -> 99
A219: 139 | B219: =IF(ISNA(MATCH(A219,'Current Owner Standings'!$D$4:$D$70,0)),99,MATCH(A219,'Current Owner Standings'!$D$4:$D$70,0)) -> 99
A220: 140 | B220: =IF(ISNA(MATCH(A220,'Current Owner Standings'!$D$4:$D$70,0)),99,MATCH(A220,'Current Owner Standings'!$D$4:$D$70,0)) -> 99
A221: 141 | B221: =IF(ISNA(MATCH(A221,'Current Owner Standings'!$D$4:$D$70,0)),99,MATCH(A221,'Current Owner Standings'!$D$4:$D$70,0)) -> 99
A222: 142 | B222: =IF(ISNA(MATCH(A222,'Current Owner Standings'!$D$4:$D$70,0)),99,MATCH(A222,'Current Owner Standings'!$D$4:$D$70,0)) -> 99
A223: 143 | B223: =IF(ISNA(MATCH(A223,'Current Owner Standings'!$D$4:$D$70,0)),99,MATCH(A223,'Current Owner Standings'!$D$4:$D$70,0)) -> 99
... 257 more rows

Sheet Cars & Results
G1: =VLOOKUP(G$5,Schedule!$A$7:$G$43,2,FALSE) -> 2020-02-16 | I1: =VLOOKUP(I$5,Schedule!$A$7:$G$43,2,FALSE) -> 2020-02-23 | K1: =VLOOKUP(K$5,Schedule!$A$7:$G$43,2,FALSE) -> 2020-03-01 | M1: =VLOOKUP(M$5,Schedule!$A$7:$G$43,2,FALSE) -> 2020-03-08 | O1: =VLOOKUP(O$5,Schedule!$A$7:$G$43,2,FALSE) -> 2020-05-17 | Q1: =VLOOKUP(Q$5,Schedule!$A$7:$G$43,2,FALSE) -> 2020-05-20 | S1: =VLOOKUP(S$5,Schedule!$A$7:$G$43,2,FALSE) -> 2020-05-24 | U1: =VLOOKUP(U$5,Schedule!$A$7:$G$43,2,FALSE) -> 2020-05-27 | W1: =VLOOKUP(W$5,Schedule!$A$7:$G$43,2,FALSE) -> 2020-05-31 | Y1: =VLOOKUP(Y$5,Schedule!$A$7:$G$43,2,FALSE) -> 2020-06-07 | AA1: =VLOOKUP(AA$5,Schedule!$A$7:$G$43,2,FALSE) -> 2020-06-10 | AC1: =VLOOKUP(AC$5,Schedule!$A$7:$G$43,2,FALSE) -> 2020-06-14 | AE1: =VLOOKUP(AE$5,Schedule!$A$7:$G$43,2,FALSE) -> 2020-06-21 | AG1: =VLOOKUP(AG$5,Schedule!$A$7:$G$43,2,FALSE) -> 2020-06-27 | AI1: =VLOOKUP(AI$5,Schedule!$A$7:$G$43,2,FALSE) -> 2020-06-28 | AK1: =VLOOKUP(AK$5,Schedule!$A$7:$G$43,2,FALSE) -> 2020-07-05 | AM1: =VLOOKUP(AM$5,Schedule!$A$7:$G$43,2,FALSE) -> 2020-07-12 | AO1: =VLOOKUP(AO$5,Schedule!$A$7:$G$43,2,FALSE) -> 2020-07-19 | AQ1: =VLOOKUP(AQ$5,Schedule!$A$7:$G$43,2,FALSE) -> 2020-07-23 | AS1: =VLOOKUP(AS$5,Schedule!$A$7:$G$43,2,FALSE) -> 2020-08-02 | AU1: =VLOOKUP(AU$5,Schedule!$A$7:$G$43,2,FALSE) -> 2020-08-08 | AW1: =VLOOKUP(AW$5,Schedule!$A$7:$G$43,2,FALSE) -> 2020-08-09 | AY1: =VLOOKUP(AY$5,Schedule!$A$7:$G$43,2,FALSE) -> 2020-08-16 | BA1: =VLOOKUP(BA$5,Schedule!$A$7:$G$43,2,FALSE) -> 2020-08-22 | BC1: =VLOOKUP(BC$5,Schedule!$A$7:$G$43,2,FALSE) -> 2020-08-23 | BE1: =VLOOKUP(BE$5,Schedule!$A$7:$G$43,2,FALSE) -> 2020-08-29 | BG1: =VLOOKUP(BG$5,Schedule!$A$7:$G$43,2,FALSE) -> 2020-09-06 | BI1: =VLOOKUP(BI$5,Schedule!$A$7:$G$43,2,FALSE) -> 2020-09-12 | BK1: =VLOOKUP(BK$5,Schedule!$A$7:$G$43,2,FALSE) -> 2020-09-19 | BM1: =VLOOKUP(BM$5,Schedule!$A$7:$G$43,2,FALSE) -> 2020-09-27 | BO1: =VLOOKUP(BO$5,Schedule!$A$7:$G$43,2,FALSE) -> 2020-10-04 | BQ1: =VLOOKUP(BQ$5,Schedule!$A$7:$G$43,2,FALSE) -> 2020-10-11 | BS1: =VLOOKUP(BS$5,Schedule!$A$7:$G$43,2,FALSE) -> 2020-10-18 | BU1: =VLOOKUP(BU$5,Schedule!$A$7:$G$43,2,FALSE) -> 2020-10-25 | BW1: =VLOOKUP(BW$5,Schedule!$A$7:$G$43,2,FALSE) -> 2020-11-01 | BY1: =VLOOKUP(BY$5,Schedule!$A$7:$G$43,2,FALSE) -> 2020-11-08
G2: =VLOOKUP(G$5,Schedule!$A$7:$G$43,3,FALSE) -> Daytona 500 | I2: =VLOOKUP(I$5,Schedule!$A$7:$G$43,3,FALSE) -> Pennzoil 400 presented by Jiffy Lube | K2: =VLOOKUP(K$5,Schedule!$A$7:$G$43,3,FALSE) -> Auto Club 400 | M2: =VLOOKUP(M$5,Schedule!$A$7:$G$43,3,FALSE) -> FanShield 500 | O2: =VLOOKUP(O$5,Schedule!$A$7:$G$43,3,FALSE) -> Darlington Raceway 400 | Q2: =VLOOKUP(Q$5,Schedule!$A$7:$G$43,3,FALSE) -> Darlington Raceway 500KM | S2: =VLOOKUP(S$5,Schedule!$A$7:$G$43,3,FALSE) -> Coca-Cola 600 | U2: =VLOOKUP(U$5,Schedule!$A$7:$G$43,3,FALSE) -> Charlotte Motor Speedway 500KM | W2: =VLOOKUP(W$5,Schedule!$A$7:$G$43,3,FALSE) -> Bristol 500 | Y2: =VLOOKUP(Y$5,Schedule!$A$7:$G$43,3,FALSE) -> Atlanta 500 | AA2: =VLOOKUP(AA$5,Schedule!$A$7:$G$43,3,FALSE) -> Martinsville 500 | AC2: =VLOOKUP(AC$5,Schedule!$A$7:$G$43,3,FALSE) -> Homestead 400 | AE2: =VLOOKUP(AE$5,Schedule!$A$7:$G$43,3,FALSE) -> Talladega 500 | AG2: =VLOOKUP(AG$5,Schedule!$A$7:$G$43,3,FALSE) -> Kids Free 325 | AI2: =VLOOKUP(AI$5,Schedule!$A$7:$G$43,3,FALSE) -> Worry-Free Weather Guarantee 350 | AK2: =VLOOKUP(AK$5,Schedule!$A$7:$G$43,3,FALSE) -> Big Machine Vodka 400 at the Brickyard | AM2: =VLOOKUP(AM$5,Schedule!$A$7:$G$43,3,FALSE) -> Quaker State 400 | AO2: =VLOOKUP(AO$5,Schedule!$A$7:$G$43,3,FALSE) -> O'Reilly Auto Parts 500 | AQ2: =VLOOKUP(AQ$5,Schedule!$A$7:$G$43,3,FALSE) -> Super Start Batteries 400 | AS2: =VLOOKUP(AS$5,Schedule!$A$7:$G$43,3,FALSE) -> Foxwoods Resort Casino 301 | AU2: =VLOOKUP(AU$5,Schedule!$A$7:$G$43,3,FALSE) -> FireKeepers Casino 500 | AW2: =VLOOKUP(AW$5,Schedule!$A$7:$G$43,3,FALSE) -> Consumers Energy 500 | AY2: =VLOOKUP(AY$5,Schedule!$A$7:$G$43,3,FALSE) -> Go Bowling at The Glen | BA2: =VLOOKUP(BA$5,Schedule!$A$7:$G$43,3,FALSE) -> Drydene 311 (Sat) | BC2: =VLOOKUP(BC$5,Schedule!$A$7:$G$43,3,FALSE) -> Drydene 311 (Sun) | BE2: =VLOOKUP(BE$5,Schedule!$A$7:$G$43,3,FALSE) -> Coke Zero Sugar 400 | BG2: =VLOOKUP(BG$5,Schedule!$A$7:$G$43,3,FALSE) -> Cokk Out Southern 500 | BI2: =VLOOKUP(BI$5,Schedule!$A$7:$G$43,3,FALSE) -> Federated Auto Parts 400 | BK2: =VLOOKUP(BK$5,Schedule!$A$7:$G$43,3,FALSE) -> Bass Pro Shops NRA Night Race | BM2: =VLOOKUP(BM$5,Schedule!$A$7:$G$43,3,FALSE) -> South Point 400 | BO2: =VLOOKUP(BO$5,Schedule!$A$7:$G$43,3,FALSE) -> YellaWood 500 | BQ2: =VLOOKUP(BQ$5,Schedule!$A$7:$G$43,3,FALSE) -> Bank of America Roval 400 | BS2: =VLOOKUP(BS$5,Schedule!$A$7:$G$43,3,FALSE) -> Hollywood Casino 400 | BU2: =VLOOKUP(BU$5,Schedule!$A$7:$G$43,3,FALSE) -> AAA Texas 500 | BW2: =VLOOKUP(BW$5,Schedule!$A$7:$G$43,3,FALSE) -> Xfinity 500 | BY2: =VLOOKUP(BY$5,Schedule!$A$7:$G$43,3,FALSE) -> Bluegreen Vacations 500
G3: =VLOOKUP(G$5,Schedule!$A$7:$G$43,4,FALSE) -> Daytona International Speedway, Daytona Beach, Florida | I3: =VLOOKUP(I$5,Schedule!$A$7:$G$43,4,FALSE) -> Las Vegas Motor Speedway, Las Vegas, Nevada | K3: =VLOOKUP(K$5,Schedule!$A$7:$G$43,4,FALSE) -> Auto Club Speedway, Fontana, California | M3: =VLOOKUP(M$5,Schedule!$A$7:$G$43,4,FALSE) -> Phoenix Raceway, Avondale, Arizona | O3: =VLOOKUP(O$5,Schedule!$A$7:$G$43,4,FALSE) -> Darlington Raceway, Darlington, South Carolina | Q3: =VLOOKUP(Q$5,Schedule!$A$7:$G$43,4,FALSE) -> Darlington Raceway, Darlington, South Carolina | S3: =VLOOKUP(S$5,Schedule!$A$7:$G$43,4,FALSE) -> Charlotte Motor Speedway, Concord, North Carolina | U3: =VLOOKUP(U$5,Schedule!$A$7:$G$43,4,FALSE) -> Charlotte Motor Speedway, Concord, North Carolina | W3: =VLOOKUP(W$5,Schedule!$A$7:$G$43,4,FALSE) -> Bristol Motor Speedway, Bristol, Tennessee | Y3: =VLOOKUP(Y$5,Schedule!$A$7:$G$43,4,FALSE) -> Atlanta Motor Speedway, Hampton, GA | AA3: =VLOOKUP(AA$5,Schedule!$A$7:$G$43,4,FALSE) -> Martinsville Speedway, Ridgeway, Virginia | AC3: =VLOOKUP(AC$5,Schedule!$A$7:$G$43,4,FALSE) -> Miami Homestead Speedway, Homestead, Florida | AE3: =VLOOKUP(AE$5,Schedule!$A$7:$G$43,4,FALSE) -> Talladega Superspeedway, Lincoln, Alabama | AG3: =VLOOKUP(AG$5,Schedule!$A$7:$G$43,4,FALSE) -> Pocono Raceway, Long Pond, Pennsylvania | AI3: =VLOOKUP(AI$5,Schedule!$A$7:$G$43,4,FALSE) -> Pocono Raceway, Long Pond, Pennsylvania | AK3: =VLOOKUP(AK$5,Schedule!$A$7:$G$43,4,FALSE) -> Indianapolis Motor Speedway, Speedway, Indiana | AM3: =VLOOKUP(AM$5,Schedule!$A$7:$G$43,4,FALSE) -> Kentucky Speedway, Sparta, Kentucky | AO3: =VLOOKUP(AO$5,Schedule!$A$7:$G$43,4,FALSE) -> Texas Motor Speedway, Fort Worth, Texas | AQ3: =VLOOKUP(AQ$5,Schedule!$A$7:$G$43,4,FALSE) -> Kansas Speedway, Kansas City, Kansas | AS3: =VLOOKUP(AS$5,Schedule!$A$7:$G$43,4,FALSE) -> New Hampshire Motor Speedway, Loudon, New Hampshire | AU3: =VLOOKUP(AU$5,Schedule!$A$7:$G$43,4,FALSE) -> Michigan International Speedway, Brooklyn, Michigan | AW3: =VLOOKUP(AW$5,Schedule!$A$7:$G$43,4,FALSE) -> Michigan International Speedway, Brooklyn, Michigan | AY3: =VLOOKUP(AY$5,Schedule!$A$7:$G$43,4,FALSE) -> Daytona International Speedway, Daytona Beach, Florida | BA3: =VLOOKUP(BA$5,Schedule!$A$7:$G$43,4,FALSE) -> Dover International Speedway, Dover, Delaware | BC3: =VLOOKUP(BC$5,Schedule!$A$7:$G$43,4,FALSE) -> Dover International Speedway, Dover, Delaware | BE3: =VLOOKUP(BE$5,Schedule!$A$7:$G$43,4,FALSE) -> Daytona International Speedway, Daytona Beach, Florida | BG3: =VLOOKUP(BG$5,Schedule!$A$7:$G$43,4,FALSE) -> Darlington Raceway, Darlington, South Carolina | BI3: =VLOOKUP(BI$5,Schedule!$A$7:$G$43,4,FALSE) -> Richmond Raceway, Richmond, Virginia | BK3: =VLOOKUP(BK$5,Schedule!$A$7:$G$43,4,FALSE) -> Bristol Motor Speedway, Bristol, Tennessee | BM3: =VLOOKUP(BM$5,Schedule!$A$7:$G$43,4,FALSE) -> Las Vegas Motor Speedway, Las Vegas, Nevada | BO3: =VLOOKUP(BO$5,Schedule!$A$7:$G$43,4,FALSE) -> Talladega Superspeedway, Lincoln, Alabama | BQ3: =VLOOKUP(BQ$5,Schedule!$A$7:$G$43,4,FALSE) -> Charlotte Motor Speedway, Concord, North Carolina, (Roval) | BS3: =VLOOKUP(BS$5,Schedule!$A$7:$G$43,4,FALSE) -> Kansas Speedway, Kansas City, Kansas | BU3: =VLOOKUP(BU$5,Schedule!$A$7:$G$43,4,FALSE) -> Texas Motor Speedway, Fort Worth, Texas | BW3: =VLOOKUP(BW$5,Schedule!$A$7:$G$43,4,FALSE) -> Martinsville Speedway, Ridgeway, Virginia | BY3: =VLOOKUP(BY$5,Schedule!$A$7:$G$43,4,FALSE) -> Phoenix Raceway, Avondale, Arizona
G4: =VLOOKUP(G$5,Schedule!$A$7:$G$43,7,FALSE) -> 1900-04-29 | I4: =VLOOKUP(I$5,Schedule!$A$7:$G$43,7,FALSE) -> 1900-06-18 | K4: =VLOOKUP(K$5,Schedule!$A$7:$G$43,7,FALSE) -> 1900-06-08 | M4: =VLOOKUP(M$5,Schedule!$A$7:$G$43,7,FALSE) -> 1900-05-29 | O4: =VLOOKUP(O$5,Schedule!$A$7:$G$43,7,FALSE) -> 1900-04-29 | Q4: =VLOOKUP(Q$5,Schedule!$A$7:$G$43,7,FALSE) -> 1900-09-16 | S4: =VLOOKUP(S$5,Schedule!$A$7:$G$43,7,FALSE) -> 1900-06-18 | U4: =VLOOKUP(U$5,Schedule!$A$7:$G$43,7,FALSE) -> 1900-09-06 | W4: =VLOOKUP(W$5,Schedule!$A$7:$G$43,7,FALSE) -> 1900-07-18 | Y4: =VLOOKUP(Y$5,Schedule!$A$7:$G$43,7,FALSE) -> 1900-04-19 | AA4: =VLOOKUP(AA$5,Schedule!$A$7:$G$43,7,FALSE) -> 1900-08-27 | AC4: =VLOOKUP(AC$5,Schedule!$A$7:$G$43,7,FALSE) -> 1900-06-08 | AE4: =VLOOKUP(AE$5,Schedule!$A$7:$G$43,7,FALSE) -> 1900-07-18 | AG4: =VLOOKUP(AG$5,Schedule!$A$7:$G$43,7,FALSE) -> 1900-04-09 | AI4: =VLOOKUP(AI$5,Schedule!$A$7:$G$43,7,FALSE) -> 1900-04-29 | AK4: =VLOOKUP(AK$5,Schedule!$A$7:$G$43,7,FALSE) -> 1900-02-19 | AM4: =VLOOKUP(AM$5,Schedule!$A$7:$G$43,7,FALSE) -> 1900-06-08 | AO4: =VLOOKUP(AO$5,Schedule!$A$7:$G$43,7,FALSE) -> 1900-03-20 | AQ4: =VLOOKUP(AQ$5,Schedule!$A$7:$G$43,7,FALSE) -> 1900-06-08 | AS4: =VLOOKUP(AS$5,Schedule!$A$7:$G$43,7,FALSE) -> 1900-05-29 | AU4: =VLOOKUP(AU$5,Schedule!$A$7:$G$43,7,FALSE) -> 1900-05-29 | AW4: =VLOOKUP(AW$5,Schedule!$A$7:$G$43,7,FALSE) -> 1900-05-29 | AY4: =VLOOKUP(AY$5,Schedule!$A$7:$G$43,7,FALSE) -> 1900-05-29 | BA4: =VLOOKUP(BA$5,Schedule!$A$7:$G$43,7,FALSE) -> 1900-05-29 | BC4: =VLOOKUP(BC$5,Schedule!$A$7:$G$43,7,FALSE) -> 1900-05-29 | BE4: =VLOOKUP(BE$5,Schedule!$A$7:$G$43,7,FALSE) -> 1900-05-29 | BG4: =VLOOKUP(BG$5,Schedule!$A$7:$G$43,7,FALSE) -> 1900-05-29 | BI4: =VLOOKUP(BI$5,Schedule!$A$7:$G$43,7,FALSE) -> 1900-05-29 | BK4: =VLOOKUP(BK$5,Schedule!$A$7:$G$43,7,FALSE) -> 1900-05-29 | BM4: =VLOOKUP(BM$5,Schedule!$A$7:$G$43,7,FALSE) -> 1900-05-29 | BO4: =VLOOKUP(BO$5,Schedule!$A$7:$G$43,7,FALSE) -> 1900-05-29 | BQ4: =VLOOKUP(BQ$5,Schedule!$A$7:$G$43,7,FALSE) -> 1900-05-29 | BS4: =VLOOKUP(BS$5,Schedule!$A$7:$G$43,7,FALSE) -> 1900-05-29 | BU4: =VLOOKUP(BU$5,Schedule!$A$7:$G$43,7,FALSE) -> 1900-05-29 | BW4: =VLOOKUP(BW$5,Schedule!$A$7:$G$43,7,FALSE) -> 1900-05-29 | BY4: =VLOOKUP(BY$5,Schedule!$A$7:$G$43,7,FALSE) -> 1900-06-08
B5: 4 | C5: 6 | D5: 5 | E5: 5 | F5: 4 | G5: 1 | I5: 2 | K5: 3 | M5: 4 | O5: 5 | Q5: 6 | S5: 7 | U5: 8 | W5: 9 | Y5: 10 | AA5: 11 | AC5: 12 | AE5: 13 | AG5: 14 | AI5: 15 | AK5: 16 | AM5: 17 | AO5: 18 | AQ5: 19 | AS5: 20 | AU5: 21 | AW5: 22 | AY5: 23 | BA5: 24 | BC5: 25 | BE5: 26 | BG5: 27 | BI5: 28 | BK5: 29 | BM5: 30 | BO5: 31 | BQ5: 32 | BS5: 33 | BU5: 34 | BW5: 35 | BY5: 36
A6: Car | B6: Driver | C6: Make | D6: Sponsor | E6: Team | F6: Home Town | G6: Finishing Position | H6: Points | I6: Finishing Position | J6: Points | K6: Finishing Position | L6: Lead (Y/N) | M6: Finishing Position | N6: Lead (Y/N) | O6: Finishing Position | P6: Lead (Y/N) | Q6: Finishing Position | R6: Lead (Y/N) | S6: Finishing Position | T6: Lead (Y/N) | U6: Finishing Position | V6: Lead (Y/N) | W6: Finishing Position | X6: Lead (Y/N) | Y6: Finishing Position | Z6: Lead (Y/N) | AA6: Finishing Position | AB6: Lead (Y/N) | AC6: Finishing Position | AD6: Lead (Y/N) | AE6: Finishing Position | AF6: Lead (Y/N) | AG6: Finishing Position | AH6: Lead (Y/N) | AI6: Finishing Position | AJ6: Lead (Y/N) | AK6: Finishing Position | AL6: Lead (Y/N) | AM6: Finishing Position | AN6: Lead (Y/N) | AO6: Finishing Position | AP6: Lead (Y/N) | AQ6: Finishing Position | AR6: Lead (Y/N) | AS6: Finishing Position | AT6: Lead (Y/N) | AU6: Finishing Position | AV6: Lead (Y/N) | AW6: Finishing Position | AX6: Lead (Y/N) | AY6: Finishing Position | AZ6: Lead (Y/N) | BA6: Finishing Position | BB6: Lead (Y/N) | BC6: Finishing Position | BD6: Lead (Y/N) | BE6: Finishing Position | BF6: Lead (Y/N) | BG6: Finishing Position | BH6: Lead (Y/N) | BI6: Finishing Position | BJ6: Lead (Y/N) | BK6: Finishing Position | BL6: Lead (Y/N) | BM6: Finishing Position | BN6: Lead (Y/N) | BO6: Finishing Position | BP6: Lead (Y/N) | BQ6: Finishing Position | BR6: Lead (Y/N) | BS6: Finishing Position | BT6: Lead (Y/N) | BU6: Finishing Position | BV6: Lead (Y/N) | BW6: Finishing Position | BX6: Lead (Y/N) | BY6: Finishing Position | BZ6: Lead (Y/N)
A7: 00 | B7: =IF(ISNA(VLOOKUP($A7,'Entry List'!$A$1:$F$61,B$5,FALSE)),"",VLOOKUP($A7,'Entry List'!$A$1:$F$61,B$5,FALSE)) -> Quin Houff (R) | C7: =IF(ISNA(VLOOKUP($A7,'Entry List'!$A$1:$F$61,C$5,FALSE)),"",VLOOKUP($A7,'Entry List'!$A$1:$F$61,C$5,FALSE)) -> Chevrolet | D7: =IF(ISNA(VLOOKUP($A7,'Entry List'!$A$1:$F$61,D$5,FALSE)),"",VLOOKUP($A7,'Entry List'!$A$1:$F$61,D$5,FALSE)) -> StarCom Racing | E7: =IF(ISNA(VLOOKUP($A7,'Entry List'!$A$1:$F$61,E$5,FALSE)),"",VLOOKUP($A7,'Entry List'!$A$1:$F$61,E$5,FALSE)) -> StarCom Racing | F7: =IF(ISNA(VLOOKUP($A7,'Entry List'!$A$1:$F$61,F$5,FALSE)),"",VLOOKUP($A7,'Entry List'!$A$1:$F$61,F$5,FALSE)) -> Quin Houff (R) | G7: 39 | H7: 1 | I7: 32 | J7: 5 | K7: 35 | L7: 2 | M7: 34 | N7: 3 | O7: 36 | P7: 1 | Q7: 26 | R7: 11 | S7: 32 | T7: 5 | U7: 32 | V7: 5 | W7: 27 | X7: 10 | Y7: 32 | Z7: 5 | AA7: 34 | AB7: 3 | AC7: 33 | AD7: 4 | AE7: 27 | AF7: 10 | AG7: 40 | AH7: 1 | AI7: 31 | AJ7: 6 | AK7: 23 | AL7: 14 | AM7: 35 | AN7: 2 | AO7: DNS | AP7: 0 | AQ7: 24 | AR7: 13 | AS7: 32 | AT7: 5 | AU7: 27 | AV7: 10 | AW7: 32 | AX7: 5 | AY7: 33 | AZ7: 4 | BA7: 33 | BB7: 4 | BC7: 34 | BD7: 3 | BE7: =IF('Last Race Results'!$B$5=0,0,IF(ISNA(VLOOKUP($A7,'Last Race Results'!$A$5:$J$44,2,FALSE)),"DNS",VLOOKUP($A7,'Last Race Results'!$A$5:$J$44,2,FALSE))) -> 23 | BF7: =IF('Last Race Results'!$B$5=0,0,IF(ISNA(VLOOKUP($A7,'Last Race Results'!$A$5:$K$44,11,FALSE)),0,VLOOKUP($A7,'Last Race Results'!$A$5:$K$44,11,FALSE))) -> 14 | BY7: =IF('Last Race Results'!$B$5=0,0,IF(ISNA(VLOOKUP($A7,'Last Race Results'!$A$5:$J$44,2,FALSE)),"DNS",VLOOKUP($A7,'Last Race Results'!$A$5:$J$44,2,FALSE))) -> 23 | BZ7: =IF('Last Race Results'!$B$5=0,0,IF(ISNA(VLOOKUP($A7,'Last Race Results'!$A$5:$J$44,11,FALSE)),0,VLOOKUP($A7,'Last Race Results'!$A$5:$J$44,11,FALSE))) -> 
A8: 1 | B8: =IF(ISNA(VLOOKUP($A8,'Entry List'!$A$1:$F$61,B$5,FALSE)),"",VLOOKUP($A8,'Entry List'!$A$1:$F$61,B$5,FALSE)) -> Kurt Busch | C8: =IF(ISNA(VLOOKUP($A8,'Entry List'!$A$1:$F$61,C$5,FALSE)),"",VLOOKUP($A8,'Entry List'!$A$1:$F$61,C$5,FALSE)) -> Chevrolet | D8: =IF(ISNA(VLOOKUP($A8,'Entry List'!$A$1:$F$61,D$5,FALSE)),"",VLOOKUP($A8,'Entry List'!$A$1:$F$61,D$5,FALSE)) -> Chip Ganassi Racing | E8: =IF(ISNA(VLOOKUP($A8,'Entry List'!$A$1:$F$61,E$5,FALSE)),"",VLOOKUP($A8,'Entry List'!$A$1:$F$61,E$5,FALSE)) -> Chip Ganassi Racing | G8: 33 | H8: 7 | I8: 25 | J8: 12 | K8: 3 | L8: 40 | M8: 6 | N8: 31 | O8: 3 | P8: 39 | Q8: 15 | R8: 22 | S8: 5 | T8: 40 | U8: 5 | V8: 40 | W8: 7 | X8: 30 | Y8: 6 | Z8: 31 | AA8: 9 | AB8: 34 | AC8: 17 | AD8: 20 | AE8: 9 | AF8: 31 | AG8: 18 | AH8: 24 | AI8: 13 | AJ8: 37 | AK8: 13 | AL8: 27 | AM8: 5 | AN8: 35 | AO8: 30 | AP8: 11 | AQ8: 9 | AR8: 28 | AS8: 17 | AT8: 20 | AU8: 10 | AV8: 38 | AW8: 10 | AX8: 29 | AY8: 14 | AZ8: 25 | BA8: 40 | BB8: 1 | BC8: 13 | BD8: 26 | BE8: =IF('Last Race Results'!$B$5=0,0,IF(ISNA(VLOOKUP($A8,'Last Race Results'!$A$5:$J$44,2,FALSE)),"DNS",VLOOKUP($A8,'Last Race Results'!$A$5:$J$44,2,FALSE))) -> 34 | BF8: =IF('Last Race Results'!$B$5=0,0,IF(ISNA(VLOOKUP($A8,'Last Race Results'!$A$5:$K$44,11,FALSE)),0,VLOOKUP($A8,'Last Race Results'!$A$5:$K$44,11,FALSE))) -> 10 | BY8: =IF('Last Race Results'!$B$5=0,0,IF(ISNA(VLOOKUP($A8,'Last Race Results'!$A$5:$J$44,2,FALSE)),"DNS",VLOOKUP($A8,'Last Race Results'!$A$5:$J$44,2,FALSE))) -> 34 | BZ8: =IF('Last Race Results'!$B$5=0,0,IF(ISNA(VLOOKUP($A8,'Last Race Results'!$A$5:$J$44,11,FALSE)),0,VLOOKUP($A8,'Last Race Results'!$A$5:$J$44,11,FALSE))) -> 
A9: 2 | B9: =IF(ISNA(VLOOKUP($A9,'Entry List'!$A$1:$F$61,B$5,FALSE)),"",VLOOKUP($A9,'Entry List'!$A$1:$F$61,B$5,FALSE)) -> Brad Keselowski | C9: =IF(ISNA(VLOOKUP($A9,'Entry List'!$A$1:$F$61,C$5,FALSE)),"",VLOOKUP($A9,'Entry List'!$A$1:$F$61,C$5,FALSE)) -> Ford | D9: =IF(ISNA(VLOOKUP($A9,'Entry List'!$A$1:$F$61,D$5,FALSE)),"",VLOOKUP($A9,'Entry List'!$A$1:$F$61,D$5,FALSE)) -> Team Penske | E9: =IF(ISNA(VLOOKUP($A9,'Entry List'!$A$1:$F$61,E$5,FALSE)),"",VLOOKUP($A9,'Entry List'!$A$1:$F$61,E$5,FALSE)) -> Team Penske | G9: 36 | H9: 8 | I9: 7 | J9: 30 | K9: 5 | L9: 44 | M9: 11 | N9: 36 | O9: 13 | P9: 40 | Q9: 4 | R9: 33 | S9: 7 | T9: 30 | U9: 7 | V9: 30 | W9: 1 | X9: 50 | Y9: 9 | Z9: 31 | AA9: 3 | AB9: 34 | AC9: 10 | AD9: 32 | AE9: 19 | AF9: 29 | AG9: 9 | AH9: 31 | AI9: 11 | AJ9: 42 | AK9: 4 | AL9: 35 | AM9: 9 | AN9: 38 | AO9: 38 | AP9: 1 | AQ9: 2 | AR9: 51 | AS9: 1 | AT9: 56 | AU9: 2 | AV9: 47 | AW9: 39 | AX9: 10 | AY9: 13 | AZ9: 24 | BA9: 9 | BB9: 42 | BC9: 8 | BD9: 36 | BE9: =IF('Last Race Results'!$B$5=0,0,IF(ISNA(VLOOKUP($A9,'Last Race Results'!$A$5:$J$44,2,FALSE)),"DNS",VLOOKUP($A9,'Last Race Results'!$A$5:$J$44,2,FALSE))) -> 10 | BF9: =IF('Last Race Results'!$B$5=0,0,IF(ISNA(VLOOKUP($A9,'Last Race Results'!$A$5:$K$44,11,FALSE)),0,VLOOKUP($A9,'Last Race Results'!$A$5:$K$44,11,FALSE))) -> 32 | BY9: =IF('Last Race Results'!$B$5=0,0,IF(ISNA(VLOOKUP($A9,'Last Race Results'!$A$5:$J$44,2,FALSE)),"DNS",VLOOKUP($A9,'Last Race Results'!$A$5:$J$44,2,FALSE))) -> 10 | BZ9: =IF('Last Race Results'!$B$5=0,0,IF(ISNA(VLOOKUP($A9,'Last Race Results'!$A$5:$J$44,11,FALSE)),0,VLOOKUP($A9,'Last Race Results'!$A$5:$J$44,11,FALSE))) -> 
A10: 3 | B10: =IF(ISNA(VLOOKUP($A10,'Entry List'!$A$1:$F$61,B$5,FALSE)),"",VLOOKUP($A10,'Entry List'!$A$1:$F$61,B$5,FALSE)) -> Austin Dillon | C10: =IF(ISNA(VLOOKUP($A10,'Entry List'!$A$1:$F$61,C$5,FALSE)),"",VLOOKUP($A10,'Entry List'!$A$1:$F$61,C$5,FALSE)) -> Chevrolet | D10: =IF(ISNA(VLOOKUP($A10,'Entry List'!$A$1:$F$61,D$5,FALSE)),"",VLOOKUP($A10,'Entry List'!$A$1:$F$61,D$5,FALSE)) -> Richard Childress Racing | E10: =IF(ISNA(VLOOKUP($A10,'Entry List'!$A$1:$F$61,E$5,FALSE)),"",VLOOKUP($A10,'Entry List'!$A$1:$F$61,E$5,FALSE)) -> Richard Childress Racing | G10: 12 | H10: 29 | I10: 4 | J10: 33 | K10: 24 | L10: 13 | M10: 36 | N10: 1 | O10: 11 | P10: 26 | Q10: 20 | R10: 17 | S10: 8 | T10: 37 | U10: 8 | V10: 37 | W10: 6 | X10: 31 | Y10: 11 | Z10: 26 | AA10: 37 | AB10: 1 | AC10: 7 | AD10: 33 | AE10: DNS | AF10: 0 | AG10: 19 | AH10: 18 | AI10: 14 | AJ10: 27 | AK10: 18 | AL10: 33 | AM10: 13 | AN10: 28 | AO10: 12 | AP10: 25 | AQ10: 27 | AR10: 10 | AS10: 13 | AT10: 28 | AU10: 31 | AV10: 6 | AW10: 8 | AX10: 29 | AY10: 7 | AZ10: 0 | BA10: 15 | BB10: 31 | BC10: 9 | BD10: 29 | BE10: =IF('Last Race Results'!$B$5=0,0,IF(ISNA(VLOOKUP($A10,'Last Race Results'!$A$5:$J$44,2,FALSE)),"DNS",VLOOKUP($A10,'Last Race Results'!$A$5:$J$44,2,FALSE))) -> 25 | BF10: =IF('Last Race Results'!$B$5=0,0,IF(ISNA(VLOOKUP($A10,'Last Race Results'!$A$5:$K$44,11,FALSE)),0,VLOOKUP($A10,'Last Race Results'!$A$5:$K$44,11,FALSE))) -> 12 | BY10: =IF('Last Race Results'!$B$5=0,0,IF(ISNA(VLOOKUP($A10,'Last Race Results'!$A$5:$J$44,2,FALSE)),"DNS",VLOOKUP($A10,'Last Race Results'!$A$5:$J$44,2,FALSE))) -> 25 | BZ10: =IF('Last Race Results'!$B$5=0,0,IF(ISNA(VLOOKUP($A10,'Last Race Results'!$A$5:$J$44,11,FALSE)),0,VLOOKUP($A10,'Last Race Results'!$A$5:$J$44,11,FALSE))) -> 
A11: 4 | B11: =IF(ISNA(VLOOKUP($A11,'Entry List'!$A$1:$F$61,B$5,FALSE)),"",VLOOKUP($A11,'Entry List'!$A$1:$F$61,B$5,FALSE)) -> Kevin Harvick | C11: =IF(ISNA(VLOOKUP($A11,'Entry List'!$A$1:$F$61,C$5,FALSE)),"",VLOOKUP($A11,'Entry List'!$A$1:$F$61,C$5,FALSE)) -> Ford | D11: =IF(ISNA(VLOOKUP($A11,'Entry List'!$A$1:$F$61,D$5,FALSE)),"",VLOOKUP($A11,'Entry List'!$A$1:$F$61,D$5,FALSE)) -> Stewart-Haas Racing | E11: =IF(ISNA(VLOOKUP($A11,'Entry List'!$A$1:$F$61,E$5,FALSE)),"",VLOOKUP($A11,'Entry List'!$A$1:$F$61,E$5,FALSE)) -> Stewart-Haas Racing | G11: 5 | H11: 39 | I11: 8 | J11: 42 | K11: 9 | L11: 29 | M11: 2 | N11: 54 | O11: 1 | P11: 54 | Q11: 3 | R11: 40 | S11: 10 | T11: 40 | U11: 10 | V11: 40 | W11: 11 | X11: 39 | Y11: 1 | Z11: 51 | AA11: 15 | AB11: 31 | AC11: 26 | AD11: 11 | AE11: 10 | AF11: 27 | AG11: 1 | AH11: 44 | AI11: 2 | AJ11: 47 | AK11: 1 | AL11: 56 | AM11: 4 | AN11: 38 | AO11: 1 | AP11: 58 | AQ11: 4 | AR11: 42 | AS11: 5 | AT11: 40 | AU11: 1 | AV11: 60 | AW11: 1 | AX11: 53 | AY11: 17 | AZ11: 23 | BA11: 4 | BB11: 42 | BC11: 1 | BD11: 60 | BE11: =IF('Last Race Results'!$B$5=0,0,IF(ISNA(VLOOKUP($A11,'Last Race Results'!$A$5:$J$44,2,FALSE)),"DNS",VLOOKUP($A11,'Last Race Results'!$A$5:$J$44,2,FALSE))) -> 20 | BF11: =IF('Last Race Results'!$B$5=0,0,IF(ISNA(VLOOKUP($A11,'Last Race Results'!$A$5:$K$44,11,FALSE)),0,VLOOKUP($A11,'Last Race Results'!$A$5:$K$44,11,FALSE))) -> 17 | BY11: =IF('Last Race Results'!$B$5=0,0,IF(ISNA(VLOOKUP($A11,'Last Race Results'!$A$5:$J$44,2,FALSE)),"DNS",VLOOKUP($A11,'Last Race Results'!$A$5:$J$44,2,FALSE))) -> 20 | BZ11: =IF('Last Race Results'!$B$5=0,0,IF(ISNA(VLOOKUP($A11,'Last Race Results'!$A$5:$J$44,11,FALSE)),0,VLOOKUP($A11,'Last Race Results'!$A$5:$J$44,11,FALSE))) -> 
A12: 5 | B12: =IF(ISNA(VLOOKUP($A12,'Entry List'!$A$1:$F$61,B$5,FALSE)),"",VLOOKUP($A12,'Entry List'!$A$1:$F$61,B$5,FALSE)) ->  | C12: =IF(ISNA(VLOOKUP($A12,'Entry List'!$A$1:$F$61,C$5,FALSE)),"",VLOOKUP($A12,'Entry List'!$A$1:$F$61,C$5,FALSE)) ->  | D12: =IF(ISNA(VLOOKUP($A12,'Entry List'!$A$1:$F$61,D$5,FALSE)),"",VLOOKUP($A12,'Entry List'!$A$1:$F$61,D$5,FALSE)) ->  | E12: =IF(ISNA(VLOOKUP($A12,'Entry List'!$A$1:$F$61,E$5,FALSE)),"",VLOOKUP($A12,'Entry List'!$A$1:$F$61,E$5,FALSE)) ->  | G12: DNS | H12: 0 | I12: DNS | J12: 0 | K12: DNS | L12: 0 | M12: DNS | N12: 0 | O12: DNS | P12: 0 | Q12: DNS | R12: 0 | S12: DNS | T12: 0 | U12: DNS | V12: 0 | W12: DNS | X12: 0 | Y12: DNS | Z12: 0 | AA12: DNS | AB12: 0 | AC12: DNS | AD12: 0 | AE12: DNS | AF12: 0 | AG12: DNS | AH12: 0 | AI12: DNS | AJ12: 0 | AK12: DNS | AL12: 0 | AM12: DNS | AN12: 0 | AO12: DNS | AP12: 0 | AQ12: DNS | AR12: 0 | AS12: DNS | AT12: 0 | AU12: DNS | AV12: 0 | AW12: DNS | AX12: 0 | AY12: DNS | AZ12: 0 | BA12: DNS | BB12: 0 | BC12: DNS | BD12: 0 | BE12: =IF('Last Race Results'!$B$5=0,0,IF(ISNA(VLOOKUP($A12,'Last Race Results'!$A$5:$J$44,2,FALSE)),"DNS",VLOOKUP($A12,'Last Race Results'!$A$5:$J$44,2,FALSE))) -> DNS | BF12: =IF('Last Race Results'!$B$5=0,0,IF(ISNA(VLOOKUP($A12,'Last Race Results'!$A$5:$K$44,11,FALSE)),0,VLOOKUP($A12,'Last Race Results'!$A$5:$K$44,11,FALSE))) -> 0 | BY12: =IF('Last Race Results'!$B$5=0,0,IF(ISNA(VLOOKUP($A12,'Last Race Results'!$A$5:$J$44,2,FALSE)),"DNS",VLOOKUP($A12,'Last Race Results'!$A$5:$J$44,2,FALSE))) -> DNS | BZ12: =IF('Last Race Results'!$B$5=0,0,IF(ISNA(VLOOKUP($A12,'Last Race Results'!$A$5:$J$44,11,FALSE)),0,VLOOKUP($A12,'Last Race Results'!$A$5:$J$44,11,FALSE))) -> 0
A13: 6 | B13: =IF(ISNA(VLOOKUP($A13,'Entry List'!$A$1:$F$61,B$5,FALSE)),"",VLOOKUP($A13,'Entry List'!$A$1:$F$61,B$5,FALSE)) -> Ryan Newman | C13: =IF(ISNA(VLOOKUP($A13,'Entry List'!$A$1:$F$61,C$5,FALSE)),"",VLOOKUP($A13,'Entry List'!$A$1:$F$61,C$5,FALSE)) -> Ford | D13: =IF(ISNA(VLOOKUP($A13,'Entry List'!$A$1:$F$61,D$5,FALSE)),"",VLOOKUP($A13,'Entry List'!$A$1:$F$61,D$5,FALSE)) -> Roush Fenway Racing | E13: =IF(ISNA(VLOOKUP($A13,'Entry List'!$A$1:$F$61,E$5,FALSE)),"",VLOOKUP($A13,'Entry List'!$A$1:$F$61,E$5,FALSE)) -> Roush Fenway Racing | G13: 9 | H13: 36 | I13: 27 | J13: 10 | K13: 17 | L13: 20 | M13: 23 | N13: 14 | O13: 15 | P13: 24 | Q13: 14 | R13: 23 | S13: 17 | T13: 20 | U13: 17 | V13: 20 | W13: 15 | X13: 22 | Y13: 14 | Z13: 23 | AA13: 12 | AB13: 25 | AC13: 30 | AD13: 7 | AE13: 23 | AF13: 14 | AG13: 15 | AH13: 22 | AI13: 18 | AJ13: 27 | AK13: 34 | AL13: 3 | AM13: 17 | AN13: 20 | AO13: 8 | AP13: 35 | AQ13: 28 | AR13: 9 | AS13: 21 | AT13: 16 | AU13: 28 | AV13: 9 | AW13: 13 | AX13: 24 | AY13: 19 | AZ13: 18 | BA13: 19 | BB13: 18 | BC13: 24 | BD13: 13 | BE13: =IF('Last Race Results'!$B$5=0,0,IF(ISNA(VLOOKUP($A13,'Last Race Results'!$A$5:$J$44,2,FALSE)),"DNS",VLOOKUP($A13,'Last Race Results'!$A$5:$J$44,2,FALSE))) -> 36 | BF13: =IF('Last Race Results'!$B$5=0,0,IF(ISNA(VLOOKUP($A13,'Last Race Results'!$A$5:$K$44,11,FALSE)),0,VLOOKUP($A13,'Last Race Results'!$A$5:$K$44,11,FALSE))) -> 1 | BY13: =IF('Last Race Results'!$B$5=0,0,IF(ISNA(VLOOKUP($A13,'Last Race Results'!$A$5:$J$44,2,FALSE)),"DNS",VLOOKUP($A13,'Last Race Results'!$A$5:$J$44,2,FALSE))) -> 36 | BZ13: =IF('Last Race Results'!$B$5=0,0,IF(ISNA(VLOOKUP($A13,'Last Race Results'!$A$5:$J$44,11,FALSE)),0,VLOOKUP($A13,'Last Race Results'!$A$5:$J$44,11,FALSE))) -> 
A14: 7 | B14: =IF(ISNA(VLOOKUP($A14,'Entry List'!$A$1:$F$61,B$5,FALSE)),"",VLOOKUP($A14,'Entry List'!$A$1:$F$61,B$5,FALSE)) ->  | C14: =IF(ISNA(VLOOKUP($A14,'Entry List'!$A$1:$F$61,C$5,FALSE)),"",VLOOKUP($A14,'Entry List'!$A$1:$F$61,C$5,FALSE)) ->  | D14: =IF(ISNA(VLOOKUP($A14,'Entry List'!$A$1:$F$61,D$5,FALSE)),"",VLOOKUP($A14,'Entry List'!$A$1:$F$61,D$5,FALSE)) ->  | E14: =IF(ISNA(VLOOKUP($A14,'Entry List'!$A$1:$F$61,E$5,FALSE)),"",VLOOKUP($A14,'Entry List'!$A$1:$F$61,E$5,FALSE)) ->  | G14: DNS | H14: 0 | I14: DNS | J14: 0 | K14: DNS | L14: 0 | M14: DNS | N14: 0 | O14: 34 | P14: 3 | Q14: DNS | R14: 0 | S14: 36 | T14: 1 | U14: 36 | V14: 1 | W14: 25 | X14: 12 | Y14: 37 | Z14: 1 | AA14: 38 | AB14: 1 | AC14: DNS | AD14: 0 | AE14: DNS | AF14: 0 | AG14: 32 | AH14: 5 | AI14: 34 | AJ14: 3 | AK14: 25 | AL14: 12 | AM14: DNS | AN14: 0 | AO14: DNS | AP14: 0 | AQ14: 31 | AR14: 6 | AS14: DNS | AT14: 0 | AU14: 39 | AV14: 1 | AW14: 33 | AX14: 4 | AY14: DNS | AZ14: 0 | BA14: 37 | BB14: 1 | BC14: 35 | BD14: 2 | BE14: =IF('Last Race Results'!$B$5=0,0,IF(ISNA(VLOOKUP($A14,'Last Race Results'!$A$5:$J$44,2,FALSE)),"DNS",VLOOKUP($A14,'Last Race Results'!$A$5:$J$44,2,FALSE))) -> 38 | BF14: =IF('Last Race Results'!$B$5=0,0,IF(ISNA(VLOOKUP($A14,'Last Race Results'!$A$5:$K$44,11,FALSE)),0,VLOOKUP($A14,'Last Race Results'!$A$5:$K$44,11,FALSE))) -> 1 | BY14: =IF('Last Race Results'!$B$5=0,0,IF(ISNA(VLOOKUP($A14,'Last Race Results'!$A$5:$J$44,2,FALSE)),"DNS",VLOOKUP($A14,'Last Race Results'!$A$5:$J$44,2,FALSE))) -> 38 | BZ14: =IF('Last Race Results'!$B$5=0,0,IF(ISNA(VLOOKUP($A14,'Last Race Results'!$A$5:$J$44,11,FALSE)),0,VLOOKUP($A14,'Last Race Results'!$A$5:$J$44,11,FALSE))) -> 
A15: 8 | B15: =IF(ISNA(VLOOKUP($A15,'Entry List'!$A$1:$F$61,B$5,FALSE)),"",VLOOKUP($A15,'Entry List'!$A$1:$F$61,B$5,FALSE)) -> Tyler Reddick (R) | C15: =IF(ISNA(VLOOKUP($A15,'Entry List'!$A$1:$F$61,C$5,FALSE)),"",VLOOKUP($A15,'Entry List'!$A$1:$F$61,C$5,FALSE)) -> Chevrolet | D15: =IF(ISNA(VLOOKUP($A15,'Entry List'!$A$1:$F$61,D$5,FALSE)),"",VLOOKUP($A15,'Entry List'!$A$1:$F$61,D$5,FALSE)) -> Richard Childress Racing | E15: =IF(ISNA(VLOOKUP($A15,'Entry List'!$A$1:$F$61,E$5,FALSE)),"",VLOOKUP($A15,'Entry List'!$A$1:$F$61,E$5,FALSE)) -> Richard Childress Racing | G15: 28 | H15: 10 | I15: 18 | J15: 19 | K15: 11 | L15: 26 | M15: 33 | N15: 13 | O15: 7 | P15: 33 | Q15: 13 | R15: 24 | S15: 14 | T15: 23 | U15: 14 | V15: 23 | W15: 36 | X15: 1 | Y15: 16 | Z15: 21 | AA15: 16 | AB15: 22 | AC15: 4 | AD15: 50 | AE15: 20 | AF15: 27 | AG15: 30 | AH15: 7 | AI15: 35 | AJ15: 2 | AK15: 8 | AL15: 29 | AM15: 10 | AN15: 27 | AO15: 34 | AP15: 3 | AQ15: 13 | AR15: 29 | AS15: 10 | AT15: 27 | AU15: 18 | AV15: 19 | AW15: 24 | AX15: 13 | AY15: 18 | AZ15: 19 | BA15: 13 | BB15: 24 | BC15: 18 | BD15: 19 | BE15: =IF('Last Race Results'!$B$5=0,0,IF(ISNA(VLOOKUP($A15,'Last Race Results'!$A$5:$J$44,2,FALSE)),"DNS",VLOOKUP($A15,'Last Race Results'!$A$5:$J$44,2,FALSE))) -> 29 | BF15: =IF('Last Race Results'!$B$5=0,0,IF(ISNA(VLOOKUP($A15,'Last Race Results'!$A$5:$K$44,11,FALSE)),0,VLOOKUP($A15,'Last Race Results'!$A$5:$K$44,11,FALSE))) -> 16 | BY15: =IF('Last Race Results'!$B$5=0,0,IF(ISNA(VLOOKUP($A15,'Last Race Results'!$A$5:$J$44,2,FALSE)),"DNS",VLOOKUP($A15,'Last Race Results'!$A$5:$J$44,2,FALSE))) -> 29 | BZ15: =IF('Last Race Results'!$B$5=0,0,IF(ISNA(VLOOKUP($A15,'Last Race Results'!$A$5:$J$44,11,FALSE)),0,VLOOKUP($A15,'Last Race Results'!$A$5:$J$44,11,FALSE))) -> 
A16: 9 | B16: =IF(ISNA(VLOOKUP($A16,'Entry List'!$A$1:$F$61,B$5,FALSE)),"",VLOOKUP($A16,'Entry List'!$A$1:$F$61,B$5,FALSE)) -> Chase Elliott | C16: =IF(ISNA(VLOOKUP($A16,'Entry List'!$A$1:$F$61,C$5,FALSE)),"",VLOOKUP($A16,'Entry List'!$A$1:$F$61,C$5,FALSE)) -> Chevrolet | D16: =IF(ISNA(VLOOKUP($A16,'Entry List'!$A$1:$F$61,D$5,FALSE)),"",VLOOKUP($A16,'Entry List'!$A$1:$F$61,D$5,FALSE)) -> Hendrick Motorsports | E16: =IF(ISNA(VLOOKUP($A16,'Entry List'!$A$1:$F$61,E$5,FALSE)),"",VLOOKUP($A16,'Entry List'!$A$1:$F$61,E$5,FALSE)) -> Hendrick Motorsports | G16: 17 | H16: 34 | I16: 26 | J16: 31 | K16: 4 | L16: 40 | M16: 7 | N16: 39 | O16: 4 | P16: 34 | Q16: 38 | R16: 14 | S16: 1 | T16: 49 | U16: 1 | V16: 49 | W16: 22 | X16: 35 | Y16: 8 | Z16: 40 | AA16: 5 | AB16: 40 | AC16: 2 | AD16: 50 | AE16: DNS | AF16: 0 | AG16: 25 | AH16: 19 | AI16: 4 | AJ16: 33 | AK16: 11 | AL16: 42 | AM16: 23 | AN16: 23 | AO16: 9 | AP16: 28 | AQ16: 12 | AR16: 26 | AS16: 9 | AT16: 30 | AU16: 7 | AV16: 33 | AW16: 9 | AX16: 28 | AY16: 1 | AZ16: 54 | BA16: 5 | BB16: 33 | BC16: 39 | BD16: 1 | BE16: =IF('Last Race Results'!$B$5=0,0,IF(ISNA(VLOOKUP($A16,'Last Race Results'!$A$5:$J$44,2,FALSE)),"DNS",VLOOKUP($A16,'Last Race Results'!$A$5:$J$44,2,FALSE))) -> 2 | BF16: =IF('Last Race Results'!$B$5=0,0,IF(ISNA(VLOOKUP($A16,'Last Race Results'!$A$5:$K$44,11,FALSE)),0,VLOOKUP($A16,'Last Race Results'!$A$5:$K$44,11,FALSE))) -> 35 | BY16: =IF('Last Race Results'!$B$5=0,0,IF(ISNA(VLOOKUP($A16,'Last Race Results'!$A$5:$J$44,2,FALSE)),"DNS",VLOOKUP($A16,'Last Race Results'!$A$5:$J$44,2,FALSE))) -> 2 | BZ16: =IF('Last Race Results'!$B$5=0,0,IF(ISNA(VLOOKUP($A16,'Last Race Results'!$A$5:$J$44,11,FALSE)),0,VLOOKUP($A16,'Last Race Results'!$A$5:$J$44,11,FALSE))) -> 
A17: 10 | B17: =IF(ISNA(VLOOKUP($A17,'Entry List'!$A$1:$F$61,B$5,FALSE)),"",VLOOKUP($A17,'Entry List'!$A$1:$F$61,B$5,FALSE)) -> Aric Almirola | C17: =IF(ISNA(VLOOKUP($A17,'Entry List'!$A$1:$F$61,C$5,FALSE)),"",VLOOKUP($A17,'Entry List'!$A$1:$F$61,C$5,FALSE)) -> Ford | D17: =IF(ISNA(VLOOKUP($A17,'Entry List'!$A$1:$F$61,D$5,FALSE)),"",VLOOKUP($A17,'Entry List'!$A$1:$F$61,D$5,FALSE)) -> Stewart-Haas Racing | E17: =IF(ISNA(VLOOKUP($A17,'Entry List'!$A$1:$F$61,E$5,FALSE)),"",VLOOKUP($A17,'Entry List'!$A$1:$F$61,E$5,FALSE)) -> Stewart-Haas Racing | G17: 22 | H17: 32 | I17: 21 | J17: 16 | K17: 8 | L17: 36 | M17: 8 | N17: 37 | O17: 12 | P17: 30 | Q17: 7 | R17: 35 | S17: 20 | T17: 17 | U17: 20 | V17: 17 | W17: 29 | X17: 15 | Y17: 17 | Z17: 20 | AA17: 33 | AB17: 4 | AC17: 5 | AD17: 39 | AE17: 3 | AF17: 34 | AG17: 3 | AH17: 53 | AI17: 5 | AJ17: 41 | AK17: 3 | AL17: 34 | AM17: 8 | AN17: 39 | AO17: 14 | AP17: 24 | AQ17: 6 | AR17: 42 | AS17: 7 | AT17: 38 | AU17: 16 | AV17: 21 | AW17: 6 | AX17: 34 | AY17: 24 | AZ17: 13 | BA17: 17 | BB17: 21 | BC17: 7 | BD17: 37 | BE17: =IF('Last Race Results'!$B$5=0,0,IF(ISNA(VLOOKUP($A17,'Last Race Results'!$A$5:$J$44,2,FALSE)),"DNS",VLOOKUP($A17,'Last Race Results'!$A$5:$J$44,2,FALSE))) -> 18 | BF17: =IF('Last Race Results'!$B$5=0,0,IF(ISNA(VLOOKUP($A17,'Last Race Results'!$A$5:$K$44,11,FALSE)),0,VLOOKUP($A17,'Last Race Results'!$A$5:$K$44,11,FALSE))) -> 19 | BY17: =IF('Last Race Results'!$B$5=0,0,IF(ISNA(VLOOKUP($A17,'Last Race Results'!$A$5:$J$44,2,FALSE)),"DNS",VLOOKUP($A17,'Last Race Results'!$A$5:$J$44,2,FALSE))) -> 18 | BZ17: =IF('Last Race Results'!$B$5=0,0,IF(ISNA(VLOOKUP($A17,'Last Race Results'!$A$5:$J$44,11,FALSE)),0,VLOOKUP($A17,'Last Race Results'!$A$5:$J$44,11,FALSE))) -> 
A18: 11 | B18: =IF(ISNA(VLOOKUP($A18,'Entry List'!$A$1:$F$61,B$5,FALSE)),"",VLOOKUP($A18,'Entry List'!$A$1:$F$61,B$5,FALSE)) -> Denny Hamlin | C18: =IF(ISNA(VLOOKUP($A18,'Entry List'!$A$1:$F$61,C$5,FALSE)),"",VLOOKUP($A18,'Entry List'!$A$1:$F$61,C$5,FALSE)) -> Toyota | D18: =IF(ISNA(VLOOKUP($A18,'Entry List'!$A$1:$F$61,D$5,FALSE)),"",VLOOKUP($A18,'Entry List'!$A$1:$F$61,D$5,FALSE)) -> Joe Gibbs Racing | E18: =IF(ISNA(VLOOKUP($A18,'Entry List'!$A$1:$F$61,E$5,FALSE)),"",VLOOKUP($A18,'Entry List'!$A$1:$F$61,E$5,FALSE)) -> Joe Gibbs Racing | G18: 1 | H18: 50 | I18: 17 | J18: 20 | K18: 6 | L18: 34 | M18: 20 | N18: 17 | O18: 5 | P18: 43 | Q18: 1 | R18: 47 | S18: 2 | T18: 35 | U18: 2 | V18: 35 | W18: 17 | X18: 32 | Y18: 5 | Z18: 46 | AA18: 24 | AB18: 13 | AC18: 1 | AD18: 60 | AE18: 4 | AF18: 33 | AG18: 2 | AH18: 37 | AI18: 1 | AJ18: 41 | AK18: 28 | AL18: 22 | AM18: 12 | AN18: 25 | AO18: 6 | AP18: 34 | AQ18: 1 | AR18: 56 | AS18: 2 | AT18: 54 | AU18: 6 | AV18: 48 | AW18: 2 | AX18: 40 | AY18: 2 | AZ18: 45 | BA18: 1 | BB18: 60 | BC18: 19 | BD18: 26 | BE18: =IF('Last Race Results'!$B$5=0,0,IF(ISNA(VLOOKUP($A18,'Last Race Results'!$A$5:$J$44,2,FALSE)),"DNS",VLOOKUP($A18,'Last Race Results'!$A$5:$J$44,2,FALSE))) -> 3 | BF18: =IF('Last Race Results'!$B$5=0,0,IF(ISNA(VLOOKUP($A18,'Last Race Results'!$A$5:$K$44,11,FALSE)),0,VLOOKUP($A18,'Last Race Results'!$A$5:$K$44,11,FALSE))) -> 36 | BY18: =IF('Last Race Results'!$B$5=0,0,IF(ISNA(VLOOKUP($A18,'Last Race Results'!$A$5:$J$44,2,FALSE)),"DNS",VLOOKUP($A18,'Last Race Results'!$A$5:$J$44,2,FALSE))) -> 3 | BZ18: =IF('Last Race Results'!$B$5=0,0,IF(ISNA(VLOOKUP($A18,'Last Race Results'!$A$5:$J$44,11,FALSE)),0,VLOOKUP($A18,'Last Race Results'!$A$5:$J$44,11,FALSE))) -> 
A19: 12 | B19: =IF(ISNA(VLOOKUP($A19,'Entry List'!$A$1:$F$61,B$5,FALSE)),"",VLOOKUP($A19,'Entry List'!$A$1:$F$61,B$5,FALSE)) -> Ryan Blaney | C19: =IF(ISNA(VLOOKUP($A19,'Entry List'!$A$1:$F$61,C$5,FALSE)),"",VLOOKUP($A19,'Entry List'!$A$1:$F$61,C$5,FALSE)) -> Ford | D19: =IF(ISNA(VLOOKUP($A19,'Entry List'!$A$1:$F$61,D$5,FALSE)),"",VLOOKUP($A19,'Entry List'!$A$1:$F$61,D$5,FALSE)) -> Team Penske | E19: =IF(ISNA(VLOOKUP($A19,'Entry List'!$A$1:$F$61,E$5,FALSE)),"",VLOOKUP($A19,'Entry List'!$A$1:$F$61,E$5,FALSE)) -> Team Penske | G19: 2 | H19: 43 | I19: 11 | J19: 42 | K19: 19 | L19: 37 | M19: 37 | N19: 1 | O19: 16 | P19: 21 | Q19: 21 | R19: 24 | S19: 3 | T19: 52 | U19: 3 | V19: 52 | W19: 40 | X19: 10 | Y19: 4 | Z19: 43 | AA19: 2 | AB19: 44 | AC19: 3 | AD19: 50 | AE19: 1 | AF19: 54 | AG19: 12 | AH19: 40 | AI19: 22 | AJ19: 24 | AK19: 32 | AL19: 5 | AM19: 6 | AN19: 46 | AO19: 7 | AP19: 45 | AQ19: 20 | AR19: 33 | AS19: 20 | AT19: 22 | AU19: 4 | AV19: 50 | AW19: 38 | AX19: 6 | AY19: 31 | AZ19: 14 | BA19: 14 | BB19: 23 | BC19: 12 | BD19: 40 | BE19: =IF('Last Race Results'!$B$5=0,0,IF(ISNA(VLOOKUP($A19,'Last Race Results'!$A$5:$J$44,2,FALSE)),"DNS",VLOOKUP($A19,'Last Race Results'!$A$5:$J$44,2,FALSE))) -> 6 | BF19: =IF('Last Race Results'!$B$5=0,0,IF(ISNA(VLOOKUP($A19,'Last Race Results'!$A$5:$K$44,11,FALSE)),0,VLOOKUP($A19,'Last Race Results'!$A$5:$K$44,11,FALSE))) -> 40 | BY19: =IF('Last Race Results'!$B$5=0,0,IF(ISNA(VLOOKUP($A19,'Last Race Results'!$A$5:$J$44,2,FALSE)),"DNS",VLOOKUP($A19,'Last Race Results'!$A$5:$J$44,2,FALSE))) -> 6 | BZ19: =IF('Last Race Results'!$B$5=0,0,IF(ISNA(VLOOKUP($A19,'Last Race Results'!$A$5:$J$44,11,FALSE)),0,VLOOKUP($A19,'Last Race Results'!$A$5:$J$44,11,FALSE))) -> 
A20: 13 | B20: =IF(ISNA(VLOOKUP($A20,'Entry List'!$A$1:$F$61,B$5,FALSE)),"",VLOOKUP($A20,'Entry List'!$A$1:$F$61,B$5,FALSE)) -> Ty Dillon | C20: =IF(ISNA(VLOOKUP($A20,'Entry List'!$A$1:$F$61,C$5,FALSE)),"",VLOOKUP($A20,'Entry List'!$A$1:$F$61,C$5,FALSE)) -> Chevrolet | D20: =IF(ISNA(VLOOKUP($A20,'Entry List'!$A$1:$F$61,D$5,FALSE)),"",VLOOKUP($A20,'Entry List'!$A$1:$F$61,D$5,FALSE)) -> Germain Racing | E20: =IF(ISNA(VLOOKUP($A20,'Entry List'!$A$1:$F$61,E$5,FALSE)),"",VLOOKUP($A20,'Entry List'!$A$1:$F$61,E$5,FALSE)) -> Germain Racing | G20: 30 | H20: 8 | I20: 10 | J20: 27 | K20: 26 | L20: 11 | M20: 15 | N20: 22 | O20: 19 | P20: 18 | Q20: 19 | R20: 18 | S20: 27 | T20: 10 | U20: 27 | V20: 10 | W20: 39 | X20: 1 | Y20: 29 | Z20: 8 | AA20: 22 | AB20: 15 | AC20: 28 | AD20: 9 | AE20: 12 | AF20: 25 | AG20: 26 | AH20: 11 | AI20: 23 | AJ20: 14 | AK20: 14 | AL20: 23 | AM20: 16 | AN20: 21 | AO20: 13 | AP20: 24 | AQ20: 15 | AR20: 22 | AS20: 22 | AT20: 15 | AU20: 23 | AV20: 14 | AW20: 18 | AX20: 19 | AY20: 20 | AZ20: 17 | BA20: 18 | BB20: 19 | BC20: 29 | BD20: 8 | BE20: =IF('Last Race Results'!$B$5=0,0,IF(ISNA(VLOOKUP($A20,'Last Race Results'!$A$5:$J$44,2,FALSE)),"DNS",VLOOKUP($A20,'Last Race Results'!$A$5:$J$44,2,FALSE))) -> 22 | BF20: =IF('Last Race Results'!$B$5=0,0,IF(ISNA(VLOOKUP($A20,'Last Race Results'!$A$5:$K$44,11,FALSE)),0,VLOOKUP($A20,'Last Race Results'!$A$5:$K$44,11,FALSE))) -> 15 | BY20: =IF('Last Race Results'!$B$5=0,0,IF(ISNA(VLOOKUP($A20,'Last Race Results'!$A$5:$J$44,2,FALSE)),"DNS",VLOOKUP($A20,'Last Race Results'!$A$5:$J$44,2,FALSE))) -> 22 | BZ20: =IF('Last Race Results'!$B$5=0,0,IF(ISNA(VLOOKUP($A20,'Last Race Results'!$A$5:$J$44,11,FALSE)),0,VLOOKUP($A20,'Last Race Results'!$A$5:$J$44,11,FALSE))) -> 
A21: 14 | B21: =IF(ISNA(VLOOKUP($A21,'Entry List'!$A$1:$F$61,B$5,FALSE)),"",VLOOKUP($A21,'Entry List'!$A$1:$F$61,B$5,FALSE)) -> Clint Bowyer | C21: =IF(ISNA(VLOOKUP($A21,'Entry List'!$A$1:$F$61,C$5,FALSE)),"",VLOOKUP($A21,'Entry List'!$A$1:$F$61,C$5,FALSE)) -> Ford | D21: =IF(ISNA(VLOOKUP($A21,'Entry List'!$A$1:$F$61,D$5,FALSE)),"",VLOOKUP($A21,'Entry List'!$A$1:$F$61,D$5,FALSE)) -> Stewart-Haas Racing | E21: =IF(ISNA(VLOOKUP($A21,'Entry List'!$A$1:$F$61,E$5,FALSE)),"",VLOOKUP($A21,'Entry List'!$A$1:$F$61,E$5,FALSE)) -> Stewart-Haas Racing | G21: 6 | H21: 31 | I21: 12 | J21: 25 | K21: 23 | L21: 14 | M21: 5 | N21: 35 | O21: 17 | P21: 30 | Q21: 22 | R21: 35 | S21: 16 | T21: 21 | U21: 16 | V21: 21 | W21: 2 | X21: 40 | Y21: 20 | Z21: 27 | AA21: 17 | AB21: 29 | AC21: 11 | AD21: 28 | AE21: 25 | AF21: 12 | AG21: 7 | AH21: 30 | AI21: 8 | AJ21: 29 | AK21: 16 | AL21: 23 | AM21: 14 | AN21: 25 | AO21: 5 | AP21: 38 | AQ21: 14 | AR21: 23 | AS21: 18 | AT21: 28 | AU21: 19 | AV21: 20 | AW21: 14 | AX21: 39 | AY21: 6 | AZ21: 47 | BA21: 6 | BB21: 46 | BC21: 16 | BD21: 21 | BE21: =IF('Last Race Results'!$B$5=0,0,IF(ISNA(VLOOKUP($A21,'Last Race Results'!$A$5:$J$44,2,FALSE)),"DNS",VLOOKUP($A21,'Last Race Results'!$A$5:$J$44,2,FALSE))) -> 19 | BF21: =IF('Last Race Results'!$B$5=0,0,IF(ISNA(VLOOKUP($A21,'Last Race Results'!$A$5:$K$44,11,FALSE)),0,VLOOKUP($A21,'Last Race Results'!$A$5:$K$44,11,FALSE))) -> 26 | BY21: =IF('Last Race Results'!$B$5=0,0,IF(ISNA(VLOOKUP($A21,'Last Race Results'!$A$5:$J$44,2,FALSE)),"DNS",VLOOKUP($A21,'Last Race Results'!$A$5:$J$44,2,FALSE))) -> 19 | BZ21: =IF('Last Race Results'!$B$5=0,0,IF(ISNA(VLOOKUP($A21,'Last Race Results'!$A$5:$J$44,11,FALSE)),0,VLOOKUP($A21,'Last Race Results'!$A$5:$J$44,11,FALSE))) -> 
A22: 15 | B22: =IF(ISNA(VLOOKUP($A22,'Entry List'!$A$1:$F$61,B$5,FALSE)),"",VLOOKUP($A22,'Entry List'!$A$1:$F$61,B$5,FALSE)) -> Brennan Poole (R) | C22: =IF(ISNA(VLOOKUP($A22,'Entry List'!$A$1:$F$61,C$5,FALSE)),"",VLOOKUP($A22,'Entry List'!$A$1:$F$61,C$5,FALSE)) -> Chevrolet | D22: =IF(ISNA(VLOOKUP($A22,'Entry List'!$A$1:$F$61,D$5,FALSE)),"",VLOOKUP($A22,'Entry List'!$A$1:$F$61,D$5,FALSE)) -> Premium Motorsports | E22: =IF(ISNA(VLOOKUP($A22,'Entry List'!$A$1:$F$61,E$5,FALSE)),"",VLOOKUP($A22,'Entry List'!$A$1:$F$61,E$5,FALSE)) -> Premium Motorsports | G22: 16 | H22: 21 | I22: 29 | J22: 8 | K22: 32 | L22: 5 | M22: 31 | N22: 6 | O22: 27 | P22: 10 | Q22: 37 | R22: 1 | S22: 38 | T22: 1 | U22: 38 | V22: 1 | W22: 24 | X22: 13 | Y22: 30 | Z22: 7 | AA22: 30 | AB22: 7 | AC22: 32 | AD22: 5 | AE22: 35 | AF22: 2 | AG22: 29 | AH22: 8 | AI22: 27 | AJ22: 10 | AK22: 35 | AL22: 2 | AM22: 31 | AN22: 6 | AO22: 22 | AP22: 15 | AQ22: 30 | AR22: 7 | AS22: 27 | AT22: 10 | AU22: 37 | AV22: 1 | AW22: 30 | AX22: 7 | AY22: 28 | AZ22: 9 | BA22: 36 | BB22: 1 | BC22: 30 | BD22: 7 | BE22: =IF('Last Race Results'!$B$5=0,0,IF(ISNA(VLOOKUP($A22,'Last Race Results'!$A$5:$J$44,2,FALSE)),"DNS",VLOOKUP($A22,'Last Race Results'!$A$5:$J$44,2,FALSE))) -> 15 | BF22: =IF('Last Race Results'!$B$5=0,0,IF(ISNA(VLOOKUP($A22,'Last Race Results'!$A$5:$K$44,11,FALSE)),0,VLOOKUP($A22,'Last Race Results'!$A$5:$K$44,11,FALSE))) -> 22 | BY22: =IF('Last Race Results'!$B$5=0,0,IF(ISNA(VLOOKUP($A22,'Last Race Results'!$A$5:$J$44,2,FALSE)),"DNS",VLOOKUP($A22,'Last Race Results'!$A$5:$J$44,2,FALSE))) -> 15 | BZ22: =IF('Last Race Results'!$B$5=0,0,IF(ISNA(VLOOKUP($A22,'Last Race Results'!$A$5:$J$44,11,FALSE)),0,VLOOKUP($A22,'Last Race Results'!$A$5:$J$44,11,FALSE))) -> 
A23: 16 | B23: =IF(ISNA(VLOOKUP($A23,'Entry List'!$A$1:$F$61,B$5,FALSE)),"",VLOOKUP($A23,'Entry List'!$A$1:$F$61,B$5,FALSE)) ->  | C23: =IF(ISNA(VLOOKUP($A23,'Entry List'!$A$1:$F$61,C$5,FALSE)),"",VLOOKUP($A23,'Entry List'!$A$1:$F$61,C$5,FALSE)) ->  | D23: =IF(ISNA(VLOOKUP($A23,'Entry List'!$A$1:$F$61,D$5,FALSE)),"",VLOOKUP($A23,'Entry List'!$A$1:$F$61,D$5,FALSE)) ->  | E23: =IF(ISNA(VLOOKUP($A23,'Entry List'!$A$1:$F$61,E$5,FALSE)),"",VLOOKUP($A23,'Entry List'!$A$1:$F$61,E$5,FALSE)) ->  | G23: 13 | H23: 24 | I23: DNS | J23: 0 | K23: DNS | L23: 0 | M23: DNS | N23: 0 | O23: DNS | P23: 0 | Q23: DNS | R23: 0 | S23: DNS | T23: 0 | U23: DNS | V23: 0 | W23: DNS | X23: 0 | Y23: DNS | Z23: 0 | AA23: DNS | AB23: 0 | AC23: DNS | AD23: 0 | AE23: DNS | AF23: 0 | AG23: DNS | AH23: 0 | AI23: DNS | AJ23: 0 | AK23: DNS | AL23: 0 | AM23: DNS | AN23: 0 | AO23: DNS | AP23: 0 | AQ23: DNS | AR23: 0 | AS23: DNS | AT23: 0 | AU23: DNS | AV23: 0 | AW23: DNS | AX23: 0 | AY23: DNS | AZ23: 0 | BA23: DNS | BB23: 0 | BC23: DNS | BD23: 0 | BE23: =IF('Last Race Results'!$B$5=0,0,IF(ISNA(VLOOKUP($A23,'Last Race Results'!$A$5:$J$44,2,FALSE)),"DNS",VLOOKUP($A23,'Last Race Results'!$A$5:$J$44,2,FALSE))) -> DNS | BF23: =IF('Last Race Results'!$B$5=0,0,IF(ISNA(VLOOKUP($A23,'Last Race Results'!$A$5:$K$44,11,FALSE)),0,VLOOKUP($A23,'Last Race Results'!$A$5:$K$44,11,FALSE))) -> 0 | BY23: =IF('Last Race Results'!$B$5=0,0,IF(ISNA(VLOOKUP($A23,'Last Race Results'!$A$5:$J$44,2,FALSE)),"DNS",VLOOKUP($A23,'Last Race Results'!$A$5:$J$44,2,FALSE))) -> DNS | BZ23: =IF('Last Race Results'!$B$5=0,0,IF(ISNA(VLOOKUP($A23,'Last Race Results'!$A$5:$J$44,11,FALSE)),0,VLOOKUP($A23,'Last Race Results'!$A$5:$J$44,11,FALSE))) -> 0
A24: 17 | B24: =IF(ISNA(VLOOKUP($A24,'Entry List'!$A$1:$F$61,B$5,FALSE)),"",VLOOKUP($A24,'Entry List'!$A$1:$F$61,B$5,FALSE)) -> Chris Buescher | C24: =IF(ISNA(VLOOKUP($A24,'Entry List'!$A$1:$F$61,C$5,FALSE)),"",VLOOKUP($A24,'Entry List'!$A$1:$F$61,C$5,FALSE)) -> Ford | D24: =IF(ISNA(VLOOKUP($A24,'Entry List'!$A$1:$F$61,D$5,FALSE)),"",VLOOKUP($A24,'Entry List'!$A$1:$F$61,D$5,FALSE)) -> Roush Fenway Racing | E24: =IF(ISNA(VLOOKUP($A24,'Entry List'!$A$1:$F$61,E$5,FALSE)),"",VLOOKUP($A24,'Entry List'!$A$1:$F$61,E$5,FALSE)) -> Roush Fenway Racing | G24: 3 | H24: 38 | I24: 14 | J24: 23 | K24: 16 | L24: 21 | M24: 17 | N24: 20 | O24: 32 | P24: 5 | Q24: 23 | R24: 14 | S24: 22 | T24: 16 | U24: 22 | V24: 16 | W24: 23 | X24: 15 | Y24: 22 | Z24: 15 | AA24: 13 | AB24: 24 | AC24: 23 | AD24: 15 | AE24: 6 | AF24: 33 | AG24: 10 | AH24: 27 | AI24: 36 | AJ24: 5 | AK24: 31 | AL24: 6 | AM24: 20 | AN24: 17 | AO24: 31 | AP24: 6 | AQ24: 33 | AR24: 4 | AS24: 25 | AT24: 12 | AU24: 20 | AV24: 17 | AW24: 20 | AX24: 17 | AY24: 5 | AZ24: 32 | BA24: 16 | BB24: 23 | BC24: 14 | BD24: 23 | BE24: =IF('Last Race Results'!$B$5=0,0,IF(ISNA(VLOOKUP($A24,'Last Race Results'!$A$5:$J$44,2,FALSE)),"DNS",VLOOKUP($A24,'Last Race Results'!$A$5:$J$44,2,FALSE))) -> 9 | BF24: =IF('Last Race Results'!$B$5=0,0,IF(ISNA(VLOOKUP($A24,'Last Race Results'!$A$5:$K$44,11,FALSE)),0,VLOOKUP($A24,'Last Race Results'!$A$5:$K$44,11,FALSE))) -> 28 | BY24: =IF('Last Race Results'!$B$5=0,0,IF(ISNA(VLOOKUP($A24,'Last Race Results'!$A$5:$J$44,2,FALSE)),"DNS",VLOOKUP($A24,'Last Race Results'!$A$5:$J$44,2,FALSE))) -> 9 | BZ24: =IF('Last Race Results'!$B$5=0,0,IF(ISNA(VLOOKUP($A24,'Last Race Results'!$A$5:$J$44,11,FALSE)),0,VLOOKUP($A24,'Last Race Results'!$A$5:$J$44,11,FALSE))) -> 
A25: 18 | B25: =IF(ISNA(VLOOKUP($A25,'Entry List'!$A$1:$F$61,B$5,FALSE)),"",VLOOKUP($A25,'Entry List'!$A$1:$F$61,B$5,FALSE)) -> Kyle Busch | C25: =IF(ISNA(VLOOKUP($A25,'Entry List'!$A$1:$F$61,C$5,FALSE)),"",VLOOKUP($A25,'Entry List'!$A$1:$F$61,C$5,FALSE)) -> Toyota | D25: =IF(ISNA(VLOOKUP($A25,'Entry List'!$A$1:$F$61,D$5,FALSE)),"",VLOOKUP($A25,'Entry List'!$A$1:$F$61,D$5,FALSE)) -> Joe Gibbs Racing | E25: =IF(ISNA(VLOOKUP($A25,'Entry List'!$A$1:$F$61,E$5,FALSE)),"",VLOOKUP($A25,'Entry List'!$A$1:$F$61,E$5,FALSE)) -> Joe Gibbs Racing | G25: 34 | H25: 12 | I25: 15 | J25: 23 | K25: 2 | L25: 40 | M25: 3 | N25: 46 | O25: 26 | P25: 11 | Q25: 2 | R25: 35 | S25: 29 | T25: 8 | U25: 29 | V25: 8 | W25: 4 | X25: 39 | Y25: 2 | Z25: 52 | AA25: 19 | AB25: 18 | AC25: 6 | AD25: 33 | AE25: 32 | AF25: 19 | AG25: 5 | AH25: 42 | AI25: 38 | AJ25: 3 | AK25: 6 | AL25: 38 | AM25: 21 | AN25: 16 | AO25: 37 | AP25: 5 | AQ25: 11 | AR25: 42 | AS25: 38 | AT25: 1 | AU25: 5 | AV25: 39 | AW25: 4 | AX25: 49 | AY25: 37 | AZ25: 1 | BA25: 3 | BB25: 41 | BC25: 11 | BD25: 26 | BE25: =IF('Last Race Results'!$B$5=0,0,IF(ISNA(VLOOKUP($A25,'Last Race Results'!$A$5:$J$44,2,FALSE)),"DNS",VLOOKUP($A25,'Last Race Results'!$A$5:$J$44,2,FALSE))) -> 33 | BF25: =IF('Last Race Results'!$B$5=0,0,IF(ISNA(VLOOKUP($A25,'Last Race Results'!$A$5:$K$44,11,FALSE)),0,VLOOKUP($A25,'Last Race Results'!$A$5:$K$44,11,FALSE))) -> 5 | BY25: =IF('Last Race Results'!$B$5=0,0,IF(ISNA(VLOOKUP($A25,'Last Race Results'!$A$5:$J$44,2,FALSE)),"DNS",VLOOKUP($A25,'Last Race Results'!$A$5:$J$44,2,FALSE))) -> 33 | BZ25: =IF('Last Race Results'!$B$5=0,0,IF(ISNA(VLOOKUP($A25,'Last Race Results'!$A$5:$J$44,11,FALSE)),0,VLOOKUP($A25,'Last Race Results'!$A$5:$J$44,11,FALSE))) -> 
A26: 19 | B26: =IF(ISNA(VLOOKUP($A26,'Entry List'!$A$1:$F$61,B$5,FALSE)),"",VLOOKUP($A26,'Entry List'!$A$1:$F$61,B$5,FALSE)) -> Martin Truex Jr. | C26: =IF(ISNA(VLOOKUP($A26,'Entry List'!$A$1:$F$61,C$5,FALSE)),"",VLOOKUP($A26,'Entry List'!$A$1:$F$61,C$5,FALSE)) -> Toyota | D26: =IF(ISNA(VLOOKUP($A26,'Entry List'!$A$1:$F$61,D$5,FALSE)),"",VLOOKUP($A26,'Entry List'!$A$1:$F$61,D$5,FALSE)) -> Joe Gibbs Racing | E26: =IF(ISNA(VLOOKUP($A26,'Entry List'!$A$1:$F$61,E$5,FALSE)),"",VLOOKUP($A26,'Entry List'!$A$1:$F$61,E$5,FALSE)) -> Joe Gibbs Racing | G26: 32 | H26: 16 | I26: 20 | J26: 34 | K26: 14 | L26: 29 | M26: 32 | N26: 17 | O26: 6 | P26: 39 | Q26: 10 | R26: 44 | S26: 9 | T26: 28 | U26: 9 | V26: 28 | W26: 20 | X26: 17 | Y26: 3 | Z26: 54 | AA26: 1 | AB26: 47 | AC26: 12 | AD26: 29 | AE26: 24 | AF26: 13 | AG26: 6 | AH26: 39 | AI26: 10 | AJ26: 37 | AK26: 38 | AL26: 1 | AM26: 2 | AN26: 42 | AO26: 27 | AP26: 10 | AQ26: 3 | AR26: 45 | AS26: 3 | AT26: 46 | AU26: 3 | AV26: 34 | AW26: 3 | AX26: 34 | AY26: 3 | AZ26: 37 | BA26: 2 | BB26: 50 | BC26: 2 | BD26: 42 | BE26: =IF('Last Race Results'!$B$5=0,0,IF(ISNA(VLOOKUP($A26,'Last Race Results'!$A$5:$J$44,2,FALSE)),"DNS",VLOOKUP($A26,'Last Race Results'!$A$5:$J$44,2,FALSE))) -> 4 | BF26: =IF('Last Race Results'!$B$5=0,0,IF(ISNA(VLOOKUP($A26,'Last Race Results'!$A$5:$K$44,11,FALSE)),0,VLOOKUP($A26,'Last Race Results'!$A$5:$K$44,11,FALSE))) -> 42 | BY26: =IF('Last Race Results'!$B$5=0,0,IF(ISNA(VLOOKUP($A26,'Last Race Results'!$A$5:$J$44,2,FALSE)),"DNS",VLOOKUP($A26,'Last Race Results'!$A$5:$J$44,2,FALSE))) -> 4 | BZ26: =IF('Last Race Results'!$B$5=0,0,IF(ISNA(VLOOKUP($A26,'Last Race Results'!$A$5:$J$44,11,FALSE)),0,VLOOKUP($A26,'Last Race Results'!$A$5:$J$44,11,FALSE))) -> 
A27: 20 | B27: =IF(ISNA(VLOOKUP($A27,'Entry List'!$A$1:$F$61,B$5,FALSE)),"",VLOOKUP($A27,'Entry List'!$A$1:$F$61,B$5,FALSE)) -> Erik Jones | C27: =IF(ISNA(VLOOKUP($A27,'Entry List'!$A$1:$F$61,C$5,FALSE)),"",VLOOKUP($A27,'Entry List'!$A$1:$F$61,C$5,FALSE)) -> Toyota | D27: =IF(ISNA(VLOOKUP($A27,'Entry List'!$A$1:$F$61,D$5,FALSE)),"",VLOOKUP($A27,'Entry List'!$A$1:$F$61,D$5,FALSE)) -> Joe Gibbs Racing | E27: =IF(ISNA(VLOOKUP($A27,'Entry List'!$A$1:$F$61,E$5,FALSE)),"",VLOOKUP($A27,'Entry List'!$A$1:$F$61,E$5,FALSE)) -> Joe Gibbs Racing | G27: 18 | H27: 24 | I27: 23 | J27: 14 | K27: 10 | L27: 29 | M27: 28 | N27: 9 | O27: 8 | P27: 30 | Q27: 5 | R27: 39 | S27: 26 | T27: 11 | U27: 26 | V27: 11 | W27: 5 | X27: 35 | Y27: 28 | Z27: 12 | AA27: 20 | AB27: 17 | AC27: 21 | AD27: 16 | AE27: 5 | AF27: 32 | AG27: 38 | AH27: 2 | AI27: 3 | AJ27: 34 | AK27: 33 | AL27: 13 | AM27: 22 | AN27: 16 | AO27: 39 | AP27: 1 | AQ27: 5 | AR27: 37 | AS27: 24 | AT27: 13 | AU27: 11 | AV27: 38 | AW27: 27 | AX27: 20 | AY27: 11 | AZ27: 31 | BA27: 12 | BB27: 25 | BC27: 22 | BD27: 15 | BE27: =IF('Last Race Results'!$B$5=0,0,IF(ISNA(VLOOKUP($A27,'Last Race Results'!$A$5:$J$44,2,FALSE)),"DNS",VLOOKUP($A27,'Last Race Results'!$A$5:$J$44,2,FALSE))) -> 35 | BF27: =IF('Last Race Results'!$B$5=0,0,IF(ISNA(VLOOKUP($A27,'Last Race Results'!$A$5:$K$44,11,FALSE)),0,VLOOKUP($A27,'Last Race Results'!$A$5:$K$44,11,FALSE))) -> 11 | BY27: =IF('Last Race Results'!$B$5=0,0,IF(ISNA(VLOOKUP($A27,'Last Race Results'!$A$5:$J$44,2,FALSE)),"DNS",VLOOKUP($A27,'Last Race Results'!$A$5:$J$44,2,FALSE))) -> 35 | BZ27: =IF('Last Race Results'!$B$5=0,0,IF(ISNA(VLOOKUP($A27,'Last Race Results'!$A$5:$J$44,11,FALSE)),0,VLOOKUP($A27,'Last Race Results'!$A$5:$J$44,11,FALSE))) -> 
A28: 21 | B28: =IF(ISNA(VLOOKUP($A28,'Entry List'!$A$1:$F$61,B$5,FALSE)),"",VLOOKUP($A28,'Entry List'!$A$1:$F$61,B$5,FALSE)) -> Matt DiBenedetto | C28: =IF(ISNA(VLOOKUP($A28,'Entry List'!$A$1:$F$61,C$5,FALSE)),"",VLOOKUP($A28,'Entry List'!$A$1:$F$61,C$5,FALSE)) -> Ford | D28: =IF(ISNA(VLOOKUP($A28,'Entry List'!$A$1:$F$61,D$5,FALSE)),"",VLOOKUP($A28,'Entry List'!$A$1:$F$61,D$5,FALSE)) -> Wood Brothers Racing | E28: =IF(ISNA(VLOOKUP($A28,'Entry List'!$A$1:$F$61,E$5,FALSE)),"",VLOOKUP($A28,'Entry List'!$A$1:$F$61,E$5,FALSE)) -> Wood Brothers Racing | G28: 19 | H28: 25 | I28: 2 | J28: 35 | K28: 13 | L28: 27 | M28: 13 | N28: 31 | O28: 14 | P28: 23 | Q28: 9 | R28: 29 | S28: 15 | T28: 30 | U28: 15 | V28: 30 | W28: 31 | X28: 10 | Y28: 25 | Z28: 16 | AA28: 7 | AB28: 32 | AC28: 14 | AD28: 23 | AE28: 26 | AF28: 11 | AG28: 13 | AH28: 34 | AI28: 6 | AJ28: 38 | AK28: 19 | AL28: 29 | AM28: 3 | AN28: 43 | AO28: 10 | AP28: 27 | AQ28: 36 | AR28: 1 | AS28: 6 | AT28: 32 | AU28: 15 | AV28: 22 | AW28: 7 | AX28: 37 | AY28: 15 | AZ28: 28 | BA28: 20 | BB28: 17 | BC28: 17 | BD28: 24 | BE28: =IF('Last Race Results'!$B$5=0,0,IF(ISNA(VLOOKUP($A28,'Last Race Results'!$A$5:$J$44,2,FALSE)),"DNS",VLOOKUP($A28,'Last Race Results'!$A$5:$J$44,2,FALSE))) -> 12 | BF28: =IF('Last Race Results'!$B$5=0,0,IF(ISNA(VLOOKUP($A28,'Last Race Results'!$A$5:$K$44,11,FALSE)),0,VLOOKUP($A28,'Last Race Results'!$A$5:$K$44,11,FALSE))) -> 29 | BY28: =IF('Last Race Results'!$B$5=0,0,IF(ISNA(VLOOKUP($A28,'Last Race Results'!$A$5:$J$44,2,FALSE)),"DNS",VLOOKUP($A28,'Last Race Results'!$A$5:$J$44,2,FALSE))) -> 12 | BZ28: =IF('Last Race Results'!$B$5=0,0,IF(ISNA(VLOOKUP($A28,'Last Race Results'!$A$5:$J$44,11,FALSE)),0,VLOOKUP($A28,'Last Race Results'!$A$5:$J$44,11,FALSE))) -> 
A29: 22 | B29: =IF(ISNA(VLOOKUP($A29,'Entry List'!$A$1:$F$61,B$5,FALSE)),"",VLOOKUP($A29,'Entry List'!$A$1:$F$61,B$5,FALSE)) -> Joey Logano | C29: =IF(ISNA(VLOOKUP($A29,'Entry List'!$A$1:$F$61,C$5,FALSE)),"",VLOOKUP($A29,'Entry List'!$A$1:$F$61,C$5,FALSE)) -> Ford | D29: =IF(ISNA(VLOOKUP($A29,'Entry List'!$A$1:$F$61,D$5,FALSE)),"",VLOOKUP($A29,'Entry List'!$A$1:$F$61,D$5,FALSE)) -> Team Penske | E29: =IF(ISNA(VLOOKUP($A29,'Entry List'!$A$1:$F$61,E$5,FALSE)),"",VLOOKUP($A29,'Entry List'!$A$1:$F$61,E$5,FALSE)) -> Team Penske | G29: 26 | H29: 30 | I29: 1 | J29: 52 | K29: 12 | L29: 29 | M29: 1 | N29: 52 | O29: 18 | P29: 22 | Q29: 6 | R29: 39 | S29: 6 | T29: 49 | U29: 6 | V29: 49 | W29: 21 | X29: 29 | Y29: 10 | Z29: 27 | AA29: 4 | AB29: 51 | AC29: 27 | AD29: 10 | AE29: 16 | AF29: 34 | AG29: 36 | AH29: 20 | AI29: 24 | AJ29: 13 | AK29: 10 | AL29: 27 | AM29: 15 | AN29: 37 | AO29: 2 | AP29: 52 | AQ29: 35 | AR29: 2 | AS29: 4 | AT29: 44 | AU29: 8 | AV29: 29 | AW29: 5 | AX29: 35 | AY29: 9 | AZ29: 37 | BA29: 8 | BB29: 37 | BC29: 6 | BD29: 45 | BE29: =IF('Last Race Results'!$B$5=0,0,IF(ISNA(VLOOKUP($A29,'Last Race Results'!$A$5:$J$44,2,FALSE)),"DNS",VLOOKUP($A29,'Last Race Results'!$A$5:$J$44,2,FALSE))) -> 27 | BF29: =IF('Last Race Results'!$B$5=0,0,IF(ISNA(VLOOKUP($A29,'Last Race Results'!$A$5:$K$44,11,FALSE)),0,VLOOKUP($A29,'Last Race Results'!$A$5:$K$44,11,FALSE))) -> 30 | BY29: =IF('Last Race Results'!$B$5=0,0,IF(ISNA(VLOOKUP($A29,'Last Race Results'!$A$5:$J$44,2,FALSE)),"DNS",VLOOKUP($A29,'Last Race Results'!$A$5:$J$44,2,FALSE))) -> 27 | BZ29: =IF('Last Race Results'!$B$5=0,0,IF(ISNA(VLOOKUP($A29,'Last Race Results'!$A$5:$J$44,11,FALSE)),0,VLOOKUP($A29,'Last Race Results'!$A$5:$J$44,11,FALSE))) -> 
A30: 23 | B30: =IF(ISNA(VLOOKUP($A30,'Entry List'!$A$1:$F$61,B$5,FALSE)),"",VLOOKUP($A30,'Entry List'!$A$1:$F$61,B$5,FALSE)) ->  | C30: =IF(ISNA(VLOOKUP($A30,'Entry List'!$A$1:$F$61,C$5,FALSE)),"",VLOOKUP($A30,'Entry List'!$A$1:$F$61,C$5,FALSE)) ->  | D30: =IF(ISNA(VLOOKUP($A30,'Entry List'!$A$1:$F$61,D$5,FALSE)),"",VLOOKUP($A30,'Entry List'!$A$1:$F$61,D$5,FALSE)) ->  | E30: =IF(ISNA(VLOOKUP($A30,'Entry List'!$A$1:$F$61,E$5,FALSE)),"",VLOOKUP($A30,'Entry List'!$A$1:$F$61,E$5,FALSE)) ->  | G30: DNS | H30: 0 | I30: DNS | J30: 0 | K30: DNS | L30: 0 | M30: DNS | N30: 0 | O30: DNS | P30: 0 | Q30: DNS | R30: 0 | S30: DNS | T30: 0 | U30: DNS | V30: 0 | W30: DNS | X30: 0 | Y30: DNS | Z30: 0 | AA30: DNS | AB30: 0 | AC30: DNS | AD30: 0 | AE30: DNS | AF30: 0 | AG30: DNS | AH30: 0 | AI30: DNS | AJ30: 0 | AK30: DNS | AL30: 0 | AM30: DNS | AN30: 0 | AO30: DNS | AP30: 0 | AQ30: DNS | AR30: 0 | AS30: DNS | AT30: 0 | AU30: DNS | AV30: 0 | AW30: DNS | AX30: 0 | AY30: DNS | AZ30: 0 | BA30: DNS | BB30: 0 | BC30: DNS | BD30: 0 | BE30: =IF('Last Race Results'!$B$5=0,0,IF(ISNA(VLOOKUP($A30,'Last Race Results'!$A$5:$J$44,2,FALSE)),"DNS",VLOOKUP($A30,'Last Race Results'!$A$5:$J$44,2,FALSE))) -> DNS | BF30: =IF('Last Race Results'!$B$5=0,0,IF(ISNA(VLOOKUP($A30,'Last Race Results'!$A$5:$K$44,11,FALSE)),0,VLOOKUP($A30,'Last Race Results'!$A$5:$K$44,11,FALSE))) -> 0 | BY30: =IF('Last Race Results'!$B$5=0,0,IF(ISNA(VLOOKUP($A30,'Last Race Results'!$A$5:$J$44,2,FALSE)),"DNS",VLOOKUP($A30,'Last Race Results'!$A$5:$J$44,2,FALSE))) -> DNS | BZ30: =IF('Last Race Results'!$B$5=0,0,IF(ISNA(VLOOKUP($A30,'Last Race Results'!$A$5:$J$44,11,FALSE)),0,VLOOKUP($A30,'Last Race Results'!$A$5:$J$44,11,FALSE))) -> 0
A31: 24 | B31: =IF(ISNA(VLOOKUP($A31,'Entry List'!$A$1:$F$61,B$5,FALSE)),"",VLOOKUP($A31,'Entry List'!$A$1:$F$61,B$5,FALSE)) -> William Byron | C31: =IF(ISNA(VLOOKUP($A31,'Entry List'!$A$1:$F$61,C$5,FALSE)),"",VLOOKUP($A31,'Entry List'!$A$1:$F$61,C$5,FALSE)) -> Chevrolet | D31: =IF(ISNA(VLOOKUP($A31,'Entry List'!$A$1:$F$61,D$5,FALSE)),"",VLOOKUP($A31,'Entry List'!$A$1:$F$61,D$5,FALSE)) -> Hendrick Motorsports | E31: =IF(ISNA(VLOOKUP($A31,'Entry List'!$A$1:$F$61,E$5,FALSE)),"",VLOOKUP($A31,'Entry List'!$A$1:$F$61,E$5,FALSE)) -> Hendrick Motorsports | G31: 40 | H31: 11 | I31: 22 | J31: 27 | K31: 15 | L31: 22 | M31: 10 | N31: 27 | O31: 35 | P31: 12 | Q31: 12 | R31: 30 | S31: 12 | T31: 25 | U31: 12 | V31: 25 | W31: 8 | X31: 33 | Y31: 33 | Z31: 4 | AA31: 8 | AB31: 34 | AC31: 9 | AD31: 37 | AE31: 11 | AF31: 28 | AG31: 14 | AH31: 23 | AI31: 7 | AJ31: 30 | AK31: 27 | AL31: 20 | AM31: 11 | AN31: 26 | AO31: 4 | AP31: 35 | AQ31: 10 | AR31: 27 | AS31: 11 | AT31: 32 | AU31: 14 | AV31: 23 | AW31: 12 | AX31: 30 | AY31: 8 | AZ31: 40 | BA31: 28 | BB31: 9 | BC31: 4 | BD31: 46 | BE31: =IF('Last Race Results'!$B$5=0,0,IF(ISNA(VLOOKUP($A31,'Last Race Results'!$A$5:$J$44,2,FALSE)),"DNS",VLOOKUP($A31,'Last Race Results'!$A$5:$J$44,2,FALSE))) -> 1 | BF31: =IF('Last Race Results'!$B$5=0,0,IF(ISNA(VLOOKUP($A31,'Last Race Results'!$A$5:$K$44,11,FALSE)),0,VLOOKUP($A31,'Last Race Results'!$A$5:$K$44,11,FALSE))) -> 44 | BY31: =IF('Last Race Results'!$B$5=0,0,IF(ISNA(VLOOKUP($A31,'Last Race Results'!$A$5:$J$44,2,FALSE)),"DNS",VLOOKUP($A31,'Last Race Results'!$A$5:$J$44,2,FALSE))) -> 1 | BZ31: =IF('Last Race Results'!$B$5=0,0,IF(ISNA(VLOOKUP($A31,'Last Race Results'!$A$5:$J$44,11,FALSE)),0,VLOOKUP($A31,'Last Race Results'!$A$5:$J$44,11,FALSE))) -> 
A32: 25 | B32: =IF(ISNA(VLOOKUP($A32,'Entry List'!$A$1:$F$61,B$5,FALSE)),"",VLOOKUP($A32,'Entry List'!$A$1:$F$61,B$5,FALSE)) ->  | C32: =IF(ISNA(VLOOKUP($A32,'Entry List'!$A$1:$F$61,C$5,FALSE)),"",VLOOKUP($A32,'Entry List'!$A$1:$F$61,C$5,FALSE)) ->  | D32: =IF(ISNA(VLOOKUP($A32,'Entry List'!$A$1:$F$61,D$5,FALSE)),"",VLOOKUP($A32,'Entry List'!$A$1:$F$61,D$5,FALSE)) ->  | E32: =IF(ISNA(VLOOKUP($A32,'Entry List'!$A$1:$F$61,E$5,FALSE)),"",VLOOKUP($A32,'Entry List'!$A$1:$F$61,E$5,FALSE)) ->  | G32: DNS | H32: 0 | I32: DNS | J32: 0 | K32: DNS | L32: 0 | M32: DNS | N32: 0 | O32: DNS | P32: 0 | Q32: DNS | R32: 0 | S32: DNS | T32: 0 | U32: DNS | V32: 0 | W32: DNS | X32: 0 | Y32: DNS | Z32: 0 | AA32: DNS | AB32: 0 | AC32: DNS | AD32: 0 | AE32: DNS | AF32: 0 | AG32: DNS | AH32: 0 | AI32: DNS | AJ32: 0 | AK32: DNS | AL32: 0 | AM32: DNS | AN32: 0 | AO32: DNS | AP32: 0 | AQ32: DNS | AR32: 0 | AS32: DNS | AT32: 0 | AU32: DNS | AV32: 0 | AW32: DNS | AX32: 0 | AY32: DNS | AZ32: 0 | BA32: DNS | BB32: 0 | BC32: DNS | BD32: 0 | BE32: =IF('Last Race Results'!$B$5=0,0,IF(ISNA(VLOOKUP($A32,'Last Race Results'!$A$5:$J$44,2,FALSE)),"DNS",VLOOKUP($A32,'Last Race Results'!$A$5:$J$44,2,FALSE))) -> DNS | BF32: =IF('Last Race Results'!$B$5=0,0,IF(ISNA(VLOOKUP($A32,'Last Race Results'!$A$5:$K$44,11,FALSE)),0,VLOOKUP($A32,'Last Race Results'!$A$5:$K$44,11,FALSE))) -> 0 | BY32: =IF('Last Race Results'!$B$5=0,0,IF(ISNA(VLOOKUP($A32,'Last Race Results'!$A$5:$J$44,2,FALSE)),"DNS",VLOOKUP($A32,'Last Race Results'!$A$5:$J$44,2,FALSE))) -> DNS | BZ32: =IF('Last Race Results'!$B$5=0,0,IF(ISNA(VLOOKUP($A32,'Last Race Results'!$A$5:$J$44,11,FALSE)),0,VLOOKUP($A32,'Last Race Results'!$A$5:$J$44,11,FALSE))) -> 0
A33: 26 | B33: =IF(ISNA(VLOOKUP($A33,'Entry List'!$A$1:$F$61,B$5,FALSE)),"",VLOOKUP($A33,'Entry List'!$A$1:$F$61,B$5,FALSE)) ->  | C33: =IF(ISNA(VLOOKUP($A33,'Entry List'!$A$1:$F$61,C$5,FALSE)),"",VLOOKUP($A33,'Entry List'!$A$1:$F$61,C$5,FALSE)) ->  | D33: =IF(ISNA(VLOOKUP($A33,'Entry List'!$A$1:$F$61,D$5,FALSE)),"",VLOOKUP($A33,'Entry List'!$A$1:$F$61,D$5,FALSE)) ->  | E33: =IF(ISNA(VLOOKUP($A33,'Entry List'!$A$1:$F$61,E$5,FALSE)),"",VLOOKUP($A33,'Entry List'!$A$1:$F$61,E$5,FALSE)) ->  | G33: DNS | H33: 0 | I33: DNS | J33: 0 | K33: DNS | L33: 0 | M33: DNS | N33: 0 | O33: DNS | P33: 0 | Q33: DNS | R33: 0 | S33: DNS | T33: 0 | U33: DNS | V33: 0 | W33: DNS | X33: 0 | Y33: DNS | Z33: 0 | AA33: DNS | AB33: 0 | AC33: DNS | AD33: 0 | AE33: DNS | AF33: 0 | AG33: DNS | AH33: 0 | AI33: DNS | AJ33: 0 | AK33: DNS | AL33: 0 | AM33: DNS | AN33: 0 | AO33: DNS | AP33: 0 | AQ33: DNS | AR33: 0 | AS33: DNS | AT33: 0 | AU33: DNS | AV33: 0 | AW33: DNS | AX33: 0 | AY33: DNS | AZ33: 0 | BA33: DNS | BB33: 0 | BC33: DNS | BD33: 0 | BE33: =IF('Last Race Results'!$B$5=0,0,IF(ISNA(VLOOKUP($A33,'Last Race Results'!$A$5:$J$44,2,FALSE)),"DNS",VLOOKUP($A33,'Last Race Results'!$A$5:$J$44,2,FALSE))) -> DNS | BF33: =IF('Last Race Results'!$B$5=0,0,IF(ISNA(VLOOKUP($A33,'Last Race Results'!$A$5:$K$44,11,FALSE)),0,VLOOKUP($A33,'Last Race Results'!$A$5:$K$44,11,FALSE))) -> 0 | BY33: =IF('Last Race Results'!$B$5=0,0,IF(ISNA(VLOOKUP($A33,'Last Race Results'!$A$5:$J$44,2,FALSE)),"DNS",VLOOKUP($A33,'Last Race Results'!$A$5:$J$44,2,FALSE))) -> DNS | BZ33: =IF('Last Race Results'!$B$5=0,0,IF(ISNA(VLOOKUP($A33,'Last Race Results'!$A$5:$J$44,11,FALSE)),0,VLOOKUP($A33,'Last Race Results'!$A$5:$J$44,11,FALSE))) -> 0
A34: 27 | B34: =IF(ISNA(VLOOKUP($A34,'Entry List'!$A$1:$F$61,B$5,FALSE)),"",VLOOKUP($A34,'Entry List'!$A$1:$F$61,B$5,FALSE)) ->  | C34: =IF(ISNA(VLOOKUP($A34,'Entry List'!$A$1:$F$61,C$5,FALSE)),"",VLOOKUP($A34,'Entry List'!$A$1:$F$61,C$5,FALSE)) ->  | D34: =IF(ISNA(VLOOKUP($A34,'Entry List'!$A$1:$F$61,D$5,FALSE)),"",VLOOKUP($A34,'Entry List'!$A$1:$F$61,D$5,FALSE)) ->  | E34: =IF(ISNA(VLOOKUP($A34,'Entry List'!$A$1:$F$61,E$5,FALSE)),"",VLOOKUP($A34,'Entry List'!$A$1:$F$61,E$5,FALSE)) ->  | G34: 31 | H34: 6 | I34: DNS | J34: 0 | K34: DNS | L34: 0 | M34: DNS | N34: 0 | O34: 28 | P34: 9 | Q34: 32 | R34: 5 | S34: 30 | T34: 7 | U34: 30 | V34: 7 | W34: 30 | X34: 7 | Y34: 34 | Z34: 3 | AA34: 31 | AB34: 6 | AC34: DNS | AD34: 0 | AE34: 30 | AF34: 7 | AG34: 31 | AH34: 6 | AI34: 28 | AJ34: 9 | AK34: 21 | AL34: 16 | AM34: 30 | AN34: 0 | AO34: 24 | AP34: 13 | AQ34: 22 | AR34: 0 | AS34: 29 | AT34: 8 | AU34: 26 | AV34: 11 | AW34: 29 | AX34: 8 | AY34: 34 | AZ34: 3 | BA34: 31 | BB34: 6 | BC34: 38 | BD34: 1 | BE34: =IF('Last Race Results'!$B$5=0,0,IF(ISNA(VLOOKUP($A34,'Last Race Results'!$A$5:$J$44,2,FALSE)),"DNS",VLOOKUP($A34,'Last Race Results'!$A$5:$J$44,2,FALSE))) -> 40 | BF34: =IF('Last Race Results'!$B$5=0,0,IF(ISNA(VLOOKUP($A34,'Last Race Results'!$A$5:$K$44,11,FALSE)),0,VLOOKUP($A34,'Last Race Results'!$A$5:$K$44,11,FALSE))) -> 1 | BY34: =IF('Last Race Results'!$B$5=0,0,IF(ISNA(VLOOKUP($A34,'Last Race Results'!$A$5:$J$44,2,FALSE)),"DNS",VLOOKUP($A34,'Last Race Results'!$A$5:$J$44,2,FALSE))) -> 40 | BZ34: =IF('Last Race Results'!$B$5=0,0,IF(ISNA(VLOOKUP($A34,'Last Race Results'!$A$5:$J$44,11,FALSE)),0,VLOOKUP($A34,'Last Race Results'!$A$5:$J$44,11,FALSE))) -> 
A35: 28 | B35: =IF(ISNA(VLOOKUP($A35,'Entry List'!$A$1:$F$61,B$5,FALSE)),"",VLOOKUP($A35,'Entry List'!$A$1:$F$61,B$5,FALSE)) ->  | C35: =IF(ISNA(VLOOKUP($A35,'Entry List'!$A$1:$F$61,C$5,FALSE)),"",VLOOKUP($A35,'Entry List'!$A$1:$F$61,C$5,FALSE)) ->  | D35: =IF(ISNA(VLOOKUP($A35,'Entry List'!$A$1:$F$61,D$5,FALSE)),"",VLOOKUP($A35,'Entry List'!$A$1:$F$61,D$5,FALSE)) ->  | E35: =IF(ISNA(VLOOKUP($A35,'Entry List'!$A$1:$F$61,E$5,FALSE)),"",VLOOKUP($A35,'Entry List'!$A$1:$F$61,E$5,FALSE)) ->  | G35: DNS | H35: 0 | I35: DNS | J35: 0 | K35: DNS | L35: 0 | M35: DNS | N35: 0 | O35: DNS | P35: 0 | Q35: DNS | R35: 0 | S35: DNS | T35: 0 | U35: DNS | V35: 0 | W35: DNS | X35: 0 | Y35: DNS | Z35: 0 | AA35: DNS | AB35: 0 | AC35: DNS | AD35: 0 | AE35: DNS | AF35: 0 | AG35: DNS | AH35: 0 | AI35: DNS | AJ35: 0 | AK35: DNS | AL35: 0 | AM35: DNS | AN35: 0 | AO35: DNS | AP35: 0 | AQ35: DNS | AR35: 0 | AS35: DNS | AT35: 0 | AU35: DNS | AV35: 0 | AW35: DNS | AX35: 0 | AY35: DNS | AZ35: 0 | BA35: DNS | BB35: 0 | BC35: DNS | BD35: 0 | BE35: =IF('Last Race Results'!$B$5=0,0,IF(ISNA(VLOOKUP($A35,'Last Race Results'!$A$5:$J$44,2,FALSE)),"DNS",VLOOKUP($A35,'Last Race Results'!$A$5:$J$44,2,FALSE))) -> DNS | BF35: =IF('Last Race Results'!$B$5=0,0,IF(ISNA(VLOOKUP($A35,'Last Race Results'!$A$5:$K$44,11,FALSE)),0,VLOOKUP($A35,'Last Race Results'!$A$5:$K$44,11,FALSE))) -> 0 | BY35: =IF('Last Race Results'!$B$5=0,0,IF(ISNA(VLOOKUP($A35,'Last Race Results'!$A$5:$J$44,2,FALSE)),"DNS",VLOOKUP($A35,'Last Race Results'!$A$5:$J$44,2,FALSE))) -> DNS | BZ35: =IF('Last Race Results'!$B$5=0,0,IF(ISNA(VLOOKUP($A35,'Last Race Results'!$A$5:$J$44,11,FALSE)),0,VLOOKUP($A35,'Last Race Results'!$A$5:$J$44,11,FALSE))) -> 0
A36: 29 | B36: =IF(ISNA(VLOOKUP($A36,'Entry List'!$A$1:$F$61,B$5,FALSE)),"",VLOOKUP($A36,'Entry List'!$A$1:$F$61,B$5,FALSE)) ->  | C36: =IF(ISNA(VLOOKUP($A36,'Entry List'!$A$1:$F$61,C$5,FALSE)),"",VLOOKUP($A36,'Entry List'!$A$1:$F$61,C$5,FALSE)) ->  | D36: =IF(ISNA(VLOOKUP($A36,'Entry List'!$A$1:$F$61,D$5,FALSE)),"",VLOOKUP($A36,'Entry List'!$A$1:$F$61,D$5,FALSE)) ->  | E36: =IF(ISNA(VLOOKUP($A36,'Entry List'!$A$1:$F$61,E$5,FALSE)),"",VLOOKUP($A36,'Entry List'!$A$1:$F$61,E$5,FALSE)) ->  | G36: DNS | H36: 0 | I36: DNS | J36: 0 | K36: DNS | L36: 0 | M36: DNS | N36: 0 | O36: DNS | P36: 0 | Q36: DNS | R36: 0 | S36: DNS | T36: 0 | U36: DNS | V36: 0 | W36: DNS | X36: 0 | Y36: DNS | Z36: 0 | AA36: DNS | AB36: 0 | AC36: DNS | AD36: 0 | AE36: DNS | AF36: 0 | AG36: DNS | AH36: 0 | AI36: DNS | AJ36: 0 | AK36: DNS | AL36: 0 | AM36: DNS | AN36: 0 | AO36: DNS | AP36: 0 | AQ36: DNS | AR36: 0 | AS36: DNS | AT36: 0 | AU36: DNS | AV36: 0 | AW36: DNS | AX36: 0 | AY36: DNS | AZ36: 0 | BA36: DNS | BB36: 0 | BC36: DNS | BD36: 0 | BE36: =IF('Last Race Results'!$B$5=0,0,IF(ISNA(VLOOKUP($A36,'Last Race Results'!$A$5:$J$44,2,FALSE)),"DNS",VLOOKUP($A36,'Last Race Results'!$A$5:$J$44,2,FALSE))) -> DNS | BF36: =IF('Last Race Results'!$B$5=0,0,IF(ISNA(VLOOKUP($A36,'Last Race Results'!$A$5:$K$44,11,FALSE)),0,VLOOKUP($A36,'Last Race Results'!$A$5:$K$44,11,FALSE))) -> 0 | BY36: =IF('Last Race Results'!$B$5=0,0,IF(ISNA(VLOOKUP($A36,'Last Race Results'!$A$5:$J$44,2,FALSE)),"DNS",VLOOKUP($A36,'Last Race Results'!$A$5:$J$44,2,FALSE))) -> DNS | BZ36: =IF('Last Race Results'!$B$5=0,0,IF(ISNA(VLOOKUP($A36,'Last Race Results'!$A$5:$J$44,11,FALSE)),0,VLOOKUP($A36,'Last Race Results'!$A$5:$J$44,11,FALSE))) -> 0
A37: 30 | B37: =IF(ISNA(VLOOKUP($A37,'Entry List'!$A$1:$F$61,B$5,FALSE)),"",VLOOKUP($A37,'Entry List'!$A$1:$F$61,B$5,FALSE)) ->  | C37: =IF(ISNA(VLOOKUP($A37,'Entry List'!$A$1:$F$61,C$5,FALSE)),"",VLOOKUP($A37,'Entry List'!$A$1:$F$61,C$5,FALSE)) ->  | D37: =IF(ISNA(VLOOKUP($A37,'Entry List'!$A$1:$F$61,D$5,FALSE)),"",VLOOKUP($A37,'Entry List'!$A$1:$F$61,D$5,FALSE)) ->  | E37: =IF(ISNA(VLOOKUP($A37,'Entry List'!$A$1:$F$61,E$5,FALSE)),"",VLOOKUP($A37,'Entry List'!$A$1:$F$61,E$5,FALSE)) ->  | G37: DNS | H37: 0 | I37: DNS | J37: 0 | K37: DNS | L37: 0 | M37: DNS | N37: 0 | O37: DNS | P37: 0 | Q37: DNS | R37: 0 | S37: DNS | T37: 0 | U37: DNS | V37: 0 | W37: DNS | X37: 0 | Y37: DNS | Z37: 0 | AA37: DNS | AB37: 0 | AC37: DNS | AD37: 0 | AE37: DNS | AF37: 0 | AG37: DNS | AH37: 0 | AI37: DNS | AJ37: 0 | AK37: DNS | AL37: 0 | AM37: DNS | AN37: 0 | AO37: DNS | AP37: 0 | AQ37: DNS | AR37: 0 | AS37: DNS | AT37: 0 | AU37: DNS | AV37: 0 | AW37: DNS | AX37: 0 | AY37: DNS | AZ37: 0 | BA37: DNS | BB37: 0 | BC37: DNS | BD37: 0 | BE37: =IF('Last Race Results'!$B$5=0,0,IF(ISNA(VLOOKUP($A37,'Last Race Results'!$A$5:$J$44,2,FALSE)),"DNS",VLOOKUP($A37,'Last Race Results'!$A$5:$J$44,2,FALSE))) -> DNS | BF37: =IF('Last Race Results'!$B$5=0,0,IF(ISNA(VLOOKUP($A37,'Last Race Results'!$A$5:$K$44,11,FALSE)),0,VLOOKUP($A37,'Last Race Results'!$A$5:$K$44,11,FALSE))) -> 0 | BY37: =IF('Last Race Results'!$B$5=0,0,IF(ISNA(VLOOKUP($A37,'Last Race Results'!$A$5:$J$44,2,FALSE)),"DNS",VLOOKUP($A37,'Last Race Results'!$A$5:$J$44,2,FALSE))) -> DNS | BZ37: =IF('Last Race Results'!$B$5=0,0,IF(ISNA(VLOOKUP($A37,'Last Race Results'!$A$5:$J$44,11,FALSE)),0,VLOOKUP($A37,'Last Race Results'!$A$5:$J$44,11,FALSE))) -> 0
A38: 31 | B38: =IF(ISNA(VLOOKUP($A38,'Entry List'!$A$1:$F$61,B$5,FALSE)),"",VLOOKUP($A38,'Entry List'!$A$1:$F$61,B$5,FALSE)) ->  | C38: =IF(ISNA(VLOOKUP($A38,'Entry List'!$A$1:$F$61,C$5,FALSE)),"",VLOOKUP($A38,'Entry List'!$A$1:$F$61,C$5,FALSE)) ->  | D38: =IF(ISNA(VLOOKUP($A38,'Entry List'!$A$1:$F$61,D$5,FALSE)),"",VLOOKUP($A38,'Entry List'!$A$1:$F$61,D$5,FALSE)) ->  | E38: =IF(ISNA(VLOOKUP($A38,'Entry List'!$A$1:$F$61,E$5,FALSE)),"",VLOOKUP($A38,'Entry List'!$A$1:$F$61,E$5,FALSE)) ->  | G38: DNS | H38: 0 | I38: DNS | J38: 0 | K38: DNS | L38: 0 | M38: DNS | N38: 0 | O38: DNS | P38: 0 | Q38: DNS | R38: 0 | S38: DNS | T38: 0 | U38: DNS | V38: 0 | W38: DNS | X38: 0 | Y38: DNS | Z38: 0 | AA38: DNS | AB38: 0 | AC38: DNS | AD38: 0 | AE38: DNS | AF38: 0 | AG38: DNS | AH38: 0 | AI38: DNS | AJ38: 0 | AK38: DNS | AL38: 0 | AM38: DNS | AN38: 0 | AO38: DNS | AP38: 0 | AQ38: DNS | AR38: 0 | AS38: DNS | AT38: 0 | AU38: DNS | AV38: 0 | AW38: DNS | AX38: 0 | AY38: DNS | AZ38: 0 | BA38: DNS | BB38: 0 | BC38: DNS | BD38: 0 | BE38: =IF('Last Race Results'!$B$5=0,0,IF(ISNA(VLOOKUP($A38,'Last Race Results'!$A$5:$J$44,2,FALSE)),"DNS",VLOOKUP($A38,'Last Race Results'!$A$5:$J$44,2,FALSE))) -> DNS | BF38: =IF('Last Race Results'!$B$5=0,0,IF(ISNA(VLOOKUP($A38,'Last Race Results'!$A$5:$K$44,11,FALSE)),0,VLOOKUP($A38,'Last Race Results'!$A$5:$K$44,11,FALSE))) -> 0 | BY38: =IF('Last Race Results'!$B$5=0,0,IF(ISNA(VLOOKUP($A38,'Last Race Results'!$A$5:$J$44,2,FALSE)),"DNS",VLOOKUP($A38,'Last Race Results'!$A$5:$J$44,2,FALSE))) -> DNS | BZ38: =IF('Last Race Results'!$B$5=0,0,IF(ISNA(VLOOKUP($A38,'Last Race Results'!$A$5:$J$44,11,FALSE)),0,VLOOKUP($A38,'Last Race Results'!$A$5:$J$44,11,FALSE))) -> 0
A39: 32 | B39: =IF(ISNA(VLOOKUP($A39,'Entry List'!$A$1:$F$61,B$5,FALSE)),"",VLOOKUP($A39,'Entry List'!$A$1:$F$61,B$5,FALSE)) -> Corey LaJoie | C39: =IF(ISNA(VLOOKUP($A39,'Entry List'!$A$1:$F$61,C$5,FALSE)),"",VLOOKUP($A39,'Entry List'!$A$1:$F$61,C$5,FALSE)) -> Ford | D39: =IF(ISNA(VLOOKUP($A39,'Entry List'!$A$1:$F$61,D$5,FALSE)),"",VLOOKUP($A39,'Entry List'!$A$1:$F$61,D$5,FALSE)) -> Go Fas Racing | E39: =IF(ISNA(VLOOKUP($A39,'Entry List'!$A$1:$F$61,E$5,FALSE)),"",VLOOKUP($A39,'Entry List'!$A$1:$F$61,E$5,FALSE)) -> Go Fas Racing | G39: 8 | H39: 29 | I39: 16 | J39: 21 | K39: 29 | L39: 8 | M39: 27 | N39: 10 | O39: 31 | P39: 6 | Q39: 24 | R39: 13 | S39: 19 | T39: 18 | U39: 19 | V39: 18 | W39: 32 | X39: 5 | Y39: 27 | Z39: 10 | AA39: 18 | AB39: 19 | AC39: 29 | AD39: 8 | AE39: 17 | AF39: 20 | AG39: 23 | AH39: 14 | AI39: 21 | AJ39: 16 | AK39: 39 | AL39: 1 | AM39: 28 | AN39: 9 | AO39: 19 | AP39: 18 | AQ39: 21 | AR39: 16 | AS39: 35 | AT39: 2 | AU39: 22 | AV39: 15 | AW39: 22 | AX39: 15 | AY39: 32 | AZ39: 6 | BA39: 29 | BB39: 8 | BC39: 23 | BD39: 14 | BE39: =IF('Last Race Results'!$B$5=0,0,IF(ISNA(VLOOKUP($A39,'Last Race Results'!$A$5:$J$44,2,FALSE)),"DNS",VLOOKUP($A39,'Last Race Results'!$A$5:$J$44,2,FALSE))) -> 21 | BF39: =IF('Last Race Results'!$B$5=0,0,IF(ISNA(VLOOKUP($A39,'Last Race Results'!$A$5:$K$44,11,FALSE)),0,VLOOKUP($A39,'Last Race Results'!$A$5:$K$44,11,FALSE))) -> 16 | BY39: =IF('Last Race Results'!$B$5=0,0,IF(ISNA(VLOOKUP($A39,'Last Race Results'!$A$5:$J$44,2,FALSE)),"DNS",VLOOKUP($A39,'Last Race Results'!$A$5:$J$44,2,FALSE))) -> 21 | BZ39: =IF('Last Race Results'!$B$5=0,0,IF(ISNA(VLOOKUP($A39,'Last Race Results'!$A$5:$J$44,11,FALSE)),0,VLOOKUP($A39,'Last Race Results'!$A$5:$J$44,11,FALSE))) -> 
A40: 33 | B40: =IF(ISNA(VLOOKUP($A40,'Entry List'!$A$1:$F$61,B$5,FALSE)),"",VLOOKUP($A40,'Entry List'!$A$1:$F$61,B$5,FALSE)) ->  | C40: =IF(ISNA(VLOOKUP($A40,'Entry List'!$A$1:$F$61,C$5,FALSE)),"",VLOOKUP($A40,'Entry List'!$A$1:$F$61,C$5,FALSE)) ->  | D40: =IF(ISNA(VLOOKUP($A40,'Entry List'!$A$1:$F$61,D$5,FALSE)),"",VLOOKUP($A40,'Entry List'!$A$1:$F$61,D$5,FALSE)) ->  | E40: =IF(ISNA(VLOOKUP($A40,'Entry List'!$A$1:$F$61,E$5,FALSE)),"",VLOOKUP($A40,'Entry List'!$A$1:$F$61,E$5,FALSE)) ->  | G40: DNS | H40: 0 | I40: DNS | J40: 0 | K40: DNS | L40: 0 | M40: DNS | N40: 0 | O40: DNS | P40: 0 | Q40: DNS | R40: 0 | S40: DNS | T40: 0 | U40: DNS | V40: 0 | W40: DNS | X40: 0 | Y40: DNS | Z40: 0 | AA40: DNS | AB40: 0 | AC40: DNS | AD40: 0 | AE40: DNS | AF40: 0 | AG40: DNS | AH40: 0 | AI40: DNS | AJ40: 0 | AK40: DNS | AL40: 0 | AM40: DNS | AN40: 0 | AO40: DNS | AP40: 0 | AQ40: DNS | AR40: 0 | AS40: DNS | AT40: 0 | AU40: DNS | AV40: 0 | AW40: DNS | AX40: 0 | AY40: DNS | AZ40: 0 | BA40: DNS | BB40: 0 | BC40: DNS | BD40: 0 | BE40: =IF('Last Race Results'!$B$5=0,0,IF(ISNA(VLOOKUP($A40,'Last Race Results'!$A$5:$J$44,2,FALSE)),"DNS",VLOOKUP($A40,'Last Race Results'!$A$5:$J$44,2,FALSE))) -> DNS | BF40: =IF('Last Race Results'!$B$5=0,0,IF(ISNA(VLOOKUP($A40,'Last Race Results'!$A$5:$K$44,11,FALSE)),0,VLOOKUP($A40,'Last Race Results'!$A$5:$K$44,11,FALSE))) -> 0 | BY40: =IF('Last Race Results'!$B$5=0,0,IF(ISNA(VLOOKUP($A40,'Last Race Results'!$A$5:$J$44,2,FALSE)),"DNS",VLOOKUP($A40,'Last Race Results'!$A$5:$J$44,2,FALSE))) -> DNS | BZ40: =IF('Last Race Results'!$B$5=0,0,IF(ISNA(VLOOKUP($A40,'Last Race Results'!$A$5:$J$44,11,FALSE)),0,VLOOKUP($A40,'Last Race Results'!$A$5:$J$44,11,FALSE))) -> 0
A41: 34 | B41: =IF(ISNA(VLOOKUP($A41,'Entry List'!$A$1:$F$61,B$5,FALSE)),"",VLOOKUP($A41,'Entry List'!$A$1:$F$61,B$5,FALSE)) -> Michael McDowell | C41: =IF(ISNA(VLOOKUP($A41,'Entry List'!$A$1:$F$61,C$5,FALSE)),"",VLOOKUP($A41,'Entry List'!$A$1:$F$61,C$5,FALSE)) -> Ford | D41: =IF(ISNA(VLOOKUP($A41,'Entry List'!$A$1:$F$61,D$5,FALSE)),"",VLOOKUP($A41,'Entry List'!$A$1:$F$61,D$5,FALSE)) -> Front Row Motorsports | E41: =IF(ISNA(VLOOKUP($A41,'Entry List'!$A$1:$F$61,E$5,FALSE)),"",VLOOKUP($A41,'Entry List'!$A$1:$F$61,E$5,FALSE)) -> Front Row Motorsports | G41: 14 | H41: 23 | I41: 36 | J41: 1 | K41: 22 | L41: 15 | M41: 16 | N41: 21 | O41: 23 | P41: 14 | Q41: 17 | R41: 20 | S41: 25 | T41: 12 | U41: 25 | V41: 12 | W41: 14 | X41: 23 | Y41: 24 | Z41: 13 | AA41: 14 | AB41: 23 | AC41: 15 | AD41: 22 | AE41: 18 | AF41: 19 | AG41: 8 | AH41: 29 | AI41: 40 | AJ41: 1 | AK41: 7 | AL41: 30 | AM41: 24 | AN41: 13 | AO41: 17 | AP41: 20 | AQ41: 16 | AR41: 21 | AS41: 19 | AT41: 18 | AU41: 29 | AV41: 8 | AW41: 28 | AX41: 9 | AY41: 10 | AZ41: 27 | BA41: 26 | BB41: 11 | BC41: 25 | BD41: 12 | BE41: =IF('Last Race Results'!$B$5=0,0,IF(ISNA(VLOOKUP($A41,'Last Race Results'!$A$5:$J$44,2,FALSE)),"DNS",VLOOKUP($A41,'Last Race Results'!$A$5:$J$44,2,FALSE))) -> 14 | BF41: =IF('Last Race Results'!$B$5=0,0,IF(ISNA(VLOOKUP($A41,'Last Race Results'!$A$5:$K$44,11,FALSE)),0,VLOOKUP($A41,'Last Race Results'!$A$5:$K$44,11,FALSE))) -> 26 | BY41: =IF('Last Race Results'!$B$5=0,0,IF(ISNA(VLOOKUP($A41,'Last Race Results'!$A$5:$J$44,2,FALSE)),"DNS",VLOOKUP($A41,'Last Race Results'!$A$5:$J$44,2,FALSE))) -> 14 | BZ41: =IF('Last Race Results'!$B$5=0,0,IF(ISNA(VLOOKUP($A41,'Last Race Results'!$A$5:$J$44,11,FALSE)),0,VLOOKUP($A41,'Last Race Results'!$A$5:$J$44,11,FALSE))) -> 
A42: 35 | B42: =IF(ISNA(VLOOKUP($A42,'Entry List'!$A$1:$F$61,B$5,FALSE)),"",VLOOKUP($A42,'Entry List'!$A$1:$F$61,B$5,FALSE)) ->  | C42: =IF(ISNA(VLOOKUP($A42,'Entry List'!$A$1:$F$61,C$5,FALSE)),"",VLOOKUP($A42,'Entry List'!$A$1:$F$61,C$5,FALSE)) ->  | D42: =IF(ISNA(VLOOKUP($A42,'Entry List'!$A$1:$F$61,D$5,FALSE)),"",VLOOKUP($A42,'Entry List'!$A$1:$F$61,D$5,FALSE)) ->  | E42: =IF(ISNA(VLOOKUP($A42,'Entry List'!$A$1:$F$61,E$5,FALSE)),"",VLOOKUP($A42,'Entry List'!$A$1:$F$61,E$5,FALSE)) ->  | G42: DNS | H42: 0 | I42: DNS | J42: 0 | K42: DNS | L42: 0 | M42: DNS | N42: 0 | O42: DNS | P42: 0 | Q42: DNS | R42: 0 | S42: DNS | T42: 0 | U42: DNS | V42: 0 | W42: DNS | X42: 0 | Y42: DNS | Z42: 0 | AA42: DNS | AB42: 0 | AC42: DNS | AD42: 0 | AE42: DNS | AF42: 0 | AG42: DNS | AH42: 0 | AI42: DNS | AJ42: 0 | AK42: DNS | AL42: 0 | AM42: DNS | AN42: 0 | AO42: DNS | AP42: 0 | AQ42: DNS | AR42: 0 | AS42: DNS | AT42: 0 | AU42: DNS | AV42: 0 | AW42: DNS | AX42: 0 | AY42: DNS | AZ42: 0 | BA42: DNS | BB42: 0 | BC42: DNS | BD42: 0 | BE42: =IF('Last Race Results'!$B$5=0,0,IF(ISNA(VLOOKUP($A42,'Last Race Results'!$A$5:$J$44,2,FALSE)),"DNS",VLOOKUP($A42,'Last Race Results'!$A$5:$J$44,2,FALSE))) -> DNS | BF42: =IF('Last Race Results'!$B$5=0,0,IF(ISNA(VLOOKUP($A42,'Last Race Results'!$A$5:$K$44,11,FALSE)),0,VLOOKUP($A42,'Last Race Results'!$A$5:$K$44,11,FALSE))) -> 0 | BY42: =IF('Last Race Results'!$B$5=0,0,IF(ISNA(VLOOKUP($A42,'Last Race Results'!$A$5:$J$44,2,FALSE)),"DNS",VLOOKUP($A42,'Last Race Results'!$A$5:$J$44,2,FALSE))) -> DNS | BZ42: =IF('Last Race Results'!$B$5=0,0,IF(ISNA(VLOOKUP($A42,'Last Race Results'!$A$5:$J$44,11,FALSE)),0,VLOOKUP($A42,'Last Race Results'!$A$5:$J$44,11,FALSE))) -> 0
A43: 36 | B43: =IF(ISNA(VLOOKUP($A43,'Entry List'!$A$1:$F$61,B$5,FALSE)),"",VLOOKUP($A43,'Entry List'!$A$1:$F$61,B$5,FALSE)) ->  | C43: =IF(ISNA(VLOOKUP($A43,'Entry List'!$A$1:$F$61,C$5,FALSE)),"",VLOOKUP($A43,'Entry List'!$A$1:$F$61,C$5,FALSE)) ->  | D43: =IF(ISNA(VLOOKUP($A43,'Entry List'!$A$1:$F$61,D$5,FALSE)),"",VLOOKUP($A43,'Entry List'!$A$1:$F$61,D$5,FALSE)) ->  | E43: =IF(ISNA(VLOOKUP($A43,'Entry List'!$A$1:$F$61,E$5,FALSE)),"",VLOOKUP($A43,'Entry List'!$A$1:$F$61,E$5,FALSE)) ->  | G43: 4 | H43: 33 | I43: DNS | J43: 0 | K43: DNS | L43: 0 | M43: DNS | N43: 0 | O43: DNS | P43: 0 | Q43: DNS | R43: 0 | S43: DNS | T43: 0 | U43: DNS | V43: 0 | W43: DNS | X43: 0 | Y43: DNS | Z43: 0 | AA43: DNS | AB43: 0 | AC43: DNS | AD43: 0 | AE43: DNS | AF43: 0 | AG43: DNS | AH43: 0 | AI43: DNS | AJ43: 0 | AK43: DNS | AL43: 0 | AM43: DNS | AN43: 0 | AO43: 32 | AP43: 5 | AQ43: DNS | AR43: 0 | AS43: DNS | AT43: 0 | AU43: DNS | AV43: 0 | AW43: DNS | AX43: 0 | AY43: DNS | AZ43: 0 | BA43: DNS | BB43: 0 | BC43: DNS | BD43: 0 | BE43: =IF('Last Race Results'!$B$5=0,0,IF(ISNA(VLOOKUP($A43,'Last Race Results'!$A$5:$J$44,2,FALSE)),"DNS",VLOOKUP($A43,'Last Race Results'!$A$5:$J$44,2,FALSE))) -> DNS | BF43: =IF('Last Race Results'!$B$5=0,0,IF(ISNA(VLOOKUP($A43,'Last Race Results'!$A$5:$K$44,11,FALSE)),0,VLOOKUP($A43,'Last Race Results'!$A$5:$K$44,11,FALSE))) -> 0 | BY43: =IF('Last Race Results'!$B$5=0,0,IF(ISNA(VLOOKUP($A43,'Last Race Results'!$A$5:$J$44,2,FALSE)),"DNS",VLOOKUP($A43,'Last Race Results'!$A$5:$J$44,2,FALSE))) -> DNS | BZ43: =IF('Last Race Results'!$B$5=0,0,IF(ISNA(VLOOKUP($A43,'Last Race Results'!$A$5:$J$44,11,FALSE)),0,VLOOKUP($A43,'Last Race Results'!$A$5:$J$44,11,FALSE))) -> 0
A44: 37 | B44: =IF(ISNA(VLOOKUP($A44,'Entry List'!$A$1:$F$61,B$5,FALSE)),"",VLOOKUP($A44,'Entry List'!$A$1:$F$61,B$5,FALSE)) -> Ryan Preece | C44: =IF(ISNA(VLOOKUP($A44,'Entry List'!$A$1:$F$61,C$5,FALSE)),"",VLOOKUP($A44,'Entry List'!$A$1:$F$61,C$5,FALSE)) -> Chevrolet | D44: =IF(ISNA(VLOOKUP($A44,'Entry List'!$A$1:$F$61,D$5,FALSE)),"",VLOOKUP($A44,'Entry List'!$A$1:$F$61,D$5,FALSE)) -> JTG Daugherty Racing | E44: =IF(ISNA(VLOOKUP($A44,'Entry List'!$A$1:$F$61,E$5,FALSE)),"",VLOOKUP($A44,'Entry List'!$A$1:$F$61,E$5,FALSE)) -> JTG Daugherty Racing | G44: 29 | H44: 8 | I44: 37 | J44: 1 | K44: 30 | L44: 7 | M44: 18 | N44: 19 | O44: 20 | P44: 21 | Q44: 39 | R44: 2 | S44: 24 | T44: 13 | U44: 24 | V44: 13 | W44: 12 | X44: 25 | Y44: 26 | Z44: 11 | AA44: 26 | AB44: 11 | AC44: 24 | AD44: 13 | AE44: 15 | AF44: 22 | AG44: 20 | AH44: 17 | AI44: 25 | AJ44: 12 | AK44: 40 | AL44: 1 | AM44: 38 | AN44: 1 | AO44: 15 | AP44: 23 | AQ44: 34 | AR44: 3 | AS44: 16 | AT44: 23 | AU44: 25 | AV44: 12 | AW44: 16 | AX44: 21 | AY44: 23 | AZ44: 20 | BA44: 25 | BB44: 12 | BC44: 26 | BD44: 11 | BE44: =IF('Last Race Results'!$B$5=0,0,IF(ISNA(VLOOKUP($A44,'Last Race Results'!$A$5:$J$44,2,FALSE)),"DNS",VLOOKUP($A44,'Last Race Results'!$A$5:$J$44,2,FALSE))) -> 37 | BF44: =IF('Last Race Results'!$B$5=0,0,IF(ISNA(VLOOKUP($A44,'Last Race Results'!$A$5:$K$44,11,FALSE)),0,VLOOKUP($A44,'Last Race Results'!$A$5:$K$44,11,FALSE))) -> 1 | BY44: =IF('Last Race Results'!$B$5=0,0,IF(ISNA(VLOOKUP($A44,'Last Race Results'!$A$5:$J$44,2,FALSE)),"DNS",VLOOKUP($A44,'Last Race Results'!$A$5:$J$44,2,FALSE))) -> 37 | BZ44: =IF('Last Race Results'!$B$5=0,0,IF(ISNA(VLOOKUP($A44,'Last Race Results'!$A$5:$J$44,11,FALSE)),0,VLOOKUP($A44,'Last Race Results'!$A$5:$J$44,11,FALSE))) -> 
A45: 38 | B45: =IF(ISNA(VLOOKUP($A45,'Entry List'!$A$1:$F$61,B$5,FALSE)),"",VLOOKUP($A45,'Entry List'!$A$1:$F$61,B$5,FALSE)) -> John Hunter Nemechek (R) | C45: =IF(ISNA(VLOOKUP($A45,'Entry List'!$A$1:$F$61,C$5,FALSE)),"",VLOOKUP($A45,'Entry List'!$A$1:$F$61,C$5,FALSE)) -> Ford | D45: =IF(ISNA(VLOOKUP($A45,'Entry List'!$A$1:$F$61,D$5,FALSE)),"",VLOOKUP($A45,'Entry List'!$A$1:$F$61,D$5,FALSE)) -> Front Row Motorsports | E45: =IF(ISNA(VLOOKUP($A45,'Entry List'!$A$1:$F$61,E$5,FALSE)),"",VLOOKUP($A45,'Entry List'!$A$1:$F$61,E$5,FALSE)) -> Front Row Motorsports | G45: 11 | H45: 26 | I45: 24 | J45: 13 | K45: 25 | L45: 12 | M45: 25 | N45: 12 | O45: 9 | P45: 28 | Q45: 35 | R45: 2 | S45: 13 | T45: 27 | U45: 13 | V45: 27 | W45: 13 | X45: 24 | Y45: 23 | Z45: 14 | AA45: 25 | AB45: 12 | AC45: 19 | AD45: 18 | AE45: 8 | AF45: 29 | AG45: 24 | AH45: 13 | AI45: 19 | AJ45: 18 | AK45: 15 | AL45: 22 | AM45: 36 | AN45: 1 | AO45: 20 | AP45: 17 | AQ45: 19 | AR45: 18 | AS45: 36 | AT45: 1 | AU45: 36 | AV45: 1 | AW45: 23 | AX45: 14 | AY45: 35 | AZ45: 2 | BA45: 24 | BB45: 13 | BC45: 20 | BD45: 17 | BE45: =IF('Last Race Results'!$B$5=0,0,IF(ISNA(VLOOKUP($A45,'Last Race Results'!$A$5:$J$44,2,FALSE)),"DNS",VLOOKUP($A45,'Last Race Results'!$A$5:$J$44,2,FALSE))) -> 11 | BF45: =IF('Last Race Results'!$B$5=0,0,IF(ISNA(VLOOKUP($A45,'Last Race Results'!$A$5:$K$44,11,FALSE)),0,VLOOKUP($A45,'Last Race Results'!$A$5:$K$44,11,FALSE))) -> 26 | BY45: =IF('Last Race Results'!$B$5=0,0,IF(ISNA(VLOOKUP($A45,'Last Race Results'!$A$5:$J$44,2,FALSE)),"DNS",VLOOKUP($A45,'Last Race Results'!$A$5:$J$44,2,FALSE))) -> 11 | BZ45: =IF('Last Race Results'!$B$5=0,0,IF(ISNA(VLOOKUP($A45,'Last Race Results'!$A$5:$J$44,11,FALSE)),0,VLOOKUP($A45,'Last Race Results'!$A$5:$J$44,11,FALSE))) -> 
A46: 39 | B46: =IF(ISNA(VLOOKUP($A46,'Entry List'!$A$1:$F$61,B$5,FALSE)),"",VLOOKUP($A46,'Entry List'!$A$1:$F$61,B$5,FALSE)) ->  | C46: =IF(ISNA(VLOOKUP($A46,'Entry List'!$A$1:$F$61,C$5,FALSE)),"",VLOOKUP($A46,'Entry List'!$A$1:$F$61,C$5,FALSE)) ->  | D46: =IF(ISNA(VLOOKUP($A46,'Entry List'!$A$1:$F$61,D$5,FALSE)),"",VLOOKUP($A46,'Entry List'!$A$1:$F$61,D$5,FALSE)) ->  | E46: =IF(ISNA(VLOOKUP($A46,'Entry List'!$A$1:$F$61,E$5,FALSE)),"",VLOOKUP($A46,'Entry List'!$A$1:$F$61,E$5,FALSE)) ->  | G46: DNS | H46: 0 | I46: DNS | J46: 0 | K46: DNS | L46: 0 | M46: DNS | N46: 0 | O46: DNS | P46: 0 | Q46: DNS | R46: 0 | S46: DNS | T46: 0 | U46: DNS | V46: 0 | W46: DNS | X46: 0 | Y46: DNS | Z46: 0 | AA46: DNS | AB46: 0 | AC46: DNS | AD46: 0 | AE46: DNS | AF46: 0 | AG46: DNS | AH46: 0 | AI46: DNS | AJ46: 0 | AK46: DNS | AL46: 0 | AM46: DNS | AN46: 0 | AO46: DNS | AP46: 0 | AQ46: DNS | AR46: 0 | AS46: DNS | AT46: 0 | AU46: DNS | AV46: 0 | AW46: DNS | AX46: 0 | AY46: DNS | AZ46: 0 | BA46: DNS | BB46: 0 | BC46: DNS | BD46: 0 | BE46: =IF('Last Race Results'!$B$5=0,0,IF(ISNA(VLOOKUP($A46,'Last Race Results'!$A$5:$J$44,2,FALSE)),"DNS",VLOOKUP($A46,'Last Race Results'!$A$5:$J$44,2,FALSE))) -> DNS | BF46: =IF('Last Race Results'!$B$5=0,0,IF(ISNA(VLOOKUP($A46,'Last Race Results'!$A$5:$K$44,11,FALSE)),0,VLOOKUP($A46,'Last Race Results'!$A$5:$K$44,11,FALSE))) -> 0 | BY46: =IF('Last Race Results'!$B$5=0,0,IF(ISNA(VLOOKUP($A46,'Last Race Results'!$A$5:$J$44,2,FALSE)),"DNS",VLOOKUP($A46,'Last Race Results'!$A$5:$J$44,2,FALSE))) -> DNS | BZ46: =IF('Last Race Results'!$B$5=0,0,IF(ISNA(VLOOKUP($A46,'Last Race Results'!$A$5:$J$44,11,FALSE)),0,VLOOKUP($A46,'Last Race Results'!$A$5:$J$44,11,FALSE))) -> 0
A47: 40 | B47: =IF(ISNA(VLOOKUP($A47,'Entry List'!$A$1:$F$61,B$5,FALSE)),"",VLOOKUP($A47,'Entry List'!$A$1:$F$61,B$5,FALSE)) ->  | C47: =IF(ISNA(VLOOKUP($A47,'Entry List'!$A$1:$F$61,C$5,FALSE)),"",VLOOKUP($A47,'Entry List'!$A$1:$F$61,C$5,FALSE)) ->  | D47: =IF(ISNA(VLOOKUP($A47,'Entry List'!$A$1:$F$61,D$5,FALSE)),"",VLOOKUP($A47,'Entry List'!$A$1:$F$61,D$5,FALSE)) ->  | E47: =IF(ISNA(VLOOKUP($A47,'Entry List'!$A$1:$F$61,E$5,FALSE)),"",VLOOKUP($A47,'Entry List'!$A$1:$F$61,E$5,FALSE)) ->  | G47: DNS | H47: 0 | I47: DNS | J47: 0 | K47: DNS | L47: 0 | M47: DNS | N47: 0 | O47: DNS | P47: 0 | Q47: DNS | R47: 0 | S47: DNS | T47: 0 | U47: DNS | V47: 0 | W47: DNS | X47: 0 | Y47: DNS | Z47: 0 | AA47: DNS | AB47: 0 | AC47: DNS | AD47: 0 | AE47: DNS | AF47: 0 | AG47: DNS | AH47: 0 | AI47: DNS | AJ47: 0 | AK47: DNS | AL47: 0 | AM47: DNS | AN47: 0 | AO47: DNS | AP47: 0 | AQ47: DNS | AR47: 0 | AS47: DNS | AT47: 0 | AU47: DNS | AV47: 0 | AW47: DNS | AX47: 0 | AY47: DNS | AZ47: 0 | BA47: DNS | BB47: 0 | BC47: DNS | BD47: 0 | BE47: =IF('Last Race Results'!$B$5=0,0,IF(ISNA(VLOOKUP($A47,'Last Race Results'!$A$5:$J$44,2,FALSE)),"DNS",VLOOKUP($A47,'Last Race Results'!$A$5:$J$44,2,FALSE))) -> DNS | BF47: =IF('Last Race Results'!$B$5=0,0,IF(ISNA(VLOOKUP($A47,'Last Race Results'!$A$5:$K$44,11,FALSE)),0,VLOOKUP($A47,'Last Race Results'!$A$5:$K$44,11,FALSE))) -> 0 | BY47: =IF('Last Race Results'!$B$5=0,0,IF(ISNA(VLOOKUP($A47,'Last Race Results'!$A$5:$J$44,2,FALSE)),"DNS",VLOOKUP($A47,'Last Race Results'!$A$5:$J$44,2,FALSE))) -> DNS | BZ47: =IF('Last Race Results'!$B$5=0,0,IF(ISNA(VLOOKUP($A47,'Last Race Results'!$A$5:$J$44,11,FALSE)),0,VLOOKUP($A47,'Last Race Results'!$A$5:$J$44,11,FALSE))) -> 0
A48: 41 | B48: =IF(ISNA(VLOOKUP($A48,'Entry List'!$A$1:$F$61,B$5,FALSE)),"",VLOOKUP($A48,'Entry List'!$A$1:$F$61,B$5,FALSE)) -> Cole Custer (R) | C48: =IF(ISNA(VLOOKUP($A48,'Entry List'!$A$1:$F$61,C$5,FALSE)),"",VLOOKUP($A48,'Entry List'!$A$1:$F$61,C$5,FALSE)) -> Ford | D48: =IF(ISNA(VLOOKUP($A48,'Entry List'!$A$1:$F$61,D$5,FALSE)),"",VLOOKUP($A48,'Entry List'!$A$1:$F$61,D$5,FALSE)) -> Stewart-Haas Racing | E48: =IF(ISNA(VLOOKUP($A48,'Entry List'!$A$1:$F$61,E$5,FALSE)),"",VLOOKUP($A48,'Entry List'!$A$1:$F$61,E$5,FALSE)) -> Stewart-Haas Racing | G48: 37 | H48: 7 | I48: 19 | J48: 18 | K48: 18 | L48: 19 | M48: 9 | N48: 29 | O48: 22 | P48: 15 | Q48: 31 | R48: 6 | S48: 18 | T48: 19 | U48: 18 | V48: 19 | W48: 35 | X48: 2 | Y48: 19 | Z48: 18 | AA48: 29 | AB48: 8 | AC48: 22 | AD48: 15 | AE48: 22 | AF48: 18 | AG48: 16 | AH48: 21 | AI48: 17 | AJ48: 21 | AK48: 5 | AL48: 32 | AM48: 1 | AN48: 48 | AO48: 11 | AP48: 31 | AQ48: 7 | AR48: 30 | AS48: 8 | AT48: 29 | AU48: 34 | AV48: 3 | AW48: 25 | AX48: 12 | AY48: 22 | AZ48: 17 | BA48: 11 | BB48: 26 | BC48: 10 | BD48: 30 | BE48: =IF('Last Race Results'!$B$5=0,0,IF(ISNA(VLOOKUP($A48,'Last Race Results'!$A$5:$J$44,2,FALSE)),"DNS",VLOOKUP($A48,'Last Race Results'!$A$5:$J$44,2,FALSE))) -> 30 | BF48: =IF('Last Race Results'!$B$5=0,0,IF(ISNA(VLOOKUP($A48,'Last Race Results'!$A$5:$K$44,11,FALSE)),0,VLOOKUP($A48,'Last Race Results'!$A$5:$K$44,11,FALSE))) -> 7 | BY48: =IF('Last Race Results'!$B$5=0,0,IF(ISNA(VLOOKUP($A48,'Last Race Results'!$A$5:$J$44,2,FALSE)),"DNS",VLOOKUP($A48,'Last Race Results'!$A$5:$J$44,2,FALSE))) -> 30 | BZ48: =IF('Last Race Results'!$B$5=0,0,IF(ISNA(VLOOKUP($A48,'Last Race Results'!$A$5:$J$44,11,FALSE)),0,VLOOKUP($A48,'Last Race Results'!$A$5:$J$44,11,FALSE))) -> 
A49: 42 | B49: =IF(ISNA(VLOOKUP($A49,'Entry List'!$A$1:$F$61,B$5,FALSE)),"",VLOOKUP($A49,'Entry List'!$A$1:$F$61,B$5,FALSE)) -> Matt Kenseth | C49: =IF(ISNA(VLOOKUP($A49,'Entry List'!$A$1:$F$61,C$5,FALSE)),"",VLOOKUP($A49,'Entry List'!$A$1:$F$61,C$5,FALSE)) -> Chevrolet | D49: =IF(ISNA(VLOOKUP($A49,'Entry List'!$A$1:$F$61,D$5,FALSE)),"",VLOOKUP($A49,'Entry List'!$A$1:$F$61,D$5,FALSE)) -> Chip Ganassi Racing | E49: =IF(ISNA(VLOOKUP($A49,'Entry List'!$A$1:$F$61,E$5,FALSE)),"",VLOOKUP($A49,'Entry List'!$A$1:$F$61,E$5,FALSE)) -> Chip Ganassi Racing | G49: 10 | H49: 35 | I49: 9 | J49: 35 | K49: 21 | L49: 16 | M49: 4 | N49: 35 | O49: 10 | P49: 27 | Q49: 30 | R49: 9 | S49: 23 | T49: 14 | U49: 23 | V49: 14 | W49: 16 | X49: 21 | Y49: 15 | Z49: 22 | AA49: 23 | AB49: 14 | AC49: 25 | AD49: 12 | AE49: 40 | AF49: 1 | AG49: 11 | AH49: 26 | AI49: 12 | AJ49: 25 | AK49: 2 | AL49: 40 | AM49: 25 | AN49: 12 | AO49: 33 | AP49: 4 | AQ49: 17 | AR49: 20 | AS49: 37 | AT49: 1 | AU49: 17 | AV49: 20 | AW49: 15 | AX49: 22 | AY49: 26 | AZ49: 11 | BA49: 23 | BB49: 14 | BC49: 15 | BD49: 22 | BE49: =IF('Last Race Results'!$B$5=0,0,IF(ISNA(VLOOKUP($A49,'Last Race Results'!$A$5:$J$44,2,FALSE)),"DNS",VLOOKUP($A49,'Last Race Results'!$A$5:$J$44,2,FALSE))) -> 28 | BF49: =IF('Last Race Results'!$B$5=0,0,IF(ISNA(VLOOKUP($A49,'Last Race Results'!$A$5:$K$44,11,FALSE)),0,VLOOKUP($A49,'Last Race Results'!$A$5:$K$44,11,FALSE))) -> 9 | BY49: =IF('Last Race Results'!$B$5=0,0,IF(ISNA(VLOOKUP($A49,'Last Race Results'!$A$5:$J$44,2,FALSE)),"DNS",VLOOKUP($A49,'Last Race Results'!$A$5:$J$44,2,FALSE))) -> 28 | BZ49: =IF('Last Race Results'!$B$5=0,0,IF(ISNA(VLOOKUP($A49,'Last Race Results'!$A$5:$J$44,11,FALSE)),0,VLOOKUP($A49,'Last Race Results'!$A$5:$J$44,11,FALSE))) -> 
A50: 43 | B50: =IF(ISNA(VLOOKUP($A50,'Entry List'!$A$1:$F$61,B$5,FALSE)),"",VLOOKUP($A50,'Entry List'!$A$1:$F$61,B$5,FALSE)) -> Bubba Wallace | C50: =IF(ISNA(VLOOKUP($A50,'Entry List'!$A$1:$F$61,C$5,FALSE)),"",VLOOKUP($A50,'Entry List'!$A$1:$F$61,C$5,FALSE)) -> Chevrolet | D50: =IF(ISNA(VLOOKUP($A50,'Entry List'!$A$1:$F$61,D$5,FALSE)),"",VLOOKUP($A50,'Entry List'!$A$1:$F$61,D$5,FALSE)) -> Richard Petty Motorsports | E50: =IF(ISNA(VLOOKUP($A50,'Entry List'!$A$1:$F$61,E$5,FALSE)),"",VLOOKUP($A50,'Entry List'!$A$1:$F$61,E$5,FALSE)) -> Richard Petty Motorsports | G50: 15 | H50: 28 | I50: 6 | J50: 31 | K50: 27 | L50: 10 | M50: 19 | N50: 18 | O50: 21 | P50: 16 | Q50: 16 | R50: 21 | S50: 37 | T50: 1 | U50: 37 | V50: 1 | W50: 10 | X50: 27 | Y50: 21 | Z50: 16 | AA50: 11 | AB50: 37 | AC50: 13 | AD50: 24 | AE50: 14 | AF50: 27 | AG50: 22 | AH50: 15 | AI50: 20 | AJ50: 17 | AK50: 9 | AL50: 28 | AM50: 27 | AN50: 10 | AO50: 3 | AP50: 34 | AQ50: 37 | AR50: 1 | AS50: 23 | AT50: 14 | AU50: 9 | AV50: 28 | AW50: 21 | AX50: 16 | AY50: 25 | AZ50: 12 | BA50: 27 | BB50: 10 | BC50: 21 | BD50: 16 | BE50: =IF('Last Race Results'!$B$5=0,0,IF(ISNA(VLOOKUP($A50,'Last Race Results'!$A$5:$J$44,2,FALSE)),"DNS",VLOOKUP($A50,'Last Race Results'!$A$5:$J$44,2,FALSE))) -> 5 | BF50: =IF('Last Race Results'!$B$5=0,0,IF(ISNA(VLOOKUP($A50,'Last Race Results'!$A$5:$K$44,11,FALSE)),0,VLOOKUP($A50,'Last Race Results'!$A$5:$K$44,11,FALSE))) -> 32 | BY50: =IF('Last Race Results'!$B$5=0,0,IF(ISNA(VLOOKUP($A50,'Last Race Results'!$A$5:$J$44,2,FALSE)),"DNS",VLOOKUP($A50,'Last Race Results'!$A$5:$J$44,2,FALSE))) -> 5 | BZ50: =IF('Last Race Results'!$B$5=0,0,IF(ISNA(VLOOKUP($A50,'Last Race Results'!$A$5:$J$44,11,FALSE)),0,VLOOKUP($A50,'Last Race Results'!$A$5:$J$44,11,FALSE))) -> 
A51: 44 | B51: =IF(ISNA(VLOOKUP($A51,'Entry List'!$A$1:$F$61,B$5,FALSE)),"",VLOOKUP($A51,'Entry List'!$A$1:$F$61,B$5,FALSE)) ->  | C51: =IF(ISNA(VLOOKUP($A51,'Entry List'!$A$1:$F$61,C$5,FALSE)),"",VLOOKUP($A51,'Entry List'!$A$1:$F$61,C$5,FALSE)) ->  | D51: =IF(ISNA(VLOOKUP($A51,'Entry List'!$A$1:$F$61,D$5,FALSE)),"",VLOOKUP($A51,'Entry List'!$A$1:$F$61,D$5,FALSE)) ->  | E51: =IF(ISNA(VLOOKUP($A51,'Entry List'!$A$1:$F$61,E$5,FALSE)),"",VLOOKUP($A51,'Entry List'!$A$1:$F$61,E$5,FALSE)) ->  | G51: DNS | H51: 0 | I51: DNS | J51: 0 | K51: DNS | L51: 0 | M51: DNS | N51: 0 | O51: DNS | P51: 0 | Q51: DNS | R51: 0 | S51: DNS | T51: 0 | U51: DNS | V51: 0 | W51: DNS | X51: 0 | Y51: DNS | Z51: 0 | AA51: DNS | AB51: 0 | AC51: DNS | AD51: 0 | AE51: DNS | AF51: 0 | AG51: DNS | AH51: 0 | AI51: DNS | AJ51: 0 | AK51: DNS | AL51: 0 | AM51: DNS | AN51: 0 | AO51: DNS | AP51: 0 | AQ51: DNS | AR51: 0 | AS51: DNS | AT51: 0 | AU51: DNS | AV51: 0 | AW51: DNS | AX51: 0 | AY51: DNS | AZ51: 0 | BA51: DNS | BB51: 0 | BC51: DNS | BD51: 0 | BE51: =IF('Last Race Results'!$B$5=0,0,IF(ISNA(VLOOKUP($A51,'Last Race Results'!$A$5:$J$44,2,FALSE)),"DNS",VLOOKUP($A51,'Last Race Results'!$A$5:$J$44,2,FALSE))) -> DNS | BF51: =IF('Last Race Results'!$B$5=0,0,IF(ISNA(VLOOKUP($A51,'Last Race Results'!$A$5:$K$44,11,FALSE)),0,VLOOKUP($A51,'Last Race Results'!$A$5:$K$44,11,FALSE))) -> 0 | BY51: =IF('Last Race Results'!$B$5=0,0,IF(ISNA(VLOOKUP($A51,'Last Race Results'!$A$5:$J$44,2,FALSE)),"DNS",VLOOKUP($A51,'Last Race Results'!$A$5:$J$44,2,FALSE))) -> DNS | BZ51: =IF('Last Race Results'!$B$5=0,0,IF(ISNA(VLOOKUP($A51,'Last Race Results'!$A$5:$J$44,11,FALSE)),0,VLOOKUP($A51,'Last Race Results'!$A$5:$J$44,11,FALSE))) -> 0
A52: 45 | B52: =IF(ISNA(VLOOKUP($A52,'Entry List'!$A$1:$F$61,B$5,FALSE)),"",VLOOKUP($A52,'Entry List'!$A$1:$F$61,B$5,FALSE)) ->  | C52: =IF(ISNA(VLOOKUP($A52,'Entry List'!$A$1:$F$61,C$5,FALSE)),"",VLOOKUP($A52,'Entry List'!$A$1:$F$61,C$5,FALSE)) ->  | D52: =IF(ISNA(VLOOKUP($A52,'Entry List'!$A$1:$F$61,D$5,FALSE)),"",VLOOKUP($A52,'Entry List'!$A$1:$F$61,D$5,FALSE)) ->  | E52: =IF(ISNA(VLOOKUP($A52,'Entry List'!$A$1:$F$61,E$5,FALSE)),"",VLOOKUP($A52,'Entry List'!$A$1:$F$61,E$5,FALSE)) ->  | G52: DNS | H52: 0 | I52: DNS | J52: 0 | K52: DNS | L52: 0 | M52: DNS | N52: 0 | O52: DNS | P52: 0 | Q52: DNS | R52: 0 | S52: DNS | T52: 0 | U52: DNS | V52: 0 | W52: DNS | X52: 0 | Y52: DNS | Z52: 0 | AA52: DNS | AB52: 0 | AC52: DNS | AD52: 0 | AE52: DNS | AF52: 0 | AG52: DNS | AH52: 0 | AI52: DNS | AJ52: 0 | AK52: DNS | AL52: 0 | AM52: DNS | AN52: 0 | AO52: DNS | AP52: 0 | AQ52: DNS | AR52: 0 | AS52: DNS | AT52: 0 | AU52: DNS | AV52: 0 | AW52: DNS | AX52: 0 | AY52: DNS | AZ52: 0 | BA52: DNS | BB52: 0 | BC52: DNS | BD52: 0 | BE52: =IF('Last Race Results'!$B$5=0,0,IF(ISNA(VLOOKUP($A52,'Last Race Results'!$A$5:$J$44,2,FALSE)),"DNS",VLOOKUP($A52,'Last Race Results'!$A$5:$J$44,2,FALSE))) -> DNS | BF52: =IF('Last Race Results'!$B$5=0,0,IF(ISNA(VLOOKUP($A52,'Last Race Results'!$A$5:$K$44,11,FALSE)),0,VLOOKUP($A52,'Last Race Results'!$A$5:$K$44,11,FALSE))) -> 0 | BY52: =IF('Last Race Results'!$B$5=0,0,IF(ISNA(VLOOKUP($A52,'Last Race Results'!$A$5:$J$44,2,FALSE)),"DNS",VLOOKUP($A52,'Last Race Results'!$A$5:$J$44,2,FALSE))) -> DNS | BZ52: =IF('Last Race Results'!$B$5=0,0,IF(ISNA(VLOOKUP($A52,'Last Race Results'!$A$5:$J$44,11,FALSE)),0,VLOOKUP($A52,'Last Race Results'!$A$5:$J$44,11,FALSE))) -> 0
A53: 46 | B53: =IF(ISNA(VLOOKUP($A53,'Entry List'!$A$1:$F$61,B$5,FALSE)),"",VLOOKUP($A53,'Entry List'!$A$1:$F$61,B$5,FALSE)) ->  | C53: =IF(ISNA(VLOOKUP($A53,'Entry List'!$A$1:$F$61,C$5,FALSE)),"",VLOOKUP($A53,'Entry List'!$A$1:$F$61,C$5,FALSE)) ->  | D53: =IF(ISNA(VLOOKUP($A53,'Entry List'!$A$1:$F$61,D$5,FALSE)),"",VLOOKUP($A53,'Entry List'!$A$1:$F$61,D$5,FALSE)) ->  | E53: =IF(ISNA(VLOOKUP($A53,'Entry List'!$A$1:$F$61,E$5,FALSE)),"",VLOOKUP($A53,'Entry List'!$A$1:$F$61,E$5,FALSE)) ->  | G53: DNS | H53: 0 | I53: DNS | J53: 0 | K53: DNS | L53: 0 | M53: DNS | N53: 0 | O53: DNS | P53: 0 | Q53: DNS | R53: 0 | S53: DNS | T53: 0 | U53: DNS | V53: 0 | W53: DNS | X53: 0 | Y53: DNS | Z53: 0 | AA53: DNS | AB53: 0 | AC53: DNS | AD53: 0 | AE53: DNS | AF53: 0 | AG53: DNS | AH53: 0 | AI53: DNS | AJ53: 0 | AK53: DNS | AL53: 0 | AM53: DNS | AN53: 0 | AO53: DNS | AP53: 0 | AQ53: DNS | AR53: 0 | AS53: DNS | AT53: 0 | AU53: DNS | AV53: 0 | AW53: DNS | AX53: 0 | AY53: DNS | AZ53: 0 | BA53: DNS | BB53: 0 | BC53: DNS | BD53: 0 | BE53: =IF('Last Race Results'!$B$5=0,0,IF(ISNA(VLOOKUP($A53,'Last Race Results'!$A$5:$J$44,2,FALSE)),"DNS",VLOOKUP($A53,'Last Race Results'!$A$5:$J$44,2,FALSE))) -> DNS | BF53: =IF('Last Race Results'!$B$5=0,0,IF(ISNA(VLOOKUP($A53,'Last Race Results'!$A$5:$K$44,11,FALSE)),0,VLOOKUP($A53,'Last Race Results'!$A$5:$K$44,11,FALSE))) -> 0 | BY53: =IF('Last Race Results'!$B$5=0,0,IF(ISNA(VLOOKUP($A53,'Last Race Results'!$A$5:$J$44,2,FALSE)),"DNS",VLOOKUP($A53,'Last Race Results'!$A$5:$J$44,2,FALSE))) -> DNS | BZ53: =IF('Last Race Results'!$B$5=0,0,IF(ISNA(VLOOKUP($A53,'Last Race Results'!$A$5:$J$44,11,FALSE)),0,VLOOKUP($A53,'Last Race Results'!$A$5:$J$44,11,FALSE))) -> 0
A54: 47 | B54: =IF(ISNA(VLOOKUP($A54,'Entry List'!$A$1:$F$61,B$5,FALSE)),"",VLOOKUP($A54,'Entry List'!$A$1:$F$61,B$5,FALSE)) -> Ricky Stenhouse Jr. | C54: =IF(ISNA(VLOOKUP($A54,'Entry List'!$A$1:$F$61,C$5,FALSE)),"",VLOOKUP($A54,'Entry List'!$A$1:$F$61,C$5,FALSE)) -> Chevrolet | D54: =IF(ISNA(VLOOKUP($A54,'Entry List'!$A$1:$F$61,D$5,FALSE)),"",VLOOKUP($A54,'Entry List'!$A$1:$F$61,D$5,FALSE)) -> JTG Daugherty Racing | E54: =IF(ISNA(VLOOKUP($A54,'Entry List'!$A$1:$F$61,E$5,FALSE)),"",VLOOKUP($A54,'Entry List'!$A$1:$F$61,E$5,FALSE)) -> JTG Daugherty Racing | G54: 20 | H54: 32 | I54: 3 | J54: 34 | K54: 20 | L54: 17 | M54: 22 | N54: 15 | O54: 40 | P54: 1 | Q54: 25 | R54: 12 | S54: 4 | T54: 38 | U54: 4 | V54: 38 | W54: 34 | X54: 5 | Y54: 13 | Z54: 28 | AA54: 21 | AB54: 16 | AC54: 20 | AD54: 17 | AE54: 2 | AF54: 45 | AG54: 17 | AH54: 20 | AI54: 15 | AJ54: 28 | AK54: 36 | AL54: 1 | AM54: 29 | AN54: 8 | AO54: 16 | AP54: 21 | AQ54: 40 | AR54: 1 | AS54: 14 | AT54: 23 | AU54: 32 | AV54: 6 | AW54: 19 | AX54: 18 | AY54: 16 | AZ54: 27 | BA54: 10 | BB54: 29 | BC54: 37 | BD54: 1 | BE54: =IF('Last Race Results'!$B$5=0,0,IF(ISNA(VLOOKUP($A54,'Last Race Results'!$A$5:$J$44,2,FALSE)),"DNS",VLOOKUP($A54,'Last Race Results'!$A$5:$J$44,2,FALSE))) -> 32 | BF54: =IF('Last Race Results'!$B$5=0,0,IF(ISNA(VLOOKUP($A54,'Last Race Results'!$A$5:$K$44,11,FALSE)),0,VLOOKUP($A54,'Last Race Results'!$A$5:$K$44,11,FALSE))) -> 8 | BY54: =IF('Last Race Results'!$B$5=0,0,IF(ISNA(VLOOKUP($A54,'Last Race Results'!$A$5:$J$44,2,FALSE)),"DNS",VLOOKUP($A54,'Last Race Results'!$A$5:$J$44,2,FALSE))) -> 32 | BZ54: =IF('Last Race Results'!$B$5=0,0,IF(ISNA(VLOOKUP($A54,'Last Race Results'!$A$5:$J$44,11,FALSE)),0,VLOOKUP($A54,'Last Race Results'!$A$5:$J$44,11,FALSE))) -> 
A55: 48 | B55: =IF(ISNA(VLOOKUP($A55,'Entry List'!$A$1:$F$61,B$5,FALSE)),"",VLOOKUP($A55,'Entry List'!$A$1:$F$61,B$5,FALSE)) -> Jimmie Johnson | C55: =IF(ISNA(VLOOKUP($A55,'Entry List'!$A$1:$F$61,C$5,FALSE)),"",VLOOKUP($A55,'Entry List'!$A$1:$F$61,C$5,FALSE)) -> Chevrolet | D55: =IF(ISNA(VLOOKUP($A55,'Entry List'!$A$1:$F$61,D$5,FALSE)),"",VLOOKUP($A55,'Entry List'!$A$1:$F$61,D$5,FALSE)) -> Hendrick Motorsports | E55: =IF(ISNA(VLOOKUP($A55,'Entry List'!$A$1:$F$61,E$5,FALSE)),"",VLOOKUP($A55,'Entry List'!$A$1:$F$61,E$5,FALSE)) -> Hendrick Motorsports | G55: 35 | H55: 22 | I55: 5 | J55: 38 | K55: 7 | L55: 46 | M55: 12 | N55: 25 | O55: 38 | P55: 1 | Q55: 8 | R55: 29 | S55: 11 | T55: 26 | U55: 11 | V55: 26 | W55: 3 | X55: 35 | Y55: 7 | Z55: 33 | AA55: 10 | AB55: 45 | AC55: 16 | AD55: 21 | AE55: 13 | AF55: 31 | AG55: 21 | AH55: 16 | AI55: 16 | AJ55: 21 | AK55: 37 | AL55: 1 | AM55: 18 | AN55: 22 | AO55: 35 | AP55: 10 | AQ55: 32 | AR55: 7 | AS55: 12 | AT55: 25 | AU55: 12 | AV55: 26 | AW55: 11 | AX55: 26 | AY55: 4 | AZ55: 41 | BA55: 7 | BB55: 37 | BC55: 3 | BD55: 39 | BE55: =IF('Last Race Results'!$B$5=0,0,IF(ISNA(VLOOKUP($A55,'Last Race Results'!$A$5:$J$44,2,FALSE)),"DNS",VLOOKUP($A55,'Last Race Results'!$A$5:$J$44,2,FALSE))) -> 17 | BF55: =IF('Last Race Results'!$B$5=0,0,IF(ISNA(VLOOKUP($A55,'Last Race Results'!$A$5:$K$44,11,FALSE)),0,VLOOKUP($A55,'Last Race Results'!$A$5:$K$44,11,FALSE))) -> 32 | BY55: =IF('Last Race Results'!$B$5=0,0,IF(ISNA(VLOOKUP($A55,'Last Race Results'!$A$5:$J$44,2,FALSE)),"DNS",VLOOKUP($A55,'Last Race Results'!$A$5:$J$44,2,FALSE))) -> 17 | BZ55: =IF('Last Race Results'!$B$5=0,0,IF(ISNA(VLOOKUP($A55,'Last Race Results'!$A$5:$J$44,11,FALSE)),0,VLOOKUP($A55,'Last Race Results'!$A$5:$J$44,11,FALSE))) -> 
A56: 49 | B56: =IF(ISNA(VLOOKUP($A56,'Entry List'!$A$1:$F$61,B$5,FALSE)),"",VLOOKUP($A56,'Entry List'!$A$1:$F$61,B$5,FALSE)) ->  | C56: =IF(ISNA(VLOOKUP($A56,'Entry List'!$A$1:$F$61,C$5,FALSE)),"",VLOOKUP($A56,'Entry List'!$A$1:$F$61,C$5,FALSE)) ->  | D56: =IF(ISNA(VLOOKUP($A56,'Entry List'!$A$1:$F$61,D$5,FALSE)),"",VLOOKUP($A56,'Entry List'!$A$1:$F$61,D$5,FALSE)) ->  | E56: =IF(ISNA(VLOOKUP($A56,'Entry List'!$A$1:$F$61,E$5,FALSE)),"",VLOOKUP($A56,'Entry List'!$A$1:$F$61,E$5,FALSE)) ->  | G56: DNS | H56: 0 | I56: DNS | J56: 0 | K56: DNS | L56: 0 | M56: DNS | N56: 0 | O56: DNS | P56: 0 | Q56: DNS | R56: 0 | S56: DNS | T56: 0 | U56: DNS | V56: 0 | W56: DNS | X56: 0 | Y56: DNS | Z56: 0 | AA56: DNS | AB56: 0 | AC56: DNS | AD56: 0 | AE56: DNS | AF56: 0 | AG56: DNS | AH56: 0 | AI56: DNS | AJ56: 0 | AK56: DNS | AL56: 0 | AM56: DNS | AN56: 0 | AO56: DNS | AP56: 0 | AQ56: DNS | AR56: 0 | AS56: DNS | AT56: 0 | AU56: DNS | AV56: 0 | AW56: DNS | AX56: 0 | AY56: DNS | AZ56: 0 | BA56: DNS | BB56: 0 | BC56: DNS | BD56: 0 | BE56: =IF('Last Race Results'!$B$5=0,0,IF(ISNA(VLOOKUP($A56,'Last Race Results'!$A$5:$J$44,2,FALSE)),"DNS",VLOOKUP($A56,'Last Race Results'!$A$5:$J$44,2,FALSE))) -> DNS | BF56: =IF('Last Race Results'!$B$5=0,0,IF(ISNA(VLOOKUP($A56,'Last Race Results'!$A$5:$K$44,11,FALSE)),0,VLOOKUP($A56,'Last Race Results'!$A$5:$K$44,11,FALSE))) -> 0 | BY56: =IF('Last Race Results'!$B$5=0,0,IF(ISNA(VLOOKUP($A56,'Last Race Results'!$A$5:$J$44,2,FALSE)),"DNS",VLOOKUP($A56,'Last Race Results'!$A$5:$J$44,2,FALSE))) -> DNS | BZ56: =IF('Last Race Results'!$B$5=0,0,IF(ISNA(VLOOKUP($A56,'Last Race Results'!$A$5:$J$44,11,FALSE)),0,VLOOKUP($A56,'Last Race Results'!$A$5:$J$44,11,FALSE))) -> 0
A57: 50 | B57: =IF(ISNA(VLOOKUP($A57,'Entry List'!$A$1:$F$61,B$5,FALSE)),"",VLOOKUP($A57,'Entry List'!$A$1:$F$61,B$5,FALSE)) ->  | C57: =IF(ISNA(VLOOKUP($A57,'Entry List'!$A$1:$F$61,C$5,FALSE)),"",VLOOKUP($A57,'Entry List'!$A$1:$F$61,C$5,FALSE)) ->  | D57: =IF(ISNA(VLOOKUP($A57,'Entry List'!$A$1:$F$61,D$5,FALSE)),"",VLOOKUP($A57,'Entry List'!$A$1:$F$61,D$5,FALSE)) ->  | E57: =IF(ISNA(VLOOKUP($A57,'Entry List'!$A$1:$F$61,E$5,FALSE)),"",VLOOKUP($A57,'Entry List'!$A$1:$F$61,E$5,FALSE)) ->  | G57: DNS | H57: 0 | I57: DNS | J57: 0 | K57: DNS | L57: 0 | M57: DNS | N57: 0 | O57: DNS | P57: 0 | Q57: DNS | R57: 0 | S57: DNS | T57: 0 | U57: DNS | V57: 0 | W57: DNS | X57: 0 | Y57: DNS | Z57: 0 | AA57: DNS | AB57: 0 | AC57: DNS | AD57: 0 | AE57: DNS | AF57: 0 | AG57: DNS | AH57: 0 | AI57: DNS | AJ57: 0 | AK57: DNS | AL57: 0 | AM57: DNS | AN57: 0 | AO57: DNS | AP57: 0 | AQ57: DNS | AR57: 0 | AS57: DNS | AT57: 0 | AU57: DNS | AV57: 0 | AW57: DNS | AX57: 0 | AY57: DNS | AZ57: 0 | BA57: DNS | BB57: 0 | BC57: DNS | BD57: 0 | BE57: =IF('Last Race Results'!$B$5=0,0,IF(ISNA(VLOOKUP($A57,'Last Race Results'!$A$5:$J$44,2,FALSE)),"DNS",VLOOKUP($A57,'Last Race Results'!$A$5:$J$44,2,FALSE))) -> DNS | BF57: =IF('Last Race Results'!$B$5=0,0,IF(ISNA(VLOOKUP($A57,'Last Race Results'!$A$5:$K$44,11,FALSE)),0,VLOOKUP($A57,'Last Race Results'!$A$5:$K$44,11,FALSE))) -> 0 | BY57: =IF('Last Race Results'!$B$5=0,0,IF(ISNA(VLOOKUP($A57,'Last Race Results'!$A$5:$J$44,2,FALSE)),"DNS",VLOOKUP($A57,'Last Race Results'!$A$5:$J$44,2,FALSE))) -> DNS | BZ57: =IF('Last Race Results'!$B$5=0,0,IF(ISNA(VLOOKUP($A57,'Last Race Results'!$A$5:$J$44,11,FALSE)),0,VLOOKUP($A57,'Last Race Results'!$A$5:$J$44,11,FALSE))) -> 0
A58: 51 | B58: =IF(ISNA(VLOOKUP($A58,'Entry List'!$A$1:$F$61,B$5,FALSE)),"",VLOOKUP($A58,'Entry List'!$A$1:$F$61,B$5,FALSE)) -> James Davison | C58: =IF(ISNA(VLOOKUP($A58,'Entry List'!$A$1:$F$61,C$5,FALSE)),"",VLOOKUP($A58,'Entry List'!$A$1:$F$61,C$5,FALSE)) -> Ford | D58: =IF(ISNA(VLOOKUP($A58,'Entry List'!$A$1:$F$61,D$5,FALSE)),"",VLOOKUP($A58,'Entry List'!$A$1:$F$61,D$5,FALSE)) -> Petty Ware Racing | E58: =IF(ISNA(VLOOKUP($A58,'Entry List'!$A$1:$F$61,E$5,FALSE)),"",VLOOKUP($A58,'Entry List'!$A$1:$F$61,E$5,FALSE)) -> Petty Ware Racing | G58: 23 | H58: 14 | I58: 35 | J58: 2 | K58: 34 | L58: 3 | M58: 35 | N58: 2 | O58: 30 | P58: 7 | Q58: 29 | R58: 8 | S58: DNS | T58: 0 | U58: DNS | V58: 0 | W58: 33 | X58: 4 | Y58: 38 | Z58: 1 | AA58: 35 | AB58: 2 | AC58: 36 | AD58: 1 | AE58: 37 | AF58: 1 | AG58: 37 | AH58: 1 | AI58: 33 | AJ58: 4 | AK58: 26 | AL58: 11 | AM58: 34 | AN58: 0 | AO58: 25 | AP58: 12 | AQ58: 29 | AR58: 0 | AS58: 34 | AT58: 3 | AU58: 38 | AV58: 1 | AW58: 37 | AX58: 1 | AY58: 30 | AZ58: 7 | BA58: 35 | BB58: 2 | BC58: 40 | BD58: 1 | BE58: =IF('Last Race Results'!$B$5=0,0,IF(ISNA(VLOOKUP($A58,'Last Race Results'!$A$5:$J$44,2,FALSE)),"DNS",VLOOKUP($A58,'Last Race Results'!$A$5:$J$44,2,FALSE))) -> 39 | BF58: =IF('Last Race Results'!$B$5=0,0,IF(ISNA(VLOOKUP($A58,'Last Race Results'!$A$5:$K$44,11,FALSE)),0,VLOOKUP($A58,'Last Race Results'!$A$5:$K$44,11,FALSE))) -> 1 | BY58: =IF('Last Race Results'!$B$5=0,0,IF(ISNA(VLOOKUP($A58,'Last Race Results'!$A$5:$J$44,2,FALSE)),"DNS",VLOOKUP($A58,'Last Race Results'!$A$5:$J$44,2,FALSE))) -> 39 | BZ58: =IF('Last Race Results'!$B$5=0,0,IF(ISNA(VLOOKUP($A58,'Last Race Results'!$A$5:$J$44,11,FALSE)),0,VLOOKUP($A58,'Last Race Results'!$A$5:$J$44,11,FALSE))) -> 
A59: 52 | B59: =IF(ISNA(VLOOKUP($A59,'Entry List'!$A$1:$F$61,B$5,FALSE)),"",VLOOKUP($A59,'Entry List'!$A$1:$F$61,B$5,FALSE)) ->  | C59: =IF(ISNA(VLOOKUP($A59,'Entry List'!$A$1:$F$61,C$5,FALSE)),"",VLOOKUP($A59,'Entry List'!$A$1:$F$61,C$5,FALSE)) ->  | D59: =IF(ISNA(VLOOKUP($A59,'Entry List'!$A$1:$F$61,D$5,FALSE)),"",VLOOKUP($A59,'Entry List'!$A$1:$F$61,D$5,FALSE)) ->  | E59: =IF(ISNA(VLOOKUP($A59,'Entry List'!$A$1:$F$61,E$5,FALSE)),"",VLOOKUP($A59,'Entry List'!$A$1:$F$61,E$5,FALSE)) ->  | G59: 38 | H59: 1 | I59: 28 | J59: 9 | K59: 31 | L59: 6 | M59: 26 | N59: 11 | O59: DNS | P59: 0 | Q59: DNS | R59: 0 | S59: DNS | T59: 0 | U59: DNS | V59: 0 | W59: DNS | X59: 0 | Y59: DNS | Z59: 0 | AA59: DNS | AB59: 0 | AC59: DNS | AD59: 0 | AE59: DNS | AF59: 0 | AG59: DNS | AH59: 0 | AI59: DNS | AJ59: 0 | AK59: DNS | AL59: 0 | AM59: DNS | AN59: 0 | AO59: 28 | AP59: 9 | AQ59: DNS | AR59: 0 | AS59: DNS | AT59: 0 | AU59: DNS | AV59: 0 | AW59: DNS | AX59: 0 | AY59: DNS | AZ59: 0 | BA59: DNS | BB59: 0 | BC59: DNS | BD59: 0 | BE59: =IF('Last Race Results'!$B$5=0,0,IF(ISNA(VLOOKUP($A59,'Last Race Results'!$A$5:$J$44,2,FALSE)),"DNS",VLOOKUP($A59,'Last Race Results'!$A$5:$J$44,2,FALSE))) -> DNS | BF59: =IF('Last Race Results'!$B$5=0,0,IF(ISNA(VLOOKUP($A59,'Last Race Results'!$A$5:$K$44,11,FALSE)),0,VLOOKUP($A59,'Last Race Results'!$A$5:$K$44,11,FALSE))) -> 0 | BY59: =IF('Last Race Results'!$B$5=0,0,IF(ISNA(VLOOKUP($A59,'Last Race Results'!$A$5:$J$44,2,FALSE)),"DNS",VLOOKUP($A59,'Last Race Results'!$A$5:$J$44,2,FALSE))) -> DNS | BZ59: =IF('Last Race Results'!$B$5=0,0,IF(ISNA(VLOOKUP($A59,'Last Race Results'!$A$5:$J$44,11,FALSE)),0,VLOOKUP($A59,'Last Race Results'!$A$5:$J$44,11,FALSE))) -> 0
A60: 53 | B60: =IF(ISNA(VLOOKUP($A60,'Entry List'!$A$1:$F$61,B$5,FALSE)),"",VLOOKUP($A60,'Entry List'!$A$1:$F$61,B$5,FALSE)) -> Joey Gase (i) | C60: =IF(ISNA(VLOOKUP($A60,'Entry List'!$A$1:$F$61,C$5,FALSE)),"",VLOOKUP($A60,'Entry List'!$A$1:$F$61,C$5,FALSE)) -> Ford | D60: =IF(ISNA(VLOOKUP($A60,'Entry List'!$A$1:$F$61,D$5,FALSE)),"",VLOOKUP($A60,'Entry List'!$A$1:$F$61,D$5,FALSE)) -> Rick Ware Racing | E60: =IF(ISNA(VLOOKUP($A60,'Entry List'!$A$1:$F$61,E$5,FALSE)),"",VLOOKUP($A60,'Entry List'!$A$1:$F$61,E$5,FALSE)) -> Rick Ware Racing | G60: DNS | H60: 0 | I60: 31 | J60: 0 | K60: 33 | L60: 4 | M60: 29 | N60: 8 | O60: 37 | P60: 1 | Q60: 34 | R60: 3 | S60: 40 | T60: 0 | U60: 40 | V60: 0 | W60: 38 | X60: 1 | Y60: 35 | Z60: 2 | AA60: 32 | AB60: 5 | AC60: 37 | AD60: 1 | AE60: 36 | AF60: 1 | AG60: 33 | AH60: 4 | AI60: 32 | AJ60: 5 | AK60: 24 | AL60: 13 | AM60: 33 | AN60: 0 | AO60: 29 | AP60: 8 | AQ60: 25 | AR60: 0 | AS60: 30 | AT60: 7 | AU60: 35 | AV60: 2 | AW60: 34 | AX60: 3 | AY60: 36 | AZ60: 1 | BA60: 32 | BB60: 5 | BC60: 32 | BD60: 5 | BE60: =IF('Last Race Results'!$B$5=0,0,IF(ISNA(VLOOKUP($A60,'Last Race Results'!$A$5:$J$44,2,FALSE)),"DNS",VLOOKUP($A60,'Last Race Results'!$A$5:$J$44,2,FALSE))) -> 31 | BF60: =IF('Last Race Results'!$B$5=0,0,IF(ISNA(VLOOKUP($A60,'Last Race Results'!$A$5:$K$44,11,FALSE)),0,VLOOKUP($A60,'Last Race Results'!$A$5:$K$44,11,FALSE))) -> 6 | BY60: =IF('Last Race Results'!$B$5=0,0,IF(ISNA(VLOOKUP($A60,'Last Race Results'!$A$5:$J$44,2,FALSE)),"DNS",VLOOKUP($A60,'Last Race Results'!$A$5:$J$44,2,FALSE))) -> 31 | BZ60: =IF('Last Race Results'!$B$5=0,0,IF(ISNA(VLOOKUP($A60,'Last Race Results'!$A$5:$J$44,11,FALSE)),0,VLOOKUP($A60,'Last Race Results'!$A$5:$J$44,11,FALSE))) -> 
A61: 54 | B61: =IF(ISNA(VLOOKUP($A61,'Entry List'!$A$1:$F$61,B$5,FALSE)),"",VLOOKUP($A61,'Entry List'!$A$1:$F$61,B$5,FALSE)) ->  | C61: =IF(ISNA(VLOOKUP($A61,'Entry List'!$A$1:$F$61,C$5,FALSE)),"",VLOOKUP($A61,'Entry List'!$A$1:$F$61,C$5,FALSE)) ->  | D61: =IF(ISNA(VLOOKUP($A61,'Entry List'!$A$1:$F$61,D$5,FALSE)),"",VLOOKUP($A61,'Entry List'!$A$1:$F$61,D$5,FALSE)) ->  | E61: =IF(ISNA(VLOOKUP($A61,'Entry List'!$A$1:$F$61,E$5,FALSE)),"",VLOOKUP($A61,'Entry List'!$A$1:$F$61,E$5,FALSE)) ->  | G61: DNS | H61: 0 | I61: DNS | J61: 0 | K61: DNS | L61: 0 | M61: DNS | N61: 0 | O61: DNS | P61: 0 | Q61: DNS | R61: 0 | S61: DNS | T61: 0 | U61: DNS | V61: 0 | W61: DNS | X61: 0 | Y61: DNS | Z61: 0 | AA61: DNS | AB61: 0 | AC61: DNS | AD61: 0 | AE61: DNS | AF61: 0 | AG61: DNS | AH61: 0 | AI61: DNS | AJ61: 0 | AK61: DNS | AL61: 0 | AM61: DNS | AN61: 0 | AO61: 26 | AP61: 11 | AQ61: DNS | AR61: 0 | AS61: DNS | AT61: 0 | AU61: DNS | AV61: 0 | AW61: DNS | AX61: 0 | AY61: DNS | AZ61: 0 | BA61: DNS | BB61: 0 | BC61: DNS | BD61: 0 | BE61: =IF('Last Race Results'!$B$5=0,0,IF(ISNA(VLOOKUP($A61,'Last Race Results'!$A$5:$J$44,2,FALSE)),"DNS",VLOOKUP($A61,'Last Race Results'!$A$5:$J$44,2,FALSE))) -> DNS | BF61: =IF('Last Race Results'!$B$5=0,0,IF(ISNA(VLOOKUP($A61,'Last Race Results'!$A$5:$K$44,11,FALSE)),0,VLOOKUP($A61,'Last Race Results'!$A$5:$K$44,11,FALSE))) -> 0 | BY61: =IF('Last Race Results'!$B$5=0,0,IF(ISNA(VLOOKUP($A61,'Last Race Results'!$A$5:$J$44,2,FALSE)),"DNS",VLOOKUP($A61,'Last Race Results'!$A$5:$J$44,2,FALSE))) -> DNS | BZ61: =IF('Last Race Results'!$B$5=0,0,IF(ISNA(VLOOKUP($A61,'Last Race Results'!$A$5:$J$44,11,FALSE)),0,VLOOKUP($A61,'Last Race Results'!$A$5:$J$44,11,FALSE))) -> 0
A62: 55 | B62: =IF(ISNA(VLOOKUP($A62,'Entry List'!$A$1:$F$61,B$5,FALSE)),"",VLOOKUP($A62,'Entry List'!$A$1:$F$61,B$5,FALSE)) ->  | C62: =IF(ISNA(VLOOKUP($A62,'Entry List'!$A$1:$F$61,C$5,FALSE)),"",VLOOKUP($A62,'Entry List'!$A$1:$F$61,C$5,FALSE)) ->  | D62: =IF(ISNA(VLOOKUP($A62,'Entry List'!$A$1:$F$61,D$5,FALSE)),"",VLOOKUP($A62,'Entry List'!$A$1:$F$61,D$5,FALSE)) ->  | E62: =IF(ISNA(VLOOKUP($A62,'Entry List'!$A$1:$F$61,E$5,FALSE)),"",VLOOKUP($A62,'Entry List'!$A$1:$F$61,E$5,FALSE)) ->  | G62: DNS | H62: 0 | I62: DNS | J62: 0 | K62: DNS | L62: 0 | M62: DNS | N62: 0 | O62: DNS | P62: 0 | Q62: DNS | R62: 0 | S62: DNS | T62: 0 | U62: DNS | V62: 0 | W62: DNS | X62: 0 | Y62: DNS | Z62: 0 | AA62: DNS | AB62: 0 | AC62: DNS | AD62: 0 | AE62: DNS | AF62: 0 | AG62: DNS | AH62: 0 | AI62: DNS | AJ62: 0 | AK62: DNS | AL62: 0 | AM62: DNS | AN62: 0 | AO62: DNS | AP62: 0 | AQ62: DNS | AR62: 0 | AS62: DNS | AT62: 0 | AU62: DNS | AV62: 0 | AW62: DNS | AX62: 0 | AY62: DNS | AZ62: 0 | BA62: DNS | BB62: 0 | BC62: DNS | BD62: 0 | BE62: =IF('Last Race Results'!$B$5=0,0,IF(ISNA(VLOOKUP($A62,'Last Race Results'!$A$5:$J$44,2,FALSE)),"DNS",VLOOKUP($A62,'Last Race Results'!$A$5:$J$44,2,FALSE))) -> DNS | BF62: =IF('Last Race Results'!$B$5=0,0,IF(ISNA(VLOOKUP($A62,'Last Race Results'!$A$5:$K$44,11,FALSE)),0,VLOOKUP($A62,'Last Race Results'!$A$5:$K$44,11,FALSE))) -> 0 | BY62: =IF('Last Race Results'!$B$5=0,0,IF(ISNA(VLOOKUP($A62,'Last Race Results'!$A$5:$J$44,2,FALSE)),"DNS",VLOOKUP($A62,'Last Race Results'!$A$5:$J$44,2,FALSE))) -> DNS | BZ62: =IF('Last Race Results'!$B$5=0,0,IF(ISNA(VLOOKUP($A62,'Last Race Results'!$A$5:$J$44,11,FALSE)),0,VLOOKUP($A62,'Last Race Results'!$A$5:$J$44,11,FALSE))) -> 0
A63: 56 | B63: =IF(ISNA(VLOOKUP($A63,'Entry List'!$A$1:$F$61,B$5,FALSE)),"",VLOOKUP($A63,'Entry List'!$A$1:$F$61,B$5,FALSE)) ->  | C63: =IF(ISNA(VLOOKUP($A63,'Entry List'!$A$1:$F$61,C$5,FALSE)),"",VLOOKUP($A63,'Entry List'!$A$1:$F$61,C$5,FALSE)) ->  | D63: =IF(ISNA(VLOOKUP($A63,'Entry List'!$A$1:$F$61,D$5,FALSE)),"",VLOOKUP($A63,'Entry List'!$A$1:$F$61,D$5,FALSE)) ->  | E63: =IF(ISNA(VLOOKUP($A63,'Entry List'!$A$1:$F$61,E$5,FALSE)),"",VLOOKUP($A63,'Entry List'!$A$1:$F$61,E$5,FALSE)) ->  | G63: DNS | H63: 0 | I63: DNS | J63: 0 | K63: DNS | L63: 0 | M63: DNS | N63: 0 | O63: DNS | P63: 0 | Q63: DNS | R63: 0 | S63: DNS | T63: 0 | U63: DNS | V63: 0 | W63: DNS | X63: 0 | Y63: DNS | Z63: 0 | AA63: DNS | AB63: 0 | AC63: DNS | AD63: 0 | AE63: DNS | AF63: 0 | AG63: DNS | AH63: 0 | AI63: DNS | AJ63: 0 | AK63: DNS | AL63: 0 | AM63: DNS | AN63: 0 | AO63: DNS | AP63: 0 | AQ63: DNS | AR63: 0 | AS63: DNS | AT63: 0 | AU63: DNS | AV63: 0 | AW63: DNS | AX63: 0 | AY63: DNS | AZ63: 0 | BA63: DNS | BB63: 0 | BC63: DNS | BD63: 0 | BE63: =IF('Last Race Results'!$B$5=0,0,IF(ISNA(VLOOKUP($A63,'Last Race Results'!$A$5:$J$44,2,FALSE)),"DNS",VLOOKUP($A63,'Last Race Results'!$A$5:$J$44,2,FALSE))) -> DNS | BF63: =IF('Last Race Results'!$B$5=0,0,IF(ISNA(VLOOKUP($A63,'Last Race Results'!$A$5:$K$44,11,FALSE)),0,VLOOKUP($A63,'Last Race Results'!$A$5:$K$44,11,FALSE))) -> 0 | BY63: =IF('Last Race Results'!$B$5=0,0,IF(ISNA(VLOOKUP($A63,'Last Race Results'!$A$5:$J$44,2,FALSE)),"DNS",VLOOKUP($A63,'Last Race Results'!$A$5:$J$44,2,FALSE))) -> DNS | BZ63: =IF('Last Race Results'!$B$5=0,0,IF(ISNA(VLOOKUP($A63,'Last Race Results'!$A$5:$J$44,11,FALSE)),0,VLOOKUP($A63,'Last Race Results'!$A$5:$J$44,11,FALSE))) -> 0
A64: 57 | B64: =IF(ISNA(VLOOKUP($A64,'Entry List'!$A$1:$F$61,B$5,FALSE)),"",VLOOKUP($A64,'Entry List'!$A$1:$F$61,B$5,FALSE)) ->  | C64: =IF(ISNA(VLOOKUP($A64,'Entry List'!$A$1:$F$61,C$5,FALSE)),"",VLOOKUP($A64,'Entry List'!$A$1:$F$61,C$5,FALSE)) ->  | D64: =IF(ISNA(VLOOKUP($A64,'Entry List'!$A$1:$F$61,D$5,FALSE)),"",VLOOKUP($A64,'Entry List'!$A$1:$F$61,D$5,FALSE)) ->  | E64: =IF(ISNA(VLOOKUP($A64,'Entry List'!$A$1:$F$61,E$5,FALSE)),"",VLOOKUP($A64,'Entry List'!$A$1:$F$61,E$5,FALSE)) ->  | G64: DNS | H64: 0 | I64: DNS | J64: 0 | K64: DNS | L64: 0 | M64: DNS | N64: 0 | O64: DNS | P64: 0 | Q64: DNS | R64: 0 | S64: DNS | T64: 0 | U64: DNS | V64: 0 | W64: DNS | X64: 0 | Y64: DNS | Z64: 0 | AA64: DNS | AB64: 0 | AC64: DNS | AD64: 0 | AE64: DNS | AF64: 0 | AG64: DNS | AH64: 0 | AI64: DNS | AJ64: 0 | AK64: DNS | AL64: 0 | AM64: DNS | AN64: 0 | AO64: DNS | AP64: 0 | AQ64: DNS | AR64: 0 | AS64: DNS | AT64: 0 | AU64: DNS | AV64: 0 | AW64: DNS | AX64: 0 | AY64: DNS | AZ64: 0 | BA64: DNS | BB64: 0 | BC64: DNS | BD64: 0 | BE64: =IF('Last Race Results'!$B$5=0,0,IF(ISNA(VLOOKUP($A64,'Last Race Results'!$A$5:$J$44,2,FALSE)),"DNS",VLOOKUP($A64,'Last Race Results'!$A$5:$J$44,2,FALSE))) -> DNS | BF64: =IF('Last Race Results'!$B$5=0,0,IF(ISNA(VLOOKUP($A64,'Last Race Results'!$A$5:$K$44,11,FALSE)),0,VLOOKUP($A64,'Last Race Results'!$A$5:$K$44,11,FALSE))) -> 0 | BY64: =IF('Last Race Results'!$B$5=0,0,IF(ISNA(VLOOKUP($A64,'Last Race Results'!$A$5:$J$44,2,FALSE)),"DNS",VLOOKUP($A64,'Last Race Results'!$A$5:$J$44,2,FALSE))) -> DNS | BZ64: =IF('Last Race Results'!$B$5=0,0,IF(ISNA(VLOOKUP($A64,'Last Race Results'!$A$5:$J$44,11,FALSE)),0,VLOOKUP($A64,'Last Race Results'!$A$5:$J$44,11,FALSE))) -> 0
A65: 58 | B65: =IF(ISNA(VLOOKUP($A65,'Entry List'!$A$1:$F$61,B$5,FALSE)),"",VLOOKUP($A65,'Entry List'!$A$1:$F$61,B$5,FALSE)) ->  | C65: =IF(ISNA(VLOOKUP($A65,'Entry List'!$A$1:$F$61,C$5,FALSE)),"",VLOOKUP($A65,'Entry List'!$A$1:$F$61,C$5,FALSE)) ->  | D65: =IF(ISNA(VLOOKUP($A65,'Entry List'!$A$1:$F$61,D$5,FALSE)),"",VLOOKUP($A65,'Entry List'!$A$1:$F$61,D$5,FALSE)) ->  | E65: =IF(ISNA(VLOOKUP($A65,'Entry List'!$A$1:$F$61,E$5,FALSE)),"",VLOOKUP($A65,'Entry List'!$A$1:$F$61,E$5,FALSE)) ->  | G65: DNS | H65: 0 | I65: DNS | J65: 0 | K65: DNS | L65: 0 | M65: DNS | N65: 0 | O65: DNS | P65: 0 | Q65: DNS | R65: 0 | S65: DNS | T65: 0 | U65: DNS | V65: 0 | W65: DNS | X65: 0 | Y65: DNS | Z65: 0 | AA65: DNS | AB65: 0 | AC65: DNS | AD65: 0 | AE65: DNS | AF65: 0 | AG65: DNS | AH65: 0 | AI65: DNS | AJ65: 0 | AK65: DNS | AL65: 0 | AM65: DNS | AN65: 0 | AO65: DNS | AP65: 0 | AQ65: DNS | AR65: 0 | AS65: DNS | AT65: 0 | AU65: DNS | AV65: 0 | AW65: DNS | AX65: 0 | AY65: DNS | AZ65: 0 | BA65: DNS | BB65: 0 | BC65: DNS | BD65: 0 | BE65: =IF('Last Race Results'!$B$5=0,0,IF(ISNA(VLOOKUP($A65,'Last Race Results'!$A$5:$J$44,2,FALSE)),"DNS",VLOOKUP($A65,'Last Race Results'!$A$5:$J$44,2,FALSE))) -> DNS | BF65: =IF('Last Race Results'!$B$5=0,0,IF(ISNA(VLOOKUP($A65,'Last Race Results'!$A$5:$K$44,11,FALSE)),0,VLOOKUP($A65,'Last Race Results'!$A$5:$K$44,11,FALSE))) -> 0 | BY65: =IF('Last Race Results'!$B$5=0,0,IF(ISNA(VLOOKUP($A65,'Last Race Results'!$A$5:$J$44,2,FALSE)),"DNS",VLOOKUP($A65,'Last Race Results'!$A$5:$J$44,2,FALSE))) -> DNS | BZ65: =IF('Last Race Results'!$B$5=0,0,IF(ISNA(VLOOKUP($A65,'Last Race Results'!$A$5:$J$44,11,FALSE)),0,VLOOKUP($A65,'Last Race Results'!$A$5:$J$44,11,FALSE))) -> 0
A66: 59 | B66: =IF(ISNA(VLOOKUP($A66,'Entry List'!$A$1:$F$61,B$5,FALSE)),"",VLOOKUP($A66,'Entry List'!$A$1:$F$61,B$5,FALSE)) ->  | C66: =IF(ISNA(VLOOKUP($A66,'Entry List'!$A$1:$F$61,C$5,FALSE)),"",VLOOKUP($A66,'Entry List'!$A$1:$F$61,C$5,FALSE)) ->  | D66: =IF(ISNA(VLOOKUP($A66,'Entry List'!$A$1:$F$61,D$5,FALSE)),"",VLOOKUP($A66,'Entry List'!$A$1:$F$61,D$5,FALSE)) ->  | E66: =IF(ISNA(VLOOKUP($A66,'Entry List'!$A$1:$F$61,E$5,FALSE)),"",VLOOKUP($A66,'Entry List'!$A$1:$F$61,E$5,FALSE)) ->  | G66: DNS | H66: 0 | I66: DNS | J66: 0 | K66: DNS | L66: 0 | M66: DNS | N66: 0 | O66: DNS | P66: 0 | Q66: DNS | R66: 0 | S66: DNS | T66: 0 | U66: DNS | V66: 0 | W66: DNS | X66: 0 | Y66: DNS | Z66: 0 | AA66: DNS | AB66: 0 | AC66: DNS | AD66: 0 | AE66: DNS | AF66: 0 | AG66: DNS | AH66: 0 | AI66: DNS | AJ66: 0 | AK66: DNS | AL66: 0 | AM66: DNS | AN66: 0 | AO66: DNS | AP66: 0 | AQ66: DNS | AR66: 0 | AS66: DNS | AT66: 0 | AU66: DNS | AV66: 0 | AW66: DNS | AX66: 0 | AY66: DNS | AZ66: 0 | BA66: DNS | BB66: 0 | BC66: DNS | BD66: 0 | BE66: =IF('Last Race Results'!$B$5=0,0,IF(ISNA(VLOOKUP($A66,'Last Race Results'!$A$5:$J$44,2,FALSE)),"DNS",VLOOKUP($A66,'Last Race Results'!$A$5:$J$44,2,FALSE))) -> DNS | BF66: =IF('Last Race Results'!$B$5=0,0,IF(ISNA(VLOOKUP($A66,'Last Race Results'!$A$5:$K$44,11,FALSE)),0,VLOOKUP($A66,'Last Race Results'!$A$5:$K$44,11,FALSE))) -> 0 | BY66: =IF('Last Race Results'!$B$5=0,0,IF(ISNA(VLOOKUP($A66,'Last Race Results'!$A$5:$J$44,2,FALSE)),"DNS",VLOOKUP($A66,'Last Race Results'!$A$5:$J$44,2,FALSE))) -> DNS | BZ66: =IF('Last Race Results'!$B$5=0,0,IF(ISNA(VLOOKUP($A66,'Last Race Results'!$A$5:$J$44,11,FALSE)),0,VLOOKUP($A66,'Last Race Results'!$A$5:$J$44,11,FALSE))) -> 0
A67: 60 | B67: =IF(ISNA(VLOOKUP($A67,'Entry List'!$A$1:$F$61,B$5,FALSE)),"",VLOOKUP($A67,'Entry List'!$A$1:$F$61,B$5,FALSE)) ->  | C67: =IF(ISNA(VLOOKUP($A67,'Entry List'!$A$1:$F$61,C$5,FALSE)),"",VLOOKUP($A67,'Entry List'!$A$1:$F$61,C$5,FALSE)) ->  | D67: =IF(ISNA(VLOOKUP($A67,'Entry List'!$A$1:$F$61,D$5,FALSE)),"",VLOOKUP($A67,'Entry List'!$A$1:$F$61,D$5,FALSE)) ->  | E67: =IF(ISNA(VLOOKUP($A67,'Entry List'!$A$1:$F$61,E$5,FALSE)),"",VLOOKUP($A67,'Entry List'!$A$1:$F$61,E$5,FALSE)) ->  | G67: DNS | H67: 0 | I67: DNS | J67: 0 | K67: DNS | L67: 0 | M67: DNS | N67: 0 | O67: DNS | P67: 0 | Q67: DNS | R67: 0 | S67: DNS | T67: 0 | U67: DNS | V67: 0 | W67: DNS | X67: 0 | Y67: DNS | Z67: 0 | AA67: DNS | AB67: 0 | AC67: DNS | AD67: 0 | AE67: DNS | AF67: 0 | AG67: DNS | AH67: 0 | AI67: DNS | AJ67: 0 | AK67: DNS | AL67: 0 | AM67: DNS | AN67: 0 | AO67: DNS | AP67: 0 | AQ67: DNS | AR67: 0 | AS67: DNS | AT67: 0 | AU67: DNS | AV67: 0 | AW67: DNS | AX67: 0 | AY67: DNS | AZ67: 0 | BA67: DNS | BB67: 0 | BC67: DNS | BD67: 0 | BE67: =IF('Last Race Results'!$B$5=0,0,IF(ISNA(VLOOKUP($A67,'Last Race Results'!$A$5:$J$44,2,FALSE)),"DNS",VLOOKUP($A67,'Last Race Results'!$A$5:$J$44,2,FALSE))) -> DNS | BF67: =IF('Last Race Results'!$B$5=0,0,IF(ISNA(VLOOKUP($A67,'Last Race Results'!$A$5:$K$44,11,FALSE)),0,VLOOKUP($A67,'Last Race Results'!$A$5:$K$44,11,FALSE))) -> 0 | BY67: =IF('Last Race Results'!$B$5=0,0,IF(ISNA(VLOOKUP($A67,'Last Race Results'!$A$5:$J$44,2,FALSE)),"DNS",VLOOKUP($A67,'Last Race Results'!$A$5:$J$44,2,FALSE))) -> DNS | BZ67: =IF('Last Race Results'!$B$5=0,0,IF(ISNA(VLOOKUP($A67,'Last Race Results'!$A$5:$J$44,11,FALSE)),0,VLOOKUP($A67,'Last Race Results'!$A$5:$J$44,11,FALSE))) -> 0
A68: 61 | B68: =IF(ISNA(VLOOKUP($A68,'Entry List'!$A$1:$F$61,B$5,FALSE)),"",VLOOKUP($A68,'Entry List'!$A$1:$F$61,B$5,FALSE)) ->  | C68: =IF(ISNA(VLOOKUP($A68,'Entry List'!$A$1:$F$61,C$5,FALSE)),"",VLOOKUP($A68,'Entry List'!$A$1:$F$61,C$5,FALSE)) ->  | D68: =IF(ISNA(VLOOKUP($A68,'Entry List'!$A$1:$F$61,D$5,FALSE)),"",VLOOKUP($A68,'Entry List'!$A$1:$F$61,D$5,FALSE)) ->  | E68: =IF(ISNA(VLOOKUP($A68,'Entry List'!$A$1:$F$61,E$5,FALSE)),"",VLOOKUP($A68,'Entry List'!$A$1:$F$61,E$5,FALSE)) ->  | G68: DNS | H68: 0 | I68: DNS | J68: 0 | K68: DNS | L68: 0 | M68: DNS | N68: 0 | O68: DNS | P68: 0 | Q68: DNS | R68: 0 | S68: DNS | T68: 0 | U68: DNS | V68: 0 | W68: DNS | X68: 0 | Y68: DNS | Z68: 0 | AA68: DNS | AB68: 0 | AC68: DNS | AD68: 0 | AE68: DNS | AF68: 0 | AG68: DNS | AH68: 0 | AI68: DNS | AJ68: 0 | AK68: DNS | AL68: 0 | AM68: DNS | AN68: 0 | AO68: DNS | AP68: 0 | AQ68: DNS | AR68: 0 | AS68: DNS | AT68: 0 | AU68: DNS | AV68: 0 | AW68: DNS | AX68: 0 | AY68: DNS | AZ68: 0 | BA68: DNS | BB68: 0 | BC68: DNS | BD68: 0 | BE68: =IF('Last Race Results'!$B$5=0,0,IF(ISNA(VLOOKUP($A68,'Last Race Results'!$A$5:$J$44,2,FALSE)),"DNS",VLOOKUP($A68,'Last Race Results'!$A$5:$J$44,2,FALSE))) -> DNS | BF68: =IF('Last Race Results'!$B$5=0,0,IF(ISNA(VLOOKUP($A68,'Last Race Results'!$A$5:$K$44,11,FALSE)),0,VLOOKUP($A68,'Last Race Results'!$A$5:$K$44,11,FALSE))) -> 0 | BY68: =IF('Last Race Results'!$B$5=0,0,IF(ISNA(VLOOKUP($A68,'Last Race Results'!$A$5:$J$44,2,FALSE)),"DNS",VLOOKUP($A68,'Last Race Results'!$A$5:$J$44,2,FALSE))) -> DNS | BZ68: =IF('Last Race Results'!$B$5=0,0,IF(ISNA(VLOOKUP($A68,'Last Race Results'!$A$5:$J$44,11,FALSE)),0,VLOOKUP($A68,'Last Race Results'!$A$5:$J$44,11,FALSE))) -> 0
A69: 62 | B69: =IF(ISNA(VLOOKUP($A69,'Entry List'!$A$1:$F$61,B$5,FALSE)),"",VLOOKUP($A69,'Entry List'!$A$1:$F$61,B$5,FALSE)) -> Brendan Gaughan | C69: =IF(ISNA(VLOOKUP($A69,'Entry List'!$A$1:$F$61,C$5,FALSE)),"",VLOOKUP($A69,'Entry List'!$A$1:$F$61,C$5,FALSE)) -> Chevrolet | D69: =IF(ISNA(VLOOKUP($A69,'Entry List'!$A$1:$F$61,D$5,FALSE)),"",VLOOKUP($A69,'Entry List'!$A$1:$F$61,D$5,FALSE)) -> Beard Motorsports | E69: =IF(ISNA(VLOOKUP($A69,'Entry List'!$A$1:$F$61,E$5,FALSE)),"",VLOOKUP($A69,'Entry List'!$A$1:$F$61,E$5,FALSE)) -> Beard Motorsports | G69: 7 | H69: 30 | I69: DNS | J69: 0 | K69: DNS | L69: 0 | M69: DNS | N69: 0 | O69: DNS | P69: 0 | Q69: DNS | R69: 0 | S69: DNS | T69: 0 | U69: DNS | V69: 0 | W69: DNS | X69: 0 | Y69: DNS | Z69: 0 | AA69: DNS | AB69: 0 | AC69: DNS | AD69: 0 | AE69: 21 | AF69: 16 | AG69: DNS | AH69: 0 | AI69: DNS | AJ69: 0 | AK69: DNS | AL69: 0 | AM69: DNS | AN69: 0 | AO69: DNS | AP69: 0 | AQ69: DNS | AR69: 0 | AS69: DNS | AT69: 0 | AU69: DNS | AV69: 0 | AW69: DNS | AX69: 0 | AY69: 39 | AZ69: 1 | BA69: DNS | BB69: 0 | BC69: DNS | BD69: 0 | BE69: =IF('Last Race Results'!$B$5=0,0,IF(ISNA(VLOOKUP($A69,'Last Race Results'!$A$5:$J$44,2,FALSE)),"DNS",VLOOKUP($A69,'Last Race Results'!$A$5:$J$44,2,FALSE))) -> 8 | BF69: =IF('Last Race Results'!$B$5=0,0,IF(ISNA(VLOOKUP($A69,'Last Race Results'!$A$5:$K$44,11,FALSE)),0,VLOOKUP($A69,'Last Race Results'!$A$5:$K$44,11,FALSE))) -> 29 | BY69: =IF('Last Race Results'!$B$5=0,0,IF(ISNA(VLOOKUP($A69,'Last Race Results'!$A$5:$J$44,2,FALSE)),"DNS",VLOOKUP($A69,'Last Race Results'!$A$5:$J$44,2,FALSE))) -> 8 | BZ69: =IF('Last Race Results'!$B$5=0,0,IF(ISNA(VLOOKUP($A69,'Last Race Results'!$A$5:$J$44,11,FALSE)),0,VLOOKUP($A69,'Last Race Results'!$A$5:$J$44,11,FALSE))) -> 
A70: 63 | B70: =IF(ISNA(VLOOKUP($A70,'Entry List'!$A$1:$F$61,B$5,FALSE)),"",VLOOKUP($A70,'Entry List'!$A$1:$F$61,B$5,FALSE)) ->  | C70: =IF(ISNA(VLOOKUP($A70,'Entry List'!$A$1:$F$61,C$5,FALSE)),"",VLOOKUP($A70,'Entry List'!$A$1:$F$61,C$5,FALSE)) ->  | D70: =IF(ISNA(VLOOKUP($A70,'Entry List'!$A$1:$F$61,D$5,FALSE)),"",VLOOKUP($A70,'Entry List'!$A$1:$F$61,D$5,FALSE)) ->  | E70: =IF(ISNA(VLOOKUP($A70,'Entry List'!$A$1:$F$61,E$5,FALSE)),"",VLOOKUP($A70,'Entry List'!$A$1:$F$61,E$5,FALSE)) ->  | G70: DNS | H70: 0 | I70: DNS | J70: 0 | K70: DNS | L70: 0 | M70: DNS | N70: 0 | O70: DNS | P70: 0 | Q70: DNS | R70: 0 | S70: DNS | T70: 0 | U70: DNS | V70: 0 | W70: DNS | X70: 0 | Y70: DNS | Z70: 0 | AA70: DNS | AB70: 0 | AC70: DNS | AD70: 0 | AE70: DNS | AF70: 0 | AG70: DNS | AH70: 0 | AI70: DNS | AJ70: 0 | AK70: DNS | AL70: 0 | AM70: DNS | AN70: 0 | AO70: DNS | AP70: 0 | AQ70: DNS | AR70: 0 | AS70: DNS | AT70: 0 | AU70: DNS | AV70: 0 | AW70: DNS | AX70: 0 | AY70: DNS | AZ70: 0 | BA70: DNS | BB70: 0 | BC70: DNS | BD70: 0 | BE70: =IF('Last Race Results'!$B$5=0,0,IF(ISNA(VLOOKUP($A70,'Last Race Results'!$A$5:$J$44,2,FALSE)),"DNS",VLOOKUP($A70,'Last Race Results'!$A$5:$J$44,2,FALSE))) -> DNS | BF70: =IF('Last Race Results'!$B$5=0,0,IF(ISNA(VLOOKUP($A70,'Last Race Results'!$A$5:$K$44,11,FALSE)),0,VLOOKUP($A70,'Last Race Results'!$A$5:$K$44,11,FALSE))) -> 0 | BY70: =IF('Last Race Results'!$B$5=0,0,IF(ISNA(VLOOKUP($A70,'Last Race Results'!$A$5:$J$44,2,FALSE)),"DNS",VLOOKUP($A70,'Last Race Results'!$A$5:$J$44,2,FALSE))) -> DNS | BZ70: =IF('Last Race Results'!$B$5=0,0,IF(ISNA(VLOOKUP($A70,'Last Race Results'!$A$5:$J$44,11,FALSE)),0,VLOOKUP($A70,'Last Race Results'!$A$5:$J$44,11,FALSE))) -> 0
A71: 64 | B71: =IF(ISNA(VLOOKUP($A71,'Entry List'!$A$1:$F$61,B$5,FALSE)),"",VLOOKUP($A71,'Entry List'!$A$1:$F$61,B$5,FALSE)) ->  | C71: =IF(ISNA(VLOOKUP($A71,'Entry List'!$A$1:$F$61,C$5,FALSE)),"",VLOOKUP($A71,'Entry List'!$A$1:$F$61,C$5,FALSE)) ->  | D71: =IF(ISNA(VLOOKUP($A71,'Entry List'!$A$1:$F$61,D$5,FALSE)),"",VLOOKUP($A71,'Entry List'!$A$1:$F$61,D$5,FALSE)) ->  | E71: =IF(ISNA(VLOOKUP($A71,'Entry List'!$A$1:$F$61,E$5,FALSE)),"",VLOOKUP($A71,'Entry List'!$A$1:$F$61,E$5,FALSE)) ->  | G71: DNS | H71: 0 | I71: DNS | J71: 0 | K71: DNS | L71: 0 | M71: DNS | N71: 0 | O71: DNS | P71: 0 | Q71: DNS | R71: 0 | S71: DNS | T71: 0 | U71: DNS | V71: 0 | W71: DNS | X71: 0 | Y71: DNS | Z71: 0 | AA71: DNS | AB71: 0 | AC71: DNS | AD71: 0 | AE71: DNS | AF71: 0 | AG71: DNS | AH71: 0 | AI71: DNS | AJ71: 0 | AK71: DNS | AL71: 0 | AM71: DNS | AN71: 0 | AO71: DNS | AP71: 0 | AQ71: DNS | AR71: 0 | AS71: DNS | AT71: 0 | AU71: DNS | AV71: 0 | AW71: DNS | AX71: 0 | AY71: DNS | AZ71: 0 | BA71: DNS | BB71: 0 | BC71: DNS | BD71: 0 | BE71: =IF('Last Race Results'!$B$5=0,0,IF(ISNA(VLOOKUP($A71,'Last Race Results'!$A$5:$J$44,2,FALSE)),"DNS",VLOOKUP($A71,'Last Race Results'!$A$5:$J$44,2,FALSE))) -> DNS | BF71: =IF('Last Race Results'!$B$5=0,0,IF(ISNA(VLOOKUP($A71,'Last Race Results'!$A$5:$K$44,11,FALSE)),0,VLOOKUP($A71,'Last Race Results'!$A$5:$K$44,11,FALSE))) -> 0 | BY71: =IF('Last Race Results'!$B$5=0,0,IF(ISNA(VLOOKUP($A71,'Last Race Results'!$A$5:$J$44,2,FALSE)),"DNS",VLOOKUP($A71,'Last Race Results'!$A$5:$J$44,2,FALSE))) -> DNS | BZ71: =IF('Last Race Results'!$B$5=0,0,IF(ISNA(VLOOKUP($A71,'Last Race Results'!$A$5:$J$44,11,FALSE)),0,VLOOKUP($A71,'Last Race Results'!$A$5:$J$44,11,FALSE))) -> 0
A72: 65 | B72: =IF(ISNA(VLOOKUP($A72,'Entry List'!$A$1:$F$61,B$5,FALSE)),"",VLOOKUP($A72,'Entry List'!$A$1:$F$61,B$5,FALSE)) ->  | C72: =IF(ISNA(VLOOKUP($A72,'Entry List'!$A$1:$F$61,C$5,FALSE)),"",VLOOKUP($A72,'Entry List'!$A$1:$F$61,C$5,FALSE)) ->  | D72: =IF(ISNA(VLOOKUP($A72,'Entry List'!$A$1:$F$61,D$5,FALSE)),"",VLOOKUP($A72,'Entry List'!$A$1:$F$61,D$5,FALSE)) ->  | E72: =IF(ISNA(VLOOKUP($A72,'Entry List'!$A$1:$F$61,E$5,FALSE)),"",VLOOKUP($A72,'Entry List'!$A$1:$F$61,E$5,FALSE)) ->  | G72: DNS | H72: 0 | I72: DNS | J72: 0 | K72: DNS | L72: 0 | M72: DNS | N72: 0 | O72: DNS | P72: 0 | Q72: DNS | R72: 0 | S72: DNS | T72: 0 | U72: DNS | V72: 0 | W72: DNS | X72: 0 | Y72: DNS | Z72: 0 | AA72: DNS | AB72: 0 | AC72: DNS | AD72: 0 | AE72: DNS | AF72: 0 | AG72: DNS | AH72: 0 | AI72: DNS | AJ72: 0 | AK72: DNS | AL72: 0 | AM72: DNS | AN72: 0 | AO72: DNS | AP72: 0 | AQ72: DNS | AR72: 0 | AS72: DNS | AT72: 0 | AU72: DNS | AV72: 0 | AW72: DNS | AX72: 0 | AY72: DNS | AZ72: 0 | BA72: DNS | BB72: 0 | BC72: DNS | BD72: 0 | BE72: =IF('Last Race Results'!$B$5=0,0,IF(ISNA(VLOOKUP($A72,'Last Race Results'!$A$5:$J$44,2,FALSE)),"DNS",VLOOKUP($A72,'Last Race Results'!$A$5:$J$44,2,FALSE))) -> DNS | BF72: =IF('Last Race Results'!$B$5=0,0,IF(ISNA(VLOOKUP($A72,'Last Race Results'!$A$5:$K$44,11,FALSE)),0,VLOOKUP($A72,'Last Race Results'!$A$5:$K$44,11,FALSE))) -> 0 | BY72: =IF('Last Race Results'!$B$5=0,0,IF(ISNA(VLOOKUP($A72,'Last Race Results'!$A$5:$J$44,2,FALSE)),"DNS",VLOOKUP($A72,'Last Race Results'!$A$5:$J$44,2,FALSE))) -> DNS | BZ72: =IF('Last Race Results'!$B$5=0,0,IF(ISNA(VLOOKUP($A72,'Last Race Results'!$A$5:$J$44,11,FALSE)),0,VLOOKUP($A72,'Last Race Results'!$A$5:$J$44,11,FALSE))) -> 0
A73: 66 | B73: =IF(ISNA(VLOOKUP($A73,'Entry List'!$A$1:$F$61,B$5,FALSE)),"",VLOOKUP($A73,'Entry List'!$A$1:$F$61,B$5,FALSE)) -> Timmy Hill (i) | C73: =IF(ISNA(VLOOKUP($A73,'Entry List'!$A$1:$F$61,C$5,FALSE)),"",VLOOKUP($A73,'Entry List'!$A$1:$F$61,C$5,FALSE)) -> Toyota | D73: =IF(ISNA(VLOOKUP($A73,'Entry List'!$A$1:$F$61,D$5,FALSE)),"",VLOOKUP($A73,'Entry List'!$A$1:$F$61,D$5,FALSE)) -> MBM Motorsports | E73: =IF(ISNA(VLOOKUP($A73,'Entry List'!$A$1:$F$61,E$5,FALSE)),"",VLOOKUP($A73,'Entry List'!$A$1:$F$61,E$5,FALSE)) -> MBM Motorsports | G73: 27 | H73: 10 | I73: 38 | J73: 1 | K73: 37 | L73: 1 | M73: 38 | N73: 1 | O73: 33 | P73: 4 | Q73: 33 | R73: 4 | S73: 33 | T73: 4 | U73: 33 | V73: 4 | W73: 19 | X73: 18 | Y73: 39 | Z73: 1 | AA73: 39 | AB73: 1 | AC73: 34 | AD73: 3 | AE73: 33 | AF73: 4 | AG73: 35 | AH73: 2 | AI73: 29 | AJ73: 8 | AK73: 29 | AL73: 8 | AM73: 37 | AN73: 0 | AO73: DNS | AP73: 0 | AQ73: 38 | AR73: 0 | AS73: 33 | AT73: 4 | AU73: 33 | AV73: 4 | AW73: 35 | AX73: 2 | AY73: 29 | AZ73: 8 | BA73: 34 | BB73: 3 | BC73: 36 | BD73: 1 | BE73: =IF('Last Race Results'!$B$5=0,0,IF(ISNA(VLOOKUP($A73,'Last Race Results'!$A$5:$J$44,2,FALSE)),"DNS",VLOOKUP($A73,'Last Race Results'!$A$5:$J$44,2,FALSE))) -> 24 | BF73: =IF('Last Race Results'!$B$5=0,0,IF(ISNA(VLOOKUP($A73,'Last Race Results'!$A$5:$K$44,11,FALSE)),0,VLOOKUP($A73,'Last Race Results'!$A$5:$K$44,11,FALSE))) -> 13 | BY73: =IF('Last Race Results'!$B$5=0,0,IF(ISNA(VLOOKUP($A73,'Last Race Results'!$A$5:$J$44,2,FALSE)),"DNS",VLOOKUP($A73,'Last Race Results'!$A$5:$J$44,2,FALSE))) -> 24 | BZ73: =IF('Last Race Results'!$B$5=0,0,IF(ISNA(VLOOKUP($A73,'Last Race Results'!$A$5:$J$44,11,FALSE)),0,VLOOKUP($A73,'Last Race Results'!$A$5:$J$44,11,FALSE))) -> 
A74: 67 | B74: =IF(ISNA(VLOOKUP($A74,'Entry List'!$A$1:$F$61,B$5,FALSE)),"",VLOOKUP($A74,'Entry List'!$A$1:$F$61,B$5,FALSE)) ->  | C74: =IF(ISNA(VLOOKUP($A74,'Entry List'!$A$1:$F$61,C$5,FALSE)),"",VLOOKUP($A74,'Entry List'!$A$1:$F$61,C$5,FALSE)) ->  | D74: =IF(ISNA(VLOOKUP($A74,'Entry List'!$A$1:$F$61,D$5,FALSE)),"",VLOOKUP($A74,'Entry List'!$A$1:$F$61,D$5,FALSE)) ->  | E74: =IF(ISNA(VLOOKUP($A74,'Entry List'!$A$1:$F$61,E$5,FALSE)),"",VLOOKUP($A74,'Entry List'!$A$1:$F$61,E$5,FALSE)) ->  | G74: DNS | H74: 0 | I74: DNS | J74: 0 | K74: DNS | L74: 0 | M74: DNS | N74: 0 | O74: DNS | P74: 0 | Q74: DNS | R74: 0 | S74: DNS | T74: 0 | U74: DNS | V74: 0 | W74: DNS | X74: 0 | Y74: DNS | Z74: 0 | AA74: DNS | AB74: 0 | AC74: DNS | AD74: 0 | AE74: DNS | AF74: 0 | AG74: DNS | AH74: 0 | AI74: DNS | AJ74: 0 | AK74: DNS | AL74: 0 | AM74: DNS | AN74: 0 | AO74: DNS | AP74: 0 | AQ74: DNS | AR74: 0 | AS74: DNS | AT74: 0 | AU74: DNS | AV74: 0 | AW74: DNS | AX74: 0 | AY74: DNS | AZ74: 0 | BA74: DNS | BB74: 0 | BC74: DNS | BD74: 0 | BE74: =IF('Last Race Results'!$B$5=0,0,IF(ISNA(VLOOKUP($A74,'Last Race Results'!$A$5:$J$44,2,FALSE)),"DNS",VLOOKUP($A74,'Last Race Results'!$A$5:$J$44,2,FALSE))) -> DNS | BF74: =IF('Last Race Results'!$B$5=0,0,IF(ISNA(VLOOKUP($A74,'Last Race Results'!$A$5:$K$44,11,FALSE)),0,VLOOKUP($A74,'Last Race Results'!$A$5:$K$44,11,FALSE))) -> 0 | BY74: =IF('Last Race Results'!$B$5=0,0,IF(ISNA(VLOOKUP($A74,'Last Race Results'!$A$5:$J$44,2,FALSE)),"DNS",VLOOKUP($A74,'Last Race Results'!$A$5:$J$44,2,FALSE))) -> DNS | BZ74: =IF('Last Race Results'!$B$5=0,0,IF(ISNA(VLOOKUP($A74,'Last Race Results'!$A$5:$J$44,11,FALSE)),0,VLOOKUP($A74,'Last Race Results'!$A$5:$J$44,11,FALSE))) -> 0
A75: 68 | B75: =IF(ISNA(VLOOKUP($A75,'Entry List'!$A$1:$F$61,B$5,FALSE)),"",VLOOKUP($A75,'Entry List'!$A$1:$F$61,B$5,FALSE)) ->  | C75: =IF(ISNA(VLOOKUP($A75,'Entry List'!$A$1:$F$61,C$5,FALSE)),"",VLOOKUP($A75,'Entry List'!$A$1:$F$61,C$5,FALSE)) ->  | D75: =IF(ISNA(VLOOKUP($A75,'Entry List'!$A$1:$F$61,D$5,FALSE)),"",VLOOKUP($A75,'Entry List'!$A$1:$F$61,D$5,FALSE)) ->  | E75: =IF(ISNA(VLOOKUP($A75,'Entry List'!$A$1:$F$61,E$5,FALSE)),"",VLOOKUP($A75,'Entry List'!$A$1:$F$61,E$5,FALSE)) ->  | G75: DNS | H75: 0 | I75: DNS | J75: 0 | K75: DNS | L75: 0 | M75: DNS | N75: 0 | O75: DNS | P75: 0 | Q75: DNS | R75: 0 | S75: DNS | T75: 0 | U75: DNS | V75: 0 | W75: DNS | X75: 0 | Y75: DNS | Z75: 0 | AA75: DNS | AB75: 0 | AC75: DNS | AD75: 0 | AE75: DNS | AF75: 0 | AG75: DNS | AH75: 0 | AI75: DNS | AJ75: 0 | AK75: DNS | AL75: 0 | AM75: DNS | AN75: 0 | AO75: DNS | AP75: 0 | AQ75: DNS | AR75: 0 | AS75: DNS | AT75: 0 | AU75: DNS | AV75: 0 | AW75: DNS | AX75: 0 | AY75: DNS | AZ75: 0 | BA75: DNS | BB75: 0 | BC75: DNS | BD75: 0 | BE75: =IF('Last Race Results'!$B$5=0,0,IF(ISNA(VLOOKUP($A75,'Last Race Results'!$A$5:$J$44,2,FALSE)),"DNS",VLOOKUP($A75,'Last Race Results'!$A$5:$J$44,2,FALSE))) -> DNS | BF75: =IF('Last Race Results'!$B$5=0,0,IF(ISNA(VLOOKUP($A75,'Last Race Results'!$A$5:$K$44,11,FALSE)),0,VLOOKUP($A75,'Last Race Results'!$A$5:$K$44,11,FALSE))) -> 0 | BY75: =IF('Last Race Results'!$B$5=0,0,IF(ISNA(VLOOKUP($A75,'Last Race Results'!$A$5:$J$44,2,FALSE)),"DNS",VLOOKUP($A75,'Last Race Results'!$A$5:$J$44,2,FALSE))) -> DNS | BZ75: =IF('Last Race Results'!$B$5=0,0,IF(ISNA(VLOOKUP($A75,'Last Race Results'!$A$5:$J$44,11,FALSE)),0,VLOOKUP($A75,'Last Race Results'!$A$5:$J$44,11,FALSE))) -> 0
A76: 69 | B76: =IF(ISNA(VLOOKUP($A76,'Entry List'!$A$1:$F$61,B$5,FALSE)),"",VLOOKUP($A76,'Entry List'!$A$1:$F$61,B$5,FALSE)) ->  | C76: =IF(ISNA(VLOOKUP($A76,'Entry List'!$A$1:$F$61,C$5,FALSE)),"",VLOOKUP($A76,'Entry List'!$A$1:$F$61,C$5,FALSE)) ->  | D76: =IF(ISNA(VLOOKUP($A76,'Entry List'!$A$1:$F$61,D$5,FALSE)),"",VLOOKUP($A76,'Entry List'!$A$1:$F$61,D$5,FALSE)) ->  | E76: =IF(ISNA(VLOOKUP($A76,'Entry List'!$A$1:$F$61,E$5,FALSE)),"",VLOOKUP($A76,'Entry List'!$A$1:$F$61,E$5,FALSE)) ->  | G76: DNS | H76: 0 | I76: DNS | J76: 0 | K76: DNS | L76: 0 | M76: DNS | N76: 0 | O76: DNS | P76: 0 | Q76: DNS | R76: 0 | S76: DNS | T76: 0 | U76: DNS | V76: 0 | W76: DNS | X76: 0 | Y76: DNS | Z76: 0 | AA76: DNS | AB76: 0 | AC76: DNS | AD76: 0 | AE76: DNS | AF76: 0 | AG76: DNS | AH76: 0 | AI76: DNS | AJ76: 0 | AK76: DNS | AL76: 0 | AM76: DNS | AN76: 0 | AO76: DNS | AP76: 0 | AQ76: DNS | AR76: 0 | AS76: DNS | AT76: 0 | AU76: DNS | AV76: 0 | AW76: DNS | AX76: 0 | AY76: DNS | AZ76: 0 | BA76: DNS | BB76: 0 | BC76: DNS | BD76: 0 | BE76: =IF('Last Race Results'!$B$5=0,0,IF(ISNA(VLOOKUP($A76,'Last Race Results'!$A$5:$J$44,2,FALSE)),"DNS",VLOOKUP($A76,'Last Race Results'!$A$5:$J$44,2,FALSE))) -> DNS | BF76: =IF('Last Race Results'!$B$5=0,0,IF(ISNA(VLOOKUP($A76,'Last Race Results'!$A$5:$K$44,11,FALSE)),0,VLOOKUP($A76,'Last Race Results'!$A$5:$K$44,11,FALSE))) -> 0 | BY76: =IF('Last Race Results'!$B$5=0,0,IF(ISNA(VLOOKUP($A76,'Last Race Results'!$A$5:$J$44,2,FALSE)),"DNS",VLOOKUP($A76,'Last Race Results'!$A$5:$J$44,2,FALSE))) -> DNS | BZ76: =IF('Last Race Results'!$B$5=0,0,IF(ISNA(VLOOKUP($A76,'Last Race Results'!$A$5:$J$44,11,FALSE)),0,VLOOKUP($A76,'Last Race Results'!$A$5:$J$44,11,FALSE))) -> 0
A77: 70 | B77: =IF(ISNA(VLOOKUP($A77,'Entry List'!$A$1:$F$61,B$5,FALSE)),"",VLOOKUP($A77,'Entry List'!$A$1:$F$61,B$5,FALSE)) ->  | C77: =IF(ISNA(VLOOKUP($A77,'Entry List'!$A$1:$F$61,C$5,FALSE)),"",VLOOKUP($A77,'Entry List'!$A$1:$F$61,C$5,FALSE)) ->  | D77: =IF(ISNA(VLOOKUP($A77,'Entry List'!$A$1:$F$61,D$5,FALSE)),"",VLOOKUP($A77,'Entry List'!$A$1:$F$61,D$5,FALSE)) ->  | E77: =IF(ISNA(VLOOKUP($A77,'Entry List'!$A$1:$F$61,E$5,FALSE)),"",VLOOKUP($A77,'Entry List'!$A$1:$F$61,E$5,FALSE)) ->  | G77: DNS | H77: 0 | I77: DNS | J77: 0 | K77: DNS | L77: 0 | M77: DNS | N77: 0 | O77: DNS | P77: 0 | Q77: DNS | R77: 0 | S77: DNS | T77: 0 | U77: DNS | V77: 0 | W77: DNS | X77: 0 | Y77: DNS | Z77: 0 | AA77: DNS | AB77: 0 | AC77: DNS | AD77: 0 | AE77: DNS | AF77: 0 | AG77: DNS | AH77: 0 | AI77: DNS | AJ77: 0 | AK77: DNS | AL77: 0 | AM77: DNS | AN77: 0 | AO77: DNS | AP77: 0 | AQ77: DNS | AR77: 0 | AS77: DNS | AT77: 0 | AU77: DNS | AV77: 0 | AW77: DNS | AX77: 0 | AY77: DNS | AZ77: 0 | BA77: DNS | BB77: 0 | BC77: DNS | BD77: 0 | BE77: =IF('Last Race Results'!$B$5=0,0,IF(ISNA(VLOOKUP($A77,'Last Race Results'!$A$5:$J$44,2,FALSE)),"DNS",VLOOKUP($A77,'Last Race Results'!$A$5:$J$44,2,FALSE))) -> DNS | BF77: =IF('Last Race Results'!$B$5=0,0,IF(ISNA(VLOOKUP($A77,'Last Race Results'!$A$5:$K$44,11,FALSE)),0,VLOOKUP($A77,'Last Race Results'!$A$5:$K$44,11,FALSE))) -> 0 | BY77: =IF('Last Race Results'!$B$5=0,0,IF(ISNA(VLOOKUP($A77,'Last Race Results'!$A$5:$J$44,2,FALSE)),"DNS",VLOOKUP($A77,'Last Race Results'!$A$5:$J$44,2,FALSE))) -> DNS | BZ77: =IF('Last Race Results'!$B$5=0,0,IF(ISNA(VLOOKUP($A77,'Last Race Results'!$A$5:$J$44,11,FALSE)),0,VLOOKUP($A77,'Last Race Results'!$A$5:$J$44,11,FALSE))) -> 0
A78: 71 | B78: =IF(ISNA(VLOOKUP($A78,'Entry List'!$A$1:$F$61,B$5,FALSE)),"",VLOOKUP($A78,'Entry List'!$A$1:$F$61,B$5,FALSE)) ->  | C78: =IF(ISNA(VLOOKUP($A78,'Entry List'!$A$1:$F$61,C$5,FALSE)),"",VLOOKUP($A78,'Entry List'!$A$1:$F$61,C$5,FALSE)) ->  | D78: =IF(ISNA(VLOOKUP($A78,'Entry List'!$A$1:$F$61,D$5,FALSE)),"",VLOOKUP($A78,'Entry List'!$A$1:$F$61,D$5,FALSE)) ->  | E78: =IF(ISNA(VLOOKUP($A78,'Entry List'!$A$1:$F$61,E$5,FALSE)),"",VLOOKUP($A78,'Entry List'!$A$1:$F$61,E$5,FALSE)) ->  | G78: DNS | H78: 0 | I78: DNS | J78: 0 | K78: DNS | L78: 0 | M78: DNS | N78: 0 | O78: DNS | P78: 0 | Q78: DNS | R78: 0 | S78: DNS | T78: 0 | U78: DNS | V78: 0 | W78: DNS | X78: 0 | Y78: DNS | Z78: 0 | AA78: DNS | AB78: 0 | AC78: DNS | AD78: 0 | AE78: DNS | AF78: 0 | AG78: DNS | AH78: 0 | AI78: DNS | AJ78: 0 | AK78: DNS | AL78: 0 | AM78: DNS | AN78: 0 | AO78: DNS | AP78: 0 | AQ78: DNS | AR78: 0 | AS78: DNS | AT78: 0 | AU78: DNS | AV78: 0 | AW78: DNS | AX78: 0 | AY78: DNS | AZ78: 0 | BA78: DNS | BB78: 0 | BC78: DNS | BD78: 0 | BE78: =IF('Last Race Results'!$B$5=0,0,IF(ISNA(VLOOKUP($A78,'Last Race Results'!$A$5:$J$44,2,FALSE)),"DNS",VLOOKUP($A78,'Last Race Results'!$A$5:$J$44,2,FALSE))) -> DNS | BF78: =IF('Last Race Results'!$B$5=0,0,IF(ISNA(VLOOKUP($A78,'Last Race Results'!$A$5:$K$44,11,FALSE)),0,VLOOKUP($A78,'Last Race Results'!$A$5:$K$44,11,FALSE))) -> 0 | BY78: =IF('Last Race Results'!$B$5=0,0,IF(ISNA(VLOOKUP($A78,'Last Race Results'!$A$5:$J$44,2,FALSE)),"DNS",VLOOKUP($A78,'Last Race Results'!$A$5:$J$44,2,FALSE))) -> DNS | BZ78: =IF('Last Race Results'!$B$5=0,0,IF(ISNA(VLOOKUP($A78,'Last Race Results'!$A$5:$J$44,11,FALSE)),0,VLOOKUP($A78,'Last Race Results'!$A$5:$J$44,11,FALSE))) -> 0
A79: 72 | B79: =IF(ISNA(VLOOKUP($A79,'Entry List'!$A$1:$F$61,B$5,FALSE)),"",VLOOKUP($A79,'Entry List'!$A$1:$F$61,B$5,FALSE)) ->  | C79: =IF(ISNA(VLOOKUP($A79,'Entry List'!$A$1:$F$61,C$5,FALSE)),"",VLOOKUP($A79,'Entry List'!$A$1:$F$61,C$5,FALSE)) ->  | D79: =IF(ISNA(VLOOKUP($A79,'Entry List'!$A$1:$F$61,D$5,FALSE)),"",VLOOKUP($A79,'Entry List'!$A$1:$F$61,D$5,FALSE)) ->  | E79: =IF(ISNA(VLOOKUP($A79,'Entry List'!$A$1:$F$61,E$5,FALSE)),"",VLOOKUP($A79,'Entry List'!$A$1:$F$61,E$5,FALSE)) ->  | G79: DNS | H79: 0 | I79: DNS | J79: 0 | K79: DNS | L79: 0 | M79: DNS | N79: 0 | O79: DNS | P79: 0 | Q79: DNS | R79: 0 | S79: DNS | T79: 0 | U79: DNS | V79: 0 | W79: DNS | X79: 0 | Y79: DNS | Z79: 0 | AA79: DNS | AB79: 0 | AC79: DNS | AD79: 0 | AE79: DNS | AF79: 0 | AG79: DNS | AH79: 0 | AI79: DNS | AJ79: 0 | AK79: DNS | AL79: 0 | AM79: DNS | AN79: 0 | AO79: DNS | AP79: 0 | AQ79: DNS | AR79: 0 | AS79: DNS | AT79: 0 | AU79: DNS | AV79: 0 | AW79: DNS | AX79: 0 | AY79: DNS | AZ79: 0 | BA79: DNS | BB79: 0 | BC79: DNS | BD79: 0 | BE79: =IF('Last Race Results'!$B$5=0,0,IF(ISNA(VLOOKUP($A79,'Last Race Results'!$A$5:$J$44,2,FALSE)),"DNS",VLOOKUP($A79,'Last Race Results'!$A$5:$J$44,2,FALSE))) -> DNS | BF79: =IF('Last Race Results'!$B$5=0,0,IF(ISNA(VLOOKUP($A79,'Last Race Results'!$A$5:$K$44,11,FALSE)),0,VLOOKUP($A79,'Last Race Results'!$A$5:$K$44,11,FALSE))) -> 0 | BY79: =IF('Last Race Results'!$B$5=0,0,IF(ISNA(VLOOKUP($A79,'Last Race Results'!$A$5:$J$44,2,FALSE)),"DNS",VLOOKUP($A79,'Last Race Results'!$A$5:$J$44,2,FALSE))) -> DNS | BZ79: =IF('Last Race Results'!$B$5=0,0,IF(ISNA(VLOOKUP($A79,'Last Race Results'!$A$5:$J$44,11,FALSE)),0,VLOOKUP($A79,'Last Race Results'!$A$5:$J$44,11,FALSE))) -> 0
A80: 73 | B80: =IF(ISNA(VLOOKUP($A80,'Entry List'!$A$1:$F$61,B$5,FALSE)),"",VLOOKUP($A80,'Entry List'!$A$1:$F$61,B$5,FALSE)) ->  | C80: =IF(ISNA(VLOOKUP($A80,'Entry List'!$A$1:$F$61,C$5,FALSE)),"",VLOOKUP($A80,'Entry List'!$A$1:$F$61,C$5,FALSE)) ->  | D80: =IF(ISNA(VLOOKUP($A80,'Entry List'!$A$1:$F$61,D$5,FALSE)),"",VLOOKUP($A80,'Entry List'!$A$1:$F$61,D$5,FALSE)) ->  | E80: =IF(ISNA(VLOOKUP($A80,'Entry List'!$A$1:$F$61,E$5,FALSE)),"",VLOOKUP($A80,'Entry List'!$A$1:$F$61,E$5,FALSE)) ->  | G80: DNS | H80: 0 | I80: DNS | J80: 0 | K80: DNS | L80: 0 | M80: DNS | N80: 0 | O80: DNS | P80: 0 | Q80: DNS | R80: 0 | S80: DNS | T80: 0 | U80: DNS | V80: 0 | W80: DNS | X80: 0 | Y80: DNS | Z80: 0 | AA80: DNS | AB80: 0 | AC80: DNS | AD80: 0 | AE80: DNS | AF80: 0 | AG80: DNS | AH80: 0 | AI80: DNS | AJ80: 0 | AK80: DNS | AL80: 0 | AM80: DNS | AN80: 0 | AO80: DNS | AP80: 0 | AQ80: DNS | AR80: 0 | AS80: DNS | AT80: 0 | AU80: DNS | AV80: 0 | AW80: DNS | AX80: 0 | AY80: DNS | AZ80: 0 | BA80: DNS | BB80: 0 | BC80: DNS | BD80: 0 | BE80: =IF('Last Race Results'!$B$5=0,0,IF(ISNA(VLOOKUP($A80,'Last Race Results'!$A$5:$J$44,2,FALSE)),"DNS",VLOOKUP($A80,'Last Race Results'!$A$5:$J$44,2,FALSE))) -> DNS | BF80: =IF('Last Race Results'!$B$5=0,0,IF(ISNA(VLOOKUP($A80,'Last Race Results'!$A$5:$K$44,11,FALSE)),0,VLOOKUP($A80,'Last Race Results'!$A$5:$K$44,11,FALSE))) -> 0 | BY80: =IF('Last Race Results'!$B$5=0,0,IF(ISNA(VLOOKUP($A80,'Last Race Results'!$A$5:$J$44,2,FALSE)),"DNS",VLOOKUP($A80,'Last Race Results'!$A$5:$J$44,2,FALSE))) -> DNS | BZ80: =IF('Last Race Results'!$B$5=0,0,IF(ISNA(VLOOKUP($A80,'Last Race Results'!$A$5:$J$44,11,FALSE)),0,VLOOKUP($A80,'Last Race Results'!$A$5:$J$44,11,FALSE))) -> 0
A81: 74 | B81: =IF(ISNA(VLOOKUP($A81,'Entry List'!$A$1:$F$61,B$5,FALSE)),"",VLOOKUP($A81,'Entry List'!$A$1:$F$61,B$5,FALSE)) ->  | C81: =IF(ISNA(VLOOKUP($A81,'Entry List'!$A$1:$F$61,C$5,FALSE)),"",VLOOKUP($A81,'Entry List'!$A$1:$F$61,C$5,FALSE)) ->  | D81: =IF(ISNA(VLOOKUP($A81,'Entry List'!$A$1:$F$61,D$5,FALSE)),"",VLOOKUP($A81,'Entry List'!$A$1:$F$61,D$5,FALSE)) ->  | E81: =IF(ISNA(VLOOKUP($A81,'Entry List'!$A$1:$F$61,E$5,FALSE)),"",VLOOKUP($A81,'Entry List'!$A$1:$F$61,E$5,FALSE)) ->  | G81: DNS | H81: 0 | I81: DNS | J81: 0 | K81: DNS | L81: 0 | M81: DNS | N81: 0 | O81: DNS | P81: 0 | Q81: DNS | R81: 0 | S81: DNS | T81: 0 | U81: DNS | V81: 0 | W81: DNS | X81: 0 | Y81: DNS | Z81: 0 | AA81: DNS | AB81: 0 | AC81: DNS | AD81: 0 | AE81: DNS | AF81: 0 | AG81: DNS | AH81: 0 | AI81: DNS | AJ81: 0 | AK81: DNS | AL81: 0 | AM81: DNS | AN81: 0 | AO81: DNS | AP81: 0 | AQ81: DNS | AR81: 0 | AS81: DNS | AT81: 0 | AU81: 30 | AV81: 7 | AW81: 31 | AX81: 6 | AY81: DNS | AZ81: 0 | BA81: DNS | BB81: 0 | BC81: DNS | BD81: 0 | BE81: =IF('Last Race Results'!$B$5=0,0,IF(ISNA(VLOOKUP($A81,'Last Race Results'!$A$5:$J$44,2,FALSE)),"DNS",VLOOKUP($A81,'Last Race Results'!$A$5:$J$44,2,FALSE))) -> DNS | BF81: =IF('Last Race Results'!$B$5=0,0,IF(ISNA(VLOOKUP($A81,'Last Race Results'!$A$5:$K$44,11,FALSE)),0,VLOOKUP($A81,'Last Race Results'!$A$5:$K$44,11,FALSE))) -> 0 | BY81: =IF('Last Race Results'!$B$5=0,0,IF(ISNA(VLOOKUP($A81,'Last Race Results'!$A$5:$J$44,2,FALSE)),"DNS",VLOOKUP($A81,'Last Race Results'!$A$5:$J$44,2,FALSE))) -> DNS | BZ81: =IF('Last Race Results'!$B$5=0,0,IF(ISNA(VLOOKUP($A81,'Last Race Results'!$A$5:$J$44,11,FALSE)),0,VLOOKUP($A81,'Last Race Results'!$A$5:$J$44,11,FALSE))) -> 0
A82: 75 | B82: =IF(ISNA(VLOOKUP($A82,'Entry List'!$A$1:$F$61,B$5,FALSE)),"",VLOOKUP($A82,'Entry List'!$A$1:$F$61,B$5,FALSE)) ->  | C82: =IF(ISNA(VLOOKUP($A82,'Entry List'!$A$1:$F$61,C$5,FALSE)),"",VLOOKUP($A82,'Entry List'!$A$1:$F$61,C$5,FALSE)) ->  | D82: =IF(ISNA(VLOOKUP($A82,'Entry List'!$A$1:$F$61,D$5,FALSE)),"",VLOOKUP($A82,'Entry List'!$A$1:$F$61,D$5,FALSE)) ->  | E82: =IF(ISNA(VLOOKUP($A82,'Entry List'!$A$1:$F$61,E$5,FALSE)),"",VLOOKUP($A82,'Entry List'!$A$1:$F$61,E$5,FALSE)) ->  | G82: DNS | H82: 0 | I82: DNS | J82: 0 | K82: DNS | L82: 0 | M82: DNS | N82: 0 | O82: DNS | P82: 0 | Q82: DNS | R82: 0 | S82: DNS | T82: 0 | U82: DNS | V82: 0 | W82: DNS | X82: 0 | Y82: DNS | Z82: 0 | AA82: DNS | AB82: 0 | AC82: DNS | AD82: 0 | AE82: DNS | AF82: 0 | AG82: DNS | AH82: 0 | AI82: DNS | AJ82: 0 | AK82: DNS | AL82: 0 | AM82: DNS | AN82: 0 | AO82: DNS | AP82: 0 | AQ82: DNS | AR82: 0 | AS82: DNS | AT82: 0 | AU82: DNS | AV82: 0 | AW82: DNS | AX82: 0 | AY82: DNS | AZ82: 0 | BA82: DNS | BB82: 0 | BC82: DNS | BD82: 0 | BE82: =IF('Last Race Results'!$B$5=0,0,IF(ISNA(VLOOKUP($A82,'Last Race Results'!$A$5:$J$44,2,FALSE)),"DNS",VLOOKUP($A82,'Last Race Results'!$A$5:$J$44,2,FALSE))) -> DNS | BF82: =IF('Last Race Results'!$B$5=0,0,IF(ISNA(VLOOKUP($A82,'Last Race Results'!$A$5:$K$44,11,FALSE)),0,VLOOKUP($A82,'Last Race Results'!$A$5:$K$44,11,FALSE))) -> 0 | BY82: =IF('Last Race Results'!$B$5=0,0,IF(ISNA(VLOOKUP($A82,'Last Race Results'!$A$5:$J$44,2,FALSE)),"DNS",VLOOKUP($A82,'Last Race Results'!$A$5:$J$44,2,FALSE))) -> DNS | BZ82: =IF('Last Race Results'!$B$5=0,0,IF(ISNA(VLOOKUP($A82,'Last Race Results'!$A$5:$J$44,11,FALSE)),0,VLOOKUP($A82,'Last Race Results'!$A$5:$J$44,11,FALSE))) -> 0
A83: 76 | B83: =IF(ISNA(VLOOKUP($A83,'Entry List'!$A$1:$F$61,B$5,FALSE)),"",VLOOKUP($A83,'Entry List'!$A$1:$F$61,B$5,FALSE)) ->  | C83: =IF(ISNA(VLOOKUP($A83,'Entry List'!$A$1:$F$61,C$5,FALSE)),"",VLOOKUP($A83,'Entry List'!$A$1:$F$61,C$5,FALSE)) ->  | D83: =IF(ISNA(VLOOKUP($A83,'Entry List'!$A$1:$F$61,D$5,FALSE)),"",VLOOKUP($A83,'Entry List'!$A$1:$F$61,D$5,FALSE)) ->  | E83: =IF(ISNA(VLOOKUP($A83,'Entry List'!$A$1:$F$61,E$5,FALSE)),"",VLOOKUP($A83,'Entry List'!$A$1:$F$61,E$5,FALSE)) ->  | G83: DNS | H83: 0 | I83: DNS | J83: 0 | K83: DNS | L83: 0 | M83: DNS | N83: 0 | O83: DNS | P83: 0 | Q83: DNS | R83: 0 | S83: DNS | T83: 0 | U83: DNS | V83: 0 | W83: DNS | X83: 0 | Y83: DNS | Z83: 0 | AA83: DNS | AB83: 0 | AC83: DNS | AD83: 0 | AE83: DNS | AF83: 0 | AG83: DNS | AH83: 0 | AI83: DNS | AJ83: 0 | AK83: DNS | AL83: 0 | AM83: DNS | AN83: 0 | AO83: DNS | AP83: 0 | AQ83: DNS | AR83: 0 | AS83: DNS | AT83: 0 | AU83: DNS | AV83: 0 | AW83: DNS | AX83: 0 | AY83: DNS | AZ83: 0 | BA83: DNS | BB83: 0 | BC83: DNS | BD83: 0 | BE83: =IF('Last Race Results'!$B$5=0,0,IF(ISNA(VLOOKUP($A83,'Last Race Results'!$A$5:$J$44,2,FALSE)),"DNS",VLOOKUP($A83,'Last Race Results'!$A$5:$J$44,2,FALSE))) -> DNS | BF83: =IF('Last Race Results'!$B$5=0,0,IF(ISNA(VLOOKUP($A83,'Last Race Results'!$A$5:$K$44,11,FALSE)),0,VLOOKUP($A83,'Last Race Results'!$A$5:$K$44,11,FALSE))) -> 0 | BY83: =IF('Last Race Results'!$B$5=0,0,IF(ISNA(VLOOKUP($A83,'Last Race Results'!$A$5:$J$44,2,FALSE)),"DNS",VLOOKUP($A83,'Last Race Results'!$A$5:$J$44,2,FALSE))) -> DNS | BZ83: =IF('Last Race Results'!$B$5=0,0,IF(ISNA(VLOOKUP($A83,'Last Race Results'!$A$5:$J$44,11,FALSE)),0,VLOOKUP($A83,'Last Race Results'!$A$5:$J$44,11,FALSE))) -> 0
A84: 77 | B84: =IF(ISNA(VLOOKUP($A84,'Entry List'!$A$1:$F$61,B$5,FALSE)),"",VLOOKUP($A84,'Entry List'!$A$1:$F$61,B$5,FALSE)) -> Ross Chastain (i) | C84: =IF(ISNA(VLOOKUP($A84,'Entry List'!$A$1:$F$61,C$5,FALSE)),"",VLOOKUP($A84,'Entry List'!$A$1:$F$61,C$5,FALSE)) -> Chevrolet | D84: =IF(ISNA(VLOOKUP($A84,'Entry List'!$A$1:$F$61,D$5,FALSE)),"",VLOOKUP($A84,'Entry List'!$A$1:$F$61,D$5,FALSE)) -> Spire Motorsports | E84: =IF(ISNA(VLOOKUP($A84,'Entry List'!$A$1:$F$61,E$5,FALSE)),"",VLOOKUP($A84,'Entry List'!$A$1:$F$61,E$5,FALSE)) -> Spire Motorsports | G84: 25 | H84: 20 | I84: 34 | J84: 3 | K84: 36 | L84: 1 | M84: 30 | N84: 7 | O84: 29 | P84: 8 | Q84: 28 | R84: 9 | S84: 34 | T84: 3 | U84: 34 | V84: 3 | W84: 26 | X84: 11 | Y84: 36 | Z84: 1 | AA84: 36 | AB84: 1 | AC84: 35 | AD84: 2 | AE84: 31 | AF84: 6 | AG84: 34 | AH84: 3 | AI84: 30 | AJ84: 7 | AK84: 17 | AL84: 20 | AM84: 32 | AN84: 0 | AO84: 23 | AP84: 14 | AQ84: 26 | AR84: 0 | AS84: 31 | AT84: 6 | AU84: DNS | AV84: 0 | AW84: DNS | AX84: 0 | AY84: 38 | AZ84: 1 | BA84: 39 | BB84: 1 | BC84: 33 | BD84: 4 | BE84: =IF('Last Race Results'!$B$5=0,0,IF(ISNA(VLOOKUP($A84,'Last Race Results'!$A$5:$J$44,2,FALSE)),"DNS",VLOOKUP($A84,'Last Race Results'!$A$5:$J$44,2,FALSE))) -> 16 | BF84: =IF('Last Race Results'!$B$5=0,0,IF(ISNA(VLOOKUP($A84,'Last Race Results'!$A$5:$K$44,11,FALSE)),0,VLOOKUP($A84,'Last Race Results'!$A$5:$K$44,11,FALSE))) -> 21 | BY84: =IF('Last Race Results'!$B$5=0,0,IF(ISNA(VLOOKUP($A84,'Last Race Results'!$A$5:$J$44,2,FALSE)),"DNS",VLOOKUP($A84,'Last Race Results'!$A$5:$J$44,2,FALSE))) -> 16 | BZ84: =IF('Last Race Results'!$B$5=0,0,IF(ISNA(VLOOKUP($A84,'Last Race Results'!$A$5:$J$44,11,FALSE)),0,VLOOKUP($A84,'Last Race Results'!$A$5:$J$44,11,FALSE))) -> 
A85: 78 | B85: =IF(ISNA(VLOOKUP($A85,'Entry List'!$A$1:$F$61,B$5,FALSE)),"",VLOOKUP($A85,'Entry List'!$A$1:$F$61,B$5,FALSE)) ->  | C85: =IF(ISNA(VLOOKUP($A85,'Entry List'!$A$1:$F$61,C$5,FALSE)),"",VLOOKUP($A85,'Entry List'!$A$1:$F$61,C$5,FALSE)) ->  | D85: =IF(ISNA(VLOOKUP($A85,'Entry List'!$A$1:$F$61,D$5,FALSE)),"",VLOOKUP($A85,'Entry List'!$A$1:$F$61,D$5,FALSE)) ->  | E85: =IF(ISNA(VLOOKUP($A85,'Entry List'!$A$1:$F$61,E$5,FALSE)),"",VLOOKUP($A85,'Entry List'!$A$1:$F$61,E$5,FALSE)) ->  | G85: DNS | H85: 0 | I85: DNS | J85: 0 | K85: DNS | L85: 0 | M85: DNS | N85: 0 | O85: 39 | P85: 1 | Q85: 36 | R85: 1 | S85: 35 | T85: 0 | U85: 35 | V85: 0 | W85: 28 | X85: 9 | Y85: 40 | Z85: 1 | AA85: DNS | AB85: 0 | AC85: DNS | AD85: 0 | AE85: 34 | AF85: 3 | AG85: 39 | AH85: 1 | AI85: 37 | AJ85: 1 | AK85: 22 | AL85: 15 | AM85: DNS | AN85: 0 | AO85: DNS | AP85: 0 | AQ85: 39 | AR85: 0 | AS85: DNS | AT85: 0 | AU85: DNS | AV85: 0 | AW85: DNS | AX85: 0 | AY85: DNS | AZ85: 0 | BA85: 38 | BB85: 1 | BC85: 31 | BD85: 6 | BE85: =IF('Last Race Results'!$B$5=0,0,IF(ISNA(VLOOKUP($A85,'Last Race Results'!$A$5:$J$44,2,FALSE)),"DNS",VLOOKUP($A85,'Last Race Results'!$A$5:$J$44,2,FALSE))) -> DNS | BF85: =IF('Last Race Results'!$B$5=0,0,IF(ISNA(VLOOKUP($A85,'Last Race Results'!$A$5:$K$44,11,FALSE)),0,VLOOKUP($A85,'Last Race Results'!$A$5:$K$44,11,FALSE))) -> 0 | BY85: =IF('Last Race Results'!$B$5=0,0,IF(ISNA(VLOOKUP($A85,'Last Race Results'!$A$5:$J$44,2,FALSE)),"DNS",VLOOKUP($A85,'Last Race Results'!$A$5:$J$44,2,FALSE))) -> DNS | BZ85: =IF('Last Race Results'!$B$5=0,0,IF(ISNA(VLOOKUP($A85,'Last Race Results'!$A$5:$J$44,11,FALSE)),0,VLOOKUP($A85,'Last Race Results'!$A$5:$J$44,11,FALSE))) -> 0
A86: 79 | B86: =IF(ISNA(VLOOKUP($A86,'Entry List'!$A$1:$F$61,B$5,FALSE)),"",VLOOKUP($A86,'Entry List'!$A$1:$F$61,B$5,FALSE)) ->  | C86: =IF(ISNA(VLOOKUP($A86,'Entry List'!$A$1:$F$61,C$5,FALSE)),"",VLOOKUP($A86,'Entry List'!$A$1:$F$61,C$5,FALSE)) ->  | D86: =IF(ISNA(VLOOKUP($A86,'Entry List'!$A$1:$F$61,D$5,FALSE)),"",VLOOKUP($A86,'Entry List'!$A$1:$F$61,D$5,FALSE)) ->  | E86: =IF(ISNA(VLOOKUP($A86,'Entry List'!$A$1:$F$61,E$5,FALSE)),"",VLOOKUP($A86,'Entry List'!$A$1:$F$61,E$5,FALSE)) ->  | G86: DNS | H86: 0 | I86: DNS | J86: 0 | K86: DNS | L86: 0 | M86: DNS | N86: 0 | O86: DNS | P86: 0 | Q86: DNS | R86: 0 | S86: DNS | T86: 0 | U86: DNS | V86: 0 | W86: DNS | X86: 0 | Y86: DNS | Z86: 0 | AA86: DNS | AB86: 0 | AC86: DNS | AD86: 0 | AE86: DNS | AF86: 0 | AG86: DNS | AH86: 0 | AI86: DNS | AJ86: 0 | AK86: DNS | AL86: 0 | AM86: DNS | AN86: 0 | AO86: DNS | AP86: 0 | AQ86: DNS | AR86: 0 | AS86: DNS | AT86: 0 | AU86: DNS | AV86: 0 | AW86: DNS | AX86: 0 | AY86: DNS | AZ86: 0 | BA86: DNS | BB86: 0 | BC86: DNS | BD86: 0 | BE86: =IF('Last Race Results'!$B$5=0,0,IF(ISNA(VLOOKUP($A86,'Last Race Results'!$A$5:$J$44,2,FALSE)),"DNS",VLOOKUP($A86,'Last Race Results'!$A$5:$J$44,2,FALSE))) -> DNS | BF86: =IF('Last Race Results'!$B$5=0,0,IF(ISNA(VLOOKUP($A86,'Last Race Results'!$A$5:$K$44,11,FALSE)),0,VLOOKUP($A86,'Last Race Results'!$A$5:$K$44,11,FALSE))) -> 0 | BY86: =IF('Last Race Results'!$B$5=0,0,IF(ISNA(VLOOKUP($A86,'Last Race Results'!$A$5:$J$44,2,FALSE)),"DNS",VLOOKUP($A86,'Last Race Results'!$A$5:$J$44,2,FALSE))) -> DNS | BZ86: =IF('Last Race Results'!$B$5=0,0,IF(ISNA(VLOOKUP($A86,'Last Race Results'!$A$5:$J$44,11,FALSE)),0,VLOOKUP($A86,'Last Race Results'!$A$5:$J$44,11,FALSE))) -> 0
A87: 80 | B87: =IF(ISNA(VLOOKUP($A87,'Entry List'!$A$1:$F$61,B$5,FALSE)),"",VLOOKUP($A87,'Entry List'!$A$1:$F$61,B$5,FALSE)) ->  | C87: =IF(ISNA(VLOOKUP($A87,'Entry List'!$A$1:$F$61,C$5,FALSE)),"",VLOOKUP($A87,'Entry List'!$A$1:$F$61,C$5,FALSE)) ->  | D87: =IF(ISNA(VLOOKUP($A87,'Entry List'!$A$1:$F$61,D$5,FALSE)),"",VLOOKUP($A87,'Entry List'!$A$1:$F$61,D$5,FALSE)) ->  | E87: =IF(ISNA(VLOOKUP($A87,'Entry List'!$A$1:$F$61,E$5,FALSE)),"",VLOOKUP($A87,'Entry List'!$A$1:$F$61,E$5,FALSE)) ->  | G87: DNS | H87: 0 | I87: DNS | J87: 0 | K87: DNS | L87: 0 | M87: DNS | N87: 0 | O87: DNS | P87: 0 | Q87: DNS | R87: 0 | S87: DNS | T87: 0 | U87: DNS | V87: 0 | W87: DNS | X87: 0 | Y87: DNS | Z87: 0 | AA87: DNS | AB87: 0 | AC87: DNS | AD87: 0 | AE87: DNS | AF87: 0 | AG87: DNS | AH87: 0 | AI87: DNS | AJ87: 0 | AK87: DNS | AL87: 0 | AM87: DNS | AN87: 0 | AO87: DNS | AP87: 0 | AQ87: DNS | AR87: 0 | AS87: DNS | AT87: 0 | AU87: DNS | AV87: 0 | AW87: DNS | AX87: 0 | AY87: DNS | AZ87: 0 | BA87: DNS | BB87: 0 | BC87: DNS | BD87: 0 | BE87: =IF('Last Race Results'!$B$5=0,0,IF(ISNA(VLOOKUP($A87,'Last Race Results'!$A$5:$J$44,2,FALSE)),"DNS",VLOOKUP($A87,'Last Race Results'!$A$5:$J$44,2,FALSE))) -> DNS | BF87: =IF('Last Race Results'!$B$5=0,0,IF(ISNA(VLOOKUP($A87,'Last Race Results'!$A$5:$K$44,11,FALSE)),0,VLOOKUP($A87,'Last Race Results'!$A$5:$K$44,11,FALSE))) -> 0 | BY87: =IF('Last Race Results'!$B$5=0,0,IF(ISNA(VLOOKUP($A87,'Last Race Results'!$A$5:$J$44,2,FALSE)),"DNS",VLOOKUP($A87,'Last Race Results'!$A$5:$J$44,2,FALSE))) -> DNS | BZ87: =IF('Last Race Results'!$B$5=0,0,IF(ISNA(VLOOKUP($A87,'Last Race Results'!$A$5:$J$44,11,FALSE)),0,VLOOKUP($A87,'Last Race Results'!$A$5:$J$44,11,FALSE))) -> 0
A88: 81 | B88: =IF(ISNA(VLOOKUP($A88,'Entry List'!$A$1:$F$61,B$5,FALSE)),"",VLOOKUP($A88,'Entry List'!$A$1:$F$61,B$5,FALSE)) ->  | C88: =IF(ISNA(VLOOKUP($A88,'Entry List'!$A$1:$F$61,C$5,FALSE)),"",VLOOKUP($A88,'Entry List'!$A$1:$F$61,C$5,FALSE)) ->  | D88: =IF(ISNA(VLOOKUP($A88,'Entry List'!$A$1:$F$61,D$5,FALSE)),"",VLOOKUP($A88,'Entry List'!$A$1:$F$61,D$5,FALSE)) ->  | E88: =IF(ISNA(VLOOKUP($A88,'Entry List'!$A$1:$F$61,E$5,FALSE)),"",VLOOKUP($A88,'Entry List'!$A$1:$F$61,E$5,FALSE)) ->  | G88: DNS | H88: 0 | I88: DNS | J88: 0 | K88: DNS | L88: 0 | M88: DNS | N88: 0 | O88: DNS | P88: 0 | Q88: DNS | R88: 0 | S88: DNS | T88: 0 | U88: DNS | V88: 0 | W88: DNS | X88: 0 | Y88: DNS | Z88: 0 | AA88: DNS | AB88: 0 | AC88: DNS | AD88: 0 | AE88: DNS | AF88: 0 | AG88: DNS | AH88: 0 | AI88: DNS | AJ88: 0 | AK88: DNS | AL88: 0 | AM88: DNS | AN88: 0 | AO88: DNS | AP88: 0 | AQ88: DNS | AR88: 0 | AS88: DNS | AT88: 0 | AU88: DNS | AV88: 0 | AW88: DNS | AX88: 0 | AY88: DNS | AZ88: 0 | BA88: DNS | BB88: 0 | BC88: DNS | BD88: 0 | BE88: =IF('Last Race Results'!$B$5=0,0,IF(ISNA(VLOOKUP($A88,'Last Race Results'!$A$5:$J$44,2,FALSE)),"DNS",VLOOKUP($A88,'Last Race Results'!$A$5:$J$44,2,FALSE))) -> DNS | BF88: =IF('Last Race Results'!$B$5=0,0,IF(ISNA(VLOOKUP($A88,'Last Race Results'!$A$5:$K$44,11,FALSE)),0,VLOOKUP($A88,'Last Race Results'!$A$5:$K$44,11,FALSE))) -> 0 | BY88: =IF('Last Race Results'!$B$5=0,0,IF(ISNA(VLOOKUP($A88,'Last Race Results'!$A$5:$J$44,2,FALSE)),"DNS",VLOOKUP($A88,'Last Race Results'!$A$5:$J$44,2,FALSE))) -> DNS | BZ88: =IF('Last Race Results'!$B$5=0,0,IF(ISNA(VLOOKUP($A88,'Last Race Results'!$A$5:$J$44,11,FALSE)),0,VLOOKUP($A88,'Last Race Results'!$A$5:$J$44,11,FALSE))) -> 0
A89: 82 | B89: =IF(ISNA(VLOOKUP($A89,'Entry List'!$A$1:$F$61,B$5,FALSE)),"",VLOOKUP($A89,'Entry List'!$A$1:$F$61,B$5,FALSE)) ->  | C89: =IF(ISNA(VLOOKUP($A89,'Entry List'!$A$1:$F$61,C$5,FALSE)),"",VLOOKUP($A89,'Entry List'!$A$1:$F$61,C$5,FALSE)) ->  | D89: =IF(ISNA(VLOOKUP($A89,'Entry List'!$A$1:$F$61,D$5,FALSE)),"",VLOOKUP($A89,'Entry List'!$A$1:$F$61,D$5,FALSE)) ->  | E89: =IF(ISNA(VLOOKUP($A89,'Entry List'!$A$1:$F$61,E$5,FALSE)),"",VLOOKUP($A89,'Entry List'!$A$1:$F$61,E$5,FALSE)) ->  | G89: DNS | H89: 0 | I89: DNS | J89: 0 | K89: DNS | L89: 0 | M89: DNS | N89: 0 | O89: DNS | P89: 0 | Q89: DNS | R89: 0 | S89: DNS | T89: 0 | U89: DNS | V89: 0 | W89: DNS | X89: 0 | Y89: DNS | Z89: 0 | AA89: DNS | AB89: 0 | AC89: DNS | AD89: 0 | AE89: DNS | AF89: 0 | AG89: DNS | AH89: 0 | AI89: DNS | AJ89: 0 | AK89: DNS | AL89: 0 | AM89: DNS | AN89: 0 | AO89: DNS | AP89: 0 | AQ89: DNS | AR89: 0 | AS89: DNS | AT89: 0 | AU89: DNS | AV89: 0 | AW89: DNS | AX89: 0 | AY89: DNS | AZ89: 0 | BA89: DNS | BB89: 0 | BC89: DNS | BD89: 0 | BE89: =IF('Last Race Results'!$B$5=0,0,IF(ISNA(VLOOKUP($A89,'Last Race Results'!$A$5:$J$44,2,FALSE)),"DNS",VLOOKUP($A89,'Last Race Results'!$A$5:$J$44,2,FALSE))) -> DNS | BF89: =IF('Last Race Results'!$B$5=0,0,IF(ISNA(VLOOKUP($A89,'Last Race Results'!$A$5:$K$44,11,FALSE)),0,VLOOKUP($A89,'Last Race Results'!$A$5:$K$44,11,FALSE))) -> 0 | BY89: =IF('Last Race Results'!$B$5=0,0,IF(ISNA(VLOOKUP($A89,'Last Race Results'!$A$5:$J$44,2,FALSE)),"DNS",VLOOKUP($A89,'Last Race Results'!$A$5:$J$44,2,FALSE))) -> DNS | BZ89: =IF('Last Race Results'!$B$5=0,0,IF(ISNA(VLOOKUP($A89,'Last Race Results'!$A$5:$J$44,11,FALSE)),0,VLOOKUP($A89,'Last Race Results'!$A$5:$J$44,11,FALSE))) -> 0
A90: 83 | B90: =IF(ISNA(VLOOKUP($A90,'Entry List'!$A$1:$F$61,B$5,FALSE)),"",VLOOKUP($A90,'Entry List'!$A$1:$F$61,B$5,FALSE)) ->  | C90: =IF(ISNA(VLOOKUP($A90,'Entry List'!$A$1:$F$61,C$5,FALSE)),"",VLOOKUP($A90,'Entry List'!$A$1:$F$61,C$5,FALSE)) ->  | D90: =IF(ISNA(VLOOKUP($A90,'Entry List'!$A$1:$F$61,D$5,FALSE)),"",VLOOKUP($A90,'Entry List'!$A$1:$F$61,D$5,FALSE)) ->  | E90: =IF(ISNA(VLOOKUP($A90,'Entry List'!$A$1:$F$61,E$5,FALSE)),"",VLOOKUP($A90,'Entry List'!$A$1:$F$61,E$5,FALSE)) ->  | G90: DNS | H90: 0 | I90: DNS | J90: 0 | K90: DNS | L90: 0 | M90: DNS | N90: 0 | O90: DNS | P90: 0 | Q90: DNS | R90: 0 | S90: DNS | T90: 0 | U90: DNS | V90: 0 | W90: DNS | X90: 0 | Y90: DNS | Z90: 0 | AA90: DNS | AB90: 0 | AC90: DNS | AD90: 0 | AE90: DNS | AF90: 0 | AG90: DNS | AH90: 0 | AI90: DNS | AJ90: 0 | AK90: DNS | AL90: 0 | AM90: DNS | AN90: 0 | AO90: DNS | AP90: 0 | AQ90: DNS | AR90: 0 | AS90: DNS | AT90: 0 | AU90: DNS | AV90: 0 | AW90: DNS | AX90: 0 | AY90: DNS | AZ90: 0 | BA90: DNS | BB90: 0 | BC90: DNS | BD90: 0 | BE90: =IF('Last Race Results'!$B$5=0,0,IF(ISNA(VLOOKUP($A90,'Last Race Results'!$A$5:$J$44,2,FALSE)),"DNS",VLOOKUP($A90,'Last Race Results'!$A$5:$J$44,2,FALSE))) -> DNS | BF90: =IF('Last Race Results'!$B$5=0,0,IF(ISNA(VLOOKUP($A90,'Last Race Results'!$A$5:$K$44,11,FALSE)),0,VLOOKUP($A90,'Last Race Results'!$A$5:$K$44,11,FALSE))) -> 0 | BY90: =IF('Last Race Results'!$B$5=0,0,IF(ISNA(VLOOKUP($A90,'Last Race Results'!$A$5:$J$44,2,FALSE)),"DNS",VLOOKUP($A90,'Last Race Results'!$A$5:$J$44,2,FALSE))) -> DNS | BZ90: =IF('Last Race Results'!$B$5=0,0,IF(ISNA(VLOOKUP($A90,'Last Race Results'!$A$5:$J$44,11,FALSE)),0,VLOOKUP($A90,'Last Race Results'!$A$5:$J$44,11,FALSE))) -> 0
A91: 84 | B91: =IF(ISNA(VLOOKUP($A91,'Entry List'!$A$1:$F$61,B$5,FALSE)),"",VLOOKUP($A91,'Entry List'!$A$1:$F$61,B$5,FALSE)) ->  | C91: =IF(ISNA(VLOOKUP($A91,'Entry List'!$A$1:$F$61,C$5,FALSE)),"",VLOOKUP($A91,'Entry List'!$A$1:$F$61,C$5,FALSE)) ->  | D91: =IF(ISNA(VLOOKUP($A91,'Entry List'!$A$1:$F$61,D$5,FALSE)),"",VLOOKUP($A91,'Entry List'!$A$1:$F$61,D$5,FALSE)) ->  | E91: =IF(ISNA(VLOOKUP($A91,'Entry List'!$A$1:$F$61,E$5,FALSE)),"",VLOOKUP($A91,'Entry List'!$A$1:$F$61,E$5,FALSE)) ->  | G91: DNS | H91: 0 | I91: DNS | J91: 0 | K91: DNS | L91: 0 | M91: DNS | N91: 0 | O91: DNS | P91: 0 | Q91: DNS | R91: 0 | S91: DNS | T91: 0 | U91: DNS | V91: 0 | W91: DNS | X91: 0 | Y91: DNS | Z91: 0 | AA91: DNS | AB91: 0 | AC91: DNS | AD91: 0 | AE91: DNS | AF91: 0 | AG91: DNS | AH91: 0 | AI91: DNS | AJ91: 0 | AK91: DNS | AL91: 0 | AM91: DNS | AN91: 0 | AO91: DNS | AP91: 0 | AQ91: DNS | AR91: 0 | AS91: DNS | AT91: 0 | AU91: DNS | AV91: 0 | AW91: DNS | AX91: 0 | AY91: DNS | AZ91: 0 | BA91: DNS | BB91: 0 | BC91: DNS | BD91: 0 | BE91: =IF('Last Race Results'!$B$5=0,0,IF(ISNA(VLOOKUP($A91,'Last Race Results'!$A$5:$J$44,2,FALSE)),"DNS",VLOOKUP($A91,'Last Race Results'!$A$5:$J$44,2,FALSE))) -> DNS | BF91: =IF('Last Race Results'!$B$5=0,0,IF(ISNA(VLOOKUP($A91,'Last Race Results'!$A$5:$K$44,11,FALSE)),0,VLOOKUP($A91,'Last Race Results'!$A$5:$K$44,11,FALSE))) -> 0 | BY91: =IF('Last Race Results'!$B$5=0,0,IF(ISNA(VLOOKUP($A91,'Last Race Results'!$A$5:$J$44,2,FALSE)),"DNS",VLOOKUP($A91,'Last Race Results'!$A$5:$J$44,2,FALSE))) -> DNS | BZ91: =IF('Last Race Results'!$B$5=0,0,IF(ISNA(VLOOKUP($A91,'Last Race Results'!$A$5:$J$44,11,FALSE)),0,VLOOKUP($A91,'Last Race Results'!$A$5:$J$44,11,FALSE))) -> 0
A92: 85 | B92: =IF(ISNA(VLOOKUP($A92,'Entry List'!$A$1:$F$61,B$5,FALSE)),"",VLOOKUP($A92,'Entry List'!$A$1:$F$61,B$5,FALSE)) ->  | C92: =IF(ISNA(VLOOKUP($A92,'Entry List'!$A$1:$F$61,C$5,FALSE)),"",VLOOKUP($A92,'Entry List'!$A$1:$F$61,C$5,FALSE)) ->  | D92: =IF(ISNA(VLOOKUP($A92,'Entry List'!$A$1:$F$61,D$5,FALSE)),"",VLOOKUP($A92,'Entry List'!$A$1:$F$61,D$5,FALSE)) ->  | E92: =IF(ISNA(VLOOKUP($A92,'Entry List'!$A$1:$F$61,E$5,FALSE)),"",VLOOKUP($A92,'Entry List'!$A$1:$F$61,E$5,FALSE)) ->  | G92: DNS | H92: 0 | I92: DNS | J92: 0 | K92: DNS | L92: 0 | M92: DNS | N92: 0 | O92: DNS | P92: 0 | Q92: DNS | R92: 0 | S92: DNS | T92: 0 | U92: DNS | V92: 0 | W92: DNS | X92: 0 | Y92: DNS | Z92: 0 | AA92: DNS | AB92: 0 | AC92: DNS | AD92: 0 | AE92: DNS | AF92: 0 | AG92: DNS | AH92: 0 | AI92: DNS | AJ92: 0 | AK92: DNS | AL92: 0 | AM92: DNS | AN92: 0 | AO92: DNS | AP92: 0 | AQ92: DNS | AR92: 0 | AS92: DNS | AT92: 0 | AU92: DNS | AV92: 0 | AW92: DNS | AX92: 0 | AY92: DNS | AZ92: 0 | BA92: DNS | BB92: 0 | BC92: DNS | BD92: 0 | BE92: =IF('Last Race Results'!$B$5=0,0,IF(ISNA(VLOOKUP($A92,'Last Race Results'!$A$5:$J$44,2,FALSE)),"DNS",VLOOKUP($A92,'Last Race Results'!$A$5:$J$44,2,FALSE))) -> DNS | BF92: =IF('Last Race Results'!$B$5=0,0,IF(ISNA(VLOOKUP($A92,'Last Race Results'!$A$5:$K$44,11,FALSE)),0,VLOOKUP($A92,'Last Race Results'!$A$5:$K$44,11,FALSE))) -> 0 | BY92: =IF('Last Race Results'!$B$5=0,0,IF(ISNA(VLOOKUP($A92,'Last Race Results'!$A$5:$J$44,2,FALSE)),"DNS",VLOOKUP($A92,'Last Race Results'!$A$5:$J$44,2,FALSE))) -> DNS | BZ92: =IF('Last Race Results'!$B$5=0,0,IF(ISNA(VLOOKUP($A92,'Last Race Results'!$A$5:$J$44,11,FALSE)),0,VLOOKUP($A92,'Last Race Results'!$A$5:$J$44,11,FALSE))) -> 0
